Workbook

Sheet READ ME
D11: Read Me Sheet
D16: DESIGN – Pump Sizing Tool
D18: Introduction
D19: This tool allows for the calculation of pumping head, the required solar PV module capacity and selects suitable pump technologies. It is particularly relevant for the module DESIGN of the SPIS Toolbox.
D23: Tips & Tricks
D35: Overview
D36: This tool comprises the following sheets:
D38: 1. Pumping head calculation | G38: to add various values relevant for calculating the total pumping head, including friction losses from the irrigation system
D41: 2. Photovoltaic pump sizing | G41: to add various values relevant for calculating the SPIS system size and PV module area
D44: 3. Terminology
D47: About
D48: Published by: | F48: GIZ & FAO
D49: Resposible: | F49: GIZ project Sustainable Energy for Food - Powering Agriculture
D51: Contact: | F51: Powering.Agriculture@giz.de
D52: Download link: | F52: https://energypedia.info/wiki/Toolbox_on_SPIS
D53: About: | F53: Powering Agriculture: An Energy Grand Challenge for Development. Available at:
F55: https://poweringag.org
D56: Version: | F56: 0.2 (October 2017)
D58: The Toolbox on Solar Powered Irrigation Systems is made possible through the global initiative Powering Agriculture: An Energy Grand Challenge for Development (PAEGC). In 2012, the United States Agency for International Development (USAID), the Swedish International Development Cooperation Agency (Sida), the German Federal Ministry for Economic Cooperation and Development (BMZ), Duke Energy, and the Overseas Private Investment Cooperation (OPIC) combined resources to create the PAEGC initiative. The objective of PAEGC is to support new and sustainable approaches to accelerate the development and deployment of clean energy solutions for increasing agriculture productivity and/or value for farmers and agribusinesses in developing countries and emerging regions that lack access to reliable, affordable clean energy.
D71: The designations employed and the presentation of material in this information product do not imply the expression of any opinion whatsoever on the part of Deutsche Gesellschaft für Internationale Zusammenarbeit (GIZ) GmbH, Food and Agriculture Organization of the United Nations (FAO) or any of the PAEGC Founding Partners concerning the legal or development status of any country, territory, city or area or of its authorities, or concerning the delimitation of its frontiers or boundaries. The mention of specific companies or products of manufacturers, whether or not these have been patented, does not imply that these have been endorsed or recommended by GIZ, FAO, or any of the PAEGC Founding Partners in preference to others of a similar nature that are not mentioned. The views expressed in this information product are those of the author and do not necessarily reflect the views or policies of GIZ, FAO, or any of the PAEGC Founding Partners.
D86: GIZ, FAO and the PAEGC Founding Partners encourage the use, reproduction and dissemination of material in this information product. Except where otherwise indicated, material may be copied, downloaded and printed for private study, research and teaching purposes, or for use in non-commercial products or services, provided that appropriate acknowledgement of GIZ and FAO as the source and copyright holder is given.
D94: © GIZ and FAO, 2017

Sheet 1 Pumping head calculation
A1: DESIGN – Pump Sizing Tool
B3: Determination of Pumping Head | O3: Basic assumptions | U3: Fittings in the piping
B5: Htotal | C5: Total Dynamic Head
B6: Hs | C6: Static Water Level | J6: 20 | K6: m | O6: Pipe diameter: | R6: inch | U6: Fitting type | W6: Quantity
B7: D | C7: Drawdown | J7: 2 | K7: m | O7: Sun hours: | Q7: 4.3 | R7: h | U7: 32º Elbow | W7: 0
B8: He | C8: Elevation Difference Well to Tank Stand | J8: 3 | K8: m | O8: Daily water: | Q8: 25 | R8: m³ | U8: 22.5º Elbow | W8: 0
B9: Ht | C9: Height of Tank Inlet from Ground | J9: 7 | K9: m | O9: Pipe length: | Q9: 100 | R9: m | U9: 11.25º Elbow | W9: 0
B10: Ho | C10: Height of Tank Outlet | J10: 5 | K10: m | U10: Gate Valve | W10: 0
B11: HI | C11: Head Loss in Pipeline | J11: ='head calculation'!D57 -> 37.55320039 | K11: m | U11: 90º Elbow | W11: 3
B12: Hfi | C12: Head Loss in Fittings | J12: ='head calculation'!E73 -> 0.7774252879 | K12: m | O12: Volume flow: | Q12: =Q8/Q7 -> 5.813953488 | R12: m³/h | U12: Tee | W12: 0
B13: Hm | C13: Head Loss in Water Meter | J13: 2 | K13: m | U13: Reducer | W13: 0
B14: Hf | C14: Head Loss in Filter/Fertigation | J14: 2 | K14: m | O14: Pipe size conversion table | U14: Gate Valve | W14: 0
B15: Hirrig | C15: Pressure Irrigation System | J15: =J16*9.80665 -> 4.903325 | K15: m | O15: inch | P15: cm | Q15: inch | R15: cm | U15: Check valve | W15: 0
B16: Irrigation scheme pressure requirement | J16: 0.5 | K16: bar | O16: 1/2 | P16: 15 | Q16: 2 1/2 | R16: 65
O17: 3/4 | P17: 20 | Q17: 3 | R17: 80
B18: Estimation of pressure requirements | I18: Micro Sprinkler | K18: 0.5-2 bar | O18: 1 | P18: 25 | Q18: 4 | R18: 100
I19: Sprinkler | K19: 2-5 bar | O19: 1 1/4 | P19: 32 | Q19: 5 | R19: 125
B20: Pivot | D20: 1-3 bar | I20: Traveling gun | K20: 2-8 bar | O20: 1.5 | P20: 40 | Q20: 6 | R20: 150
B21: Drip | D21: 0.5-3 bar | I21: Flood | K21: 0 bar | O21: 2 | P21: 50
B23: Direct feed | P23: Tank system
B25: Htotal | D25: = | E25: Hs + D + He + Hm + Hf + Hl + Hirrig | K25: =SUM(J6:J8)+SUM(J11:J15) -> 72.23395067 | L25: m | P25: Htotal | Q25: = | R25: Hs + D + He + Ht + Hm + Hf + Hl | V25: =SUM(J6:J9,J11:J14) -> 74.33062567 | W25: m

Sheet 2 Photovoltaic pump sizing
A1: DESIGN – Pump Sizing Tool
B7: Inputs
B9: Daily insolation | E9: Photovoltaic array type
B10: 4 | C10: kWh/m² | E10: fixed
B12: Water requirement | E12: Solar deration (losses)
B13: ='1 Pumping head calculation'!Q8 -> 25 | C13: m³/day | E13: 25 | F13: %
B15: Total dynamic head for
B17: =INDEX('head calculation'!AF35:AF36,'head calculation'!AC34) -> 74.33062567 | C17: m
B20: Results | F20: =IF('head calculation'!AG33="Problem","Please check the necessary irrigation pressure. An additional booster pump, installed after the tank/reservoir, may be needed.","") -> 
B22: Estimation of the solar generator sizing:
B24: ='Photovoltaic pump sizing (calc)'!G14 -> 3.25 kWp | C24: to | D24: ='Photovoltaic pump sizing (calc)'!G18 -> 4.35 kWp
F25: =IF('head calculation'!AG33="Problem","Height of Tank Outlet (m):","") ->  | J25: =IF('head calculation'!AG33="Problem",'1 Pumping head calculation'!J10,"") -> 
B26: Estimation of the solar panel surface: | F26: =IF('head calculation'!AG33="Problem","Irrigation pressure requirement (bar):","") ->  | J26: =IF('head calculation'!AG33="Problem",'1 Pumping head calculation'!J16,"") -> 
F27: =IF('head calculation'!AG33="Problem","Pressure deficit (m):","") ->  | J27: =IF('head calculation'!AG33="Problem",J25-(J26*10),"") -> 
A28: =IF(COUNTBLANK(A22:A26)<5,IF(OR(warning_cons),"* The total efficiency of the pump is below " & TEXT(min_eta_tot, "#0%") & " for this solution.",""),"") ->  | B28: =IFERROR(ROUND(MID(B24,1,(LEN(B24)-4))/150*1000,1) &" m²","") -> 21.7 m² | C28: to | D28: =IFERROR(ROUND(MID(D24,1,(LEN(D24)-4))/150*1000,1) & " m²","") -> 29 m²

Sheet 3 Terminology
A1: TERMINOLOGY | B1: DEFINITION
A2: Daily insolation [kW/m²] | B2: The amount of irradiation within one day on an optimum tilted, equator oriented surface. Various websites deliver irradiation data as: www.solargis.info. - Min. 1 - Max. 7
A3: Daily Sun Hours (h) | B3: The amount of effective sun hours at construction site. By definition, the amount of effective sun hours is equal to the solar irradiation. e.g. 6.2 kWh/m² -> 6.2 hours. To fullfill yearly pumping requirements, choose the lowest monthly value.
A4: Daily Water requirement [m³] | B4: The total amount of water needed daily for crops and/or animals, which is extracted by the pump.
A5: Head Loss in Filter/Fertigation | B5: The head loss caused by filter or fertigation. If a water meter is installed, check the manufacturers datasheet for exact values.
A6: Head Loss in Water Meter | B6: The head loss caused by the water meter. If a water meter is installed, check the manufacturers datasheet for exact values.
A7: Photovoltaic array type | B7: Fixed or single-axis tracked photovoltaic array. Single-axis tracked is based on the assumption of 25% more yield. - "fixed" - "single-axis tracked"
A8: Pressure Irrigation System | B8: Depending on the type and sizing of the irrigation system, different pressure requirements have to be met. The needed pressure is supplied by the pump and expressed in a head loss.
A9: Pressure requirement | B9: The pressure requirements depend on the irrigation scheme. Specific data can be obtained from the manufacturer. Check values below for a rough estimation.
A10: Solar deration | B10: All losses on the photovoltaic array compared to Standard Test Conditions (STC): Temperature, dirt, module mismatch, aging, cable losses etc. - Std. 25 - Min. 0
A11: Total dynamic head [m] | B11: The total dynamic head specifies the static head from the source water level to the highest point of the system plus the dynamic friction losses. For large pipe diameters and short pipes the friction losses can be neglected. - Min. 1 - Max. 1000
A12: Water requirement [m³/day] | B12: The water requirement specifies your need of water per day. - Min. 1 - Max. 1000

Sheet Photovoltaic pump sizing (OLD) (hidden)
A1: DESIGN 03 - Pump Sizing Tool
B2: =product_title -> PVPSXLS | C2: =product_version -> 2.1.1
B7: Inputs | F7: Result
B9: Daily insolation | F9: Photovoltaic pump solutions
B10: 5 | C10: kWh/m² | E10: 1 | F10: =IF(COUNTIF(index_cons,E10)>0,IF(INDEX(warning_cons, MATCH(E10,index_cons,0)),"#" & INDEX(rank_cons, MATCH(E10,index_cons,0)) & "*","#" & INDEX(rank_cons, MATCH(E10,index_cons,0))),"") -> #1 | G10: =IF(F10<>"",INDEX(name_cons, MATCH(E10,index_cons,0)),"") -> Lorentz PS4000 C-SJ8-15 | H10: =IF(F10<>"",INDEX(array_cons, MATCH(E10,index_cons,0)),"") -> 3.25 kWp
E11: 2 | F11: =IF(COUNTIF(index_cons,E11)>0,IF(INDEX(warning_cons, MATCH(E11,index_cons,0)),"#" & INDEX(rank_cons, MATCH(E11,index_cons,0)) & "*","#" & INDEX(rank_cons, MATCH(E11,index_cons,0))),"") -> #2 | G11: =IF(F11<>"",INDEX(name_cons, MATCH(E11,index_cons,0)),"") -> Lorentz PS4000 C-SJ5-25 | H11: =IF(F11<>"",INDEX(array_cons, MATCH(E11,index_cons,0)),"") -> 3.7 kWp
B12: Photovoltaic array type | E12: 3 | F12: =IF(COUNTIF(index_cons,E12)>0,IF(INDEX(warning_cons, MATCH(E12,index_cons,0)),"#" & INDEX(rank_cons, MATCH(E12,index_cons,0)) & "*","#" & INDEX(rank_cons, MATCH(E12,index_cons,0))),"") -> #3 | G12: =IF(F12<>"",INDEX(name_cons, MATCH(E12,index_cons,0)),"") -> Shakti SSP4000 - 130 - 8 | H12: =IF(F12<>"",INDEX(array_cons, MATCH(E12,index_cons,0)),"") -> 4 kWp
B13: single-axis tracked | E13: 4 | F13: =IF(COUNTIF(index_cons,E13)>0,IF(INDEX(warning_cons, MATCH(E13,index_cons,0)),"#" & INDEX(rank_cons, MATCH(E13,index_cons,0)) & "*","#" & INDEX(rank_cons, MATCH(E13,index_cons,0))),"") -> #4 | G13: =IF(F13<>"",INDEX(name_cons, MATCH(E13,index_cons,0)),"") -> Franklin Electric 100SDSP-2.2KW | H13: =IF(F13<>"",INDEX(array_cons, MATCH(E13,index_cons,0)),"") -> 4.3 kWp
E14: 5 | F14: =IF(COUNTIF(index_cons,E14)>0,IF(INDEX(warning_cons, MATCH(E14,index_cons,0)),"#" & INDEX(rank_cons, MATCH(E14,index_cons,0)) & "*","#" & INDEX(rank_cons, MATCH(E14,index_cons,0))),"") -> #5 | G14: =IF(F14<>"",INDEX(name_cons, MATCH(E14,index_cons,0)),"") -> Franklin Electric 70SDSP-2.2KW | H14: =IF(F14<>"",INDEX(array_cons, MATCH(E14,index_cons,0)),"") -> 4.35 kWp
B15: Total dynamic head for:
F16: =IF(COUNTBLANK(F10:F14)<5,IF(OR(warning_cons),"* The total efficiency of the pump is below " & TEXT(min_eta_tot, "#0%") & " for this solution.",""),"") -> 
B17: =INDEX('head calculation'!AF35:AF36,'head calculation'!AC34) -> 74.33062567 | C17: m | F17: Irradiation [W/m²]
B18: =IF('head calculation'!AG33="Problem","Please check the necessary irrigation pressure. An additional pump may be needed.","") -> 
B23: Water requirement
B24: ='1 Pumping head calculation'!Q8 -> 25 | C24: m³/day
B26: Solar deration (losses)
B27: 25 | C27: %
B30: Size of panel surface
B32: =IFERROR(((INDEX('head calculation'!AE42:AE46,'head calculation'!AB42)*1000)/150),"") -> 29 | C32: m² | F32: ="Output " & G10 & " [m³/h]" -> Output Lorentz PS4000 C-SJ8-15 [m³/h]

Sheet Photovoltaic pump sizing (calc) (hidden)
A1: DESIGN 03 - Pump Sizing Tool
B2: =product_title -> PVPSXLS | C2: =product_version -> 2.1.1
D14: 1 | E14: =IF(COUNTIF(index_cons,D14)>0,IF(INDEX(warning_cons, MATCH(D14,index_cons,0)),"#" & INDEX(rank_cons, MATCH(D14,index_cons,0)) & "*","#" & INDEX(rank_cons, MATCH(D14,index_cons,0))),"") -> #1 | F14: =IF(E14<>"",INDEX(name_cons, MATCH(D14,index_cons,0)),"") -> Lorentz PS4000 C-SJ8-15 | G14: =IF(E14<>"",INDEX(array_cons, MATCH(D14,index_cons,0)),"") -> 3.25 kWp
D15: 2 | E15: =IF(COUNTIF(index_cons,D15)>0,IF(INDEX(warning_cons, MATCH(D15,index_cons,0)),"#" & INDEX(rank_cons, MATCH(D15,index_cons,0)) & "*","#" & INDEX(rank_cons, MATCH(D15,index_cons,0))),"") -> #2 | F15: =IF(E15<>"",INDEX(name_cons, MATCH(D15,index_cons,0)),"") -> Lorentz PS4000 C-SJ5-25 | G15: =IF(E15<>"",INDEX(array_cons, MATCH(D15,index_cons,0)),"") -> 3.7 kWp
D16: 3 | E16: =IF(COUNTIF(index_cons,D16)>0,IF(INDEX(warning_cons, MATCH(D16,index_cons,0)),"#" & INDEX(rank_cons, MATCH(D16,index_cons,0)) & "*","#" & INDEX(rank_cons, MATCH(D16,index_cons,0))),"") -> #3 | F16: =IF(E16<>"",INDEX(name_cons, MATCH(D16,index_cons,0)),"") -> Shakti SSP4000 - 130 - 8 | G16: =IF(E16<>"",INDEX(array_cons, MATCH(D16,index_cons,0)),"") -> 4 kWp
D17: 4 | E17: =IF(COUNTIF(index_cons,D17)>0,IF(INDEX(warning_cons, MATCH(D17,index_cons,0)),"#" & INDEX(rank_cons, MATCH(D17,index_cons,0)) & "*","#" & INDEX(rank_cons, MATCH(D17,index_cons,0))),"") -> #4 | F17: =IF(E17<>"",INDEX(name_cons, MATCH(D17,index_cons,0)),"") -> Franklin Electric 100SDSP-2.2KW | G17: =IF(E17<>"",INDEX(array_cons, MATCH(D17,index_cons,0)),"") -> 4.3 kWp
D18: 5 | E18: =IF(COUNTIF(index_cons,D18)>0,IF(INDEX(warning_cons, MATCH(D18,index_cons,0)),"#" & INDEX(rank_cons, MATCH(D18,index_cons,0)) & "*","#" & INDEX(rank_cons, MATCH(D18,index_cons,0))),"") -> #5 | F18: =IF(E18<>"",INDEX(name_cons, MATCH(D18,index_cons,0)),"") -> Franklin Electric 70SDSP-2.2KW | G18: =IF(E18<>"",INDEX(array_cons, MATCH(D18,index_cons,0)),"") -> 4.35 kWp

Sheet head calculation (hidden)
D3: Sun hours: | E3: ='1 Pumping head calculation'!Q7 -> 4.3 | F3: h
D4: Water need: | E4: ='1 Pumping head calculation'!Q8 -> 25 | F4: m³
D6: Volume Flow: | E6: =E4/E3 -> 5.813953488 | F6: m³/h
E7: =E6/3.6 -> 1.61498708 | F7: l/s
C15: Direct Feed In | P15: Tank System
AJ16: Bilder
AB17: 3 | AC17: Diameters: | AD17: 0.5
AD18: 0.75 | AJ18: =IF('2 Photovoltaic pump sizing'!E10="fixed",1,0) -> 1
AD19: 1 | AJ19: =IF('2 Photovoltaic pump sizing'!E10="fixed",0,1) -> 0
C20: Hs + D + He + Ht + Hm + Hf + Hl | P20: Hs + D + He + Ht + Hm + Hf + Hl | AD20: 1.25
C21: Hs + D + He + Hm + Hf + Hl + Hirrig | P21: Hs + D + He + Hm + Hf + Hl + Hirrig | AD21: 1.5 | AJ21: =IF('head calculation'!AC34=1,1,0) -> 0
AD22: 2 | AJ22: =IF('head calculation'!AC34=2,1,0) -> 1
B23: Hs | C23: Static Water Level | H23: ='1 Pumping head calculation'!J6 -> 20 | I23: m | O23: Hs | P23: Static Water Level | U23: ='1 Pumping head calculation'!J6 -> 20 | V23: m | AD23: 2.5
B24: D | C24: Drawdown | H24: ='1 Pumping head calculation'!J7 -> 2 | I24: m | O24: D | P24: Drawdown | U24: ='1 Pumping head calculation'!J7 -> 2 | V24: m | AD24: 3
B25: He | C25: Elevation Difference Well/Tank | H25: ='1 Pumping head calculation'!J8 -> 3 | I25: m | O25: He | P25: Elevation Difference Well/Tank | U25: ='1 Pumping head calculation'!J8 -> 3 | V25: m | AD25: 4
B26: Ht | C26: Height of Tank Inlet | H26: ='1 Pumping head calculation'!J9 -> 7 | I26: m | O26: Ht | P26: Height of Tank Inlet | U26: ='1 Pumping head calculation'!J9 -> 7 | V26: m | AD26: 5
B27: Hl | C27: Head Loss in Pipeline | H27: =D57 -> 37.55320039 | I27: m | O27: Hl | P27: Head Loss in Pipeline | U27: ='1 Pumping head calculation'!J11 -> 37.55320039 | V27: m | AD27: 6
B28: Hfi | C28: Head Loss Fittings | H28: =E73 -> 0.7774252879 | I28: m | O28: Hfi | P28: Head Loss Fittings | U28: ='1 Pumping head calculation'!J12 -> 0.7774252879
B29: Hm | C29: Head Loss Water Meter | H29: ='1 Pumping head calculation'!J13 -> 2 | I29: m | O29: Hm | P29: Head Loss Water Meter | U29: ='1 Pumping head calculation'!J13 -> 2
B30: Hfi | C30: Head Loss Filter | H30: ='1 Pumping head calculation'!J14 -> 2 | I30: m | O30: Hfi | P30: Head Loss Filter | U30: ='1 Pumping head calculation'!J14 -> 2 | V30: m
B31: Hirrig | C31: Pressure Irrigation System | H31: ='1 Pumping head calculation'!J15 -> 4.903325 | I31: m | O31: Hirrig | P31: Pressure Irrigation System | U31: ='1 Pumping head calculation'!J15 -> 4.903325 | V31: m
G32: Total | H32: =SUM(H23:H25)+SUM(H27:H31) -> 72.23395067 | I32: m | T32: Total | U32: =SUM(U23:U30) -> 74.33062567 | V32: m
AG33: =IF(AND('1 Pumping head calculation'!J15>'1 Pumping head calculation'!J10,AC34=2),"Problem","NoProblem") -> NoProblem
AC34: 2 | AD34: System type:
AD35: ='1 Pumping head calculation'!B23 -> Direct feed | AF35: ='1 Pumping head calculation'!K25 -> 72.23395067
B36: Unit conversions | O36: Unit conversions | AD36: ='1 Pumping head calculation'!P23 -> Tank system | AF36: ='1 Pumping head calculation'!V25 -> 74.33062567
C37: 1 meter = | D37: 3.281 | E37: ft | P37: 1 meter = | Q37: 3.281 | R37: ft
C38: 1 cubic meter = | D38: 264.2 | E38: gal | P38: 1 cubic meter = | Q38: 264.2 | R38: gal
C39: 1 cubic meter/hour = | D39: 4.403 | E39: gallon/minute [US] | P39: 1 cubic meter/hour = | Q39: 4.403 | R39: gallon/minute [US]
C40: 1 liter/second = | D40: 15.8529 | E40: gallon/minute [US] | P40: 1 liter/second = | Q40: 15.8529 | R40: gallon/minute [US]
C41: Acceleration of gravity g = | D41: 9.8 | E41: m/s² = | F41: =D41*D37 -> 32.1538 | G41: ft/s² | P41: Acceleration of gravity g = | Q41: 9.8 | R41: m/s² = | S41: =Q41*Q37 -> 32.1538 | T41: ft/s² | AC41: panel sizes
C42: Kinematic Viscosity µ = | D42: 1e-05 | E42: ft³/s | P42: Kinematic Viscosity µ = | Q42: 1e-05 | R42: ft³/s | AB42: 5 | AC42: ='Photovoltaic pump sizing (calc)'!G14 -> 3.25 kWp | AE42: =LEFT(AC42,FIND(" ",AC42)-1)*1 -> 3.25
C43: Reynolds number Re= | D43: ID = | E43: pipe inside diameter | P43: Reynolds number Re= | Q43: ID = | R43: pipe inside diameter | AC43: ='Photovoltaic pump sizing (calc)'!G15 -> 3.7 kWp | AE43: =LEFT(AC43,FIND(" ",AC43)-1)*1 -> 3.7
C44: Simplified Colebrook equation Ft = | P44: Simplified Colebrook equation Ft = | AC44: ='Photovoltaic pump sizing (calc)'!G16 -> 4 kWp | AE44: 4
C45: Darcy-Weisbach Equation Hf = | P45: Darcy-Weisbach Equation Hf = | AC45: ='Photovoltaic pump sizing (calc)'!G17 -> 4.3 kWp | AE45: 4.3
C46: Losses in valves and fittings Hf= | P46: Losses in valves and fittings Hf= | AC46: ='Photovoltaic pump sizing (calc)'!G18 -> 4.35 kWp | AE46: 4.35
C47: 1 bar= | D47: 14.5038 | E47: PSI
B48: b) Head losses in Pipe lines | O48: b) Head losses in Pipe lines
C49: Head losses in fiberglass pipe lines according to American Water Works Association Manual M45 | P49: Head losses in fiberglass pipe lines according to American Water Works Association Manual M45
C50: i Head loss in pipe (Darcy-Weisbach) | P50: i Head loss in pipe (Darcy-Weisbach)
C51: Pipe Length L= | D51: ='1 Pumping head calculation'!Q9 -> 100 | E51: m | F51: =D51*D37 -> 328.1 | G51: ft | P51: Pipe Length L= | Q51: ='1 Pumping head calculation'!$Q$9 -> 100 | R51: m | S51: =Q51*Q37 -> 328.1 | T51: ft
C52: Pipe Diameter D= | D52: =INDEX(AD17:AD27,AB17)*0.0254 -> 0.0254 | E52: m | F52: =D52*D37 -> 0.0833374 | G52: ft | P52: Pipe Diameter D= | Q52: =INDEX(AD17:AD27,AB17)*0.0254 -> 0.0254 | R52: m | S52: =Q52*Q37 -> 0.0833374 | T52: ft
C53: Flow rate Q= | D53: =E7 -> 1.61498708 | E53: l/s | F53: =D53*D40 -> 25.60222868 | G53: g/m | P53: Flow rate Q= | Q53: =E7 -> 1.61498708 | R53: l/s | S53: =Q53*Q40 -> 25.60222868 | T53: g/m
C54: Water Velocity V= | D54: =D53/(POWER((D52/2),2)*PI()*1000) -> 3.187217767 | E54: m/s | F54: =D54*D37 -> 10.45726149 | G54: ft/s | P54: Water Velocity V= | Q54: =Q53/(POWER((Q52/2),2)*PI()*1000) -> 3.187217767 | R54: m/s | S54: =Q54*Q37 -> 10.45726149 | T54: ft/s
C55: Reynolds number Re= | F55: =F52*F54/0.00001 -> 87148.0984 | H55: ≥4000 Turbulent flow | P55: Reynolds number Re= | S55: =S52*S54/0.00001 -> 87148.0984 | U55: ≥4000 Turbulent flow
C56: Moody friction factor Ft = | F56: =POWER((1.8*LOG10(F55/7)),-2) -> 0.01840404418 | P56: Moody friction factor Ft = | S56: =POWER((1.8*LOG10(S55/7)),-2) -> 0.01840404418
C57: Friction loss in pipe Hl = | D57: =F57/D37 -> 37.55320039 | E57: m | F57: =(F56*F51*POWER(F54,2)/(2*F52*F41)) -> 123.2120505 | G57: ft | P57: Friction loss in pipe Hl = | Q57: =S57/Q37 -> 37.55320039 | R57: m | S57: =(S56*S51*POWER(S54,2)/(2*S52*S41)) -> 123.2120505 | T57: ft
C59: ii) Head loss in valves and fittings | P59: ii) Head loss in valves and fittings
C60: Fitting type | D60: Quantity | E60: K factor | F60: Total K factor | P60: Fitting type | Q60: Quantity | R60: K factor | S60: Total K factor
C61: 32º Elbow | D61: ='1 Pumping head calculation'!W7 -> 0 | E61: 0.5 | F61: =D61*E61 -> 0 | P61: 32º Elbow | Q61: ='1 Pumping head calculation'!W7 -> 0 | R61: 0.5 | S61: =Q61*R61 -> 0
C62: 22.5º Elbow | D62: ='1 Pumping head calculation'!W8 -> 0 | E62: 0.5 | F62: 0 | P62: 22.5º Elbow | Q62: ='1 Pumping head calculation'!W8 -> 0 | R62: 0.5 | S62: 0
C63: 11.25º Elbow | D63: ='1 Pumping head calculation'!W9 -> 0 | E63: 0.5 | F63: 0 | P63: 11.25º Elbow | Q63: ='1 Pumping head calculation'!W9 -> 0 | R63: 0.5 | S63: 0
C64: Gate Valve | D64: ='1 Pumping head calculation'!W10 -> 0 | E64: 0.2 | F64: 0 | P64: Gate Valve | Q64: ='1 Pumping head calculation'!W10 -> 0 | R64: 0.2 | S64: 0
C65: 90º Elbow | D65: ='1 Pumping head calculation'!W11 -> 3 | E65: 0.5 | F65: 1.5 | P65: 90º Elbow | Q65: ='1 Pumping head calculation'!W11 -> 3 | R65: 0.5 | S65: 1.5
C66: Tee | D66: ='1 Pumping head calculation'!W12 -> 0 | E66: 1.7 | F66: 0 | P66: Tee | Q66: ='1 Pumping head calculation'!W12 -> 0 | R66: 1.7 | S66: 0
C67: Reducer | D67: ='1 Pumping head calculation'!W13 -> 0 | E67: 0.7 | F67: 0 | P67: Reducer | Q67: ='1 Pumping head calculation'!W13 -> 0 | R67: 0.7 | S67: 0
C68: Gate Valve | D68: ='1 Pumping head calculation'!W14 -> 0 | E68: 0.2 | F68: 0 | P68: Gate Valve | Q68: ='1 Pumping head calculation'!W14 -> 0 | R68: 0.2 | S68: 0
C69: Check valve | D69: ='1 Pumping head calculation'!W15 -> 0 | E69: 2 | F69: 0 | P69: Check valve | Q69: ='1 Pumping head calculation'!W15 -> 0 | R69: 2 | S69: 0
E70: Total = | F70: =SUM(F61:F69) -> 1.5 | R70: Total = | S70: =SUM(S61:S69) -> 1.5
C73: Head losses valves and fittings Hfi = | E73: =F70*POWER(D54,2)/(2*9.8) -> 0.7774252879 | F73: m | P73: Head losses valves and fittings Hfi = | R73: =S70*POWER(Q54,2)/(2*9.8) -> 0.7774252879 | S73: m

Sheet Pump database (hidden)
B2: =product_title -> PVPSXLS | D2: =product_version -> 2.1.1
B4: =product_subtitle -> MS Excel based tool for Photovoltaic Pump Sizing
B7: Selected pump (press F9 to refresh) | Q7: =IF(AND(CELL("row")>=24,CELL("row")<=223),INDIRECT(ADDRESS(CELL("row"),1,,,"Calculation (power based)")),#N/A) -> 
C8: =IF(AND(NOT(ISNA('Calculation (power based)'!B4)),NOT(ISNA(VLOOKUP('Calculation (power based)'!B4,'Calculation (power based)'!A24:DB223,45,FALSE)))),VLOOKUP('Calculation (power based)'!B4,'Calculation (power based)'!A24:DB223,45,FALSE),"-") -> -
C10: ="Active: " & IF(AND(NOT(ISNA('Calculation (power based)'!B4)),NOT(ISNA(VLOOKUP('Calculation (power based)'!B4,'Calculation (power based)'!A24:DB223,46,FALSE)))),VLOOKUP('Calculation (power based)'!B4,'Calculation (power based)'!A24:DB223,46,FALSE),"-") -> Active: -
C11: ="Type: " & IF(AND(NOT(ISNA('Calculation (power based)'!B4)),NOT(ISNA(VLOOKUP('Calculation (power based)'!B4,'Calculation (power based)'!A24:DB223,32,FALSE)))),OFFSET(pump_type,VLOOKUP('Calculation (power based)'!B4,'Calculation (power based)'!A24:DB223,32,FALSE)-1,0,1,1),"-") -> Type: -
C12: ="Power: " & IF(NOT(ISNA('Calculation (power based)'!B4)),IF(NOT(OR(ISNA(VLOOKUP('Calculation (power based)'!B4,'Calculation (power based)'!A24:DB223,34,FALSE)),ISNA(VLOOKUP('Calculation (power based)'!B4,'Calculation (power based)'!A24:DB223,36,FALSE)))),"max. " & MAX(VLOOKUP('Calculation (power based)'!B4,'Calculation (power based)'!A24:DB223,34,FALSE),VLOOKUP('Calculation (power based)'!B4,'Calculation (power based)'!A24:DB223,36,FALSE))/1000 & " kW", "-"),"-") -> Power: -
C13: ="Head: " & IF(NOT(ISNA('Calculation (power based)'!B4)),IF(NOT(OR(ISNA(VLOOKUP('Calculation (power based)'!B4,'Calculation (power based)'!A24:DB223,29,FALSE)),ISNA(VLOOKUP('Calculation (power based)'!B4,'Calculation (power based)'!A24:DB223,30,FALSE)))),"max. " & MAX(VLOOKUP('Calculation (power based)'!B4,'Calculation (power based)'!A24:DB223,29,FALSE),VLOOKUP('Calculation (power based)'!B4,'Calculation (power based)'!A24:DB223,30,FALSE)) & " m", "-"),"-") -> Head: -
C14: ="Output: " & IF(NOT(ISNA('Calculation (power based)'!B4)),IF(NOT(ISNA(VLOOKUP('Calculation (power based)'!B4,'Calculation (power based)'!A24:DB223,47,FALSE))),"max. " & VLOOKUP('Calculation (power based)'!B4,'Calculation (power based)'!A24:DB223,47,FALSE) & " m³/h", "-"),"-") -> Output: -
B22: Database
C23: Manufacturer | E23: Model | F23: Active | G23: Type | H23: H_low [m] | I23: P_low_start [W] | J23: Q_low_start [m³/h] | K23: P_low_max [W] | L23: Q_low_max [m³/h] | M23: H_high [m] | N23: P_high_start [W] | O23: Q_high_start [m³/h] | P23: P_high_max [W] | Q23: Q_high_max [m³/h]
C24: Grundfos | E24: SQF 0.6-2 | F24: TRUE | G24: helical rotor | H24: 10 | I24: 30 | J24: 0 | K24: 197 | L24: 0.64 | M24: 120 | N24: 88 | O24: 0 | P24: 400 | Q24: 0.61
C25: Grundfos | E25: SQF 0.6-3 | F25: TRUE | G25: helical rotor | H25: 80 | I25: 50 | J25: 0 | K25: 355 | L25: 0.63 | M25: 200 | N25: 135 | O25: 0 | P25: 590 | Q25: 0.61
C26: Grundfos | E26: SQF 1.2-2 | F26: TRUE | G26: helical rotor | H26: 10 | I26: 26 | J26: 0 | K26: 220 | L26: 1.38 | M26: 120 | N26: 195 | O26: 0 | P26: 690 | Q26: 1.22
C27: Grundfos | E27: SQF 1.2-3 | F27: TRUE | G27: helical rotor | H27: 90 | I27: 60 | J27: 0 | K27: 550 | L27: 1.34 | M27: 250 | N27: 535 | O27: 0 | P27: 1350 | Q27: 1.04
C28: Grundfos | E28: SQF 2.5-2 | F28: TRUE | G28: helical rotor | H28: 5 | I28: 20 | J28: 0.36 | K28: 240 | L28: 2.9 | M28: 120 | N28: 440 | O28: 0 | P28: 1400 | Q28: 2.34
C29: Grundfos | E29: SQF 3A-10 | F29: TRUE | G29: centrifugal | H29: 30 | I29: 140 | J29: 0 | K29: 1400 | L29: 4.95 | M29: 70 | N29: 380 | O29: 0 | P29: 1400 | Q29: 3
C30: Grundfos | E30: SQF 5A-3 | F30: TRUE | G30: centrifugal | H30: 2 | I30: 25 | J30: 0 | K30: 720 | L30: 9.1 | M30: 15 | N30: 130 | O30: 0 | P30: 720 | Q30: 6.5
C31: Grundfos | E31: SQF 5A-7 | F31: TRUE | G31: centrifugal | H31: 10 | I31: 60 | J31: 0 | K31: 1400 | L31: 9 | M31: 50 | N31: 330 | O31: 0 | P31: 1400 | Q31: 4.3
C32: Grundfos | E32: SQF 8A-3 | F32: TRUE | G32: centrifugal | H32: 2 | I32: 20 | J32: 0 | K32: 1200 | L32: 18.3 | M32: 15 | N32: 180 | O32: 0 | P32: 1200 | Q32: 12.2
C33: Grundfos | E33: SQF 8A-5 | F33: TRUE | G33: centrifugal | H33: 2 | I33: 20 | J33: 0 | K33: 1400 | L33: 16 | M33: 30 | N33: 350 | O33: 0 | P33: 1400 | Q33: 7.4
C34: Grundfos | E34: SQF 11A-3 | F34: TRUE | G34: centrifugal | H34: 2 | I34: 30 | J34: 0 | K34: 1400 | L34: 19.1 | M34: 15 | N34: 270 | O34: 0 | P34: 1400 | Q34: 14.4
C35: Grundfos | E35: CRIF 3-9 | F35: TRUE | G35: centrifugal | H35: 5 | I35: 40 | J35: 0 | K35: 1150 | L35: 6.25 | M35: 60 | N35: 420 | O35: 0 | P35: 1140 | Q35: 2.9
C36: Grundfos | E36: CRIF 5-5 | F36: TRUE | G36: centrifugal | H36: 5 | I36: 40 | J36: 0 | K36: 1250 | L36: 11.8 | M36: 30 | N36: 300 | O36: 0 | P36: 1220 | Q36: 7.2
C37: Grundfos | E37: CRIF 10-2 | F37: TRUE | G37: centrifugal | H37: 5 | I37: 110 | J37: 0 | K37: 1260 | L37: 18.5 | M37: 20 | N37: 360 | O37: 0 | P37: 1300 | Q37: 11.4
C38: Franklin Electric | E38: 18SDSP-0.55KW | F38: TRUE | G38: centrifugal | H38: 20 | I38: 200 | J38: 0.3 | K38: 1280 | L38: 2 | M38: 140 | N38: 950 | O38: 0.3 | P38: 1280 | Q38: 0.78
C39: Franklin Electric | E39: 25SDSP-0.55KW | F39: TRUE | G39: centrifugal | H39: 20 | I39: 200 | J39: 0.3 | K39: 1260 | L39: 2.88 | M39: 120 | N39: 860 | O39: 0.3 | P39: 1260 | Q39: 1.32
C40: Franklin Electric | E40: 30SDSP-0.55KW | F40: TRUE | G40: centrifugal | H40: 20 | I40: 240 | J40: 0.3 | K40: 1180 | L40: 3.42 | M40: 80 | N40: 820 | O40: 0.3 | P40: 1290 | Q40: 1.68
C41: Franklin Electric | E41: 45SDSP-0.55KW | F41: TRUE | G41: centrifugal | H41: 10 | I41: 210 | J41: 0.3 | K41: 1190 | L41: 5.04 | M41: 60 | N41: 790 | O41: 0.3 | P41: 1230 | Q41: 2.46
C42: Franklin Electric | E42: 18SDSP-1.1KW | F42: TRUE | G42: centrifugal | H42: 40 | I42: 240 | J42: 0.3 | K42: 1800 | L42: 1.98 | M42: 220 | N42: 1300 | O42: 0.3 | P42: 2000 | Q42: 1.02
C43: Franklin Electric | E43: 30SDSP-1.1KW | F43: TRUE | G43: centrifugal | H43: 40 | I43: 320 | J43: 0.3 | K43: 2000 | L43: 3.18 | M43: 160 | N43: 1330 | O43: 0.3 | P43: 2000 | Q43: 1.41
C44: Franklin Electric | E44: 45SDSP-1.1KW | F44: TRUE | G44: centrifugal | H44: 40 | I44: 340 | J44: 0.3 | K44: 2000 | L44: 4.08 | M44: 140 | N44: 1320 | O44: 0.3 | P44: 2000 | Q44: 1.92
C45: Franklin Electric | E45: 70SDSP-1.1KW | F45: TRUE | G45: centrifugal | H45: 20 | I45: 300 | J45: 0.3 | K45: 2000 | L45: 7.92 | M45: 90 | N45: 1240 | O45: 0.3 | P45: 2000 | Q45: 3.36
C46: Franklin Electric | E46: 100SDSP-1.1KW | F46: TRUE | G46: centrifugal | H46: 20 | I46: 350 | J46: 0.6 | K46: 2000 | L46: 10.02 | M46: 70 | N46: 1120 | O46: 0.6 | P46: 2000 | Q46: 3.96
C47: Franklin Electric | E47: 150SDSP-1.1KW | F47: TRUE | G47: centrifugal | H47: 10 | I47: 260 | J47: 0.3 | K47: 2000 | L47: 16.8 | M47: 50 | N47: 1140 | O47: 0.3 | P47: 2000 | Q47: 5.22
C48: Franklin Electric | E48: 270SDSP-1.1KW | F48: TRUE | G48: centrifugal | H48: 10 | I48: 500 | J48: 0 | K48: 2000 | L48: 20.4 | M48: 25 | N48: 1480 | O48: 0 | P48: 2000 | Q48: 7.2
C49: Franklin Electric | E49: 25SDSP-2.2KW | F49: TRUE | G49: centrifugal | H49: 100 | I49: 630 | J49: 0.3 | K49: 3500 | L49: 3.03 | M49: 340 | N49: 2500 | O49: 0.3 | P49: 3500 | Q49: 1.26
C50: Franklin Electric | E50: 30SDSP-2.2KW | F50: TRUE | G50: centrifugal | H50: 40 | I50: 400 | J50: 0.3 | K50: 3500 | L50: 4.14 | M50: 240 | N50: 2400 | O50: 0.3 | P50: 3500 | Q50: 1.62
C51: Franklin Electric | E51: 45SDSP-2.2KW | F51: TRUE | G51: centrifugal | H51: 40 | I51: 400 | J51: 0.3 | K51: 3500 | L51: 5.28 | M51: 215 | N51: 2420 | O51: 0.3 | P51: 3500 | Q51: 2.04
C52: Franklin Electric | E52: 70SDSP-2.2KW | F52: TRUE | G52: centrifugal | H52: 40 | I52: 580 | J52: 0.3 | K52: 3500 | L52: 9.12 | M52: 120 | N52: 1770 | O52: 0.3 | P52: 3500 | Q52: 5.04
C53: Franklin Electric | E53: 100SDSP-2.2KW | F53: TRUE | G53: centrifugal | H53: 20 | I53: 420 | J53: 0.3 | K53: 3500 | L53: 13.32 | M53: 100 | N53: 1750 | O53: 0.3 | P53: 3500 | Q53: 5.4
C54: Franklin Electric | E54: 150SDSP-2.2KW | F54: TRUE | G54: centrifugal | H54: 20 | I54: 550 | J54: 0 | K54: 2800 | L54: 15.6 | M54: 70 | N54: 1800 | O54: 0 | P54: 3350 | Q54: 7.2
C55: Franklin Electric | E55: 270SDSP-2.2kW | F55: TRUE | G55: centrifugal | H55: 10 | I55: 600 | J55: 0 | K55: 3500 | L55: 28.8 | M55: 40 | N55: 2800 | O55: 0 | P55: 3500 | Q55: 6.6
C56: Lorentz | E56: PS150 C-SJ5-8 | F56: TRUE | G56: centrifugal | H56: 5 | I56: 12 | J56: 0 | K56: 300 | L56: 4 | M56: 20 | N56: 100 | O56: 0 | P56: 300 | Q56: 1.95
C57: Lorentz | E57: PS200 HR-04 | F57: TRUE | G57: helical rotor | H57: 10 | I57: 14 | J57: 0.13 | K57: 82 | L57: 0.73 | M57: 50 | N57: 37 | O57: 0 | P57: 173 | Q57: 0.63
C58: Lorentz | E58: PS200 HR-07 | F58: TRUE | G58: helical rotor | H58: 5 | I58: 20 | J58: 0.3 | K58: 104 | L58: 1.34 | M58: 40 | N58: 52 | O58: 0.06 | P58: 250 | Q58: 1.28
C59: Lorentz | E59: PS200 HR-14 | F59: TRUE | G59: helical rotor | H59: 5 | I59: 12 | J59: 0.48 | K59: 185 | L59: 2.6 | M59: 20 | N59: 50 | O59: 0.24 | P59: 300 | Q59: 2.44
C60: Lorentz | E60: PS600 C-SJ5-8 | F60: TRUE | G60: centrifugal | H60: 10 | I60: 50 | J60: 0 | K60: 800 | L60: 7 | M60: 30 | N60: 135 | O60: 0 | P60: 800 | Q60: 4.7
C61: Lorentz | E61: PS600 C-SJ8-5 | F61: TRUE | G61: centrifugal | H61: 5 | I61: 20 | J61: 0 | K61: 700 | L61: 11.5 | M61: 15 | N61: 110 | O61: 0 | P61: 700 | Q61: 8.3
C62: Lorentz | E62: PS600 HR-03 | F62: TRUE | G62: helical rotor | H62: 50 | I62: 44 | J62: 0.09 | K62: 170 | L62: 0.45 | M62: 120 | N62: 68 | O62: 0.03 | P62: 250 | Q62: 0.37
C63: Lorentz | E63: PS600 HR-03H | F63: TRUE | G63: helical rotor | H63: 100 | I63: 70 | J63: 0.09 | K63: 250 | L63: 0.45 | M63: 180 | N63: 100 | O63: 0.05 | P63: 360 | Q63: 0.42
C64: Lorentz | E64: PS600 HR-04 | F64: TRUE | G64: helical rotor | H64: 30 | I64: 35 | J64: 0.15 | K64: 144 | L64: 0.72 | M64: 70 | N64: 60 | O64: 0.06 | P64: 230 | Q64: 0.66
C65: Lorentz | E65: PS600 HR-04H | F65: TRUE | G65: helical rotor | H65: 61 | I65: 65 | J65: 0.14 | K65: 225 | L65: 0.72 | M65: 137 | N65: 115 | O65: 0.04 | P65: 400 | Q65: 0.64
C66: Lorentz | E66: PS600 HR-07 | F66: TRUE | G66: helical rotor | H66: 30 | I66: 55 | J66: 0.33 | K66: 230 | L66: 1.32 | M66: 90 | N66: 140 | O66: 0.07 | P66: 500 | Q66: 1.16
C67: Lorentz | E67: PS600 HR-10 | F67: TRUE | G67: helical rotor | H67: 50 | I67: 125 | J67: 0.24 | K67: 460 | L67: 1.87 | M67: 80 | N67: 200 | O67: 0 | P67: 680 | Q67: 1.67
C68: Lorentz | E68: PS600 HR-14 | F68: TRUE | G68: helical rotor | H68: 10 | I68: 45 | J68: 0.6 | K68: 260 | L68: 2.6 | M68: 50 | N68: 150 | O68: 0.27 | P68: 600 | Q68: 2.3
C69: Lorentz | E69: PS1200 C-SJ5-8 | F69: TRUE | G69: centrifugal | H69: 10 | I69: 50 | J69: 0 | K69: 1100 | L69: 8.2 | M69: 40 | N69: 280 | O69: 0 | P69: 1100 | Q69: 5
C70: Lorentz | E70: PS1200 C-SJ8-5 | F70: TRUE | G70: centrifugal | H70: 5 | I70: 10 | J70: 0 | K70: 1100 | L70: 14 | M70: 25 | N70: 280 | O70: 0 | P70: 1100 | Q70: 8.3
C71: Lorentz | E71: PS1200 C-SJ12-3 | F71: TRUE | G71: centrifugal | H71: 5 | I71: 80 | J71: 0 | K71: 1100 | L71: 20.5 | M71: 10 | N71: 190 | O71: 0 | P71: 1100 | Q71: 17
C72: Lorentz | E72: PS1200 HR-03 | F72: TRUE | G72: helical rotor | H72: 50 | I72: 40 | J72: 0.09 | K72: 150 | L72: 0.43 | M72: 120 | N72: 70 | O72: 0 | P72: 240 | Q72: 0.37
C73: Lorentz | E73: PS1200 HR-03H | F73: TRUE | G73: helical rotor | H73: 100 | I73: 60 | J73: 0.09 | K73: 240 | L73: 0.43 | M73: 240 | N73: 120 | O73: 0.01 | P73: 420 | Q73: 0.4
C74: Lorentz | E74: PS1200 HR-04 | F74: TRUE | G74: helical rotor | H74: 30 | I74: 30 | J74: 0.13 | K74: 135 | L74: 0.71 | M74: 70 | N74: 55 | O74: 0.05 | P74: 230 | Q74: 0.65
C75: Lorentz | E75: PS1200 HR-04H | F75: TRUE | G75: helical rotor | H75: 60 | I75: 60 | J75: 0.13 | K75: 230 | L75: 0.72 | M75: 140 | N75: 115 | O75: 0.05 | P75: 385 | Q75: 0.64
C76: Lorentz | E76: PS1200 HR-07 | F76: TRUE | G76: helical rotor | H76: 40 | I76: 70 | J76: 0.3 | K76: 260 | L76: 1.35 | M76: 120 | N76: 180 | O76: 0 | P76: 600 | Q76: 1.1
C77: Lorentz | E77: PS1200 HR-10 | F77: TRUE | G77: helical rotor | H77: 30 | I77: 80 | J77: 0.4 | K77: 320 | L77: 2.1 | M77: 80 | N77: 170 | O77: 0 | P77: 620 | Q77: 1.72
C78: Lorentz | E78: PS1200 HR-14 | F78: TRUE | G78: helical rotor | H78: 10 | I78: 50 | J78: 0.75 | K78: 240 | L78: 2.5 | M78: 60 | N78: 190 | O78: 0.35 | P78: 640 | Q78: 2.4
C79: Lorentz | E79: PS1800 C-SJ1-25 | F79: TRUE | G79: centrifugal | H79: 70 | I79: 220 | J79: 0 | K79: 1500 | L79: 2.85 | M79: 100 | N79: 380 | O79: 0 | P79: 1500 | Q79: 2.35
C80: Lorentz | E80: PS1800 C-SJ3-18 | F80: TRUE | G80: centrifugal | H80: 50 | I80: 160 | J80: 0 | K80: 1500 | L80: 4 | M80: 80 | N80: 380 | O80: 0 | P80: 1500 | Q80: 3.2
C81: Lorentz | E81: PS1800 C-SJ5-12 | F81: TRUE | G81: centrifugal | H81: 20 | I81: 20 | J81: 0 | K81: 1500 | L81: 7.7 | M81: 70 | N81: 460 | O81: 0 | P81: 1500 | Q81: 4
C82: Lorentz | E82: PS1800 C-SJ8-7 | F82: TRUE | G82: centrifugal | H82: 10 | I82: 80 | J82: 0 | K82: 1500 | L82: 13.3 | M82: 40 | N82: 520 | O82: 0 | P82: 1500 | Q82: 6.4
C83: Lorentz | E83: PS1800 C-SJ12-4 | F83: TRUE | G83: centrifugal | H83: 8 | I83: 120 | J83: 0 | K83: 1500 | L83: 20 | M83: 18 | N83: 350 | O83: 0 | P83: 1500 | Q83: 15
C84: Lorentz | E84: PS1800 C-SJ17-2 | F84: TRUE | G84: centrifugal | H84: 4 | I84: 40 | J84: 0 | K84: 1500 | L84: 26 | M84: 16 | N84: 440 | O84: 0 | P84: 1500 | Q84: 17.6
C85: Lorentz | E85: PS1800 C-SJ30-1 | F85: TRUE | G85: centrifugal | H85: 2 | I85: 80 | J85: 0 | K85: 1500 | L85: 49 | M85: 10 | N85: 530 | O85: 0 | P85: 1440 | Q85: 31
C86: Lorentz | E86: PS1800 C-SJ42-1 | F86: TRUE | G86: centrifugal | H86: 2 | I86: 40 | J86: 0 | K86: 1500 | L86: 53 | M86: 8 | N86: 480 | O86: 0 | P86: 1500 | Q86: 32
C87: Lorentz | E87: PS1800 HR-05HL | F87: TRUE | G87: helical rotor | H87: 50 | I87: 100 | J87: 0.24 | K87: 360 | L87: 0.97 | M87: 250 | N87: 300 | O87: 0.14 | P87: 950 | Q87: 0.86
C88: Lorentz | E88: PS1800 HR-07H | F88: TRUE | G88: helical rotor | H88: 80 | I88: 130 | J88: 0.25 | K88: 480 | L88: 1.37 | M88: 160 | N88: 260 | O88: 0 | P88: 840 | Q88: 1.24
C89: Lorentz | E89: PS1800 HR-14H | F89: TRUE | G89: helical rotor | H89: 40 | I89: 110 | J89: 0.65 | K89: 480 | L89: 2.66 | M89: 120 | N89: 350 | O89: 0.1 | P89: 1330 | Q89: 2.2
C90: Lorentz | E90: PS1800 HR-23 | F90: TRUE | G90: helical rotor | H90: 20 | I90: 100 | J90: 0.75 | K90: 470 | L90: 3.9 | M90: 80 | N90: 360 | O90: 0.1 | P90: 1270 | Q90: 3.4
C91: Lorentz | E91: PS4000 C-SJ3-32 | F91: TRUE | G91: centrifugal | H91: 100 | I91: 350 | J91: 0 | K91: 3500 | L91: 4.2 | M91: 160 | N91: 660 | O91: 0 | P91: 3500 | Q91: 3.5
C92: Lorentz | E92: PS4000 C-SJ5-25 | F92: TRUE | G92: centrifugal | H92: 60 | I92: 300 | J92: 0 | K92: 3200 | L92: 7 | M92: 140 | N92: 850 | O92: 0 | P92: 3450 | Q92: 4.3
C93: Lorentz | E93: PS4000 C-SJ8-15 | F93: TRUE | G93: centrifugal | H93: 30 | I93: 120 | J93: 0 | K93: 3400 | L93: 14 | M93: 80 | N93: 900 | O93: 0 | P93: 3200 | Q93: 8
C94: Lorentz | E94: PS4000 C-SJ17-4 | F94: TRUE | G94: centrifugal | H94: 10 | I94: 160 | J94: 0 | K94: 3500 | L94: 26.5 | M94: 40 | N94: 1220 | O94: 0 | P94: 3500 | Q94: 18.7
C95: Lorentz | E95: PS4000 C-SJ30-2 | F95: TRUE | G95: centrifugal | H95: 12 | I95: 550 | J95: 0 | K95: 3400 | L95: 45 | M95: 20 | N95: 1100 | O95: 0 | P95: 3100 | Q95: 33
C96: Lorentz | E96: PS4000 C-SJ42-1 | F96: TRUE | G96: centrifugal | H96: 2 | I96: 40 | J96: 0 | K96: 2660 | L96: 73 | M96: 12 | N96: 880 | O96: 0 | P96: 2460 | Q96: 44
C97: Lorentz | E97: PS4000 C-SJ42-2 | F97: TRUE | G97: centrifugal | H97: 2 | I97: 80 | J97: 0 | K97: 2900 | L97: 62 | M97: 16 | N97: 1130 | O97: 0 | P97: 2900 | Q97: 37
C98: Lorentz | E98: PS4000 C-SJ60-1 | F98: TRUE | G98: centrifugal | H98: 4 | I98: 240 | J98: 0 | K98: 3400 | L98: 79 | M98: 10 | N98: 1030 | O98: 0 | P98: 3450 | Q98: 57
C99: Lorentz | E99: PS4000 C-SJ60-2-B | F99: TRUE | G99: centrifugal | H99: 8 | I99: 600 | J99: 0 | K99: 3000 | L99: 61 | M99: 16 | N99: 1650 | O99: 0 | P99: 3080 | Q99: 37
C100: Lorentz | E100: PS4000 HR-05HHL | F100: TRUE | G100: helical rotor | H100: 150 | I100: 180 | J100: 0.22 | K100: 625 | L100: 0.93 | M100: 450 | N100: 840 | O100: 0 | P100: 1290 | Q100: 0.37
C101: Lorentz | E101: PS4000 HR-14HL | F101: TRUE | G101: helical rotor | H101: 80 | I101: 210 | J101: 0.47 | K101: 870 | L101: 2.6 | M101: 180 | N101: 600 | O101: 0.08 | P101: 1800 | Q101: 2.2
C102: Lorentz | E102: PS9k C-SJ8-44 | F102: TRUE | G102: centrifugal | H102: 80 | I102: 800 | J102: 0 | K102: 7000 | L102: 11.8 | M102: 180 | N102: 2300 | O102: 0 | P102: 8600 | Q102: 7.6
C103: Lorentz | E103: PS9k C-SJ17-11 | F103: TRUE | G103: centrifugal | H103: 50 | I103: 1300 | J103: 0 | K103: 8900 | L103: 25 | M103: 90 | N103: 2900 | O103: 0 | P103: 9500 | Q103: 18
C104: Lorentz | E104: PS9k C-SJ30-7 | F104: TRUE | G104: centrifugal | H104: 30 | I104: 1250 | J104: 0 | K104: 7400 | L104: 39 | M104: 50 | N104: 2400 | O104: 0 | P104: 7100 | Q104: 32
C105: Lorentz | E105: PS9k C-SJ42-4 | F105: TRUE | G105: centrifugal | H105: 5 | I105: 400 | J105: 0 | K105: 7400 | L105: 72 | M105: 35 | N105: 2900 | O105: 0 | P105: 8400 | Q105: 45
C106: Lorentz | E106: PS9k C-SJ75-1 | F106: TRUE | G106: centrifugal | H106: 2 | I106: 300 | J106: 0 | K106: 7200 | L106: 130 | M106: 14 | N106: 2000 | O106: 0 | P106: 8200 | Q106: 93
C107: Lorentz | E107: PS9k C-SJ95-1 | F107: TRUE | G107: centrifugal | H107: 2 | I107: 250 | J107: 0 | K107: 8000 | L107: 135 | M107: 14 | N107: 1900 | O107: 0 | P107: 8000 | Q107: 96
C108: Lorentz | E108: PS15k C-SJ17-18 | F108: TRUE | G108: centrifugal | H108: 80 | I108: 2000 | J108: 0 | K108: 13000 | L108: 22 | M108: 140 | N108: 4200 | O108: 0 | P108: 11500 | Q108: 16.2
C109: Lorentz | E109: PS15k C-SJ30-12 | F109: TRUE | G109: centrifugal | H109: 50 | I109: 2100 | J109: 0 | K109: 12600 | L109: 39 | M109: 100 | N109: 5000 | O109: 0 | P109: 11800 | Q109: 25
C110: Lorentz | E110: PS15k C-SJ42-6 | F110: TRUE | G110: centrifugal | H110: 10 | I110: 800 | J110: 0 | K110: 8500 | L110: 65 | M110: 50 | N110: 4000 | O110: 0 | P110: 9400 | Q110: 37
C111: Lorentz | E111: PS15k2 C-SJ75-3 | F111: TRUE | G111: centrifugal | H111: 10 | I111: 900 | J111: 0 | K111: 12700 | L111: 125 | M111: 35 | N111: 4400 | O111: 0 | P111: 12500 | Q111: 77
C112: Lorentz | E112: PS15k C-SJ95-2 | F112: TRUE | G112: centrifugal | H112: 5 | I112: 800 | J112: 0 | K112: 13000 | L112: 135 | M112: 25 | N112: 2800 | O112: 0 | P112: 13000 | Q112: 95
C113: Lorentz | E113: PS21k C-SJ30-16 | F113: TRUE | G113: centrifugal | H113: 60 | I113: 2200 | J113: 0 | K113: 15200 | L113: 43 | M113: 120 | N113: 5600 | O113: 0 | P113: 16200 | Q113: 31
C114: Lorentz | E114: PS21k C-SJ42-10 | F114: TRUE | G114: centrifugal | H114: 40 | I114: 2300 | J114: 0 | K114: 15500 | L114: 62 | M114: 90 | N114: 6700 | O114: 0 | P114: 16900 | Q114: 39
C115: Lorentz | E115: PS21k C-SJ75-4 | F115: TRUE | G115: centrifugal | H115: 20 | I115: 1800 | J115: 0 | K115: 18000 | L115: 118 | M115: 55 | N115: 6900 | O115: 0 | P115: 18000 | Q115: 75
C116: Lorentz | E116: PS21k C-SJ120-2-1 | F116: TRUE | G116: centrifugal | H116: 5 | I116: 1000 | J116: 0 | K116: 14500 | L116: 220 | M116: 30 | N116: 7700 | O116: 0 | P116: 17000 | Q116: 120
C117: Lorentz | E117: PS25k2 C-SJ30-22 | F117: TRUE | G117: centrifugal | H117: 100 | I117: 4000 | J117: 0 | K117: 21400 | L117: 37.8 | M117: 200 | N117: 10400 | O117: 0 | P117: 20600 | Q117: 20.8
C118: Shakti | E118: SSP750 - 22 - 27 | F118: TRUE | G118: centrifugal | H118: 15 | I118: 200 | J118: 1.2 | K118: 1000 | L118: 6 | M118: 35 | N118: 600 | O118: 1.8 | P118: 1000 | Q118: 3.9
C119: Shakti | E119: SSP1200 - 20 - 44 | F119: TRUE | G119: centrifugal | H119: 10 | I119: 300 | J119: 3 | K119: 1200 | L119: 12.6 | M119: 25 | N119: 600 | O119: 2.1 | P119: 1200 | Q119: 7.2
C120: Shakti | E120: SSP1200 - 35 - 26 | F120: TRUE | G120: centrifugal | H120: 20 | I120: 200 | J120: 0.9 | K120: 1200 | L120: 6.48 | M120: 35 | N120: 300 | O120: 0.36 | P120: 1200 | Q120: 5.16
C121: Shakti | E121: SSP1200 - 70 - 10 | F121: TRUE | G121: centrifugal | H121: 20 | I121: 300 | J121: 1.08 | K121: 1200 | L121: 3.78 | M121: 90 | N121: 800 | O121: 0.6 | P121: 1200 | Q121: 1.68
C122: Shakti | E122: SSP1500 - 26 - 36 | F122: TRUE | G122: centrifugal | H122: 10 | I122: 300 | J122: 3 | K122: 1600 | L122: 13.5 | M122: 40 | N122: 800 | O122: 0.6 | P122: 1600 | Q122: 5.4
C123: Shakti | E123: SSP1500 - 70 - 13 | F123: TRUE | G123: centrifugal | H123: 20 | I123: 300 | J123: 0.96 | K123: 1600 | L123: 5.52 | M123: 80 | N123: 800 | O123: 0.6 | P123: 1600 | Q123: 2.82
C124: Shakti | E124: SSP2000 - 10 - 93 | F124: TRUE | G124: centrifugal | H124: 5 | I124: 400 | J124: 7.2 | K124: 2000 | L124: 39 | M124: 15 | N124: 800 | O124: 3 | P124: 2000 | Q124: 26.4
C125: Shakti | E125: SSP2000 - 20 - 53 | F125: TRUE | G125: centrifugal | H125: 10 | I125: 400 | J125: 4.2 | K125: 1800 | L125: 22.8 | M125: 25 | N125: 1000 | O125: 3.6 | P125: 1800 | Q125: 12.6
C126: Shakti | E126: SSP2000 - 65 - 15 | F126: TRUE | G126: centrifugal | H126: 20 | I126: 400 | J126: 0.72 | K126: 2000 | L126: 7.2 | M126: 90 | N126: 1200 | O126: 0.72 | P126: 2000 | Q126: 3.3
C127: Shakti | E127: SSP2000 - 100 - 9 | F127: TRUE | G127: centrifugal | H127: 30 | I127: 400 | J127: 0.78 | K127: 2000 | L127: 4.44 | M127: 140 | N127: 1400 | O127: 0.72 | P127: 2000 | Q127: 1.68
C128: Shakti | E128: SSP2000 - 125 - 6 | F128: TRUE | G128: centrifugal | H128: 20 | I128: 400 | J128: 0.48 | K128: 2000 | L128: 3.12 | M128: 160 | N128: 1400 | O128: 0.5 | P128: 2000 | Q128: 1.44
C129: Shakti | E129: SSP2600 - 10 - 104 | F129: TRUE | G129: centrifugal | H129: 5 | I129: 800 | J129: 12 | K129: 2600 | L129: 55.2 | M129: 15 | N129: 1200 | O129: 7.2 | P129: 2600 | Q129: 34.8
C130: Shakti | E130: SSP3000 - 20 - 60 | F130: TRUE | G130: centrifugal | H130: 15 | I130: 1000 | J130: 6 | K130: 3000 | L130: 34.8 | M130: 25 | N130: 1400 | O130: 5.8 | P130: 3000 | Q130: 26.4
C131: Shakti | E131: SSP3000 - 30 - 42 | F131: TRUE | G131: centrifugal | H131: 20 | I131: 1200 | J131: 4.5 | K131: 3000 | L131: 30.6 | M131: 30 | N131: 2000 | O131: 7.2 | P131: 3000 | Q131: 21
C132: Shakti | E132: SSP3000 - 50 - 25 | F132: TRUE | G132: centrifugal | H132: 30 | I132: 1000 | J132: 4.8 | K132: 3000 | L132: 16.8 | M132: 60 | N132: 1600 | O132: 2.4 | P132: 3000 | Q132: 10.2
C133: Shakti | E133: SSP3000 - 70 - 15 | F133: TRUE | G133: centrifugal | H133: 30 | I133: 600 | J133: 2.4 | K133: 3000 | L133: 12 | M133: 70 | N133: 1200 | O133: 1.44 | P133: 3000 | Q133: 7.8
C134: Shakti | E134: SSP4000 - 30 - 45 | F134: TRUE | G134: centrifugal | H134: 10 | I134: 800 | J134: 5.4 | K134: 4000 | L134: 43.2 | M134: 40 | N134: 2000 | O134: 3 | P134: 4000 | Q134: 21.6
C135: Shakti | E135: SSP4000 - 130 - 8 | F135: TRUE | G135: centrifugal | H135: 60 | I135: 800 | J135: 1.8 | K135: 4000 | L135: 7.2 | M135: 180 | N135: 2500 | O135: 1.5 | P135: 4000 | Q135: 3.6
C136: Shakti | E136: SSP10000 - 60 - 19 | F136: TRUE | G136: centrifugal | H136: 30 | I136: 2000 | J136: 6 | K136: 9000 | L136: 42 | M136: 80 | N136: 5000 | O136: 6 | P136: 9000 | Q136: 21

Sheet Curve verification (hidden)
B2: Inputs | I2: Outputs | N2: Average helical rotor deviation | S2: =AVERAGE(AL8:AL107) -> -0.1029119671 | U2: Calculation data
N3: Average cenrifugal deviation | S3: =AVERAGE(AK8:AK107) -> -0.01186999518
N4: Average total deviation | S4: =AVERAGE(S8:S107) -> 
B6: Pump | C6: Head [m] | D6: Output [m³/h] | I6: Power [W] | N6: Deviation of calculated output
D7: Q(P_start) | E7: Q(P_25) | F7: Q(P_50) | G7: Q(P_75) | H7: Q(P_max) | I7: P_start | J7: P_25 | K7: P_50 | L7: P_75 | M7: P_max | N7: dQ_start | O7: dQ_25 | P7: dQ_50 | Q7: dQ_75 | R7: dQ_max | S7: dQ_total | U7: index | V7: Nv | W7: Q_start | X7: Q_25 | Y7: Q_50 | Z7: Q_75 | AA7: Q_max | AB7: Av | AC7: Bv | AD7: Cv | AE7: type | AF7: P_startrel | AG7: P_25rel | AH7: P_50rel | AI7: P_75rel | AJ7: P_maxrel | AK7: dQ_totC | AL7: dQ_totHR
B8: Franklin Electric 18SDSP-0.55KW | C8: 120 | D8: 0.42 | E8: 0.65 | F8: 0.78 | G8: 0.95 | H8: 1.08 | I8: =IF(NOT(ISNA(V8)),INDEX('Calculation (power based)'!AG$24:AG$223,MATCH(U8,'Calculation (power based)'!A$24:A$223,0))+V8*(INDEX('Calculation (power based)'!AI$24:AI$223,MATCH(U8,'Calculation (power based)'!A$24:A$223,0))-INDEX('Calculation (power based)'!AG$24:AG$223,MATCH(U8,'Calculation (power based)'!A$24:A$223,0))),#N/A) -> 825 | J8: =IF(NOT(OR(ISNA(I8),ISNA(M8))),I8+0.25*(M8-I8),#N/A) -> 938.75 | K8: =IF(NOT(OR(ISNA(I8),ISNA(M8))),I8+0.5*(M8-I8),#N/A) -> 1052.5 | L8: =IF(NOT(OR(ISNA(I8),ISNA(M8))),I8+0.75*(M8-I8),#N/A) -> 1166.25 | M8: =IF(NOT(ISNA(V8)),INDEX('Calculation (power based)'!AH$24:AH$223,MATCH(U8,'Calculation (power based)'!A$24:A$223,0))+V8*(INDEX('Calculation (power based)'!AJ$24:AJ$223,MATCH(U8,'Calculation (power based)'!A$24:A$223,0))-INDEX('Calculation (power based)'!AH$24:AH$223,MATCH(U8,'Calculation (power based)'!A$24:A$223,0))),#N/A) -> 1280 | N8: =IF(ISBLANK(D8),"",IF(D8<>0,(W8-D8)/D8,1)) -> -0.2857142857 | O8: =IF(ISBLANK(E8),"",IF(E8<>0,(X8-E8)/E8,1)) -> -0.2016497573 | P8: -0.1031153502 | Q8: -0.1030382155 | R8: -0.08950617284 | S8: =IF(SUM(D8:H8)>0,(D8*N8+E8*O8+F8*P8+G8*Q8+H8*R8)/SUM(D8:H8),"") -> -0.1355812595 | U8: =INDEX('Calculation (power based)'!A$24:A$223,MATCH(B8,'Calculation (power based)'!AS$24:AS$223,0)) -> 15 | V8: =IF(AND(C8>=INDEX('Calculation (power based)'!AC$24:AC$223,MATCH('Curve verification'!U8,'Calculation (power based)'!A$24:A$223,0)),C8<=INDEX('Calculation (power based)'!AD$24:AD$223,MATCH('Curve verification'!U8,'Calculation (power based)'!A$24:A$223,0))),(C8-INDEX('Calculation (power based)'!AC$24:AC$223,MATCH('Curve verification'!U8,'Calculation (power based)'!A$24:A$223,0)))/(INDEX('Calculation (power based)'!AD$24:AD$223,MATCH('Curve verification'!U8,'Calculation (power based)'!A$24:A$223,0))-INDEX('Calculation (power based)'!AC$24:AC$223,MATCH('Curve verification'!U8,'Calculation (power based)'!A$24:A$223,0))),#N/A) -> 0.8333333333 | W8: =IF(NOT(ISNA(V8)),INDEX('Pump database'!J$24:J$223,MATCH(U8,'Calculation (power based)'!A$24:A$223,0))+V8*(INDEX('Pump database'!O$24:O$223,MATCH(U8,'Calculation (power based)'!A$24:A$223,0))-INDEX('Pump database'!J$24:J$223,MATCH(U8,'Calculation (power based)'!A$24:A$223,0))),#N/A) -> 0.3 | X8: =IF(AND(NOT(ISNA($AE8)),NOT(ISNA($AB8))),IF($AE8=1, ( MIN($AA8,IF($M8*AG8<$I8,0,$M8*$AB8*3.6/$C8/g_constant*(AG8 - $AC8)/(AG8^$AD8) + $W8)) ), MIN($AA8,IF($M8*AG8<$I8,0,$AB8*$M8*AG8+$AC8)) ),#N/A) -> 0.5189276578 | Y8: =IF(AND(NOT(ISNA($AE8)),NOT(ISNA($AB8))),IF($AE8=1, ( MIN($AA8,IF($M8*AH8<$I8,0,$M8*$AB8*3.6/$C8/g_constant*(AH8 - $AC8)/(AH8^$AD8) + $W8)) ), MIN($AA8,IF($M8*AH8<$I8,0,$AB8*$M8*AH8+$AC8)) ),#N/A) -> 0.6995700268 | Z8: =IF(AND(NOT(ISNA($AE8)),NOT(ISNA($AB8))),IF($AE8=1, ( MIN($AA8,IF($M8*AI8<$I8,0,$M8*$AB8*3.6/$C8/g_constant*(AI8 - $AC8)/(AI8^$AD8) + $W8)) ), MIN($AA8,IF($M8*AI8<$I8,0,$AB8*$M8*AI8+$AC8)) ),#N/A) -> 0.8521136953 | AA8: =IF(NOT(ISNA(V8)),INDEX('Pump database'!L$24:L$223,MATCH(U8,'Calculation (power based)'!A$24:A$223,0))+V8*(INDEX('Pump database'!Q$24:Q$223,MATCH(U8,'Calculation (power based)'!A$24:A$223,0))-INDEX('Pump database'!L$24:L$223,MATCH(U8,'Calculation (power based)'!A$24:A$223,0))),#N/A) -> 0.9833333333 | AB8: =IF(NOT(OR(ISNA(U8),ISNA(V8),ISNA(I8),ISNA(M8))),IF(AE8=1,(C8*(AA8-W8)*g_constant/3.6/M8)/(1-I8/M8),(W8-AA8)/(I8-M8)),#N/A) -> 0.4910989011 | AC8: =IF(NOT(OR(ISNA(U8),ISNA(V8),ISNA(I8),ISNA(M8))),IF(AE8=1,I8/M8,W8-AB8*I8),#N/A) -> 0.64453125 | AD8: =IF(NOT(OR(ISNA(U8),ISNA(V8),ISNA(I8),ISNA(M8))),IF(AE8=1,C_c_standard,0),#N/A) -> 0.8 | AE8: =INDEX(type_array,MATCH('Curve verification'!U8,'Calculation (power based)'!A$24:A$223,0)) -> 1 | AF8: =I8/$M8 -> 0.64453125 | AG8: =J8/$M8 -> 0.7333984375 | AH8: 0.822265625 | AI8: 0.9111328125 | AJ8: 1 | AK8: =IF(NOT(ISNA(AE8)),IF(AE8=1,S8,""),"") -> -0.1355812595 | AL8: =IF(NOT(ISNA(AE8)),IF(AE8=2,S8,""),"") -> 
B9: Franklin Electric 270SDSP-2.2kW | C9: 20 | D9: 1 | E9: 11.1 | F9: 15.5 | G9: 20.4 | H9: 22.2 | I9: =IF(NOT(ISNA(V9)),INDEX('Calculation (power based)'!AG$24:AG$223,MATCH(U9,'Calculation (power based)'!A$24:A$223,0))+V9*(INDEX('Calculation (power based)'!AI$24:AI$223,MATCH(U9,'Calculation (power based)'!A$24:A$223,0))-INDEX('Calculation (power based)'!AG$24:AG$223,MATCH(U9,'Calculation (power based)'!A$24:A$223,0))),#N/A) -> 1333.333333 | J9: =IF(NOT(OR(ISNA(I9),ISNA(M9))),I9+0.25*(M9-I9),#N/A) -> 1875 | K9: =IF(NOT(OR(ISNA(I9),ISNA(M9))),I9+0.5*(M9-I9),#N/A) -> 2416.666667 | L9: =IF(NOT(OR(ISNA(I9),ISNA(M9))),I9+0.75*(M9-I9),#N/A) -> 2958.333333 | M9: =IF(NOT(ISNA(V9)),INDEX('Calculation (power based)'!AH$24:AH$223,MATCH(U9,'Calculation (power based)'!A$24:A$223,0))+V9*(INDEX('Calculation (power based)'!AJ$24:AJ$223,MATCH(U9,'Calculation (power based)'!A$24:A$223,0))-INDEX('Calculation (power based)'!AH$24:AH$223,MATCH(U9,'Calculation (power based)'!A$24:A$223,0))),#N/A) -> 3500 | N9: =IF(ISBLANK(D9),"",IF(D9<>0,(W9-D9)/D9,1)) -> -1 | O9: =IF(ISBLANK(E9),"",IF(E9<>0,(X9-E9)/E9,1)) -> -0.2058834977 | P9: =IF(ISBLANK(F9),"",IF(F9<>0,(Y9-F9)/F9,1)) -> -0.07160431449 | Q9: =IF(ISBLANK(G9),"",IF(G9<>0,(Z9-G9)/G9,1)) -> -0.09996039749 | R9: =IF(ISBLANK(H9),"",IF(H9<>0,(AA9-H9)/H9,1)) -> -0.03603603604 | S9: =IF(SUM(D9:H9)>0,(D9*N9+E9*O9+F9*P9+G9*Q9+H9*R9)/SUM(D9:H9),"") -> -0.103053644 | U9: =INDEX('Calculation (power based)'!A$24:A$223,MATCH(B9,'Calculation (power based)'!AS$24:AS$223,0)) -> 32 | V9: =IF(AND(C9>=INDEX('Calculation (power based)'!AC$24:AC$223,MATCH('Curve verification'!U9,'Calculation (power based)'!A$24:A$223,0)),C9<=INDEX('Calculation (power based)'!AD$24:AD$223,MATCH('Curve verification'!U9,'Calculation (power based)'!A$24:A$223,0))),(C9-INDEX('Calculation (power based)'!AC$24:AC$223,MATCH('Curve verification'!U9,'Calculation (power based)'!A$24:A$223,0)))/(INDEX('Calculation (power based)'!AD$24:AD$223,MATCH('Curve verification'!U9,'Calculation (power based)'!A$24:A$223,0))-INDEX('Calculation (power based)'!AC$24:AC$223,MATCH('Curve verification'!U9,'Calculation (power based)'!A$24:A$223,0))),#N/A) -> 0.3333333333 | W9: =IF(NOT(ISNA(V9)),INDEX('Pump database'!J$24:J$223,MATCH(U9,'Calculation (power based)'!A$24:A$223,0))+V9*(INDEX('Pump database'!O$24:O$223,MATCH(U9,'Calculation (power based)'!A$24:A$223,0))-INDEX('Pump database'!J$24:J$223,MATCH(U9,'Calculation (power based)'!A$24:A$223,0))),#N/A) -> 0 | X9: 8.814693176 | Y9: 14.39013313 | Z9: 18.36080789 | AA9: =IF(NOT(ISNA(V9)),INDEX('Pump database'!L$24:L$223,MATCH(U9,'Calculation (power based)'!A$24:A$223,0))+V9*(INDEX('Pump database'!Q$24:Q$223,MATCH(U9,'Calculation (power based)'!A$24:A$223,0))-INDEX('Pump database'!L$24:L$223,MATCH(U9,'Calculation (power based)'!A$24:A$223,0))),#N/A) -> 21.4 | AB9: 0.5382923077 | AC9: =IF(NOT(OR(ISNA(U9),ISNA(V9),ISNA(I9),ISNA(M9))),IF(AE9=1,I9/M9,W9-AB9*I9),#N/A) -> 0.380952381 | AD9: 0.8 | AE9: =INDEX(type_array,MATCH('Curve verification'!U9,'Calculation (power based)'!A$24:A$223,0)) -> 1 | AF9: =I9/$M9 -> 0.380952381 | AG9: =J9/$M9 -> 0.5357142857 | AH9: =K9/$M9 -> 0.6904761905 | AI9: =L9/$M9 -> 0.8452380952 | AJ9: =M9/$M9 -> 1 | AK9: =IF(NOT(ISNA(AE9)),IF(AE9=1,S9,""),"") -> -0.103053644 | AL9: =IF(NOT(ISNA(AE9)),IF(AE9=2,S9,""),"") -> 
B10: Shakti SSP10000 - 60 - 19 | C10: 30 | D10: 5.7 | E10: 20.4 | F10: 31.2 | G10: 38.4 | H10: 42 | I10: =IF(NOT(ISNA(V10)),INDEX('Calculation (power based)'!AG$24:AG$223,MATCH(U10,'Calculation (power based)'!A$24:A$223,0))+V10*(INDEX('Calculation (power based)'!AI$24:AI$223,MATCH(U10,'Calculation (power based)'!A$24:A$223,0))-INDEX('Calculation (power based)'!AG$24:AG$223,MATCH(U10,'Calculation (power based)'!A$24:A$223,0))),#N/A) -> 2000 | J10: 3750 | K10: 5500 | L10: 7250 | M10: =IF(NOT(ISNA(V10)),INDEX('Calculation (power based)'!AH$24:AH$223,MATCH(U10,'Calculation (power based)'!A$24:A$223,0))+V10*(INDEX('Calculation (power based)'!AJ$24:AJ$223,MATCH(U10,'Calculation (power based)'!A$24:A$223,0))-INDEX('Calculation (power based)'!AH$24:AH$223,MATCH(U10,'Calculation (power based)'!A$24:A$223,0))),#N/A) -> 9000 | N10: 0.05263157895 | O10: 0.1828711703 | P10: 0.0478111458 | Q10: -0.007846503036 | R10: 0 | S10: 0.0379155694 | U10: =INDEX('Calculation (power based)'!A$24:A$223,MATCH(B10,'Calculation (power based)'!AS$24:AS$223,0)) -> 113 | V10: =IF(AND(C10>=INDEX('Calculation (power based)'!AC$24:AC$223,MATCH('Curve verification'!U10,'Calculation (power based)'!A$24:A$223,0)),C10<=INDEX('Calculation (power based)'!AD$24:AD$223,MATCH('Curve verification'!U10,'Calculation (power based)'!A$24:A$223,0))),(C10-INDEX('Calculation (power based)'!AC$24:AC$223,MATCH('Curve verification'!U10,'Calculation (power based)'!A$24:A$223,0)))/(INDEX('Calculation (power based)'!AD$24:AD$223,MATCH('Curve verification'!U10,'Calculation (power based)'!A$24:A$223,0))-INDEX('Calculation (power based)'!AC$24:AC$223,MATCH('Curve verification'!U10,'Calculation (power based)'!A$24:A$223,0))),#N/A) -> 0 | W10: =IF(NOT(ISNA(V10)),INDEX('Pump database'!J$24:J$223,MATCH(U10,'Calculation (power based)'!A$24:A$223,0))+V10*(INDEX('Pump database'!O$24:O$223,MATCH(U10,'Calculation (power based)'!A$24:A$223,0))-INDEX('Pump database'!J$24:J$223,MATCH(U10,'Calculation (power based)'!A$24:A$223,0))),#N/A) -> 6 | X10: 24.13057187 | Y10: 32.69170775 | Z10: 38.09869428 | AA10: =IF(NOT(ISNA(V10)),INDEX('Pump database'!L$24:L$223,MATCH(U10,'Calculation (power based)'!A$24:A$223,0))+V10*(INDEX('Pump database'!Q$24:Q$223,MATCH(U10,'Calculation (power based)'!A$24:A$223,0))-INDEX('Pump database'!L$24:L$223,MATCH(U10,'Calculation (power based)'!A$24:A$223,0))),#N/A) -> 42 | AB10: 0.4204285714 | AC10: 0.2222222222 | AD10: 0.8 | AE10: =INDEX(type_array,MATCH('Curve verification'!U10,'Calculation (power based)'!A$24:A$223,0)) -> 1 | AF10: 0.2222222222 | AG10: 0.4166666667 | AH10: 0.6111111111 | AI10: 0.8055555556 | AJ10: 1 | AK10: 0.0379155694
B11: Shakti SSP2000 - 125 - 6 | C11: 100 | D11: 0.72 | E11: 1.32 | F11: 1.71 | G11: 2.04 | H11: 2.19 | I11: =IF(NOT(ISNA(V11)),INDEX('Calculation (power based)'!AG$24:AG$223,MATCH(U11,'Calculation (power based)'!A$24:A$223,0))+V11*(INDEX('Calculation (power based)'!AI$24:AI$223,MATCH(U11,'Calculation (power based)'!A$24:A$223,0))-INDEX('Calculation (power based)'!AG$24:AG$223,MATCH(U11,'Calculation (power based)'!A$24:A$223,0))),#N/A) -> 971.4285714 | J11: 1228.571429 | K11: 1485.714286 | L11: 1742.857143 | M11: =IF(NOT(ISNA(V11)),INDEX('Calculation (power based)'!AH$24:AH$223,MATCH(U11,'Calculation (power based)'!A$24:A$223,0))+V11*(INDEX('Calculation (power based)'!AJ$24:AJ$223,MATCH(U11,'Calculation (power based)'!A$24:A$223,0))-INDEX('Calculation (power based)'!AH$24:AH$223,MATCH(U11,'Calculation (power based)'!A$24:A$223,0))),#N/A) -> 2000 | N11: -0.3174603175 | O11: -0.1610306152 | P11: -0.09375196238 | Q11: -0.07426152188 | R11: -0.01369863014 | S11: -0.09811293245 | U11: =INDEX('Calculation (power based)'!A$24:A$223,MATCH(B11,'Calculation (power based)'!AS$24:AS$223,0)) -> 105 | V11: =IF(AND(C11>=INDEX('Calculation (power based)'!AC$24:AC$223,MATCH('Curve verification'!U11,'Calculation (power based)'!A$24:A$223,0)),C11<=INDEX('Calculation (power based)'!AD$24:AD$223,MATCH('Curve verification'!U11,'Calculation (power based)'!A$24:A$223,0))),(C11-INDEX('Calculation (power based)'!AC$24:AC$223,MATCH('Curve verification'!U11,'Calculation (power based)'!A$24:A$223,0)))/(INDEX('Calculation (power based)'!AD$24:AD$223,MATCH('Curve verification'!U11,'Calculation (power based)'!A$24:A$223,0))-INDEX('Calculation (power based)'!AC$24:AC$223,MATCH('Curve verification'!U11,'Calculation (power based)'!A$24:A$223,0))),#N/A) -> 0.5714285714 | W11: =IF(NOT(ISNA(V11)),INDEX('Pump database'!J$24:J$223,MATCH(U11,'Calculation (power based)'!A$24:A$223,0))+V11*(INDEX('Pump database'!O$24:O$223,MATCH(U11,'Calculation (power based)'!A$24:A$223,0))-INDEX('Pump database'!J$24:J$223,MATCH(U11,'Calculation (power based)'!A$24:A$223,0))),#N/A) -> 0.4914285714 | X11: 1.107439588 | Y11: 1.549684144 | Z11: 1.888506495 | AA11: =IF(NOT(ISNA(V11)),INDEX('Pump database'!L$24:L$223,MATCH(U11,'Calculation (power based)'!A$24:A$223,0))+V11*(INDEX('Pump database'!Q$24:Q$223,MATCH(U11,'Calculation (power based)'!A$24:A$223,0))-INDEX('Pump database'!L$24:L$223,MATCH(U11,'Calculation (power based)'!A$24:A$223,0))),#N/A) -> 2.16 | AB11: 0.4420555556 | AC11: 0.4857142857 | AD11: 0.8 | AE11: =INDEX(type_array,MATCH('Curve verification'!U11,'Calculation (power based)'!A$24:A$223,0)) -> 1 | AF11: 0.4857142857 | AG11: 0.6142857143 | AH11: 0.7428571429 | AI11: 0.8714285714 | AJ11: 1 | AK11: -0.09811293245
B12: Lorentz PS15k2 C-SJ75-3 | C12: 35 | D12: 0 | E12: 28 | F12: 50 | G12: 65 | H12: 77 | I12: =IF(NOT(ISNA(V12)),INDEX('Calculation (power based)'!AG$24:AG$223,MATCH(U12,'Calculation (power based)'!A$24:A$223,0))+V12*(INDEX('Calculation (power based)'!AI$24:AI$223,MATCH(U12,'Calculation (power based)'!A$24:A$223,0))-INDEX('Calculation (power based)'!AG$24:AG$223,MATCH(U12,'Calculation (power based)'!A$24:A$223,0))),#N/A) -> 4400 | J12: 6425 | K12: 8450 | L12: 10475 | M12: =IF(NOT(ISNA(V12)),INDEX('Calculation (power based)'!AH$24:AH$223,MATCH(U12,'Calculation (power based)'!A$24:A$223,0))+V12*(INDEX('Calculation (power based)'!AJ$24:AJ$223,MATCH(U12,'Calculation (power based)'!A$24:A$223,0))-INDEX('Calculation (power based)'!AH$24:AH$223,MATCH(U12,'Calculation (power based)'!A$24:A$223,0))),#N/A) -> 12500 | N12: 1 | O12: 0.1708525532 | P12: 0.05325460939 | Q12: 0.0233952974 | R12: 0 | S12: 0.04076043768 | U12: =INDEX('Calculation (power based)'!A$24:A$223,MATCH(B12,'Calculation (power based)'!AS$24:AS$223,0)) -> 88 | V12: =IF(AND(C12>=INDEX('Calculation (power based)'!AC$24:AC$223,MATCH('Curve verification'!U12,'Calculation (power based)'!A$24:A$223,0)),C12<=INDEX('Calculation (power based)'!AD$24:AD$223,MATCH('Curve verification'!U12,'Calculation (power based)'!A$24:A$223,0))),(C12-INDEX('Calculation (power based)'!AC$24:AC$223,MATCH('Curve verification'!U12,'Calculation (power based)'!A$24:A$223,0)))/(INDEX('Calculation (power based)'!AD$24:AD$223,MATCH('Curve verification'!U12,'Calculation (power based)'!A$24:A$223,0))-INDEX('Calculation (power based)'!AC$24:AC$223,MATCH('Curve verification'!U12,'Calculation (power based)'!A$24:A$223,0))),#N/A) -> 1 | W12: =IF(NOT(ISNA(V12)),INDEX('Pump database'!J$24:J$223,MATCH(U12,'Calculation (power based)'!A$24:A$223,0))+V12*(INDEX('Pump database'!O$24:O$223,MATCH(U12,'Calculation (power based)'!A$24:A$223,0))-INDEX('Pump database'!J$24:J$223,MATCH(U12,'Calculation (power based)'!A$24:A$223,0))),#N/A) -> 0 | X12: 32.78387149 | Y12: 52.66273047 | Z12: 66.52069433 | AA12: =IF(NOT(ISNA(V12)),INDEX('Pump database'!L$24:L$223,MATCH(U12,'Calculation (power based)'!A$24:A$223,0))+V12*(INDEX('Pump database'!Q$24:Q$223,MATCH(U12,'Calculation (power based)'!A$24:A$223,0))-INDEX('Pump database'!L$24:L$223,MATCH(U12,'Calculation (power based)'!A$24:A$223,0))),#N/A) -> 77 | AB12: 0.9066512346 | AC12: 0.352 | AD12: 0.8 | AE12: =INDEX(type_array,MATCH('Curve verification'!U12,'Calculation (power based)'!A$24:A$223,0)) -> 1 | AF12: 0.352 | AG12: 0.514 | AH12: 0.676 | AI12: 0.838 | AJ12: 1 | AK12: 0.04076043768
B13: Lorentz PS25k2 C-SJ30-22 | C13: 120 | D13: 0.7 | E13: 14.2 | F13: 23.5 | G13: 30 | H13: 34.3 | I13: =IF(NOT(ISNA(V13)),INDEX('Calculation (power based)'!AG$24:AG$223,MATCH(U13,'Calculation (power based)'!A$24:A$223,0))+V13*(INDEX('Calculation (power based)'!AI$24:AI$223,MATCH(U13,'Calculation (power based)'!A$24:A$223,0))-INDEX('Calculation (power based)'!AG$24:AG$223,MATCH(U13,'Calculation (power based)'!A$24:A$223,0))),#N/A) -> 5280 | J13: 9270 | K13: 13260 | L13: 17250 | M13: =IF(NOT(ISNA(V13)),INDEX('Calculation (power based)'!AH$24:AH$223,MATCH(U13,'Calculation (power based)'!A$24:A$223,0))+V13*(INDEX('Calculation (power based)'!AJ$24:AJ$223,MATCH(U13,'Calculation (power based)'!A$24:A$223,0))-INDEX('Calculation (power based)'!AH$24:AH$223,MATCH(U13,'Calculation (power based)'!A$24:A$223,0))),#N/A) -> 21240 | N13: -1 | O13: 0.1756280226 | P13: 0.06696303938 | Q13: 0.01575924001 | R13: 0.002915451895 | S13: 0.03836734709 | U13: =INDEX('Calculation (power based)'!A$24:A$223,MATCH(B13,'Calculation (power based)'!AS$24:AS$223,0)) -> 94 | V13: =IF(AND(C13>=INDEX('Calculation (power based)'!AC$24:AC$223,MATCH('Curve verification'!U13,'Calculation (power based)'!A$24:A$223,0)),C13<=INDEX('Calculation (power based)'!AD$24:AD$223,MATCH('Curve verification'!U13,'Calculation (power based)'!A$24:A$223,0))),(C13-INDEX('Calculation (power based)'!AC$24:AC$223,MATCH('Curve verification'!U13,'Calculation (power based)'!A$24:A$223,0)))/(INDEX('Calculation (power based)'!AD$24:AD$223,MATCH('Curve verification'!U13,'Calculation (power based)'!A$24:A$223,0))-INDEX('Calculation (power based)'!AC$24:AC$223,MATCH('Curve verification'!U13,'Calculation (power based)'!A$24:A$223,0))),#N/A) -> 0.2 | W13: =IF(NOT(ISNA(V13)),INDEX('Pump database'!J$24:J$223,MATCH(U13,'Calculation (power based)'!A$24:A$223,0))+V13*(INDEX('Pump database'!O$24:O$223,MATCH(U13,'Calculation (power based)'!A$24:A$223,0))-INDEX('Pump database'!J$24:J$223,MATCH(U13,'Calculation (power based)'!A$24:A$223,0))),#N/A) -> 0 | X13: 16.69391792 | Y13: 25.07363143 | Z13: 30.4727772 | AA13: =IF(NOT(ISNA(V13)),INDEX('Pump database'!L$24:L$223,MATCH(U13,'Calculation (power based)'!A$24:A$223,0))+V13*(INDEX('Pump database'!Q$24:Q$223,MATCH(U13,'Calculation (power based)'!A$24:A$223,0))-INDEX('Pump database'!L$24:L$223,MATCH(U13,'Calculation (power based)'!A$24:A$223,0))),#N/A) -> 34.4 | AB13: 0.7048120301 | AC13: 0.2485875706 | AD13: 0.8 | AE13: =INDEX(type_array,MATCH('Curve verification'!U13,'Calculation (power based)'!A$24:A$223,0)) -> 1 | AF13: 0.2485875706 | AG13: 0.436440678 | AH13: 0.6242937853 | AI13: 0.8121468927 | AJ13: 1 | AK13: 0.03836734709
B14: Lorentz PS1800 HR-07H | C14: 120 | D14: 0.14 | E14: 0.47 | F14: 0.76 | G14: 1.08 | H14: 1.36 | I14: =IF(NOT(ISNA(V14)),INDEX('Calculation (power based)'!AG$24:AG$223,MATCH(U14,'Calculation (power based)'!A$24:A$223,0))+V14*(INDEX('Calculation (power based)'!AI$24:AI$223,MATCH(U14,'Calculation (power based)'!A$24:A$223,0))-INDEX('Calculation (power based)'!AG$24:AG$223,MATCH(U14,'Calculation (power based)'!A$24:A$223,0))),#N/A) -> 195 | J14: 311.25 | K14: 427.5 | L14: 543.75 | M14: =IF(NOT(ISNA(V14)),INDEX('Calculation (power based)'!AH$24:AH$223,MATCH(U14,'Calculation (power based)'!A$24:A$223,0))+V14*(INDEX('Calculation (power based)'!AJ$24:AJ$223,MATCH(U14,'Calculation (power based)'!A$24:A$223,0))-INDEX('Calculation (power based)'!AH$24:AH$223,MATCH(U14,'Calculation (power based)'!A$24:A$223,0))),#N/A) -> 660 | N14: -0.1071428571 | O14: -0.1063829787 | P14: -0.05921052632 | Q14: -0.06481481481 | R14: -0.04044117647 | S14: -0.06167979003 | U14: =INDEX('Calculation (power based)'!A$24:A$223,MATCH(B14,'Calculation (power based)'!AS$24:AS$223,0)) -> 65 | V14: =IF(AND(C14>=INDEX('Calculation (power based)'!AC$24:AC$223,MATCH('Curve verification'!U14,'Calculation (power based)'!A$24:A$223,0)),C14<=INDEX('Calculation (power based)'!AD$24:AD$223,MATCH('Curve verification'!U14,'Calculation (power based)'!A$24:A$223,0))),(C14-INDEX('Calculation (power based)'!AC$24:AC$223,MATCH('Curve verification'!U14,'Calculation (power based)'!A$24:A$223,0)))/(INDEX('Calculation (power based)'!AD$24:AD$223,MATCH('Curve verification'!U14,'Calculation (power based)'!A$24:A$223,0))-INDEX('Calculation (power based)'!AC$24:AC$223,MATCH('Curve verification'!U14,'Calculation (power based)'!A$24:A$223,0))),#N/A) -> 0.5 | W14: =IF(NOT(ISNA(V14)),INDEX('Pump database'!J$24:J$223,MATCH(U14,'Calculation (power based)'!A$24:A$223,0))+V14*(INDEX('Pump database'!O$24:O$223,MATCH(U14,'Calculation (power based)'!A$24:A$223,0))-INDEX('Pump database'!J$24:J$223,MATCH(U14,'Calculation (power based)'!A$24:A$223,0))),#N/A) -> 0.125 | X14: 0.42 | Y14: 0.715 | Z14: 1.01 | AA14: =IF(NOT(ISNA(V14)),INDEX('Pump database'!L$24:L$223,MATCH(U14,'Calculation (power based)'!A$24:A$223,0))+V14*(INDEX('Pump database'!Q$24:Q$223,MATCH(U14,'Calculation (power based)'!A$24:A$223,0))-INDEX('Pump database'!L$24:L$223,MATCH(U14,'Calculation (power based)'!A$24:A$223,0))),#N/A) -> 1.305 | AB14: 0.002537634409 | AC14: -0.3698387097 | AD14: 0 | AE14: =INDEX(type_array,MATCH('Curve verification'!U14,'Calculation (power based)'!A$24:A$223,0)) -> 2 | AF14: 0.2954545455 | AG14: 0.4715909091 | AH14: 0.6477272727 | AI14: 0.8238636364 | AJ14: 1 | AL14: -0.06167979003
B15: Lorentz PS4000 C-SJ5-25 | C15: 60 | D15: 0 | E15: 2.75 | F15: 4.7 | G15: 6.2 | H15: 7 | I15: =IF(NOT(ISNA(V15)),INDEX('Calculation (power based)'!AG$24:AG$223,MATCH(U15,'Calculation (power based)'!A$24:A$223,0))+V15*(INDEX('Calculation (power based)'!AI$24:AI$223,MATCH(U15,'Calculation (power based)'!A$24:A$223,0))-INDEX('Calculation (power based)'!AG$24:AG$223,MATCH(U15,'Calculation (power based)'!A$24:A$223,0))),#N/A) -> 300 | J15: 1025 | K15: 1750 | L15: 2475 | M15: =IF(NOT(ISNA(V15)),INDEX('Calculation (power based)'!AH$24:AH$223,MATCH(U15,'Calculation (power based)'!A$24:A$223,0))+V15*(INDEX('Calculation (power based)'!AJ$24:AJ$223,MATCH(U15,'Calculation (power based)'!A$24:A$223,0))-INDEX('Calculation (power based)'!AH$24:AH$223,MATCH(U15,'Calculation (power based)'!A$24:A$223,0))),#N/A) -> 3200 | N15: 1 | O15: 0.582144862 | P15: 0.2068678832 | Q15: 0.03998585862 | R15: 0 | S15: 0.1366145155 | U15: =INDEX('Calculation (power based)'!A$24:A$223,MATCH(B15,'Calculation (power based)'!AS$24:AS$223,0)) -> 69 | V15: =IF(AND(C15>=INDEX('Calculation (power based)'!AC$24:AC$223,MATCH('Curve verification'!U15,'Calculation (power based)'!A$24:A$223,0)),C15<=INDEX('Calculation (power based)'!AD$24:AD$223,MATCH('Curve verification'!U15,'Calculation (power based)'!A$24:A$223,0))),(C15-INDEX('Calculation (power based)'!AC$24:AC$223,MATCH('Curve verification'!U15,'Calculation (power based)'!A$24:A$223,0)))/(INDEX('Calculation (power based)'!AD$24:AD$223,MATCH('Curve verification'!U15,'Calculation (power based)'!A$24:A$223,0))-INDEX('Calculation (power based)'!AC$24:AC$223,MATCH('Curve verification'!U15,'Calculation (power based)'!A$24:A$223,0))),#N/A) -> 0 | W15: =IF(NOT(ISNA(V15)),INDEX('Pump database'!J$24:J$223,MATCH(U15,'Calculation (power based)'!A$24:A$223,0))+V15*(INDEX('Pump database'!O$24:O$223,MATCH(U15,'Calculation (power based)'!A$24:A$223,0))-INDEX('Pump database'!J$24:J$223,MATCH(U15,'Calculation (power based)'!A$24:A$223,0))),#N/A) -> 0 | X15: 4.35089837 | Y15: 5.672279051 | Z15: 6.447912323 | AA15: =IF(NOT(ISNA(V15)),INDEX('Pump database'!L$24:L$223,MATCH(U15,'Calculation (power based)'!A$24:A$223,0))+V15*(INDEX('Pump database'!Q$24:Q$223,MATCH(U15,'Calculation (power based)'!A$24:A$223,0))-INDEX('Pump database'!L$24:L$223,MATCH(U15,'Calculation (power based)'!A$24:A$223,0))),#N/A) -> 7 | AB15: 0.3946551724 | AC15: 0.09375 | AD15: 0.8 | AE15: =INDEX(type_array,MATCH('Curve verification'!U15,'Calculation (power based)'!A$24:A$223,0)) -> 1 | AF15: 0.09375 | AG15: 0.3203125 | AH15: 0.546875 | AI15: 0.7734375 | AJ15: 1 | AK15: 0.1366145155
B16: Lorentz PS4000 HR-05HHL | C16: 300 | D16: 0.19 | E16: 0.33 | F16: 0.45 | G16: 0.57 | H16: 0.68 | I16: =IF(NOT(ISNA(V16)),INDEX('Calculation (power based)'!AG$24:AG$223,MATCH(U16,'Calculation (power based)'!A$24:A$223,0))+V16*(INDEX('Calculation (power based)'!AI$24:AI$223,MATCH(U16,'Calculation (power based)'!A$24:A$223,0))-INDEX('Calculation (power based)'!AG$24:AG$223,MATCH(U16,'Calculation (power based)'!A$24:A$223,0))),#N/A) -> 510 | J16: 621.875 | K16: 733.75 | L16: 845.625 | M16: =IF(NOT(ISNA(V16)),INDEX('Calculation (power based)'!AH$24:AH$223,MATCH(U16,'Calculation (power based)'!A$24:A$223,0))+V16*(INDEX('Calculation (power based)'!AJ$24:AJ$223,MATCH(U16,'Calculation (power based)'!A$24:A$223,0))-INDEX('Calculation (power based)'!AH$24:AH$223,MATCH(U16,'Calculation (power based)'!A$24:A$223,0))),#N/A) -> 957.5 | N16: -0.4210526316 | O16: -0.2575757576 | P16: -0.1555555556 | Q16: -0.09649122807 | R16: -0.04411764706 | S16: -0.1441441441 | U16: =INDEX('Calculation (power based)'!A$24:A$223,MATCH(B16,'Calculation (power based)'!AS$24:AS$223,0)) -> 77 | V16: =IF(AND(C16>=INDEX('Calculation (power based)'!AC$24:AC$223,MATCH('Curve verification'!U16,'Calculation (power based)'!A$24:A$223,0)),C16<=INDEX('Calculation (power based)'!AD$24:AD$223,MATCH('Curve verification'!U16,'Calculation (power based)'!A$24:A$223,0))),(C16-INDEX('Calculation (power based)'!AC$24:AC$223,MATCH('Curve verification'!U16,'Calculation (power based)'!A$24:A$223,0)))/(INDEX('Calculation (power based)'!AD$24:AD$223,MATCH('Curve verification'!U16,'Calculation (power based)'!A$24:A$223,0))-INDEX('Calculation (power based)'!AC$24:AC$223,MATCH('Curve verification'!U16,'Calculation (power based)'!A$24:A$223,0))),#N/A) -> 0.5 | W16: =IF(NOT(ISNA(V16)),INDEX('Pump database'!J$24:J$223,MATCH(U16,'Calculation (power based)'!A$24:A$223,0))+V16*(INDEX('Pump database'!O$24:O$223,MATCH(U16,'Calculation (power based)'!A$24:A$223,0))-INDEX('Pump database'!J$24:J$223,MATCH(U16,'Calculation (power based)'!A$24:A$223,0))),#N/A) -> 0.11 | X16: 0.245 | Y16: 0.38 | Z16: 0.515 | AA16: =IF(NOT(ISNA(V16)),INDEX('Pump database'!L$24:L$223,MATCH(U16,'Calculation (power based)'!A$24:A$223,0))+V16*(INDEX('Pump database'!Q$24:Q$223,MATCH(U16,'Calculation (power based)'!A$24:A$223,0))-INDEX('Pump database'!L$24:L$223,MATCH(U16,'Calculation (power based)'!A$24:A$223,0))),#N/A) -> 0.65 | AB16: 0.001206703911 | AC16: -0.5054189944 | AD16: 0 | AE16: =INDEX(type_array,MATCH('Curve verification'!U16,'Calculation (power based)'!A$24:A$223,0)) -> 2 | AF16: 0.5326370757 | AG16: 0.6494778068 | AH16: 0.7663185379 | AI16: 0.8831592689 | AJ16: 1 | AL16: -0.1441441441
B17: Grundfos 6 SQF-3 | C17: 230 | D17: 0.08 | E17: 0.37 | F17: 0.63 | G17: 0.88 | H17: 1.1 | I17: =IF(NOT(ISNA(V17)),INDEX('Calculation (power based)'!AG$24:AG$223,MATCH(U17,'Calculation (power based)'!A$24:A$223,0))+V17*(INDEX('Calculation (power based)'!AI$24:AI$223,MATCH(U17,'Calculation (power based)'!A$24:A$223,0))-INDEX('Calculation (power based)'!AG$24:AG$223,MATCH(U17,'Calculation (power based)'!A$24:A$223,0))),#N/A) ->  | M17: =IF(NOT(ISNA(V17)),INDEX('Calculation (power based)'!AH$24:AH$223,MATCH(U17,'Calculation (power based)'!A$24:A$223,0))+V17*(INDEX('Calculation (power based)'!AJ$24:AJ$223,MATCH(U17,'Calculation (power based)'!A$24:A$223,0))-INDEX('Calculation (power based)'!AH$24:AH$223,MATCH(U17,'Calculation (power based)'!A$24:A$223,0))),#N/A) ->  | U17: =INDEX('Calculation (power based)'!A$24:A$223,MATCH(B17,'Calculation (power based)'!AS$24:AS$223,0)) ->  | V17: =IF(AND(C17>=INDEX('Calculation (power based)'!AC$24:AC$223,MATCH('Curve verification'!U17,'Calculation (power based)'!A$24:A$223,0)),C17<=INDEX('Calculation (power based)'!AD$24:AD$223,MATCH('Curve verification'!U17,'Calculation (power based)'!A$24:A$223,0))),(C17-INDEX('Calculation (power based)'!AC$24:AC$223,MATCH('Curve verification'!U17,'Calculation (power based)'!A$24:A$223,0)))/(INDEX('Calculation (power based)'!AD$24:AD$223,MATCH('Curve verification'!U17,'Calculation (power based)'!A$24:A$223,0))-INDEX('Calculation (power based)'!AC$24:AC$223,MATCH('Curve verification'!U17,'Calculation (power based)'!A$24:A$223,0))),#N/A) ->  | W17: =IF(NOT(ISNA(V17)),INDEX('Pump database'!J$24:J$223,MATCH(U17,'Calculation (power based)'!A$24:A$223,0))+V17*(INDEX('Pump database'!O$24:O$223,MATCH(U17,'Calculation (power based)'!A$24:A$223,0))-INDEX('Pump database'!J$24:J$223,MATCH(U17,'Calculation (power based)'!A$24:A$223,0))),#N/A) ->  | AA17: =IF(NOT(ISNA(V17)),INDEX('Pump database'!L$24:L$223,MATCH(U17,'Calculation (power based)'!A$24:A$223,0))+V17*(INDEX('Pump database'!Q$24:Q$223,MATCH(U17,'Calculation (power based)'!A$24:A$223,0))-INDEX('Pump database'!L$24:L$223,MATCH(U17,'Calculation (power based)'!A$24:A$223,0))),#N/A) ->  | AE17: =INDEX(type_array,MATCH('Curve verification'!U17,'Calculation (power based)'!A$24:A$223,0)) -> 
B18: Grundfos 40 SQF-3 | C18: 5 | D18: 0.5 | E18: 8.8 | F18: 12.4 | G18: 14.6 | H18: 16.7 | I18: =IF(NOT(ISNA(V18)),INDEX('Calculation (power based)'!AG$24:AG$223,MATCH(U18,'Calculation (power based)'!A$24:A$223,0))+V18*(INDEX('Calculation (power based)'!AI$24:AI$223,MATCH(U18,'Calculation (power based)'!A$24:A$223,0))-INDEX('Calculation (power based)'!AG$24:AG$223,MATCH(U18,'Calculation (power based)'!A$24:A$223,0))),#N/A) ->  | M18: =IF(NOT(ISNA(V18)),INDEX('Calculation (power based)'!AH$24:AH$223,MATCH(U18,'Calculation (power based)'!A$24:A$223,0))+V18*(INDEX('Calculation (power based)'!AJ$24:AJ$223,MATCH(U18,'Calculation (power based)'!A$24:A$223,0))-INDEX('Calculation (power based)'!AH$24:AH$223,MATCH(U18,'Calculation (power based)'!A$24:A$223,0))),#N/A) ->  | U18: =INDEX('Calculation (power based)'!A$24:A$223,MATCH(B18,'Calculation (power based)'!AS$24:AS$223,0)) ->  | V18: =IF(AND(C18>=INDEX('Calculation (power based)'!AC$24:AC$223,MATCH('Curve verification'!U18,'Calculation (power based)'!A$24:A$223,0)),C18<=INDEX('Calculation (power based)'!AD$24:AD$223,MATCH('Curve verification'!U18,'Calculation (power based)'!A$24:A$223,0))),(C18-INDEX('Calculation (power based)'!AC$24:AC$223,MATCH('Curve verification'!U18,'Calculation (power based)'!A$24:A$223,0)))/(INDEX('Calculation (power based)'!AD$24:AD$223,MATCH('Curve verification'!U18,'Calculation (power based)'!A$24:A$223,0))-INDEX('Calculation (power based)'!AC$24:AC$223,MATCH('Curve verification'!U18,'Calculation (power based)'!A$24:A$223,0))),#N/A) ->  | W18: =IF(NOT(ISNA(V18)),INDEX('Pump database'!J$24:J$223,MATCH(U18,'Calculation (power based)'!A$24:A$223,0))+V18*(INDEX('Pump database'!O$24:O$223,MATCH(U18,'Calculation (power based)'!A$24:A$223,0))-INDEX('Pump database'!J$24:J$223,MATCH(U18,'Calculation (power based)'!A$24:A$223,0))),#N/A) ->  | AA18: =IF(NOT(ISNA(V18)),INDEX('Pump database'!L$24:L$223,MATCH(U18,'Calculation (power based)'!A$24:A$223,0))+V18*(INDEX('Pump database'!Q$24:Q$223,MATCH(U18,'Calculation (power based)'!A$24:A$223,0))-INDEX('Pump database'!L$24:L$223,MATCH(U18,'Calculation (power based)'!A$24:A$223,0))),#N/A) ->  | AE18: =INDEX(type_array,MATCH('Curve verification'!U18,'Calculation (power based)'!A$24:A$223,0)) -> 
B19: Grundfos 3 SQF-2 | C19: 10 | D19: 0 | E19: 0.265 | F19: 0.395 | G19: 0.54 | H19: 0.64 | I19: =IF(NOT(ISNA(V19)),INDEX('Calculation (power based)'!AG$24:AG$223,MATCH(U19,'Calculation (power based)'!A$24:A$223,0))+V19*(INDEX('Calculation (power based)'!AI$24:AI$223,MATCH(U19,'Calculation (power based)'!A$24:A$223,0))-INDEX('Calculation (power based)'!AG$24:AG$223,MATCH(U19,'Calculation (power based)'!A$24:A$223,0))),#N/A) ->  | M19: =IF(NOT(ISNA(V19)),INDEX('Calculation (power based)'!AH$24:AH$223,MATCH(U19,'Calculation (power based)'!A$24:A$223,0))+V19*(INDEX('Calculation (power based)'!AJ$24:AJ$223,MATCH(U19,'Calculation (power based)'!A$24:A$223,0))-INDEX('Calculation (power based)'!AH$24:AH$223,MATCH(U19,'Calculation (power based)'!A$24:A$223,0))),#N/A) ->  | N19: 1 | U19: =INDEX('Calculation (power based)'!A$24:A$223,MATCH(B19,'Calculation (power based)'!AS$24:AS$223,0)) ->  | V19: =IF(AND(C19>=INDEX('Calculation (power based)'!AC$24:AC$223,MATCH('Curve verification'!U19,'Calculation (power based)'!A$24:A$223,0)),C19<=INDEX('Calculation (power based)'!AD$24:AD$223,MATCH('Curve verification'!U19,'Calculation (power based)'!A$24:A$223,0))),(C19-INDEX('Calculation (power based)'!AC$24:AC$223,MATCH('Curve verification'!U19,'Calculation (power based)'!A$24:A$223,0)))/(INDEX('Calculation (power based)'!AD$24:AD$223,MATCH('Curve verification'!U19,'Calculation (power based)'!A$24:A$223,0))-INDEX('Calculation (power based)'!AC$24:AC$223,MATCH('Curve verification'!U19,'Calculation (power based)'!A$24:A$223,0))),#N/A) ->  | W19: =IF(NOT(ISNA(V19)),INDEX('Pump database'!J$24:J$223,MATCH(U19,'Calculation (power based)'!A$24:A$223,0))+V19*(INDEX('Pump database'!O$24:O$223,MATCH(U19,'Calculation (power based)'!A$24:A$223,0))-INDEX('Pump database'!J$24:J$223,MATCH(U19,'Calculation (power based)'!A$24:A$223,0))),#N/A) ->  | AA19: =IF(NOT(ISNA(V19)),INDEX('Pump database'!L$24:L$223,MATCH(U19,'Calculation (power based)'!A$24:A$223,0))+V19*(INDEX('Pump database'!Q$24:Q$223,MATCH(U19,'Calculation (power based)'!A$24:A$223,0))-INDEX('Pump database'!L$24:L$223,MATCH(U19,'Calculation (power based)'!A$24:A$223,0))),#N/A) ->  | AE19: =INDEX(type_array,MATCH('Curve verification'!U19,'Calculation (power based)'!A$24:A$223,0)) -> 
I20: =IF(NOT(ISNA(V20)),INDEX('Calculation (power based)'!AG$24:AG$223,MATCH(U20,'Calculation (power based)'!A$24:A$223,0))+V20*(INDEX('Calculation (power based)'!AI$24:AI$223,MATCH(U20,'Calculation (power based)'!A$24:A$223,0))-INDEX('Calculation (power based)'!AG$24:AG$223,MATCH(U20,'Calculation (power based)'!A$24:A$223,0))),#N/A) ->  | M20: =IF(NOT(ISNA(V20)),INDEX('Calculation (power based)'!AH$24:AH$223,MATCH(U20,'Calculation (power based)'!A$24:A$223,0))+V20*(INDEX('Calculation (power based)'!AJ$24:AJ$223,MATCH(U20,'Calculation (power based)'!A$24:A$223,0))-INDEX('Calculation (power based)'!AH$24:AH$223,MATCH(U20,'Calculation (power based)'!A$24:A$223,0))),#N/A) ->  | U20: =INDEX('Calculation (power based)'!A$24:A$223,MATCH(B20,'Calculation (power based)'!AS$24:AS$223,0)) ->  | V20: =IF(AND(C20>=INDEX('Calculation (power based)'!AC$24:AC$223,MATCH('Curve verification'!U20,'Calculation (power based)'!A$24:A$223,0)),C20<=INDEX('Calculation (power based)'!AD$24:AD$223,MATCH('Curve verification'!U20,'Calculation (power based)'!A$24:A$223,0))),(C20-INDEX('Calculation (power based)'!AC$24:AC$223,MATCH('Curve verification'!U20,'Calculation (power based)'!A$24:A$223,0)))/(INDEX('Calculation (power based)'!AD$24:AD$223,MATCH('Curve verification'!U20,'Calculation (power based)'!A$24:A$223,0))-INDEX('Calculation (power based)'!AC$24:AC$223,MATCH('Curve verification'!U20,'Calculation (power based)'!A$24:A$223,0))),#N/A) ->  | W20: =IF(NOT(ISNA(V20)),INDEX('Pump database'!J$24:J$223,MATCH(U20,'Calculation (power based)'!A$24:A$223,0))+V20*(INDEX('Pump database'!O$24:O$223,MATCH(U20,'Calculation (power based)'!A$24:A$223,0))-INDEX('Pump database'!J$24:J$223,MATCH(U20,'Calculation (power based)'!A$24:A$223,0))),#N/A) ->  | AA20: =IF(NOT(ISNA(V20)),INDEX('Pump database'!L$24:L$223,MATCH(U20,'Calculation (power based)'!A$24:A$223,0))+V20*(INDEX('Pump database'!Q$24:Q$223,MATCH(U20,'Calculation (power based)'!A$24:A$223,0))-INDEX('Pump database'!L$24:L$223,MATCH(U20,'Calculation (power based)'!A$24:A$223,0))),#N/A) ->  | AE20: =INDEX(type_array,MATCH('Curve verification'!U20,'Calculation (power based)'!A$24:A$223,0)) -> 
I21: =IF(NOT(ISNA(V21)),INDEX('Calculation (power based)'!AG$24:AG$223,MATCH(U21,'Calculation (power based)'!A$24:A$223,0))+V21*(INDEX('Calculation (power based)'!AI$24:AI$223,MATCH(U21,'Calculation (power based)'!A$24:A$223,0))-INDEX('Calculation (power based)'!AG$24:AG$223,MATCH(U21,'Calculation (power based)'!A$24:A$223,0))),#N/A) ->  | M21: =IF(NOT(ISNA(V21)),INDEX('Calculation (power based)'!AH$24:AH$223,MATCH(U21,'Calculation (power based)'!A$24:A$223,0))+V21*(INDEX('Calculation (power based)'!AJ$24:AJ$223,MATCH(U21,'Calculation (power based)'!A$24:A$223,0))-INDEX('Calculation (power based)'!AH$24:AH$223,MATCH(U21,'Calculation (power based)'!A$24:A$223,0))),#N/A) ->  | U21: =INDEX('Calculation (power based)'!A$24:A$223,MATCH(B21,'Calculation (power based)'!AS$24:AS$223,0)) ->  | V21: =IF(AND(C21>=INDEX('Calculation (power based)'!AC$24:AC$223,MATCH('Curve verification'!U21,'Calculation (power based)'!A$24:A$223,0)),C21<=INDEX('Calculation (power based)'!AD$24:AD$223,MATCH('Curve verification'!U21,'Calculation (power based)'!A$24:A$223,0))),(C21-INDEX('Calculation (power based)'!AC$24:AC$223,MATCH('Curve verification'!U21,'Calculation (power based)'!A$24:A$223,0)))/(INDEX('Calculation (power based)'!AD$24:AD$223,MATCH('Curve verification'!U21,'Calculation (power based)'!A$24:A$223,0))-INDEX('Calculation (power based)'!AC$24:AC$223,MATCH('Curve verification'!U21,'Calculation (power based)'!A$24:A$223,0))),#N/A) ->  | W21: =IF(NOT(ISNA(V21)),INDEX('Pump database'!J$24:J$223,MATCH(U21,'Calculation (power based)'!A$24:A$223,0))+V21*(INDEX('Pump database'!O$24:O$223,MATCH(U21,'Calculation (power based)'!A$24:A$223,0))-INDEX('Pump database'!J$24:J$223,MATCH(U21,'Calculation (power based)'!A$24:A$223,0))),#N/A) ->  | AA21: =IF(NOT(ISNA(V21)),INDEX('Pump database'!L$24:L$223,MATCH(U21,'Calculation (power based)'!A$24:A$223,0))+V21*(INDEX('Pump database'!Q$24:Q$223,MATCH(U21,'Calculation (power based)'!A$24:A$223,0))-INDEX('Pump database'!L$24:L$223,MATCH(U21,'Calculation (power based)'!A$24:A$223,0))),#N/A) ->  | AE21: =INDEX(type_array,MATCH('Curve verification'!U21,'Calculation (power based)'!A$24:A$223,0)) -> 
I22: =IF(NOT(ISNA(V22)),INDEX('Calculation (power based)'!AG$24:AG$223,MATCH(U22,'Calculation (power based)'!A$24:A$223,0))+V22*(INDEX('Calculation (power based)'!AI$24:AI$223,MATCH(U22,'Calculation (power based)'!A$24:A$223,0))-INDEX('Calculation (power based)'!AG$24:AG$223,MATCH(U22,'Calculation (power based)'!A$24:A$223,0))),#N/A) ->  | M22: =IF(NOT(ISNA(V22)),INDEX('Calculation (power based)'!AH$24:AH$223,MATCH(U22,'Calculation (power based)'!A$24:A$223,0))+V22*(INDEX('Calculation (power based)'!AJ$24:AJ$223,MATCH(U22,'Calculation (power based)'!A$24:A$223,0))-INDEX('Calculation (power based)'!AH$24:AH$223,MATCH(U22,'Calculation (power based)'!A$24:A$223,0))),#N/A) ->  | U22: =INDEX('Calculation (power based)'!A$24:A$223,MATCH(B22,'Calculation (power based)'!AS$24:AS$223,0)) ->  | V22: =IF(AND(C22>=INDEX('Calculation (power based)'!AC$24:AC$223,MATCH('Curve verification'!U22,'Calculation (power based)'!A$24:A$223,0)),C22<=INDEX('Calculation (power based)'!AD$24:AD$223,MATCH('Curve verification'!U22,'Calculation (power based)'!A$24:A$223,0))),(C22-INDEX('Calculation (power based)'!AC$24:AC$223,MATCH('Curve verification'!U22,'Calculation (power based)'!A$24:A$223,0)))/(INDEX('Calculation (power based)'!AD$24:AD$223,MATCH('Curve verification'!U22,'Calculation (power based)'!A$24:A$223,0))-INDEX('Calculation (power based)'!AC$24:AC$223,MATCH('Curve verification'!U22,'Calculation (power based)'!A$24:A$223,0))),#N/A) ->  | W22: =IF(NOT(ISNA(V22)),INDEX('Pump database'!J$24:J$223,MATCH(U22,'Calculation (power based)'!A$24:A$223,0))+V22*(INDEX('Pump database'!O$24:O$223,MATCH(U22,'Calculation (power based)'!A$24:A$223,0))-INDEX('Pump database'!J$24:J$223,MATCH(U22,'Calculation (power based)'!A$24:A$223,0))),#N/A) ->  | AA22: =IF(NOT(ISNA(V22)),INDEX('Pump database'!L$24:L$223,MATCH(U22,'Calculation (power based)'!A$24:A$223,0))+V22*(INDEX('Pump database'!Q$24:Q$223,MATCH(U22,'Calculation (power based)'!A$24:A$223,0))-INDEX('Pump database'!L$24:L$223,MATCH(U22,'Calculation (power based)'!A$24:A$223,0))),#N/A) ->  | AE22: =INDEX(type_array,MATCH('Curve verification'!U22,'Calculation (power based)'!A$24:A$223,0)) -> 
I23: =IF(NOT(ISNA(V23)),INDEX('Calculation (power based)'!AG$24:AG$223,MATCH(U23,'Calculation (power based)'!A$24:A$223,0))+V23*(INDEX('Calculation (power based)'!AI$24:AI$223,MATCH(U23,'Calculation (power based)'!A$24:A$223,0))-INDEX('Calculation (power based)'!AG$24:AG$223,MATCH(U23,'Calculation (power based)'!A$24:A$223,0))),#N/A) ->  | M23: =IF(NOT(ISNA(V23)),INDEX('Calculation (power based)'!AH$24:AH$223,MATCH(U23,'Calculation (power based)'!A$24:A$223,0))+V23*(INDEX('Calculation (power based)'!AJ$24:AJ$223,MATCH(U23,'Calculation (power based)'!A$24:A$223,0))-INDEX('Calculation (power based)'!AH$24:AH$223,MATCH(U23,'Calculation (power based)'!A$24:A$223,0))),#N/A) ->  | U23: =INDEX('Calculation (power based)'!A$24:A$223,MATCH(B23,'Calculation (power based)'!AS$24:AS$223,0)) ->  | V23: =IF(AND(C23>=INDEX('Calculation (power based)'!AC$24:AC$223,MATCH('Curve verification'!U23,'Calculation (power based)'!A$24:A$223,0)),C23<=INDEX('Calculation (power based)'!AD$24:AD$223,MATCH('Curve verification'!U23,'Calculation (power based)'!A$24:A$223,0))),(C23-INDEX('Calculation (power based)'!AC$24:AC$223,MATCH('Curve verification'!U23,'Calculation (power based)'!A$24:A$223,0)))/(INDEX('Calculation (power based)'!AD$24:AD$223,MATCH('Curve verification'!U23,'Calculation (power based)'!A$24:A$223,0))-INDEX('Calculation (power based)'!AC$24:AC$223,MATCH('Curve verification'!U23,'Calculation (power based)'!A$24:A$223,0))),#N/A) ->  | W23: =IF(NOT(ISNA(V23)),INDEX('Pump database'!J$24:J$223,MATCH(U23,'Calculation (power based)'!A$24:A$223,0))+V23*(INDEX('Pump database'!O$24:O$223,MATCH(U23,'Calculation (power based)'!A$24:A$223,0))-INDEX('Pump database'!J$24:J$223,MATCH(U23,'Calculation (power based)'!A$24:A$223,0))),#N/A) ->  | AA23: =IF(NOT(ISNA(V23)),INDEX('Pump database'!L$24:L$223,MATCH(U23,'Calculation (power based)'!A$24:A$223,0))+V23*(INDEX('Pump database'!Q$24:Q$223,MATCH(U23,'Calculation (power based)'!A$24:A$223,0))-INDEX('Pump database'!L$24:L$223,MATCH(U23,'Calculation (power based)'!A$24:A$223,0))),#N/A) ->  | AE23: =INDEX(type_array,MATCH('Curve verification'!U23,'Calculation (power based)'!A$24:A$223,0)) -> 
I24: =IF(NOT(ISNA(V24)),INDEX('Calculation (power based)'!AG$24:AG$223,MATCH(U24,'Calculation (power based)'!A$24:A$223,0))+V24*(INDEX('Calculation (power based)'!AI$24:AI$223,MATCH(U24,'Calculation (power based)'!A$24:A$223,0))-INDEX('Calculation (power based)'!AG$24:AG$223,MATCH(U24,'Calculation (power based)'!A$24:A$223,0))),#N/A) ->  | M24: =IF(NOT(ISNA(V24)),INDEX('Calculation (power based)'!AH$24:AH$223,MATCH(U24,'Calculation (power based)'!A$24:A$223,0))+V24*(INDEX('Calculation (power based)'!AJ$24:AJ$223,MATCH(U24,'Calculation (power based)'!A$24:A$223,0))-INDEX('Calculation (power based)'!AH$24:AH$223,MATCH(U24,'Calculation (power based)'!A$24:A$223,0))),#N/A) ->  | U24: =INDEX('Calculation (power based)'!A$24:A$223,MATCH(B24,'Calculation (power based)'!AS$24:AS$223,0)) ->  | V24: =IF(AND(C24>=INDEX('Calculation (power based)'!AC$24:AC$223,MATCH('Curve verification'!U24,'Calculation (power based)'!A$24:A$223,0)),C24<=INDEX('Calculation (power based)'!AD$24:AD$223,MATCH('Curve verification'!U24,'Calculation (power based)'!A$24:A$223,0))),(C24-INDEX('Calculation (power based)'!AC$24:AC$223,MATCH('Curve verification'!U24,'Calculation (power based)'!A$24:A$223,0)))/(INDEX('Calculation (power based)'!AD$24:AD$223,MATCH('Curve verification'!U24,'Calculation (power based)'!A$24:A$223,0))-INDEX('Calculation (power based)'!AC$24:AC$223,MATCH('Curve verification'!U24,'Calculation (power based)'!A$24:A$223,0))),#N/A) ->  | W24: =IF(NOT(ISNA(V24)),INDEX('Pump database'!J$24:J$223,MATCH(U24,'Calculation (power based)'!A$24:A$223,0))+V24*(INDEX('Pump database'!O$24:O$223,MATCH(U24,'Calculation (power based)'!A$24:A$223,0))-INDEX('Pump database'!J$24:J$223,MATCH(U24,'Calculation (power based)'!A$24:A$223,0))),#N/A) ->  | AA24: =IF(NOT(ISNA(V24)),INDEX('Pump database'!L$24:L$223,MATCH(U24,'Calculation (power based)'!A$24:A$223,0))+V24*(INDEX('Pump database'!Q$24:Q$223,MATCH(U24,'Calculation (power based)'!A$24:A$223,0))-INDEX('Pump database'!L$24:L$223,MATCH(U24,'Calculation (power based)'!A$24:A$223,0))),#N/A) ->  | AE24: =INDEX(type_array,MATCH('Curve verification'!U24,'Calculation (power based)'!A$24:A$223,0)) -> 
I25: =IF(NOT(ISNA(V25)),INDEX('Calculation (power based)'!AG$24:AG$223,MATCH(U25,'Calculation (power based)'!A$24:A$223,0))+V25*(INDEX('Calculation (power based)'!AI$24:AI$223,MATCH(U25,'Calculation (power based)'!A$24:A$223,0))-INDEX('Calculation (power based)'!AG$24:AG$223,MATCH(U25,'Calculation (power based)'!A$24:A$223,0))),#N/A) ->  | M25: =IF(NOT(ISNA(V25)),INDEX('Calculation (power based)'!AH$24:AH$223,MATCH(U25,'Calculation (power based)'!A$24:A$223,0))+V25*(INDEX('Calculation (power based)'!AJ$24:AJ$223,MATCH(U25,'Calculation (power based)'!A$24:A$223,0))-INDEX('Calculation (power based)'!AH$24:AH$223,MATCH(U25,'Calculation (power based)'!A$24:A$223,0))),#N/A) ->  | U25: =INDEX('Calculation (power based)'!A$24:A$223,MATCH(B25,'Calculation (power based)'!AS$24:AS$223,0)) ->  | V25: =IF(AND(C25>=INDEX('Calculation (power based)'!AC$24:AC$223,MATCH('Curve verification'!U25,'Calculation (power based)'!A$24:A$223,0)),C25<=INDEX('Calculation (power based)'!AD$24:AD$223,MATCH('Curve verification'!U25,'Calculation (power based)'!A$24:A$223,0))),(C25-INDEX('Calculation (power based)'!AC$24:AC$223,MATCH('Curve verification'!U25,'Calculation (power based)'!A$24:A$223,0)))/(INDEX('Calculation (power based)'!AD$24:AD$223,MATCH('Curve verification'!U25,'Calculation (power based)'!A$24:A$223,0))-INDEX('Calculation (power based)'!AC$24:AC$223,MATCH('Curve verification'!U25,'Calculation (power based)'!A$24:A$223,0))),#N/A) ->  | W25: =IF(NOT(ISNA(V25)),INDEX('Pump database'!J$24:J$223,MATCH(U25,'Calculation (power based)'!A$24:A$223,0))+V25*(INDEX('Pump database'!O$24:O$223,MATCH(U25,'Calculation (power based)'!A$24:A$223,0))-INDEX('Pump database'!J$24:J$223,MATCH(U25,'Calculation (power based)'!A$24:A$223,0))),#N/A) ->  | AA25: =IF(NOT(ISNA(V25)),INDEX('Pump database'!L$24:L$223,MATCH(U25,'Calculation (power based)'!A$24:A$223,0))+V25*(INDEX('Pump database'!Q$24:Q$223,MATCH(U25,'Calculation (power based)'!A$24:A$223,0))-INDEX('Pump database'!L$24:L$223,MATCH(U25,'Calculation (power based)'!A$24:A$223,0))),#N/A) ->  | AE25: =INDEX(type_array,MATCH('Curve verification'!U25,'Calculation (power based)'!A$24:A$223,0)) -> 
I26: =IF(NOT(ISNA(V26)),INDEX('Calculation (power based)'!AG$24:AG$223,MATCH(U26,'Calculation (power based)'!A$24:A$223,0))+V26*(INDEX('Calculation (power based)'!AI$24:AI$223,MATCH(U26,'Calculation (power based)'!A$24:A$223,0))-INDEX('Calculation (power based)'!AG$24:AG$223,MATCH(U26,'Calculation (power based)'!A$24:A$223,0))),#N/A) ->  | M26: =IF(NOT(ISNA(V26)),INDEX('Calculation (power based)'!AH$24:AH$223,MATCH(U26,'Calculation (power based)'!A$24:A$223,0))+V26*(INDEX('Calculation (power based)'!AJ$24:AJ$223,MATCH(U26,'Calculation (power based)'!A$24:A$223,0))-INDEX('Calculation (power based)'!AH$24:AH$223,MATCH(U26,'Calculation (power based)'!A$24:A$223,0))),#N/A) ->  | U26: =INDEX('Calculation (power based)'!A$24:A$223,MATCH(B26,'Calculation (power based)'!AS$24:AS$223,0)) ->  | V26: =IF(AND(C26>=INDEX('Calculation (power based)'!AC$24:AC$223,MATCH('Curve verification'!U26,'Calculation (power based)'!A$24:A$223,0)),C26<=INDEX('Calculation (power based)'!AD$24:AD$223,MATCH('Curve verification'!U26,'Calculation (power based)'!A$24:A$223,0))),(C26-INDEX('Calculation (power based)'!AC$24:AC$223,MATCH('Curve verification'!U26,'Calculation (power based)'!A$24:A$223,0)))/(INDEX('Calculation (power based)'!AD$24:AD$223,MATCH('Curve verification'!U26,'Calculation (power based)'!A$24:A$223,0))-INDEX('Calculation (power based)'!AC$24:AC$223,MATCH('Curve verification'!U26,'Calculation (power based)'!A$24:A$223,0))),#N/A) ->  | W26: =IF(NOT(ISNA(V26)),INDEX('Pump database'!J$24:J$223,MATCH(U26,'Calculation (power based)'!A$24:A$223,0))+V26*(INDEX('Pump database'!O$24:O$223,MATCH(U26,'Calculation (power based)'!A$24:A$223,0))-INDEX('Pump database'!J$24:J$223,MATCH(U26,'Calculation (power based)'!A$24:A$223,0))),#N/A) ->  | AA26: =IF(NOT(ISNA(V26)),INDEX('Pump database'!L$24:L$223,MATCH(U26,'Calculation (power based)'!A$24:A$223,0))+V26*(INDEX('Pump database'!Q$24:Q$223,MATCH(U26,'Calculation (power based)'!A$24:A$223,0))-INDEX('Pump database'!L$24:L$223,MATCH(U26,'Calculation (power based)'!A$24:A$223,0))),#N/A) ->  | AE26: =INDEX(type_array,MATCH('Curve verification'!U26,'Calculation (power based)'!A$24:A$223,0)) -> 
I27: =IF(NOT(ISNA(V27)),INDEX('Calculation (power based)'!AG$24:AG$223,MATCH(U27,'Calculation (power based)'!A$24:A$223,0))+V27*(INDEX('Calculation (power based)'!AI$24:AI$223,MATCH(U27,'Calculation (power based)'!A$24:A$223,0))-INDEX('Calculation (power based)'!AG$24:AG$223,MATCH(U27,'Calculation (power based)'!A$24:A$223,0))),#N/A) ->  | M27: =IF(NOT(ISNA(V27)),INDEX('Calculation (power based)'!AH$24:AH$223,MATCH(U27,'Calculation (power based)'!A$24:A$223,0))+V27*(INDEX('Calculation (power based)'!AJ$24:AJ$223,MATCH(U27,'Calculation (power based)'!A$24:A$223,0))-INDEX('Calculation (power based)'!AH$24:AH$223,MATCH(U27,'Calculation (power based)'!A$24:A$223,0))),#N/A) ->  | U27: =INDEX('Calculation (power based)'!A$24:A$223,MATCH(B27,'Calculation (power based)'!AS$24:AS$223,0)) ->  | V27: =IF(AND(C27>=INDEX('Calculation (power based)'!AC$24:AC$223,MATCH('Curve verification'!U27,'Calculation (power based)'!A$24:A$223,0)),C27<=INDEX('Calculation (power based)'!AD$24:AD$223,MATCH('Curve verification'!U27,'Calculation (power based)'!A$24:A$223,0))),(C27-INDEX('Calculation (power based)'!AC$24:AC$223,MATCH('Curve verification'!U27,'Calculation (power based)'!A$24:A$223,0)))/(INDEX('Calculation (power based)'!AD$24:AD$223,MATCH('Curve verification'!U27,'Calculation (power based)'!A$24:A$223,0))-INDEX('Calculation (power based)'!AC$24:AC$223,MATCH('Curve verification'!U27,'Calculation (power based)'!A$24:A$223,0))),#N/A) ->  | W27: =IF(NOT(ISNA(V27)),INDEX('Pump database'!J$24:J$223,MATCH(U27,'Calculation (power based)'!A$24:A$223,0))+V27*(INDEX('Pump database'!O$24:O$223,MATCH(U27,'Calculation (power based)'!A$24:A$223,0))-INDEX('Pump database'!J$24:J$223,MATCH(U27,'Calculation (power based)'!A$24:A$223,0))),#N/A) ->  | AA27: =IF(NOT(ISNA(V27)),INDEX('Pump database'!L$24:L$223,MATCH(U27,'Calculation (power based)'!A$24:A$223,0))+V27*(INDEX('Pump database'!Q$24:Q$223,MATCH(U27,'Calculation (power based)'!A$24:A$223,0))-INDEX('Pump database'!L$24:L$223,MATCH(U27,'Calculation (power based)'!A$24:A$223,0))),#N/A) ->  | AE27: =INDEX(type_array,MATCH('Curve verification'!U27,'Calculation (power based)'!A$24:A$223,0)) -> 
I28: =IF(NOT(ISNA(V28)),INDEX('Calculation (power based)'!AG$24:AG$223,MATCH(U28,'Calculation (power based)'!A$24:A$223,0))+V28*(INDEX('Calculation (power based)'!AI$24:AI$223,MATCH(U28,'Calculation (power based)'!A$24:A$223,0))-INDEX('Calculation (power based)'!AG$24:AG$223,MATCH(U28,'Calculation (power based)'!A$24:A$223,0))),#N/A) ->  | M28: =IF(NOT(ISNA(V28)),INDEX('Calculation (power based)'!AH$24:AH$223,MATCH(U28,'Calculation (power based)'!A$24:A$223,0))+V28*(INDEX('Calculation (power based)'!AJ$24:AJ$223,MATCH(U28,'Calculation (power based)'!A$24:A$223,0))-INDEX('Calculation (power based)'!AH$24:AH$223,MATCH(U28,'Calculation (power based)'!A$24:A$223,0))),#N/A) ->  | U28: =INDEX('Calculation (power based)'!A$24:A$223,MATCH(B28,'Calculation (power based)'!AS$24:AS$223,0)) ->  | V28: =IF(AND(C28>=INDEX('Calculation (power based)'!AC$24:AC$223,MATCH('Curve verification'!U28,'Calculation (power based)'!A$24:A$223,0)),C28<=INDEX('Calculation (power based)'!AD$24:AD$223,MATCH('Curve verification'!U28,'Calculation (power based)'!A$24:A$223,0))),(C28-INDEX('Calculation (power based)'!AC$24:AC$223,MATCH('Curve verification'!U28,'Calculation (power based)'!A$24:A$223,0)))/(INDEX('Calculation (power based)'!AD$24:AD$223,MATCH('Curve verification'!U28,'Calculation (power based)'!A$24:A$223,0))-INDEX('Calculation (power based)'!AC$24:AC$223,MATCH('Curve verification'!U28,'Calculation (power based)'!A$24:A$223,0))),#N/A) ->  | W28: =IF(NOT(ISNA(V28)),INDEX('Pump database'!J$24:J$223,MATCH(U28,'Calculation (power based)'!A$24:A$223,0))+V28*(INDEX('Pump database'!O$24:O$223,MATCH(U28,'Calculation (power based)'!A$24:A$223,0))-INDEX('Pump database'!J$24:J$223,MATCH(U28,'Calculation (power based)'!A$24:A$223,0))),#N/A) ->  | AA28: =IF(NOT(ISNA(V28)),INDEX('Pump database'!L$24:L$223,MATCH(U28,'Calculation (power based)'!A$24:A$223,0))+V28*(INDEX('Pump database'!Q$24:Q$223,MATCH(U28,'Calculation (power based)'!A$24:A$223,0))-INDEX('Pump database'!L$24:L$223,MATCH(U28,'Calculation (power based)'!A$24:A$223,0))),#N/A) ->  | AE28: =INDEX(type_array,MATCH('Curve verification'!U28,'Calculation (power based)'!A$24:A$223,0)) -> 
I29: =IF(NOT(ISNA(V29)),INDEX('Calculation (power based)'!AG$24:AG$223,MATCH(U29,'Calculation (power based)'!A$24:A$223,0))+V29*(INDEX('Calculation (power based)'!AI$24:AI$223,MATCH(U29,'Calculation (power based)'!A$24:A$223,0))-INDEX('Calculation (power based)'!AG$24:AG$223,MATCH(U29,'Calculation (power based)'!A$24:A$223,0))),#N/A) ->  | M29: =IF(NOT(ISNA(V29)),INDEX('Calculation (power based)'!AH$24:AH$223,MATCH(U29,'Calculation (power based)'!A$24:A$223,0))+V29*(INDEX('Calculation (power based)'!AJ$24:AJ$223,MATCH(U29,'Calculation (power based)'!A$24:A$223,0))-INDEX('Calculation (power based)'!AH$24:AH$223,MATCH(U29,'Calculation (power based)'!A$24:A$223,0))),#N/A) ->  | U29: =INDEX('Calculation (power based)'!A$24:A$223,MATCH(B29,'Calculation (power based)'!AS$24:AS$223,0)) ->  | V29: =IF(AND(C29>=INDEX('Calculation (power based)'!AC$24:AC$223,MATCH('Curve verification'!U29,'Calculation (power based)'!A$24:A$223,0)),C29<=INDEX('Calculation (power based)'!AD$24:AD$223,MATCH('Curve verification'!U29,'Calculation (power based)'!A$24:A$223,0))),(C29-INDEX('Calculation (power based)'!AC$24:AC$223,MATCH('Curve verification'!U29,'Calculation (power based)'!A$24:A$223,0)))/(INDEX('Calculation (power based)'!AD$24:AD$223,MATCH('Curve verification'!U29,'Calculation (power based)'!A$24:A$223,0))-INDEX('Calculation (power based)'!AC$24:AC$223,MATCH('Curve verification'!U29,'Calculation (power based)'!A$24:A$223,0))),#N/A) ->  | W29: =IF(NOT(ISNA(V29)),INDEX('Pump database'!J$24:J$223,MATCH(U29,'Calculation (power based)'!A$24:A$223,0))+V29*(INDEX('Pump database'!O$24:O$223,MATCH(U29,'Calculation (power based)'!A$24:A$223,0))-INDEX('Pump database'!J$24:J$223,MATCH(U29,'Calculation (power based)'!A$24:A$223,0))),#N/A) ->  | AA29: =IF(NOT(ISNA(V29)),INDEX('Pump database'!L$24:L$223,MATCH(U29,'Calculation (power based)'!A$24:A$223,0))+V29*(INDEX('Pump database'!Q$24:Q$223,MATCH(U29,'Calculation (power based)'!A$24:A$223,0))-INDEX('Pump database'!L$24:L$223,MATCH(U29,'Calculation (power based)'!A$24:A$223,0))),#N/A) ->  | AE29: =INDEX(type_array,MATCH('Curve verification'!U29,'Calculation (power based)'!A$24:A$223,0)) -> 
I30: =IF(NOT(ISNA(V30)),INDEX('Calculation (power based)'!AG$24:AG$223,MATCH(U30,'Calculation (power based)'!A$24:A$223,0))+V30*(INDEX('Calculation (power based)'!AI$24:AI$223,MATCH(U30,'Calculation (power based)'!A$24:A$223,0))-INDEX('Calculation (power based)'!AG$24:AG$223,MATCH(U30,'Calculation (power based)'!A$24:A$223,0))),#N/A) ->  | M30: =IF(NOT(ISNA(V30)),INDEX('Calculation (power based)'!AH$24:AH$223,MATCH(U30,'Calculation (power based)'!A$24:A$223,0))+V30*(INDEX('Calculation (power based)'!AJ$24:AJ$223,MATCH(U30,'Calculation (power based)'!A$24:A$223,0))-INDEX('Calculation (power based)'!AH$24:AH$223,MATCH(U30,'Calculation (power based)'!A$24:A$223,0))),#N/A) ->  | U30: =INDEX('Calculation (power based)'!A$24:A$223,MATCH(B30,'Calculation (power based)'!AS$24:AS$223,0)) ->  | V30: =IF(AND(C30>=INDEX('Calculation (power based)'!AC$24:AC$223,MATCH('Curve verification'!U30,'Calculation (power based)'!A$24:A$223,0)),C30<=INDEX('Calculation (power based)'!AD$24:AD$223,MATCH('Curve verification'!U30,'Calculation (power based)'!A$24:A$223,0))),(C30-INDEX('Calculation (power based)'!AC$24:AC$223,MATCH('Curve verification'!U30,'Calculation (power based)'!A$24:A$223,0)))/(INDEX('Calculation (power based)'!AD$24:AD$223,MATCH('Curve verification'!U30,'Calculation (power based)'!A$24:A$223,0))-INDEX('Calculation (power based)'!AC$24:AC$223,MATCH('Curve verification'!U30,'Calculation (power based)'!A$24:A$223,0))),#N/A) ->  | W30: =IF(NOT(ISNA(V30)),INDEX('Pump database'!J$24:J$223,MATCH(U30,'Calculation (power based)'!A$24:A$223,0))+V30*(INDEX('Pump database'!O$24:O$223,MATCH(U30,'Calculation (power based)'!A$24:A$223,0))-INDEX('Pump database'!J$24:J$223,MATCH(U30,'Calculation (power based)'!A$24:A$223,0))),#N/A) ->  | AA30: =IF(NOT(ISNA(V30)),INDEX('Pump database'!L$24:L$223,MATCH(U30,'Calculation (power based)'!A$24:A$223,0))+V30*(INDEX('Pump database'!Q$24:Q$223,MATCH(U30,'Calculation (power based)'!A$24:A$223,0))-INDEX('Pump database'!L$24:L$223,MATCH(U30,'Calculation (power based)'!A$24:A$223,0))),#N/A) ->  | AE30: =INDEX(type_array,MATCH('Curve verification'!U30,'Calculation (power based)'!A$24:A$223,0)) -> 
I31: =IF(NOT(ISNA(V31)),INDEX('Calculation (power based)'!AG$24:AG$223,MATCH(U31,'Calculation (power based)'!A$24:A$223,0))+V31*(INDEX('Calculation (power based)'!AI$24:AI$223,MATCH(U31,'Calculation (power based)'!A$24:A$223,0))-INDEX('Calculation (power based)'!AG$24:AG$223,MATCH(U31,'Calculation (power based)'!A$24:A$223,0))),#N/A) ->  | M31: =IF(NOT(ISNA(V31)),INDEX('Calculation (power based)'!AH$24:AH$223,MATCH(U31,'Calculation (power based)'!A$24:A$223,0))+V31*(INDEX('Calculation (power based)'!AJ$24:AJ$223,MATCH(U31,'Calculation (power based)'!A$24:A$223,0))-INDEX('Calculation (power based)'!AH$24:AH$223,MATCH(U31,'Calculation (power based)'!A$24:A$223,0))),#N/A) ->  | U31: =INDEX('Calculation (power based)'!A$24:A$223,MATCH(B31,'Calculation (power based)'!AS$24:AS$223,0)) ->  | V31: =IF(AND(C31>=INDEX('Calculation (power based)'!AC$24:AC$223,MATCH('Curve verification'!U31,'Calculation (power based)'!A$24:A$223,0)),C31<=INDEX('Calculation (power based)'!AD$24:AD$223,MATCH('Curve verification'!U31,'Calculation (power based)'!A$24:A$223,0))),(C31-INDEX('Calculation (power based)'!AC$24:AC$223,MATCH('Curve verification'!U31,'Calculation (power based)'!A$24:A$223,0)))/(INDEX('Calculation (power based)'!AD$24:AD$223,MATCH('Curve verification'!U31,'Calculation (power based)'!A$24:A$223,0))-INDEX('Calculation (power based)'!AC$24:AC$223,MATCH('Curve verification'!U31,'Calculation (power based)'!A$24:A$223,0))),#N/A) ->  | W31: =IF(NOT(ISNA(V31)),INDEX('Pump database'!J$24:J$223,MATCH(U31,'Calculation (power based)'!A$24:A$223,0))+V31*(INDEX('Pump database'!O$24:O$223,MATCH(U31,'Calculation (power based)'!A$24:A$223,0))-INDEX('Pump database'!J$24:J$223,MATCH(U31,'Calculation (power based)'!A$24:A$223,0))),#N/A) ->  | AA31: =IF(NOT(ISNA(V31)),INDEX('Pump database'!L$24:L$223,MATCH(U31,'Calculation (power based)'!A$24:A$223,0))+V31*(INDEX('Pump database'!Q$24:Q$223,MATCH(U31,'Calculation (power based)'!A$24:A$223,0))-INDEX('Pump database'!L$24:L$223,MATCH(U31,'Calculation (power based)'!A$24:A$223,0))),#N/A) ->  | AE31: =INDEX(type_array,MATCH('Curve verification'!U31,'Calculation (power based)'!A$24:A$223,0)) -> 
I32: =IF(NOT(ISNA(V32)),INDEX('Calculation (power based)'!AG$24:AG$223,MATCH(U32,'Calculation (power based)'!A$24:A$223,0))+V32*(INDEX('Calculation (power based)'!AI$24:AI$223,MATCH(U32,'Calculation (power based)'!A$24:A$223,0))-INDEX('Calculation (power based)'!AG$24:AG$223,MATCH(U32,'Calculation (power based)'!A$24:A$223,0))),#N/A) ->  | M32: =IF(NOT(ISNA(V32)),INDEX('Calculation (power based)'!AH$24:AH$223,MATCH(U32,'Calculation (power based)'!A$24:A$223,0))+V32*(INDEX('Calculation (power based)'!AJ$24:AJ$223,MATCH(U32,'Calculation (power based)'!A$24:A$223,0))-INDEX('Calculation (power based)'!AH$24:AH$223,MATCH(U32,'Calculation (power based)'!A$24:A$223,0))),#N/A) ->  | U32: =INDEX('Calculation (power based)'!A$24:A$223,MATCH(B32,'Calculation (power based)'!AS$24:AS$223,0)) ->  | V32: =IF(AND(C32>=INDEX('Calculation (power based)'!AC$24:AC$223,MATCH('Curve verification'!U32,'Calculation (power based)'!A$24:A$223,0)),C32<=INDEX('Calculation (power based)'!AD$24:AD$223,MATCH('Curve verification'!U32,'Calculation (power based)'!A$24:A$223,0))),(C32-INDEX('Calculation (power based)'!AC$24:AC$223,MATCH('Curve verification'!U32,'Calculation (power based)'!A$24:A$223,0)))/(INDEX('Calculation (power based)'!AD$24:AD$223,MATCH('Curve verification'!U32,'Calculation (power based)'!A$24:A$223,0))-INDEX('Calculation (power based)'!AC$24:AC$223,MATCH('Curve verification'!U32,'Calculation (power based)'!A$24:A$223,0))),#N/A) ->  | W32: =IF(NOT(ISNA(V32)),INDEX('Pump database'!J$24:J$223,MATCH(U32,'Calculation (power based)'!A$24:A$223,0))+V32*(INDEX('Pump database'!O$24:O$223,MATCH(U32,'Calculation (power based)'!A$24:A$223,0))-INDEX('Pump database'!J$24:J$223,MATCH(U32,'Calculation (power based)'!A$24:A$223,0))),#N/A) ->  | AA32: =IF(NOT(ISNA(V32)),INDEX('Pump database'!L$24:L$223,MATCH(U32,'Calculation (power based)'!A$24:A$223,0))+V32*(INDEX('Pump database'!Q$24:Q$223,MATCH(U32,'Calculation (power based)'!A$24:A$223,0))-INDEX('Pump database'!L$24:L$223,MATCH(U32,'Calculation (power based)'!A$24:A$223,0))),#N/A) ->  | AE32: =INDEX(type_array,MATCH('Curve verification'!U32,'Calculation (power based)'!A$24:A$223,0)) -> 
I33: =IF(NOT(ISNA(V33)),INDEX('Calculation (power based)'!AG$24:AG$223,MATCH(U33,'Calculation (power based)'!A$24:A$223,0))+V33*(INDEX('Calculation (power based)'!AI$24:AI$223,MATCH(U33,'Calculation (power based)'!A$24:A$223,0))-INDEX('Calculation (power based)'!AG$24:AG$223,MATCH(U33,'Calculation (power based)'!A$24:A$223,0))),#N/A) ->  | M33: =IF(NOT(ISNA(V33)),INDEX('Calculation (power based)'!AH$24:AH$223,MATCH(U33,'Calculation (power based)'!A$24:A$223,0))+V33*(INDEX('Calculation (power based)'!AJ$24:AJ$223,MATCH(U33,'Calculation (power based)'!A$24:A$223,0))-INDEX('Calculation (power based)'!AH$24:AH$223,MATCH(U33,'Calculation (power based)'!A$24:A$223,0))),#N/A) ->  | U33: =INDEX('Calculation (power based)'!A$24:A$223,MATCH(B33,'Calculation (power based)'!AS$24:AS$223,0)) ->  | V33: =IF(AND(C33>=INDEX('Calculation (power based)'!AC$24:AC$223,MATCH('Curve verification'!U33,'Calculation (power based)'!A$24:A$223,0)),C33<=INDEX('Calculation (power based)'!AD$24:AD$223,MATCH('Curve verification'!U33,'Calculation (power based)'!A$24:A$223,0))),(C33-INDEX('Calculation (power based)'!AC$24:AC$223,MATCH('Curve verification'!U33,'Calculation (power based)'!A$24:A$223,0)))/(INDEX('Calculation (power based)'!AD$24:AD$223,MATCH('Curve verification'!U33,'Calculation (power based)'!A$24:A$223,0))-INDEX('Calculation (power based)'!AC$24:AC$223,MATCH('Curve verification'!U33,'Calculation (power based)'!A$24:A$223,0))),#N/A) ->  | W33: =IF(NOT(ISNA(V33)),INDEX('Pump database'!J$24:J$223,MATCH(U33,'Calculation (power based)'!A$24:A$223,0))+V33*(INDEX('Pump database'!O$24:O$223,MATCH(U33,'Calculation (power based)'!A$24:A$223,0))-INDEX('Pump database'!J$24:J$223,MATCH(U33,'Calculation (power based)'!A$24:A$223,0))),#N/A) ->  | AA33: =IF(NOT(ISNA(V33)),INDEX('Pump database'!L$24:L$223,MATCH(U33,'Calculation (power based)'!A$24:A$223,0))+V33*(INDEX('Pump database'!Q$24:Q$223,MATCH(U33,'Calculation (power based)'!A$24:A$223,0))-INDEX('Pump database'!L$24:L$223,MATCH(U33,'Calculation (power based)'!A$24:A$223,0))),#N/A) ->  | AE33: =INDEX(type_array,MATCH('Curve verification'!U33,'Calculation (power based)'!A$24:A$223,0)) -> 
I34: =IF(NOT(ISNA(V34)),INDEX('Calculation (power based)'!AG$24:AG$223,MATCH(U34,'Calculation (power based)'!A$24:A$223,0))+V34*(INDEX('Calculation (power based)'!AI$24:AI$223,MATCH(U34,'Calculation (power based)'!A$24:A$223,0))-INDEX('Calculation (power based)'!AG$24:AG$223,MATCH(U34,'Calculation (power based)'!A$24:A$223,0))),#N/A) ->  | M34: =IF(NOT(ISNA(V34)),INDEX('Calculation (power based)'!AH$24:AH$223,MATCH(U34,'Calculation (power based)'!A$24:A$223,0))+V34*(INDEX('Calculation (power based)'!AJ$24:AJ$223,MATCH(U34,'Calculation (power based)'!A$24:A$223,0))-INDEX('Calculation (power based)'!AH$24:AH$223,MATCH(U34,'Calculation (power based)'!A$24:A$223,0))),#N/A) ->  | U34: =INDEX('Calculation (power based)'!A$24:A$223,MATCH(B34,'Calculation (power based)'!AS$24:AS$223,0)) ->  | V34: =IF(AND(C34>=INDEX('Calculation (power based)'!AC$24:AC$223,MATCH('Curve verification'!U34,'Calculation (power based)'!A$24:A$223,0)),C34<=INDEX('Calculation (power based)'!AD$24:AD$223,MATCH('Curve verification'!U34,'Calculation (power based)'!A$24:A$223,0))),(C34-INDEX('Calculation (power based)'!AC$24:AC$223,MATCH('Curve verification'!U34,'Calculation (power based)'!A$24:A$223,0)))/(INDEX('Calculation (power based)'!AD$24:AD$223,MATCH('Curve verification'!U34,'Calculation (power based)'!A$24:A$223,0))-INDEX('Calculation (power based)'!AC$24:AC$223,MATCH('Curve verification'!U34,'Calculation (power based)'!A$24:A$223,0))),#N/A) ->  | W34: =IF(NOT(ISNA(V34)),INDEX('Pump database'!J$24:J$223,MATCH(U34,'Calculation (power based)'!A$24:A$223,0))+V34*(INDEX('Pump database'!O$24:O$223,MATCH(U34,'Calculation (power based)'!A$24:A$223,0))-INDEX('Pump database'!J$24:J$223,MATCH(U34,'Calculation (power based)'!A$24:A$223,0))),#N/A) ->  | AA34: =IF(NOT(ISNA(V34)),INDEX('Pump database'!L$24:L$223,MATCH(U34,'Calculation (power based)'!A$24:A$223,0))+V34*(INDEX('Pump database'!Q$24:Q$223,MATCH(U34,'Calculation (power based)'!A$24:A$223,0))-INDEX('Pump database'!L$24:L$223,MATCH(U34,'Calculation (power based)'!A$24:A$223,0))),#N/A) ->  | AE34: =INDEX(type_array,MATCH('Curve verification'!U34,'Calculation (power based)'!A$24:A$223,0)) -> 
I35: =IF(NOT(ISNA(V35)),INDEX('Calculation (power based)'!AG$24:AG$223,MATCH(U35,'Calculation (power based)'!A$24:A$223,0))+V35*(INDEX('Calculation (power based)'!AI$24:AI$223,MATCH(U35,'Calculation (power based)'!A$24:A$223,0))-INDEX('Calculation (power based)'!AG$24:AG$223,MATCH(U35,'Calculation (power based)'!A$24:A$223,0))),#N/A) ->  | M35: =IF(NOT(ISNA(V35)),INDEX('Calculation (power based)'!AH$24:AH$223,MATCH(U35,'Calculation (power based)'!A$24:A$223,0))+V35*(INDEX('Calculation (power based)'!AJ$24:AJ$223,MATCH(U35,'Calculation (power based)'!A$24:A$223,0))-INDEX('Calculation (power based)'!AH$24:AH$223,MATCH(U35,'Calculation (power based)'!A$24:A$223,0))),#N/A) ->  | U35: =INDEX('Calculation (power based)'!A$24:A$223,MATCH(B35,'Calculation (power based)'!AS$24:AS$223,0)) ->  | V35: =IF(AND(C35>=INDEX('Calculation (power based)'!AC$24:AC$223,MATCH('Curve verification'!U35,'Calculation (power based)'!A$24:A$223,0)),C35<=INDEX('Calculation (power based)'!AD$24:AD$223,MATCH('Curve verification'!U35,'Calculation (power based)'!A$24:A$223,0))),(C35-INDEX('Calculation (power based)'!AC$24:AC$223,MATCH('Curve verification'!U35,'Calculation (power based)'!A$24:A$223,0)))/(INDEX('Calculation (power based)'!AD$24:AD$223,MATCH('Curve verification'!U35,'Calculation (power based)'!A$24:A$223,0))-INDEX('Calculation (power based)'!AC$24:AC$223,MATCH('Curve verification'!U35,'Calculation (power based)'!A$24:A$223,0))),#N/A) ->  | W35: =IF(NOT(ISNA(V35)),INDEX('Pump database'!J$24:J$223,MATCH(U35,'Calculation (power based)'!A$24:A$223,0))+V35*(INDEX('Pump database'!O$24:O$223,MATCH(U35,'Calculation (power based)'!A$24:A$223,0))-INDEX('Pump database'!J$24:J$223,MATCH(U35,'Calculation (power based)'!A$24:A$223,0))),#N/A) ->  | AA35: =IF(NOT(ISNA(V35)),INDEX('Pump database'!L$24:L$223,MATCH(U35,'Calculation (power based)'!A$24:A$223,0))+V35*(INDEX('Pump database'!Q$24:Q$223,MATCH(U35,'Calculation (power based)'!A$24:A$223,0))-INDEX('Pump database'!L$24:L$223,MATCH(U35,'Calculation (power based)'!A$24:A$223,0))),#N/A) ->  | AE35: =INDEX(type_array,MATCH('Curve verification'!U35,'Calculation (power based)'!A$24:A$223,0)) -> 
I36: =IF(NOT(ISNA(V36)),INDEX('Calculation (power based)'!AG$24:AG$223,MATCH(U36,'Calculation (power based)'!A$24:A$223,0))+V36*(INDEX('Calculation (power based)'!AI$24:AI$223,MATCH(U36,'Calculation (power based)'!A$24:A$223,0))-INDEX('Calculation (power based)'!AG$24:AG$223,MATCH(U36,'Calculation (power based)'!A$24:A$223,0))),#N/A) ->  | M36: =IF(NOT(ISNA(V36)),INDEX('Calculation (power based)'!AH$24:AH$223,MATCH(U36,'Calculation (power based)'!A$24:A$223,0))+V36*(INDEX('Calculation (power based)'!AJ$24:AJ$223,MATCH(U36,'Calculation (power based)'!A$24:A$223,0))-INDEX('Calculation (power based)'!AH$24:AH$223,MATCH(U36,'Calculation (power based)'!A$24:A$223,0))),#N/A) ->  | U36: =INDEX('Calculation (power based)'!A$24:A$223,MATCH(B36,'Calculation (power based)'!AS$24:AS$223,0)) ->  | V36: =IF(AND(C36>=INDEX('Calculation (power based)'!AC$24:AC$223,MATCH('Curve verification'!U36,'Calculation (power based)'!A$24:A$223,0)),C36<=INDEX('Calculation (power based)'!AD$24:AD$223,MATCH('Curve verification'!U36,'Calculation (power based)'!A$24:A$223,0))),(C36-INDEX('Calculation (power based)'!AC$24:AC$223,MATCH('Curve verification'!U36,'Calculation (power based)'!A$24:A$223,0)))/(INDEX('Calculation (power based)'!AD$24:AD$223,MATCH('Curve verification'!U36,'Calculation (power based)'!A$24:A$223,0))-INDEX('Calculation (power based)'!AC$24:AC$223,MATCH('Curve verification'!U36,'Calculation (power based)'!A$24:A$223,0))),#N/A) ->  | W36: =IF(NOT(ISNA(V36)),INDEX('Pump database'!J$24:J$223,MATCH(U36,'Calculation (power based)'!A$24:A$223,0))+V36*(INDEX('Pump database'!O$24:O$223,MATCH(U36,'Calculation (power based)'!A$24:A$223,0))-INDEX('Pump database'!J$24:J$223,MATCH(U36,'Calculation (power based)'!A$24:A$223,0))),#N/A) ->  | AA36: =IF(NOT(ISNA(V36)),INDEX('Pump database'!L$24:L$223,MATCH(U36,'Calculation (power based)'!A$24:A$223,0))+V36*(INDEX('Pump database'!Q$24:Q$223,MATCH(U36,'Calculation (power based)'!A$24:A$223,0))-INDEX('Pump database'!L$24:L$223,MATCH(U36,'Calculation (power based)'!A$24:A$223,0))),#N/A) ->  | AE36: =INDEX(type_array,MATCH('Curve verification'!U36,'Calculation (power based)'!A$24:A$223,0)) -> 
I37: =IF(NOT(ISNA(V37)),INDEX('Calculation (power based)'!AG$24:AG$223,MATCH(U37,'Calculation (power based)'!A$24:A$223,0))+V37*(INDEX('Calculation (power based)'!AI$24:AI$223,MATCH(U37,'Calculation (power based)'!A$24:A$223,0))-INDEX('Calculation (power based)'!AG$24:AG$223,MATCH(U37,'Calculation (power based)'!A$24:A$223,0))),#N/A) ->  | M37: =IF(NOT(ISNA(V37)),INDEX('Calculation (power based)'!AH$24:AH$223,MATCH(U37,'Calculation (power based)'!A$24:A$223,0))+V37*(INDEX('Calculation (power based)'!AJ$24:AJ$223,MATCH(U37,'Calculation (power based)'!A$24:A$223,0))-INDEX('Calculation (power based)'!AH$24:AH$223,MATCH(U37,'Calculation (power based)'!A$24:A$223,0))),#N/A) ->  | U37: =INDEX('Calculation (power based)'!A$24:A$223,MATCH(B37,'Calculation (power based)'!AS$24:AS$223,0)) ->  | V37: =IF(AND(C37>=INDEX('Calculation (power based)'!AC$24:AC$223,MATCH('Curve verification'!U37,'Calculation (power based)'!A$24:A$223,0)),C37<=INDEX('Calculation (power based)'!AD$24:AD$223,MATCH('Curve verification'!U37,'Calculation (power based)'!A$24:A$223,0))),(C37-INDEX('Calculation (power based)'!AC$24:AC$223,MATCH('Curve verification'!U37,'Calculation (power based)'!A$24:A$223,0)))/(INDEX('Calculation (power based)'!AD$24:AD$223,MATCH('Curve verification'!U37,'Calculation (power based)'!A$24:A$223,0))-INDEX('Calculation (power based)'!AC$24:AC$223,MATCH('Curve verification'!U37,'Calculation (power based)'!A$24:A$223,0))),#N/A) ->  | W37: =IF(NOT(ISNA(V37)),INDEX('Pump database'!J$24:J$223,MATCH(U37,'Calculation (power based)'!A$24:A$223,0))+V37*(INDEX('Pump database'!O$24:O$223,MATCH(U37,'Calculation (power based)'!A$24:A$223,0))-INDEX('Pump database'!J$24:J$223,MATCH(U37,'Calculation (power based)'!A$24:A$223,0))),#N/A) ->  | AA37: =IF(NOT(ISNA(V37)),INDEX('Pump database'!L$24:L$223,MATCH(U37,'Calculation (power based)'!A$24:A$223,0))+V37*(INDEX('Pump database'!Q$24:Q$223,MATCH(U37,'Calculation (power based)'!A$24:A$223,0))-INDEX('Pump database'!L$24:L$223,MATCH(U37,'Calculation (power based)'!A$24:A$223,0))),#N/A) ->  | AE37: =INDEX(type_array,MATCH('Curve verification'!U37,'Calculation (power based)'!A$24:A$223,0)) -> 
I38: =IF(NOT(ISNA(V38)),INDEX('Calculation (power based)'!AG$24:AG$223,MATCH(U38,'Calculation (power based)'!A$24:A$223,0))+V38*(INDEX('Calculation (power based)'!AI$24:AI$223,MATCH(U38,'Calculation (power based)'!A$24:A$223,0))-INDEX('Calculation (power based)'!AG$24:AG$223,MATCH(U38,'Calculation (power based)'!A$24:A$223,0))),#N/A) ->  | M38: =IF(NOT(ISNA(V38)),INDEX('Calculation (power based)'!AH$24:AH$223,MATCH(U38,'Calculation (power based)'!A$24:A$223,0))+V38*(INDEX('Calculation (power based)'!AJ$24:AJ$223,MATCH(U38,'Calculation (power based)'!A$24:A$223,0))-INDEX('Calculation (power based)'!AH$24:AH$223,MATCH(U38,'Calculation (power based)'!A$24:A$223,0))),#N/A) ->  | U38: =INDEX('Calculation (power based)'!A$24:A$223,MATCH(B38,'Calculation (power based)'!AS$24:AS$223,0)) ->  | V38: =IF(AND(C38>=INDEX('Calculation (power based)'!AC$24:AC$223,MATCH('Curve verification'!U38,'Calculation (power based)'!A$24:A$223,0)),C38<=INDEX('Calculation (power based)'!AD$24:AD$223,MATCH('Curve verification'!U38,'Calculation (power based)'!A$24:A$223,0))),(C38-INDEX('Calculation (power based)'!AC$24:AC$223,MATCH('Curve verification'!U38,'Calculation (power based)'!A$24:A$223,0)))/(INDEX('Calculation (power based)'!AD$24:AD$223,MATCH('Curve verification'!U38,'Calculation (power based)'!A$24:A$223,0))-INDEX('Calculation (power based)'!AC$24:AC$223,MATCH('Curve verification'!U38,'Calculation (power based)'!A$24:A$223,0))),#N/A) ->  | W38: =IF(NOT(ISNA(V38)),INDEX('Pump database'!J$24:J$223,MATCH(U38,'Calculation (power based)'!A$24:A$223,0))+V38*(INDEX('Pump database'!O$24:O$223,MATCH(U38,'Calculation (power based)'!A$24:A$223,0))-INDEX('Pump database'!J$24:J$223,MATCH(U38,'Calculation (power based)'!A$24:A$223,0))),#N/A) ->  | AA38: =IF(NOT(ISNA(V38)),INDEX('Pump database'!L$24:L$223,MATCH(U38,'Calculation (power based)'!A$24:A$223,0))+V38*(INDEX('Pump database'!Q$24:Q$223,MATCH(U38,'Calculation (power based)'!A$24:A$223,0))-INDEX('Pump database'!L$24:L$223,MATCH(U38,'Calculation (power based)'!A$24:A$223,0))),#N/A) ->  | AE38: =INDEX(type_array,MATCH('Curve verification'!U38,'Calculation (power based)'!A$24:A$223,0)) -> 
I39: =IF(NOT(ISNA(V39)),INDEX('Calculation (power based)'!AG$24:AG$223,MATCH(U39,'Calculation (power based)'!A$24:A$223,0))+V39*(INDEX('Calculation (power based)'!AI$24:AI$223,MATCH(U39,'Calculation (power based)'!A$24:A$223,0))-INDEX('Calculation (power based)'!AG$24:AG$223,MATCH(U39,'Calculation (power based)'!A$24:A$223,0))),#N/A) ->  | M39: =IF(NOT(ISNA(V39)),INDEX('Calculation (power based)'!AH$24:AH$223,MATCH(U39,'Calculation (power based)'!A$24:A$223,0))+V39*(INDEX('Calculation (power based)'!AJ$24:AJ$223,MATCH(U39,'Calculation (power based)'!A$24:A$223,0))-INDEX('Calculation (power based)'!AH$24:AH$223,MATCH(U39,'Calculation (power based)'!A$24:A$223,0))),#N/A) ->  | U39: =INDEX('Calculation (power based)'!A$24:A$223,MATCH(B39,'Calculation (power based)'!AS$24:AS$223,0)) ->  | V39: =IF(AND(C39>=INDEX('Calculation (power based)'!AC$24:AC$223,MATCH('Curve verification'!U39,'Calculation (power based)'!A$24:A$223,0)),C39<=INDEX('Calculation (power based)'!AD$24:AD$223,MATCH('Curve verification'!U39,'Calculation (power based)'!A$24:A$223,0))),(C39-INDEX('Calculation (power based)'!AC$24:AC$223,MATCH('Curve verification'!U39,'Calculation (power based)'!A$24:A$223,0)))/(INDEX('Calculation (power based)'!AD$24:AD$223,MATCH('Curve verification'!U39,'Calculation (power based)'!A$24:A$223,0))-INDEX('Calculation (power based)'!AC$24:AC$223,MATCH('Curve verification'!U39,'Calculation (power based)'!A$24:A$223,0))),#N/A) ->  | W39: =IF(NOT(ISNA(V39)),INDEX('Pump database'!J$24:J$223,MATCH(U39,'Calculation (power based)'!A$24:A$223,0))+V39*(INDEX('Pump database'!O$24:O$223,MATCH(U39,'Calculation (power based)'!A$24:A$223,0))-INDEX('Pump database'!J$24:J$223,MATCH(U39,'Calculation (power based)'!A$24:A$223,0))),#N/A) ->  | AA39: =IF(NOT(ISNA(V39)),INDEX('Pump database'!L$24:L$223,MATCH(U39,'Calculation (power based)'!A$24:A$223,0))+V39*(INDEX('Pump database'!Q$24:Q$223,MATCH(U39,'Calculation (power based)'!A$24:A$223,0))-INDEX('Pump database'!L$24:L$223,MATCH(U39,'Calculation (power based)'!A$24:A$223,0))),#N/A) ->  | AE39: =INDEX(type_array,MATCH('Curve verification'!U39,'Calculation (power based)'!A$24:A$223,0)) -> 
I40: =IF(NOT(ISNA(V40)),INDEX('Calculation (power based)'!AG$24:AG$223,MATCH(U40,'Calculation (power based)'!A$24:A$223,0))+V40*(INDEX('Calculation (power based)'!AI$24:AI$223,MATCH(U40,'Calculation (power based)'!A$24:A$223,0))-INDEX('Calculation (power based)'!AG$24:AG$223,MATCH(U40,'Calculation (power based)'!A$24:A$223,0))),#N/A) ->  | M40: =IF(NOT(ISNA(V40)),INDEX('Calculation (power based)'!AH$24:AH$223,MATCH(U40,'Calculation (power based)'!A$24:A$223,0))+V40*(INDEX('Calculation (power based)'!AJ$24:AJ$223,MATCH(U40,'Calculation (power based)'!A$24:A$223,0))-INDEX('Calculation (power based)'!AH$24:AH$223,MATCH(U40,'Calculation (power based)'!A$24:A$223,0))),#N/A) ->  | U40: =INDEX('Calculation (power based)'!A$24:A$223,MATCH(B40,'Calculation (power based)'!AS$24:AS$223,0)) ->  | V40: =IF(AND(C40>=INDEX('Calculation (power based)'!AC$24:AC$223,MATCH('Curve verification'!U40,'Calculation (power based)'!A$24:A$223,0)),C40<=INDEX('Calculation (power based)'!AD$24:AD$223,MATCH('Curve verification'!U40,'Calculation (power based)'!A$24:A$223,0))),(C40-INDEX('Calculation (power based)'!AC$24:AC$223,MATCH('Curve verification'!U40,'Calculation (power based)'!A$24:A$223,0)))/(INDEX('Calculation (power based)'!AD$24:AD$223,MATCH('Curve verification'!U40,'Calculation (power based)'!A$24:A$223,0))-INDEX('Calculation (power based)'!AC$24:AC$223,MATCH('Curve verification'!U40,'Calculation (power based)'!A$24:A$223,0))),#N/A) ->  | W40: =IF(NOT(ISNA(V40)),INDEX('Pump database'!J$24:J$223,MATCH(U40,'Calculation (power based)'!A$24:A$223,0))+V40*(INDEX('Pump database'!O$24:O$223,MATCH(U40,'Calculation (power based)'!A$24:A$223,0))-INDEX('Pump database'!J$24:J$223,MATCH(U40,'Calculation (power based)'!A$24:A$223,0))),#N/A) ->  | X40: =IF(AND(NOT(ISNA($AE40)),NOT(ISNA($AB40))),IF($AE40=1, ( MIN($AA40,IF($M40*AG40<$I40,0,$M40*$AB40*3.6/$C40/g_constant*(AG40 - $AC40)/(AG40^$AD40) + $W40)) ), MIN($AA40,IF($M40*AG40<$I40,0,$AB40*$M40*AG40+$AC40)) ),#N/A) ->  | Y40: =IF(AND(NOT(ISNA($AE40)),NOT(ISNA($AB40))),IF($AE40=1, ( MIN($AA40,IF($M40*AH40<$I40,0,$M40*$AB40*3.6/$C40/g_constant*(AH40 - $AC40)/(AH40^$AD40) + $W40)) ), MIN($AA40,IF($M40*AH40<$I40,0,$AB40*$M40*AH40+$AC40)) ),#N/A) ->  | Z40: =IF(AND(NOT(ISNA($AE40)),NOT(ISNA($AB40))),IF($AE40=1, ( MIN($AA40,IF($M40*AI40<$I40,0,$M40*$AB40*3.6/$C40/g_constant*(AI40 - $AC40)/(AI40^$AD40) + $W40)) ), MIN($AA40,IF($M40*AI40<$I40,0,$AB40*$M40*AI40+$AC40)) ),#N/A) ->  | AA40: =IF(NOT(ISNA(V40)),INDEX('Pump database'!L$24:L$223,MATCH(U40,'Calculation (power based)'!A$24:A$223,0))+V40*(INDEX('Pump database'!Q$24:Q$223,MATCH(U40,'Calculation (power based)'!A$24:A$223,0))-INDEX('Pump database'!L$24:L$223,MATCH(U40,'Calculation (power based)'!A$24:A$223,0))),#N/A) ->  | AB40: =IF(NOT(OR(ISNA(U40),ISNA(V40),ISNA(I40),ISNA(M40))),IF(AE40=1,(C40*(AA40-W40)*g_constant/3.6/M40)/(1-I40/M40),(W40-AA40)/(I40-M40)),#N/A) ->  | AD40: =IF(NOT(OR(ISNA(U40),ISNA(V40),ISNA(I40),ISNA(M40))),IF(AE40=1,C_c_standard,0),#N/A) ->  | AE40: =INDEX(type_array,MATCH('Curve verification'!U40,'Calculation (power based)'!A$24:A$223,0)) -> 
I41: =IF(NOT(ISNA(V41)),INDEX('Calculation (power based)'!AG$24:AG$223,MATCH(U41,'Calculation (power based)'!A$24:A$223,0))+V41*(INDEX('Calculation (power based)'!AI$24:AI$223,MATCH(U41,'Calculation (power based)'!A$24:A$223,0))-INDEX('Calculation (power based)'!AG$24:AG$223,MATCH(U41,'Calculation (power based)'!A$24:A$223,0))),#N/A) ->  | M41: =IF(NOT(ISNA(V41)),INDEX('Calculation (power based)'!AH$24:AH$223,MATCH(U41,'Calculation (power based)'!A$24:A$223,0))+V41*(INDEX('Calculation (power based)'!AJ$24:AJ$223,MATCH(U41,'Calculation (power based)'!A$24:A$223,0))-INDEX('Calculation (power based)'!AH$24:AH$223,MATCH(U41,'Calculation (power based)'!A$24:A$223,0))),#N/A) ->  | U41: =INDEX('Calculation (power based)'!A$24:A$223,MATCH(B41,'Calculation (power based)'!AS$24:AS$223,0)) ->  | V41: =IF(AND(C41>=INDEX('Calculation (power based)'!AC$24:AC$223,MATCH('Curve verification'!U41,'Calculation (power based)'!A$24:A$223,0)),C41<=INDEX('Calculation (power based)'!AD$24:AD$223,MATCH('Curve verification'!U41,'Calculation (power based)'!A$24:A$223,0))),(C41-INDEX('Calculation (power based)'!AC$24:AC$223,MATCH('Curve verification'!U41,'Calculation (power based)'!A$24:A$223,0)))/(INDEX('Calculation (power based)'!AD$24:AD$223,MATCH('Curve verification'!U41,'Calculation (power based)'!A$24:A$223,0))-INDEX('Calculation (power based)'!AC$24:AC$223,MATCH('Curve verification'!U41,'Calculation (power based)'!A$24:A$223,0))),#N/A) ->  | W41: =IF(NOT(ISNA(V41)),INDEX('Pump database'!J$24:J$223,MATCH(U41,'Calculation (power based)'!A$24:A$223,0))+V41*(INDEX('Pump database'!O$24:O$223,MATCH(U41,'Calculation (power based)'!A$24:A$223,0))-INDEX('Pump database'!J$24:J$223,MATCH(U41,'Calculation (power based)'!A$24:A$223,0))),#N/A) ->  | AA41: =IF(NOT(ISNA(V41)),INDEX('Pump database'!L$24:L$223,MATCH(U41,'Calculation (power based)'!A$24:A$223,0))+V41*(INDEX('Pump database'!Q$24:Q$223,MATCH(U41,'Calculation (power based)'!A$24:A$223,0))-INDEX('Pump database'!L$24:L$223,MATCH(U41,'Calculation (power based)'!A$24:A$223,0))),#N/A) ->  | AE41: =INDEX(type_array,MATCH('Curve verification'!U41,'Calculation (power based)'!A$24:A$223,0)) -> 
I42: =IF(NOT(ISNA(V42)),INDEX('Calculation (power based)'!AG$24:AG$223,MATCH(U42,'Calculation (power based)'!A$24:A$223,0))+V42*(INDEX('Calculation (power based)'!AI$24:AI$223,MATCH(U42,'Calculation (power based)'!A$24:A$223,0))-INDEX('Calculation (power based)'!AG$24:AG$223,MATCH(U42,'Calculation (power based)'!A$24:A$223,0))),#N/A) ->  | M42: =IF(NOT(ISNA(V42)),INDEX('Calculation (power based)'!AH$24:AH$223,MATCH(U42,'Calculation (power based)'!A$24:A$223,0))+V42*(INDEX('Calculation (power based)'!AJ$24:AJ$223,MATCH(U42,'Calculation (power based)'!A$24:A$223,0))-INDEX('Calculation (power based)'!AH$24:AH$223,MATCH(U42,'Calculation (power based)'!A$24:A$223,0))),#N/A) ->  | U42: =INDEX('Calculation (power based)'!A$24:A$223,MATCH(B42,'Calculation (power based)'!AS$24:AS$223,0)) ->  | V42: =IF(AND(C42>=INDEX('Calculation (power based)'!AC$24:AC$223,MATCH('Curve verification'!U42,'Calculation (power based)'!A$24:A$223,0)),C42<=INDEX('Calculation (power based)'!AD$24:AD$223,MATCH('Curve verification'!U42,'Calculation (power based)'!A$24:A$223,0))),(C42-INDEX('Calculation (power based)'!AC$24:AC$223,MATCH('Curve verification'!U42,'Calculation (power based)'!A$24:A$223,0)))/(INDEX('Calculation (power based)'!AD$24:AD$223,MATCH('Curve verification'!U42,'Calculation (power based)'!A$24:A$223,0))-INDEX('Calculation (power based)'!AC$24:AC$223,MATCH('Curve verification'!U42,'Calculation (power based)'!A$24:A$223,0))),#N/A) ->  | W42: =IF(NOT(ISNA(V42)),INDEX('Pump database'!J$24:J$223,MATCH(U42,'Calculation (power based)'!A$24:A$223,0))+V42*(INDEX('Pump database'!O$24:O$223,MATCH(U42,'Calculation (power based)'!A$24:A$223,0))-INDEX('Pump database'!J$24:J$223,MATCH(U42,'Calculation (power based)'!A$24:A$223,0))),#N/A) ->  | AA42: =IF(NOT(ISNA(V42)),INDEX('Pump database'!L$24:L$223,MATCH(U42,'Calculation (power based)'!A$24:A$223,0))+V42*(INDEX('Pump database'!Q$24:Q$223,MATCH(U42,'Calculation (power based)'!A$24:A$223,0))-INDEX('Pump database'!L$24:L$223,MATCH(U42,'Calculation (power based)'!A$24:A$223,0))),#N/A) ->  | AE42: =INDEX(type_array,MATCH('Curve verification'!U42,'Calculation (power based)'!A$24:A$223,0)) -> 
I43: =IF(NOT(ISNA(V43)),INDEX('Calculation (power based)'!AG$24:AG$223,MATCH(U43,'Calculation (power based)'!A$24:A$223,0))+V43*(INDEX('Calculation (power based)'!AI$24:AI$223,MATCH(U43,'Calculation (power based)'!A$24:A$223,0))-INDEX('Calculation (power based)'!AG$24:AG$223,MATCH(U43,'Calculation (power based)'!A$24:A$223,0))),#N/A) ->  | M43: =IF(NOT(ISNA(V43)),INDEX('Calculation (power based)'!AH$24:AH$223,MATCH(U43,'Calculation (power based)'!A$24:A$223,0))+V43*(INDEX('Calculation (power based)'!AJ$24:AJ$223,MATCH(U43,'Calculation (power based)'!A$24:A$223,0))-INDEX('Calculation (power based)'!AH$24:AH$223,MATCH(U43,'Calculation (power based)'!A$24:A$223,0))),#N/A) ->  | U43: =INDEX('Calculation (power based)'!A$24:A$223,MATCH(B43,'Calculation (power based)'!AS$24:AS$223,0)) ->  | V43: =IF(AND(C43>=INDEX('Calculation (power based)'!AC$24:AC$223,MATCH('Curve verification'!U43,'Calculation (power based)'!A$24:A$223,0)),C43<=INDEX('Calculation (power based)'!AD$24:AD$223,MATCH('Curve verification'!U43,'Calculation (power based)'!A$24:A$223,0))),(C43-INDEX('Calculation (power based)'!AC$24:AC$223,MATCH('Curve verification'!U43,'Calculation (power based)'!A$24:A$223,0)))/(INDEX('Calculation (power based)'!AD$24:AD$223,MATCH('Curve verification'!U43,'Calculation (power based)'!A$24:A$223,0))-INDEX('Calculation (power based)'!AC$24:AC$223,MATCH('Curve verification'!U43,'Calculation (power based)'!A$24:A$223,0))),#N/A) ->  | W43: =IF(NOT(ISNA(V43)),INDEX('Pump database'!J$24:J$223,MATCH(U43,'Calculation (power based)'!A$24:A$223,0))+V43*(INDEX('Pump database'!O$24:O$223,MATCH(U43,'Calculation (power based)'!A$24:A$223,0))-INDEX('Pump database'!J$24:J$223,MATCH(U43,'Calculation (power based)'!A$24:A$223,0))),#N/A) ->  | AA43: =IF(NOT(ISNA(V43)),INDEX('Pump database'!L$24:L$223,MATCH(U43,'Calculation (power based)'!A$24:A$223,0))+V43*(INDEX('Pump database'!Q$24:Q$223,MATCH(U43,'Calculation (power based)'!A$24:A$223,0))-INDEX('Pump database'!L$24:L$223,MATCH(U43,'Calculation (power based)'!A$24:A$223,0))),#N/A) ->  | AE43: =INDEX(type_array,MATCH('Curve verification'!U43,'Calculation (power based)'!A$24:A$223,0)) -> 
I44: =IF(NOT(ISNA(V44)),INDEX('Calculation (power based)'!AG$24:AG$223,MATCH(U44,'Calculation (power based)'!A$24:A$223,0))+V44*(INDEX('Calculation (power based)'!AI$24:AI$223,MATCH(U44,'Calculation (power based)'!A$24:A$223,0))-INDEX('Calculation (power based)'!AG$24:AG$223,MATCH(U44,'Calculation (power based)'!A$24:A$223,0))),#N/A) ->  | M44: =IF(NOT(ISNA(V44)),INDEX('Calculation (power based)'!AH$24:AH$223,MATCH(U44,'Calculation (power based)'!A$24:A$223,0))+V44*(INDEX('Calculation (power based)'!AJ$24:AJ$223,MATCH(U44,'Calculation (power based)'!A$24:A$223,0))-INDEX('Calculation (power based)'!AH$24:AH$223,MATCH(U44,'Calculation (power based)'!A$24:A$223,0))),#N/A) ->  | U44: =INDEX('Calculation (power based)'!A$24:A$223,MATCH(B44,'Calculation (power based)'!AS$24:AS$223,0)) ->  | V44: =IF(AND(C44>=INDEX('Calculation (power based)'!AC$24:AC$223,MATCH('Curve verification'!U44,'Calculation (power based)'!A$24:A$223,0)),C44<=INDEX('Calculation (power based)'!AD$24:AD$223,MATCH('Curve verification'!U44,'Calculation (power based)'!A$24:A$223,0))),(C44-INDEX('Calculation (power based)'!AC$24:AC$223,MATCH('Curve verification'!U44,'Calculation (power based)'!A$24:A$223,0)))/(INDEX('Calculation (power based)'!AD$24:AD$223,MATCH('Curve verification'!U44,'Calculation (power based)'!A$24:A$223,0))-INDEX('Calculation (power based)'!AC$24:AC$223,MATCH('Curve verification'!U44,'Calculation (power based)'!A$24:A$223,0))),#N/A) ->  | W44: =IF(NOT(ISNA(V44)),INDEX('Pump database'!J$24:J$223,MATCH(U44,'Calculation (power based)'!A$24:A$223,0))+V44*(INDEX('Pump database'!O$24:O$223,MATCH(U44,'Calculation (power based)'!A$24:A$223,0))-INDEX('Pump database'!J$24:J$223,MATCH(U44,'Calculation (power based)'!A$24:A$223,0))),#N/A) ->  | AA44: =IF(NOT(ISNA(V44)),INDEX('Pump database'!L$24:L$223,MATCH(U44,'Calculation (power based)'!A$24:A$223,0))+V44*(INDEX('Pump database'!Q$24:Q$223,MATCH(U44,'Calculation (power based)'!A$24:A$223,0))-INDEX('Pump database'!L$24:L$223,MATCH(U44,'Calculation (power based)'!A$24:A$223,0))),#N/A) ->  | AE44: =INDEX(type_array,MATCH('Curve verification'!U44,'Calculation (power based)'!A$24:A$223,0)) -> 
I45: =IF(NOT(ISNA(V45)),INDEX('Calculation (power based)'!AG$24:AG$223,MATCH(U45,'Calculation (power based)'!A$24:A$223,0))+V45*(INDEX('Calculation (power based)'!AI$24:AI$223,MATCH(U45,'Calculation (power based)'!A$24:A$223,0))-INDEX('Calculation (power based)'!AG$24:AG$223,MATCH(U45,'Calculation (power based)'!A$24:A$223,0))),#N/A) ->  | M45: =IF(NOT(ISNA(V45)),INDEX('Calculation (power based)'!AH$24:AH$223,MATCH(U45,'Calculation (power based)'!A$24:A$223,0))+V45*(INDEX('Calculation (power based)'!AJ$24:AJ$223,MATCH(U45,'Calculation (power based)'!A$24:A$223,0))-INDEX('Calculation (power based)'!AH$24:AH$223,MATCH(U45,'Calculation (power based)'!A$24:A$223,0))),#N/A) ->  | U45: =INDEX('Calculation (power based)'!A$24:A$223,MATCH(B45,'Calculation (power based)'!AS$24:AS$223,0)) ->  | V45: =IF(AND(C45>=INDEX('Calculation (power based)'!AC$24:AC$223,MATCH('Curve verification'!U45,'Calculation (power based)'!A$24:A$223,0)),C45<=INDEX('Calculation (power based)'!AD$24:AD$223,MATCH('Curve verification'!U45,'Calculation (power based)'!A$24:A$223,0))),(C45-INDEX('Calculation (power based)'!AC$24:AC$223,MATCH('Curve verification'!U45,'Calculation (power based)'!A$24:A$223,0)))/(INDEX('Calculation (power based)'!AD$24:AD$223,MATCH('Curve verification'!U45,'Calculation (power based)'!A$24:A$223,0))-INDEX('Calculation (power based)'!AC$24:AC$223,MATCH('Curve verification'!U45,'Calculation (power based)'!A$24:A$223,0))),#N/A) ->  | W45: =IF(NOT(ISNA(V45)),INDEX('Pump database'!J$24:J$223,MATCH(U45,'Calculation (power based)'!A$24:A$223,0))+V45*(INDEX('Pump database'!O$24:O$223,MATCH(U45,'Calculation (power based)'!A$24:A$223,0))-INDEX('Pump database'!J$24:J$223,MATCH(U45,'Calculation (power based)'!A$24:A$223,0))),#N/A) ->  | AA45: =IF(NOT(ISNA(V45)),INDEX('Pump database'!L$24:L$223,MATCH(U45,'Calculation (power based)'!A$24:A$223,0))+V45*(INDEX('Pump database'!Q$24:Q$223,MATCH(U45,'Calculation (power based)'!A$24:A$223,0))-INDEX('Pump database'!L$24:L$223,MATCH(U45,'Calculation (power based)'!A$24:A$223,0))),#N/A) ->  | AE45: =INDEX(type_array,MATCH('Curve verification'!U45,'Calculation (power based)'!A$24:A$223,0)) -> 
I46: =IF(NOT(ISNA(V46)),INDEX('Calculation (power based)'!AG$24:AG$223,MATCH(U46,'Calculation (power based)'!A$24:A$223,0))+V46*(INDEX('Calculation (power based)'!AI$24:AI$223,MATCH(U46,'Calculation (power based)'!A$24:A$223,0))-INDEX('Calculation (power based)'!AG$24:AG$223,MATCH(U46,'Calculation (power based)'!A$24:A$223,0))),#N/A) ->  | M46: =IF(NOT(ISNA(V46)),INDEX('Calculation (power based)'!AH$24:AH$223,MATCH(U46,'Calculation (power based)'!A$24:A$223,0))+V46*(INDEX('Calculation (power based)'!AJ$24:AJ$223,MATCH(U46,'Calculation (power based)'!A$24:A$223,0))-INDEX('Calculation (power based)'!AH$24:AH$223,MATCH(U46,'Calculation (power based)'!A$24:A$223,0))),#N/A) ->  | U46: =INDEX('Calculation (power based)'!A$24:A$223,MATCH(B46,'Calculation (power based)'!AS$24:AS$223,0)) ->  | V46: =IF(AND(C46>=INDEX('Calculation (power based)'!AC$24:AC$223,MATCH('Curve verification'!U46,'Calculation (power based)'!A$24:A$223,0)),C46<=INDEX('Calculation (power based)'!AD$24:AD$223,MATCH('Curve verification'!U46,'Calculation (power based)'!A$24:A$223,0))),(C46-INDEX('Calculation (power based)'!AC$24:AC$223,MATCH('Curve verification'!U46,'Calculation (power based)'!A$24:A$223,0)))/(INDEX('Calculation (power based)'!AD$24:AD$223,MATCH('Curve verification'!U46,'Calculation (power based)'!A$24:A$223,0))-INDEX('Calculation (power based)'!AC$24:AC$223,MATCH('Curve verification'!U46,'Calculation (power based)'!A$24:A$223,0))),#N/A) ->  | W46: =IF(NOT(ISNA(V46)),INDEX('Pump database'!J$24:J$223,MATCH(U46,'Calculation (power based)'!A$24:A$223,0))+V46*(INDEX('Pump database'!O$24:O$223,MATCH(U46,'Calculation (power based)'!A$24:A$223,0))-INDEX('Pump database'!J$24:J$223,MATCH(U46,'Calculation (power based)'!A$24:A$223,0))),#N/A) ->  | AA46: =IF(NOT(ISNA(V46)),INDEX('Pump database'!L$24:L$223,MATCH(U46,'Calculation (power based)'!A$24:A$223,0))+V46*(INDEX('Pump database'!Q$24:Q$223,MATCH(U46,'Calculation (power based)'!A$24:A$223,0))-INDEX('Pump database'!L$24:L$223,MATCH(U46,'Calculation (power based)'!A$24:A$223,0))),#N/A) ->  | AE46: =INDEX(type_array,MATCH('Curve verification'!U46,'Calculation (power based)'!A$24:A$223,0)) -> 
I47: =IF(NOT(ISNA(V47)),INDEX('Calculation (power based)'!AG$24:AG$223,MATCH(U47,'Calculation (power based)'!A$24:A$223,0))+V47*(INDEX('Calculation (power based)'!AI$24:AI$223,MATCH(U47,'Calculation (power based)'!A$24:A$223,0))-INDEX('Calculation (power based)'!AG$24:AG$223,MATCH(U47,'Calculation (power based)'!A$24:A$223,0))),#N/A) ->  | M47: =IF(NOT(ISNA(V47)),INDEX('Calculation (power based)'!AH$24:AH$223,MATCH(U47,'Calculation (power based)'!A$24:A$223,0))+V47*(INDEX('Calculation (power based)'!AJ$24:AJ$223,MATCH(U47,'Calculation (power based)'!A$24:A$223,0))-INDEX('Calculation (power based)'!AH$24:AH$223,MATCH(U47,'Calculation (power based)'!A$24:A$223,0))),#N/A) ->  | U47: =INDEX('Calculation (power based)'!A$24:A$223,MATCH(B47,'Calculation (power based)'!AS$24:AS$223,0)) ->  | V47: =IF(AND(C47>=INDEX('Calculation (power based)'!AC$24:AC$223,MATCH('Curve verification'!U47,'Calculation (power based)'!A$24:A$223,0)),C47<=INDEX('Calculation (power based)'!AD$24:AD$223,MATCH('Curve verification'!U47,'Calculation (power based)'!A$24:A$223,0))),(C47-INDEX('Calculation (power based)'!AC$24:AC$223,MATCH('Curve verification'!U47,'Calculation (power based)'!A$24:A$223,0)))/(INDEX('Calculation (power based)'!AD$24:AD$223,MATCH('Curve verification'!U47,'Calculation (power based)'!A$24:A$223,0))-INDEX('Calculation (power based)'!AC$24:AC$223,MATCH('Curve verification'!U47,'Calculation (power based)'!A$24:A$223,0))),#N/A) ->  | W47: =IF(NOT(ISNA(V47)),INDEX('Pump database'!J$24:J$223,MATCH(U47,'Calculation (power based)'!A$24:A$223,0))+V47*(INDEX('Pump database'!O$24:O$223,MATCH(U47,'Calculation (power based)'!A$24:A$223,0))-INDEX('Pump database'!J$24:J$223,MATCH(U47,'Calculation (power based)'!A$24:A$223,0))),#N/A) ->  | AA47: =IF(NOT(ISNA(V47)),INDEX('Pump database'!L$24:L$223,MATCH(U47,'Calculation (power based)'!A$24:A$223,0))+V47*(INDEX('Pump database'!Q$24:Q$223,MATCH(U47,'Calculation (power based)'!A$24:A$223,0))-INDEX('Pump database'!L$24:L$223,MATCH(U47,'Calculation (power based)'!A$24:A$223,0))),#N/A) ->  | AE47: =INDEX(type_array,MATCH('Curve verification'!U47,'Calculation (power based)'!A$24:A$223,0)) -> 
I48: =IF(NOT(ISNA(V48)),INDEX('Calculation (power based)'!AG$24:AG$223,MATCH(U48,'Calculation (power based)'!A$24:A$223,0))+V48*(INDEX('Calculation (power based)'!AI$24:AI$223,MATCH(U48,'Calculation (power based)'!A$24:A$223,0))-INDEX('Calculation (power based)'!AG$24:AG$223,MATCH(U48,'Calculation (power based)'!A$24:A$223,0))),#N/A) ->  | M48: =IF(NOT(ISNA(V48)),INDEX('Calculation (power based)'!AH$24:AH$223,MATCH(U48,'Calculation (power based)'!A$24:A$223,0))+V48*(INDEX('Calculation (power based)'!AJ$24:AJ$223,MATCH(U48,'Calculation (power based)'!A$24:A$223,0))-INDEX('Calculation (power based)'!AH$24:AH$223,MATCH(U48,'Calculation (power based)'!A$24:A$223,0))),#N/A) ->  | U48: =INDEX('Calculation (power based)'!A$24:A$223,MATCH(B48,'Calculation (power based)'!AS$24:AS$223,0)) ->  | V48: =IF(AND(C48>=INDEX('Calculation (power based)'!AC$24:AC$223,MATCH('Curve verification'!U48,'Calculation (power based)'!A$24:A$223,0)),C48<=INDEX('Calculation (power based)'!AD$24:AD$223,MATCH('Curve verification'!U48,'Calculation (power based)'!A$24:A$223,0))),(C48-INDEX('Calculation (power based)'!AC$24:AC$223,MATCH('Curve verification'!U48,'Calculation (power based)'!A$24:A$223,0)))/(INDEX('Calculation (power based)'!AD$24:AD$223,MATCH('Curve verification'!U48,'Calculation (power based)'!A$24:A$223,0))-INDEX('Calculation (power based)'!AC$24:AC$223,MATCH('Curve verification'!U48,'Calculation (power based)'!A$24:A$223,0))),#N/A) ->  | W48: =IF(NOT(ISNA(V48)),INDEX('Pump database'!J$24:J$223,MATCH(U48,'Calculation (power based)'!A$24:A$223,0))+V48*(INDEX('Pump database'!O$24:O$223,MATCH(U48,'Calculation (power based)'!A$24:A$223,0))-INDEX('Pump database'!J$24:J$223,MATCH(U48,'Calculation (power based)'!A$24:A$223,0))),#N/A) ->  | AA48: =IF(NOT(ISNA(V48)),INDEX('Pump database'!L$24:L$223,MATCH(U48,'Calculation (power based)'!A$24:A$223,0))+V48*(INDEX('Pump database'!Q$24:Q$223,MATCH(U48,'Calculation (power based)'!A$24:A$223,0))-INDEX('Pump database'!L$24:L$223,MATCH(U48,'Calculation (power based)'!A$24:A$223,0))),#N/A) ->  | AE48: =INDEX(type_array,MATCH('Curve verification'!U48,'Calculation (power based)'!A$24:A$223,0)) -> 
I49: =IF(NOT(ISNA(V49)),INDEX('Calculation (power based)'!AG$24:AG$223,MATCH(U49,'Calculation (power based)'!A$24:A$223,0))+V49*(INDEX('Calculation (power based)'!AI$24:AI$223,MATCH(U49,'Calculation (power based)'!A$24:A$223,0))-INDEX('Calculation (power based)'!AG$24:AG$223,MATCH(U49,'Calculation (power based)'!A$24:A$223,0))),#N/A) ->  | M49: =IF(NOT(ISNA(V49)),INDEX('Calculation (power based)'!AH$24:AH$223,MATCH(U49,'Calculation (power based)'!A$24:A$223,0))+V49*(INDEX('Calculation (power based)'!AJ$24:AJ$223,MATCH(U49,'Calculation (power based)'!A$24:A$223,0))-INDEX('Calculation (power based)'!AH$24:AH$223,MATCH(U49,'Calculation (power based)'!A$24:A$223,0))),#N/A) ->  | U49: =INDEX('Calculation (power based)'!A$24:A$223,MATCH(B49,'Calculation (power based)'!AS$24:AS$223,0)) ->  | V49: =IF(AND(C49>=INDEX('Calculation (power based)'!AC$24:AC$223,MATCH('Curve verification'!U49,'Calculation (power based)'!A$24:A$223,0)),C49<=INDEX('Calculation (power based)'!AD$24:AD$223,MATCH('Curve verification'!U49,'Calculation (power based)'!A$24:A$223,0))),(C49-INDEX('Calculation (power based)'!AC$24:AC$223,MATCH('Curve verification'!U49,'Calculation (power based)'!A$24:A$223,0)))/(INDEX('Calculation (power based)'!AD$24:AD$223,MATCH('Curve verification'!U49,'Calculation (power based)'!A$24:A$223,0))-INDEX('Calculation (power based)'!AC$24:AC$223,MATCH('Curve verification'!U49,'Calculation (power based)'!A$24:A$223,0))),#N/A) ->  | W49: =IF(NOT(ISNA(V49)),INDEX('Pump database'!J$24:J$223,MATCH(U49,'Calculation (power based)'!A$24:A$223,0))+V49*(INDEX('Pump database'!O$24:O$223,MATCH(U49,'Calculation (power based)'!A$24:A$223,0))-INDEX('Pump database'!J$24:J$223,MATCH(U49,'Calculation (power based)'!A$24:A$223,0))),#N/A) ->  | AA49: =IF(NOT(ISNA(V49)),INDEX('Pump database'!L$24:L$223,MATCH(U49,'Calculation (power based)'!A$24:A$223,0))+V49*(INDEX('Pump database'!Q$24:Q$223,MATCH(U49,'Calculation (power based)'!A$24:A$223,0))-INDEX('Pump database'!L$24:L$223,MATCH(U49,'Calculation (power based)'!A$24:A$223,0))),#N/A) ->  | AE49: =INDEX(type_array,MATCH('Curve verification'!U49,'Calculation (power based)'!A$24:A$223,0)) -> 
I50: =IF(NOT(ISNA(V50)),INDEX('Calculation (power based)'!AG$24:AG$223,MATCH(U50,'Calculation (power based)'!A$24:A$223,0))+V50*(INDEX('Calculation (power based)'!AI$24:AI$223,MATCH(U50,'Calculation (power based)'!A$24:A$223,0))-INDEX('Calculation (power based)'!AG$24:AG$223,MATCH(U50,'Calculation (power based)'!A$24:A$223,0))),#N/A) ->  | M50: =IF(NOT(ISNA(V50)),INDEX('Calculation (power based)'!AH$24:AH$223,MATCH(U50,'Calculation (power based)'!A$24:A$223,0))+V50*(INDEX('Calculation (power based)'!AJ$24:AJ$223,MATCH(U50,'Calculation (power based)'!A$24:A$223,0))-INDEX('Calculation (power based)'!AH$24:AH$223,MATCH(U50,'Calculation (power based)'!A$24:A$223,0))),#N/A) ->  | U50: =INDEX('Calculation (power based)'!A$24:A$223,MATCH(B50,'Calculation (power based)'!AS$24:AS$223,0)) ->  | V50: =IF(AND(C50>=INDEX('Calculation (power based)'!AC$24:AC$223,MATCH('Curve verification'!U50,'Calculation (power based)'!A$24:A$223,0)),C50<=INDEX('Calculation (power based)'!AD$24:AD$223,MATCH('Curve verification'!U50,'Calculation (power based)'!A$24:A$223,0))),(C50-INDEX('Calculation (power based)'!AC$24:AC$223,MATCH('Curve verification'!U50,'Calculation (power based)'!A$24:A$223,0)))/(INDEX('Calculation (power based)'!AD$24:AD$223,MATCH('Curve verification'!U50,'Calculation (power based)'!A$24:A$223,0))-INDEX('Calculation (power based)'!AC$24:AC$223,MATCH('Curve verification'!U50,'Calculation (power based)'!A$24:A$223,0))),#N/A) ->  | W50: =IF(NOT(ISNA(V50)),INDEX('Pump database'!J$24:J$223,MATCH(U50,'Calculation (power based)'!A$24:A$223,0))+V50*(INDEX('Pump database'!O$24:O$223,MATCH(U50,'Calculation (power based)'!A$24:A$223,0))-INDEX('Pump database'!J$24:J$223,MATCH(U50,'Calculation (power based)'!A$24:A$223,0))),#N/A) ->  | AA50: =IF(NOT(ISNA(V50)),INDEX('Pump database'!L$24:L$223,MATCH(U50,'Calculation (power based)'!A$24:A$223,0))+V50*(INDEX('Pump database'!Q$24:Q$223,MATCH(U50,'Calculation (power based)'!A$24:A$223,0))-INDEX('Pump database'!L$24:L$223,MATCH(U50,'Calculation (power based)'!A$24:A$223,0))),#N/A) ->  | AE50: =INDEX(type_array,MATCH('Curve verification'!U50,'Calculation (power based)'!A$24:A$223,0)) -> 
I51: =IF(NOT(ISNA(V51)),INDEX('Calculation (power based)'!AG$24:AG$223,MATCH(U51,'Calculation (power based)'!A$24:A$223,0))+V51*(INDEX('Calculation (power based)'!AI$24:AI$223,MATCH(U51,'Calculation (power based)'!A$24:A$223,0))-INDEX('Calculation (power based)'!AG$24:AG$223,MATCH(U51,'Calculation (power based)'!A$24:A$223,0))),#N/A) ->  | M51: =IF(NOT(ISNA(V51)),INDEX('Calculation (power based)'!AH$24:AH$223,MATCH(U51,'Calculation (power based)'!A$24:A$223,0))+V51*(INDEX('Calculation (power based)'!AJ$24:AJ$223,MATCH(U51,'Calculation (power based)'!A$24:A$223,0))-INDEX('Calculation (power based)'!AH$24:AH$223,MATCH(U51,'Calculation (power based)'!A$24:A$223,0))),#N/A) ->  | U51: =INDEX('Calculation (power based)'!A$24:A$223,MATCH(B51,'Calculation (power based)'!AS$24:AS$223,0)) ->  | V51: =IF(AND(C51>=INDEX('Calculation (power based)'!AC$24:AC$223,MATCH('Curve verification'!U51,'Calculation (power based)'!A$24:A$223,0)),C51<=INDEX('Calculation (power based)'!AD$24:AD$223,MATCH('Curve verification'!U51,'Calculation (power based)'!A$24:A$223,0))),(C51-INDEX('Calculation (power based)'!AC$24:AC$223,MATCH('Curve verification'!U51,'Calculation (power based)'!A$24:A$223,0)))/(INDEX('Calculation (power based)'!AD$24:AD$223,MATCH('Curve verification'!U51,'Calculation (power based)'!A$24:A$223,0))-INDEX('Calculation (power based)'!AC$24:AC$223,MATCH('Curve verification'!U51,'Calculation (power based)'!A$24:A$223,0))),#N/A) ->  | W51: =IF(NOT(ISNA(V51)),INDEX('Pump database'!J$24:J$223,MATCH(U51,'Calculation (power based)'!A$24:A$223,0))+V51*(INDEX('Pump database'!O$24:O$223,MATCH(U51,'Calculation (power based)'!A$24:A$223,0))-INDEX('Pump database'!J$24:J$223,MATCH(U51,'Calculation (power based)'!A$24:A$223,0))),#N/A) ->  | AA51: =IF(NOT(ISNA(V51)),INDEX('Pump database'!L$24:L$223,MATCH(U51,'Calculation (power based)'!A$24:A$223,0))+V51*(INDEX('Pump database'!Q$24:Q$223,MATCH(U51,'Calculation (power based)'!A$24:A$223,0))-INDEX('Pump database'!L$24:L$223,MATCH(U51,'Calculation (power based)'!A$24:A$223,0))),#N/A) ->  | AE51: =INDEX(type_array,MATCH('Curve verification'!U51,'Calculation (power based)'!A$24:A$223,0)) -> 
I52: =IF(NOT(ISNA(V52)),INDEX('Calculation (power based)'!AG$24:AG$223,MATCH(U52,'Calculation (power based)'!A$24:A$223,0))+V52*(INDEX('Calculation (power based)'!AI$24:AI$223,MATCH(U52,'Calculation (power based)'!A$24:A$223,0))-INDEX('Calculation (power based)'!AG$24:AG$223,MATCH(U52,'Calculation (power based)'!A$24:A$223,0))),#N/A) ->  | M52: =IF(NOT(ISNA(V52)),INDEX('Calculation (power based)'!AH$24:AH$223,MATCH(U52,'Calculation (power based)'!A$24:A$223,0))+V52*(INDEX('Calculation (power based)'!AJ$24:AJ$223,MATCH(U52,'Calculation (power based)'!A$24:A$223,0))-INDEX('Calculation (power based)'!AH$24:AH$223,MATCH(U52,'Calculation (power based)'!A$24:A$223,0))),#N/A) ->  | U52: =INDEX('Calculation (power based)'!A$24:A$223,MATCH(B52,'Calculation (power based)'!AS$24:AS$223,0)) ->  | V52: =IF(AND(C52>=INDEX('Calculation (power based)'!AC$24:AC$223,MATCH('Curve verification'!U52,'Calculation (power based)'!A$24:A$223,0)),C52<=INDEX('Calculation (power based)'!AD$24:AD$223,MATCH('Curve verification'!U52,'Calculation (power based)'!A$24:A$223,0))),(C52-INDEX('Calculation (power based)'!AC$24:AC$223,MATCH('Curve verification'!U52,'Calculation (power based)'!A$24:A$223,0)))/(INDEX('Calculation (power based)'!AD$24:AD$223,MATCH('Curve verification'!U52,'Calculation (power based)'!A$24:A$223,0))-INDEX('Calculation (power based)'!AC$24:AC$223,MATCH('Curve verification'!U52,'Calculation (power based)'!A$24:A$223,0))),#N/A) ->  | W52: =IF(NOT(ISNA(V52)),INDEX('Pump database'!J$24:J$223,MATCH(U52,'Calculation (power based)'!A$24:A$223,0))+V52*(INDEX('Pump database'!O$24:O$223,MATCH(U52,'Calculation (power based)'!A$24:A$223,0))-INDEX('Pump database'!J$24:J$223,MATCH(U52,'Calculation (power based)'!A$24:A$223,0))),#N/A) ->  | AA52: =IF(NOT(ISNA(V52)),INDEX('Pump database'!L$24:L$223,MATCH(U52,'Calculation (power based)'!A$24:A$223,0))+V52*(INDEX('Pump database'!Q$24:Q$223,MATCH(U52,'Calculation (power based)'!A$24:A$223,0))-INDEX('Pump database'!L$24:L$223,MATCH(U52,'Calculation (power based)'!A$24:A$223,0))),#N/A) ->  | AE52: =INDEX(type_array,MATCH('Curve verification'!U52,'Calculation (power based)'!A$24:A$223,0)) -> 
I53: =IF(NOT(ISNA(V53)),INDEX('Calculation (power based)'!AG$24:AG$223,MATCH(U53,'Calculation (power based)'!A$24:A$223,0))+V53*(INDEX('Calculation (power based)'!AI$24:AI$223,MATCH(U53,'Calculation (power based)'!A$24:A$223,0))-INDEX('Calculation (power based)'!AG$24:AG$223,MATCH(U53,'Calculation (power based)'!A$24:A$223,0))),#N/A) ->  | M53: =IF(NOT(ISNA(V53)),INDEX('Calculation (power based)'!AH$24:AH$223,MATCH(U53,'Calculation (power based)'!A$24:A$223,0))+V53*(INDEX('Calculation (power based)'!AJ$24:AJ$223,MATCH(U53,'Calculation (power based)'!A$24:A$223,0))-INDEX('Calculation (power based)'!AH$24:AH$223,MATCH(U53,'Calculation (power based)'!A$24:A$223,0))),#N/A) ->  | U53: =INDEX('Calculation (power based)'!A$24:A$223,MATCH(B53,'Calculation (power based)'!AS$24:AS$223,0)) ->  | V53: =IF(AND(C53>=INDEX('Calculation (power based)'!AC$24:AC$223,MATCH('Curve verification'!U53,'Calculation (power based)'!A$24:A$223,0)),C53<=INDEX('Calculation (power based)'!AD$24:AD$223,MATCH('Curve verification'!U53,'Calculation (power based)'!A$24:A$223,0))),(C53-INDEX('Calculation (power based)'!AC$24:AC$223,MATCH('Curve verification'!U53,'Calculation (power based)'!A$24:A$223,0)))/(INDEX('Calculation (power based)'!AD$24:AD$223,MATCH('Curve verification'!U53,'Calculation (power based)'!A$24:A$223,0))-INDEX('Calculation (power based)'!AC$24:AC$223,MATCH('Curve verification'!U53,'Calculation (power based)'!A$24:A$223,0))),#N/A) ->  | W53: =IF(NOT(ISNA(V53)),INDEX('Pump database'!J$24:J$223,MATCH(U53,'Calculation (power based)'!A$24:A$223,0))+V53*(INDEX('Pump database'!O$24:O$223,MATCH(U53,'Calculation (power based)'!A$24:A$223,0))-INDEX('Pump database'!J$24:J$223,MATCH(U53,'Calculation (power based)'!A$24:A$223,0))),#N/A) ->  | AA53: =IF(NOT(ISNA(V53)),INDEX('Pump database'!L$24:L$223,MATCH(U53,'Calculation (power based)'!A$24:A$223,0))+V53*(INDEX('Pump database'!Q$24:Q$223,MATCH(U53,'Calculation (power based)'!A$24:A$223,0))-INDEX('Pump database'!L$24:L$223,MATCH(U53,'Calculation (power based)'!A$24:A$223,0))),#N/A) ->  | AE53: =INDEX(type_array,MATCH('Curve verification'!U53,'Calculation (power based)'!A$24:A$223,0)) -> 
I54: =IF(NOT(ISNA(V54)),INDEX('Calculation (power based)'!AG$24:AG$223,MATCH(U54,'Calculation (power based)'!A$24:A$223,0))+V54*(INDEX('Calculation (power based)'!AI$24:AI$223,MATCH(U54,'Calculation (power based)'!A$24:A$223,0))-INDEX('Calculation (power based)'!AG$24:AG$223,MATCH(U54,'Calculation (power based)'!A$24:A$223,0))),#N/A) ->  | M54: =IF(NOT(ISNA(V54)),INDEX('Calculation (power based)'!AH$24:AH$223,MATCH(U54,'Calculation (power based)'!A$24:A$223,0))+V54*(INDEX('Calculation (power based)'!AJ$24:AJ$223,MATCH(U54,'Calculation (power based)'!A$24:A$223,0))-INDEX('Calculation (power based)'!AH$24:AH$223,MATCH(U54,'Calculation (power based)'!A$24:A$223,0))),#N/A) ->  | U54: =INDEX('Calculation (power based)'!A$24:A$223,MATCH(B54,'Calculation (power based)'!AS$24:AS$223,0)) ->  | V54: =IF(AND(C54>=INDEX('Calculation (power based)'!AC$24:AC$223,MATCH('Curve verification'!U54,'Calculation (power based)'!A$24:A$223,0)),C54<=INDEX('Calculation (power based)'!AD$24:AD$223,MATCH('Curve verification'!U54,'Calculation (power based)'!A$24:A$223,0))),(C54-INDEX('Calculation (power based)'!AC$24:AC$223,MATCH('Curve verification'!U54,'Calculation (power based)'!A$24:A$223,0)))/(INDEX('Calculation (power based)'!AD$24:AD$223,MATCH('Curve verification'!U54,'Calculation (power based)'!A$24:A$223,0))-INDEX('Calculation (power based)'!AC$24:AC$223,MATCH('Curve verification'!U54,'Calculation (power based)'!A$24:A$223,0))),#N/A) ->  | W54: =IF(NOT(ISNA(V54)),INDEX('Pump database'!J$24:J$223,MATCH(U54,'Calculation (power based)'!A$24:A$223,0))+V54*(INDEX('Pump database'!O$24:O$223,MATCH(U54,'Calculation (power based)'!A$24:A$223,0))-INDEX('Pump database'!J$24:J$223,MATCH(U54,'Calculation (power based)'!A$24:A$223,0))),#N/A) ->  | AA54: =IF(NOT(ISNA(V54)),INDEX('Pump database'!L$24:L$223,MATCH(U54,'Calculation (power based)'!A$24:A$223,0))+V54*(INDEX('Pump database'!Q$24:Q$223,MATCH(U54,'Calculation (power based)'!A$24:A$223,0))-INDEX('Pump database'!L$24:L$223,MATCH(U54,'Calculation (power based)'!A$24:A$223,0))),#N/A) ->  | AE54: =INDEX(type_array,MATCH('Curve verification'!U54,'Calculation (power based)'!A$24:A$223,0)) -> 
I55: =IF(NOT(ISNA(V55)),INDEX('Calculation (power based)'!AG$24:AG$223,MATCH(U55,'Calculation (power based)'!A$24:A$223,0))+V55*(INDEX('Calculation (power based)'!AI$24:AI$223,MATCH(U55,'Calculation (power based)'!A$24:A$223,0))-INDEX('Calculation (power based)'!AG$24:AG$223,MATCH(U55,'Calculation (power based)'!A$24:A$223,0))),#N/A) ->  | M55: =IF(NOT(ISNA(V55)),INDEX('Calculation (power based)'!AH$24:AH$223,MATCH(U55,'Calculation (power based)'!A$24:A$223,0))+V55*(INDEX('Calculation (power based)'!AJ$24:AJ$223,MATCH(U55,'Calculation (power based)'!A$24:A$223,0))-INDEX('Calculation (power based)'!AH$24:AH$223,MATCH(U55,'Calculation (power based)'!A$24:A$223,0))),#N/A) ->  | U55: =INDEX('Calculation (power based)'!A$24:A$223,MATCH(B55,'Calculation (power based)'!AS$24:AS$223,0)) ->  | V55: =IF(AND(C55>=INDEX('Calculation (power based)'!AC$24:AC$223,MATCH('Curve verification'!U55,'Calculation (power based)'!A$24:A$223,0)),C55<=INDEX('Calculation (power based)'!AD$24:AD$223,MATCH('Curve verification'!U55,'Calculation (power based)'!A$24:A$223,0))),(C55-INDEX('Calculation (power based)'!AC$24:AC$223,MATCH('Curve verification'!U55,'Calculation (power based)'!A$24:A$223,0)))/(INDEX('Calculation (power based)'!AD$24:AD$223,MATCH('Curve verification'!U55,'Calculation (power based)'!A$24:A$223,0))-INDEX('Calculation (power based)'!AC$24:AC$223,MATCH('Curve verification'!U55,'Calculation (power based)'!A$24:A$223,0))),#N/A) ->  | W55: =IF(NOT(ISNA(V55)),INDEX('Pump database'!J$24:J$223,MATCH(U55,'Calculation (power based)'!A$24:A$223,0))+V55*(INDEX('Pump database'!O$24:O$223,MATCH(U55,'Calculation (power based)'!A$24:A$223,0))-INDEX('Pump database'!J$24:J$223,MATCH(U55,'Calculation (power based)'!A$24:A$223,0))),#N/A) ->  | AA55: =IF(NOT(ISNA(V55)),INDEX('Pump database'!L$24:L$223,MATCH(U55,'Calculation (power based)'!A$24:A$223,0))+V55*(INDEX('Pump database'!Q$24:Q$223,MATCH(U55,'Calculation (power based)'!A$24:A$223,0))-INDEX('Pump database'!L$24:L$223,MATCH(U55,'Calculation (power based)'!A$24:A$223,0))),#N/A) ->  | AE55: =INDEX(type_array,MATCH('Curve verification'!U55,'Calculation (power based)'!A$24:A$223,0)) -> 
I56: =IF(NOT(ISNA(V56)),INDEX('Calculation (power based)'!AG$24:AG$223,MATCH(U56,'Calculation (power based)'!A$24:A$223,0))+V56*(INDEX('Calculation (power based)'!AI$24:AI$223,MATCH(U56,'Calculation (power based)'!A$24:A$223,0))-INDEX('Calculation (power based)'!AG$24:AG$223,MATCH(U56,'Calculation (power based)'!A$24:A$223,0))),#N/A) ->  | M56: =IF(NOT(ISNA(V56)),INDEX('Calculation (power based)'!AH$24:AH$223,MATCH(U56,'Calculation (power based)'!A$24:A$223,0))+V56*(INDEX('Calculation (power based)'!AJ$24:AJ$223,MATCH(U56,'Calculation (power based)'!A$24:A$223,0))-INDEX('Calculation (power based)'!AH$24:AH$223,MATCH(U56,'Calculation (power based)'!A$24:A$223,0))),#N/A) ->  | U56: =INDEX('Calculation (power based)'!A$24:A$223,MATCH(B56,'Calculation (power based)'!AS$24:AS$223,0)) ->  | V56: =IF(AND(C56>=INDEX('Calculation (power based)'!AC$24:AC$223,MATCH('Curve verification'!U56,'Calculation (power based)'!A$24:A$223,0)),C56<=INDEX('Calculation (power based)'!AD$24:AD$223,MATCH('Curve verification'!U56,'Calculation (power based)'!A$24:A$223,0))),(C56-INDEX('Calculation (power based)'!AC$24:AC$223,MATCH('Curve verification'!U56,'Calculation (power based)'!A$24:A$223,0)))/(INDEX('Calculation (power based)'!AD$24:AD$223,MATCH('Curve verification'!U56,'Calculation (power based)'!A$24:A$223,0))-INDEX('Calculation (power based)'!AC$24:AC$223,MATCH('Curve verification'!U56,'Calculation (power based)'!A$24:A$223,0))),#N/A) ->  | W56: =IF(NOT(ISNA(V56)),INDEX('Pump database'!J$24:J$223,MATCH(U56,'Calculation (power based)'!A$24:A$223,0))+V56*(INDEX('Pump database'!O$24:O$223,MATCH(U56,'Calculation (power based)'!A$24:A$223,0))-INDEX('Pump database'!J$24:J$223,MATCH(U56,'Calculation (power based)'!A$24:A$223,0))),#N/A) ->  | AA56: =IF(NOT(ISNA(V56)),INDEX('Pump database'!L$24:L$223,MATCH(U56,'Calculation (power based)'!A$24:A$223,0))+V56*(INDEX('Pump database'!Q$24:Q$223,MATCH(U56,'Calculation (power based)'!A$24:A$223,0))-INDEX('Pump database'!L$24:L$223,MATCH(U56,'Calculation (power based)'!A$24:A$223,0))),#N/A) ->  | AE56: =INDEX(type_array,MATCH('Curve verification'!U56,'Calculation (power based)'!A$24:A$223,0)) -> 
I57: =IF(NOT(ISNA(V57)),INDEX('Calculation (power based)'!AG$24:AG$223,MATCH(U57,'Calculation (power based)'!A$24:A$223,0))+V57*(INDEX('Calculation (power based)'!AI$24:AI$223,MATCH(U57,'Calculation (power based)'!A$24:A$223,0))-INDEX('Calculation (power based)'!AG$24:AG$223,MATCH(U57,'Calculation (power based)'!A$24:A$223,0))),#N/A) ->  | M57: =IF(NOT(ISNA(V57)),INDEX('Calculation (power based)'!AH$24:AH$223,MATCH(U57,'Calculation (power based)'!A$24:A$223,0))+V57*(INDEX('Calculation (power based)'!AJ$24:AJ$223,MATCH(U57,'Calculation (power based)'!A$24:A$223,0))-INDEX('Calculation (power based)'!AH$24:AH$223,MATCH(U57,'Calculation (power based)'!A$24:A$223,0))),#N/A) ->  | U57: =INDEX('Calculation (power based)'!A$24:A$223,MATCH(B57,'Calculation (power based)'!AS$24:AS$223,0)) ->  | V57: =IF(AND(C57>=INDEX('Calculation (power based)'!AC$24:AC$223,MATCH('Curve verification'!U57,'Calculation (power based)'!A$24:A$223,0)),C57<=INDEX('Calculation (power based)'!AD$24:AD$223,MATCH('Curve verification'!U57,'Calculation (power based)'!A$24:A$223,0))),(C57-INDEX('Calculation (power based)'!AC$24:AC$223,MATCH('Curve verification'!U57,'Calculation (power based)'!A$24:A$223,0)))/(INDEX('Calculation (power based)'!AD$24:AD$223,MATCH('Curve verification'!U57,'Calculation (power based)'!A$24:A$223,0))-INDEX('Calculation (power based)'!AC$24:AC$223,MATCH('Curve verification'!U57,'Calculation (power based)'!A$24:A$223,0))),#N/A) ->  | W57: =IF(NOT(ISNA(V57)),INDEX('Pump database'!J$24:J$223,MATCH(U57,'Calculation (power based)'!A$24:A$223,0))+V57*(INDEX('Pump database'!O$24:O$223,MATCH(U57,'Calculation (power based)'!A$24:A$223,0))-INDEX('Pump database'!J$24:J$223,MATCH(U57,'Calculation (power based)'!A$24:A$223,0))),#N/A) ->  | AA57: =IF(NOT(ISNA(V57)),INDEX('Pump database'!L$24:L$223,MATCH(U57,'Calculation (power based)'!A$24:A$223,0))+V57*(INDEX('Pump database'!Q$24:Q$223,MATCH(U57,'Calculation (power based)'!A$24:A$223,0))-INDEX('Pump database'!L$24:L$223,MATCH(U57,'Calculation (power based)'!A$24:A$223,0))),#N/A) ->  | AE57: =INDEX(type_array,MATCH('Curve verification'!U57,'Calculation (power based)'!A$24:A$223,0)) -> 
I58: =IF(NOT(ISNA(V58)),INDEX('Calculation (power based)'!AG$24:AG$223,MATCH(U58,'Calculation (power based)'!A$24:A$223,0))+V58*(INDEX('Calculation (power based)'!AI$24:AI$223,MATCH(U58,'Calculation (power based)'!A$24:A$223,0))-INDEX('Calculation (power based)'!AG$24:AG$223,MATCH(U58,'Calculation (power based)'!A$24:A$223,0))),#N/A) ->  | M58: =IF(NOT(ISNA(V58)),INDEX('Calculation (power based)'!AH$24:AH$223,MATCH(U58,'Calculation (power based)'!A$24:A$223,0))+V58*(INDEX('Calculation (power based)'!AJ$24:AJ$223,MATCH(U58,'Calculation (power based)'!A$24:A$223,0))-INDEX('Calculation (power based)'!AH$24:AH$223,MATCH(U58,'Calculation (power based)'!A$24:A$223,0))),#N/A) ->  | U58: =INDEX('Calculation (power based)'!A$24:A$223,MATCH(B58,'Calculation (power based)'!AS$24:AS$223,0)) ->  | V58: =IF(AND(C58>=INDEX('Calculation (power based)'!AC$24:AC$223,MATCH('Curve verification'!U58,'Calculation (power based)'!A$24:A$223,0)),C58<=INDEX('Calculation (power based)'!AD$24:AD$223,MATCH('Curve verification'!U58,'Calculation (power based)'!A$24:A$223,0))),(C58-INDEX('Calculation (power based)'!AC$24:AC$223,MATCH('Curve verification'!U58,'Calculation (power based)'!A$24:A$223,0)))/(INDEX('Calculation (power based)'!AD$24:AD$223,MATCH('Curve verification'!U58,'Calculation (power based)'!A$24:A$223,0))-INDEX('Calculation (power based)'!AC$24:AC$223,MATCH('Curve verification'!U58,'Calculation (power based)'!A$24:A$223,0))),#N/A) ->  | W58: =IF(NOT(ISNA(V58)),INDEX('Pump database'!J$24:J$223,MATCH(U58,'Calculation (power based)'!A$24:A$223,0))+V58*(INDEX('Pump database'!O$24:O$223,MATCH(U58,'Calculation (power based)'!A$24:A$223,0))-INDEX('Pump database'!J$24:J$223,MATCH(U58,'Calculation (power based)'!A$24:A$223,0))),#N/A) ->  | AA58: =IF(NOT(ISNA(V58)),INDEX('Pump database'!L$24:L$223,MATCH(U58,'Calculation (power based)'!A$24:A$223,0))+V58*(INDEX('Pump database'!Q$24:Q$223,MATCH(U58,'Calculation (power based)'!A$24:A$223,0))-INDEX('Pump database'!L$24:L$223,MATCH(U58,'Calculation (power based)'!A$24:A$223,0))),#N/A) ->  | AE58: =INDEX(type_array,MATCH('Curve verification'!U58,'Calculation (power based)'!A$24:A$223,0)) -> 
I59: =IF(NOT(ISNA(V59)),INDEX('Calculation (power based)'!AG$24:AG$223,MATCH(U59,'Calculation (power based)'!A$24:A$223,0))+V59*(INDEX('Calculation (power based)'!AI$24:AI$223,MATCH(U59,'Calculation (power based)'!A$24:A$223,0))-INDEX('Calculation (power based)'!AG$24:AG$223,MATCH(U59,'Calculation (power based)'!A$24:A$223,0))),#N/A) ->  | M59: =IF(NOT(ISNA(V59)),INDEX('Calculation (power based)'!AH$24:AH$223,MATCH(U59,'Calculation (power based)'!A$24:A$223,0))+V59*(INDEX('Calculation (power based)'!AJ$24:AJ$223,MATCH(U59,'Calculation (power based)'!A$24:A$223,0))-INDEX('Calculation (power based)'!AH$24:AH$223,MATCH(U59,'Calculation (power based)'!A$24:A$223,0))),#N/A) ->  | U59: =INDEX('Calculation (power based)'!A$24:A$223,MATCH(B59,'Calculation (power based)'!AS$24:AS$223,0)) ->  | V59: =IF(AND(C59>=INDEX('Calculation (power based)'!AC$24:AC$223,MATCH('Curve verification'!U59,'Calculation (power based)'!A$24:A$223,0)),C59<=INDEX('Calculation (power based)'!AD$24:AD$223,MATCH('Curve verification'!U59,'Calculation (power based)'!A$24:A$223,0))),(C59-INDEX('Calculation (power based)'!AC$24:AC$223,MATCH('Curve verification'!U59,'Calculation (power based)'!A$24:A$223,0)))/(INDEX('Calculation (power based)'!AD$24:AD$223,MATCH('Curve verification'!U59,'Calculation (power based)'!A$24:A$223,0))-INDEX('Calculation (power based)'!AC$24:AC$223,MATCH('Curve verification'!U59,'Calculation (power based)'!A$24:A$223,0))),#N/A) ->  | W59: =IF(NOT(ISNA(V59)),INDEX('Pump database'!J$24:J$223,MATCH(U59,'Calculation (power based)'!A$24:A$223,0))+V59*(INDEX('Pump database'!O$24:O$223,MATCH(U59,'Calculation (power based)'!A$24:A$223,0))-INDEX('Pump database'!J$24:J$223,MATCH(U59,'Calculation (power based)'!A$24:A$223,0))),#N/A) ->  | AA59: =IF(NOT(ISNA(V59)),INDEX('Pump database'!L$24:L$223,MATCH(U59,'Calculation (power based)'!A$24:A$223,0))+V59*(INDEX('Pump database'!Q$24:Q$223,MATCH(U59,'Calculation (power based)'!A$24:A$223,0))-INDEX('Pump database'!L$24:L$223,MATCH(U59,'Calculation (power based)'!A$24:A$223,0))),#N/A) ->  | AE59: =INDEX(type_array,MATCH('Curve verification'!U59,'Calculation (power based)'!A$24:A$223,0)) -> 
I60: =IF(NOT(ISNA(V60)),INDEX('Calculation (power based)'!AG$24:AG$223,MATCH(U60,'Calculation (power based)'!A$24:A$223,0))+V60*(INDEX('Calculation (power based)'!AI$24:AI$223,MATCH(U60,'Calculation (power based)'!A$24:A$223,0))-INDEX('Calculation (power based)'!AG$24:AG$223,MATCH(U60,'Calculation (power based)'!A$24:A$223,0))),#N/A) ->  | M60: =IF(NOT(ISNA(V60)),INDEX('Calculation (power based)'!AH$24:AH$223,MATCH(U60,'Calculation (power based)'!A$24:A$223,0))+V60*(INDEX('Calculation (power based)'!AJ$24:AJ$223,MATCH(U60,'Calculation (power based)'!A$24:A$223,0))-INDEX('Calculation (power based)'!AH$24:AH$223,MATCH(U60,'Calculation (power based)'!A$24:A$223,0))),#N/A) ->  | U60: =INDEX('Calculation (power based)'!A$24:A$223,MATCH(B60,'Calculation (power based)'!AS$24:AS$223,0)) ->  | V60: =IF(AND(C60>=INDEX('Calculation (power based)'!AC$24:AC$223,MATCH('Curve verification'!U60,'Calculation (power based)'!A$24:A$223,0)),C60<=INDEX('Calculation (power based)'!AD$24:AD$223,MATCH('Curve verification'!U60,'Calculation (power based)'!A$24:A$223,0))),(C60-INDEX('Calculation (power based)'!AC$24:AC$223,MATCH('Curve verification'!U60,'Calculation (power based)'!A$24:A$223,0)))/(INDEX('Calculation (power based)'!AD$24:AD$223,MATCH('Curve verification'!U60,'Calculation (power based)'!A$24:A$223,0))-INDEX('Calculation (power based)'!AC$24:AC$223,MATCH('Curve verification'!U60,'Calculation (power based)'!A$24:A$223,0))),#N/A) ->  | W60: =IF(NOT(ISNA(V60)),INDEX('Pump database'!J$24:J$223,MATCH(U60,'Calculation (power based)'!A$24:A$223,0))+V60*(INDEX('Pump database'!O$24:O$223,MATCH(U60,'Calculation (power based)'!A$24:A$223,0))-INDEX('Pump database'!J$24:J$223,MATCH(U60,'Calculation (power based)'!A$24:A$223,0))),#N/A) ->  | AA60: =IF(NOT(ISNA(V60)),INDEX('Pump database'!L$24:L$223,MATCH(U60,'Calculation (power based)'!A$24:A$223,0))+V60*(INDEX('Pump database'!Q$24:Q$223,MATCH(U60,'Calculation (power based)'!A$24:A$223,0))-INDEX('Pump database'!L$24:L$223,MATCH(U60,'Calculation (power based)'!A$24:A$223,0))),#N/A) ->  | AE60: =INDEX(type_array,MATCH('Curve verification'!U60,'Calculation (power based)'!A$24:A$223,0)) -> 
I61: =IF(NOT(ISNA(V61)),INDEX('Calculation (power based)'!AG$24:AG$223,MATCH(U61,'Calculation (power based)'!A$24:A$223,0))+V61*(INDEX('Calculation (power based)'!AI$24:AI$223,MATCH(U61,'Calculation (power based)'!A$24:A$223,0))-INDEX('Calculation (power based)'!AG$24:AG$223,MATCH(U61,'Calculation (power based)'!A$24:A$223,0))),#N/A) ->  | M61: =IF(NOT(ISNA(V61)),INDEX('Calculation (power based)'!AH$24:AH$223,MATCH(U61,'Calculation (power based)'!A$24:A$223,0))+V61*(INDEX('Calculation (power based)'!AJ$24:AJ$223,MATCH(U61,'Calculation (power based)'!A$24:A$223,0))-INDEX('Calculation (power based)'!AH$24:AH$223,MATCH(U61,'Calculation (power based)'!A$24:A$223,0))),#N/A) ->  | U61: =INDEX('Calculation (power based)'!A$24:A$223,MATCH(B61,'Calculation (power based)'!AS$24:AS$223,0)) ->  | V61: =IF(AND(C61>=INDEX('Calculation (power based)'!AC$24:AC$223,MATCH('Curve verification'!U61,'Calculation (power based)'!A$24:A$223,0)),C61<=INDEX('Calculation (power based)'!AD$24:AD$223,MATCH('Curve verification'!U61,'Calculation (power based)'!A$24:A$223,0))),(C61-INDEX('Calculation (power based)'!AC$24:AC$223,MATCH('Curve verification'!U61,'Calculation (power based)'!A$24:A$223,0)))/(INDEX('Calculation (power based)'!AD$24:AD$223,MATCH('Curve verification'!U61,'Calculation (power based)'!A$24:A$223,0))-INDEX('Calculation (power based)'!AC$24:AC$223,MATCH('Curve verification'!U61,'Calculation (power based)'!A$24:A$223,0))),#N/A) ->  | W61: =IF(NOT(ISNA(V61)),INDEX('Pump database'!J$24:J$223,MATCH(U61,'Calculation (power based)'!A$24:A$223,0))+V61*(INDEX('Pump database'!O$24:O$223,MATCH(U61,'Calculation (power based)'!A$24:A$223,0))-INDEX('Pump database'!J$24:J$223,MATCH(U61,'Calculation (power based)'!A$24:A$223,0))),#N/A) ->  | AA61: =IF(NOT(ISNA(V61)),INDEX('Pump database'!L$24:L$223,MATCH(U61,'Calculation (power based)'!A$24:A$223,0))+V61*(INDEX('Pump database'!Q$24:Q$223,MATCH(U61,'Calculation (power based)'!A$24:A$223,0))-INDEX('Pump database'!L$24:L$223,MATCH(U61,'Calculation (power based)'!A$24:A$223,0))),#N/A) ->  | AE61: =INDEX(type_array,MATCH('Curve verification'!U61,'Calculation (power based)'!A$24:A$223,0)) -> 
I62: =IF(NOT(ISNA(V62)),INDEX('Calculation (power based)'!AG$24:AG$223,MATCH(U62,'Calculation (power based)'!A$24:A$223,0))+V62*(INDEX('Calculation (power based)'!AI$24:AI$223,MATCH(U62,'Calculation (power based)'!A$24:A$223,0))-INDEX('Calculation (power based)'!AG$24:AG$223,MATCH(U62,'Calculation (power based)'!A$24:A$223,0))),#N/A) ->  | M62: =IF(NOT(ISNA(V62)),INDEX('Calculation (power based)'!AH$24:AH$223,MATCH(U62,'Calculation (power based)'!A$24:A$223,0))+V62*(INDEX('Calculation (power based)'!AJ$24:AJ$223,MATCH(U62,'Calculation (power based)'!A$24:A$223,0))-INDEX('Calculation (power based)'!AH$24:AH$223,MATCH(U62,'Calculation (power based)'!A$24:A$223,0))),#N/A) ->  | U62: =INDEX('Calculation (power based)'!A$24:A$223,MATCH(B62,'Calculation (power based)'!AS$24:AS$223,0)) ->  | V62: =IF(AND(C62>=INDEX('Calculation (power based)'!AC$24:AC$223,MATCH('Curve verification'!U62,'Calculation (power based)'!A$24:A$223,0)),C62<=INDEX('Calculation (power based)'!AD$24:AD$223,MATCH('Curve verification'!U62,'Calculation (power based)'!A$24:A$223,0))),(C62-INDEX('Calculation (power based)'!AC$24:AC$223,MATCH('Curve verification'!U62,'Calculation (power based)'!A$24:A$223,0)))/(INDEX('Calculation (power based)'!AD$24:AD$223,MATCH('Curve verification'!U62,'Calculation (power based)'!A$24:A$223,0))-INDEX('Calculation (power based)'!AC$24:AC$223,MATCH('Curve verification'!U62,'Calculation (power based)'!A$24:A$223,0))),#N/A) ->  | W62: =IF(NOT(ISNA(V62)),INDEX('Pump database'!J$24:J$223,MATCH(U62,'Calculation (power based)'!A$24:A$223,0))+V62*(INDEX('Pump database'!O$24:O$223,MATCH(U62,'Calculation (power based)'!A$24:A$223,0))-INDEX('Pump database'!J$24:J$223,MATCH(U62,'Calculation (power based)'!A$24:A$223,0))),#N/A) ->  | AA62: =IF(NOT(ISNA(V62)),INDEX('Pump database'!L$24:L$223,MATCH(U62,'Calculation (power based)'!A$24:A$223,0))+V62*(INDEX('Pump database'!Q$24:Q$223,MATCH(U62,'Calculation (power based)'!A$24:A$223,0))-INDEX('Pump database'!L$24:L$223,MATCH(U62,'Calculation (power based)'!A$24:A$223,0))),#N/A) ->  | AE62: =INDEX(type_array,MATCH('Curve verification'!U62,'Calculation (power based)'!A$24:A$223,0)) -> 
I63: =IF(NOT(ISNA(V63)),INDEX('Calculation (power based)'!AG$24:AG$223,MATCH(U63,'Calculation (power based)'!A$24:A$223,0))+V63*(INDEX('Calculation (power based)'!AI$24:AI$223,MATCH(U63,'Calculation (power based)'!A$24:A$223,0))-INDEX('Calculation (power based)'!AG$24:AG$223,MATCH(U63,'Calculation (power based)'!A$24:A$223,0))),#N/A) ->  | M63: =IF(NOT(ISNA(V63)),INDEX('Calculation (power based)'!AH$24:AH$223,MATCH(U63,'Calculation (power based)'!A$24:A$223,0))+V63*(INDEX('Calculation (power based)'!AJ$24:AJ$223,MATCH(U63,'Calculation (power based)'!A$24:A$223,0))-INDEX('Calculation (power based)'!AH$24:AH$223,MATCH(U63,'Calculation (power based)'!A$24:A$223,0))),#N/A) ->  | U63: =INDEX('Calculation (power based)'!A$24:A$223,MATCH(B63,'Calculation (power based)'!AS$24:AS$223,0)) ->  | V63: =IF(AND(C63>=INDEX('Calculation (power based)'!AC$24:AC$223,MATCH('Curve verification'!U63,'Calculation (power based)'!A$24:A$223,0)),C63<=INDEX('Calculation (power based)'!AD$24:AD$223,MATCH('Curve verification'!U63,'Calculation (power based)'!A$24:A$223,0))),(C63-INDEX('Calculation (power based)'!AC$24:AC$223,MATCH('Curve verification'!U63,'Calculation (power based)'!A$24:A$223,0)))/(INDEX('Calculation (power based)'!AD$24:AD$223,MATCH('Curve verification'!U63,'Calculation (power based)'!A$24:A$223,0))-INDEX('Calculation (power based)'!AC$24:AC$223,MATCH('Curve verification'!U63,'Calculation (power based)'!A$24:A$223,0))),#N/A) ->  | W63: =IF(NOT(ISNA(V63)),INDEX('Pump database'!J$24:J$223,MATCH(U63,'Calculation (power based)'!A$24:A$223,0))+V63*(INDEX('Pump database'!O$24:O$223,MATCH(U63,'Calculation (power based)'!A$24:A$223,0))-INDEX('Pump database'!J$24:J$223,MATCH(U63,'Calculation (power based)'!A$24:A$223,0))),#N/A) ->  | AA63: =IF(NOT(ISNA(V63)),INDEX('Pump database'!L$24:L$223,MATCH(U63,'Calculation (power based)'!A$24:A$223,0))+V63*(INDEX('Pump database'!Q$24:Q$223,MATCH(U63,'Calculation (power based)'!A$24:A$223,0))-INDEX('Pump database'!L$24:L$223,MATCH(U63,'Calculation (power based)'!A$24:A$223,0))),#N/A) ->  | AE63: =INDEX(type_array,MATCH('Curve verification'!U63,'Calculation (power based)'!A$24:A$223,0)) -> 
I64: =IF(NOT(ISNA(V64)),INDEX('Calculation (power based)'!AG$24:AG$223,MATCH(U64,'Calculation (power based)'!A$24:A$223,0))+V64*(INDEX('Calculation (power based)'!AI$24:AI$223,MATCH(U64,'Calculation (power based)'!A$24:A$223,0))-INDEX('Calculation (power based)'!AG$24:AG$223,MATCH(U64,'Calculation (power based)'!A$24:A$223,0))),#N/A) ->  | M64: =IF(NOT(ISNA(V64)),INDEX('Calculation (power based)'!AH$24:AH$223,MATCH(U64,'Calculation (power based)'!A$24:A$223,0))+V64*(INDEX('Calculation (power based)'!AJ$24:AJ$223,MATCH(U64,'Calculation (power based)'!A$24:A$223,0))-INDEX('Calculation (power based)'!AH$24:AH$223,MATCH(U64,'Calculation (power based)'!A$24:A$223,0))),#N/A) ->  | U64: =INDEX('Calculation (power based)'!A$24:A$223,MATCH(B64,'Calculation (power based)'!AS$24:AS$223,0)) ->  | V64: =IF(AND(C64>=INDEX('Calculation (power based)'!AC$24:AC$223,MATCH('Curve verification'!U64,'Calculation (power based)'!A$24:A$223,0)),C64<=INDEX('Calculation (power based)'!AD$24:AD$223,MATCH('Curve verification'!U64,'Calculation (power based)'!A$24:A$223,0))),(C64-INDEX('Calculation (power based)'!AC$24:AC$223,MATCH('Curve verification'!U64,'Calculation (power based)'!A$24:A$223,0)))/(INDEX('Calculation (power based)'!AD$24:AD$223,MATCH('Curve verification'!U64,'Calculation (power based)'!A$24:A$223,0))-INDEX('Calculation (power based)'!AC$24:AC$223,MATCH('Curve verification'!U64,'Calculation (power based)'!A$24:A$223,0))),#N/A) ->  | W64: =IF(NOT(ISNA(V64)),INDEX('Pump database'!J$24:J$223,MATCH(U64,'Calculation (power based)'!A$24:A$223,0))+V64*(INDEX('Pump database'!O$24:O$223,MATCH(U64,'Calculation (power based)'!A$24:A$223,0))-INDEX('Pump database'!J$24:J$223,MATCH(U64,'Calculation (power based)'!A$24:A$223,0))),#N/A) ->  | AA64: =IF(NOT(ISNA(V64)),INDEX('Pump database'!L$24:L$223,MATCH(U64,'Calculation (power based)'!A$24:A$223,0))+V64*(INDEX('Pump database'!Q$24:Q$223,MATCH(U64,'Calculation (power based)'!A$24:A$223,0))-INDEX('Pump database'!L$24:L$223,MATCH(U64,'Calculation (power based)'!A$24:A$223,0))),#N/A) ->  | AE64: =INDEX(type_array,MATCH('Curve verification'!U64,'Calculation (power based)'!A$24:A$223,0)) -> 
I65: =IF(NOT(ISNA(V65)),INDEX('Calculation (power based)'!AG$24:AG$223,MATCH(U65,'Calculation (power based)'!A$24:A$223,0))+V65*(INDEX('Calculation (power based)'!AI$24:AI$223,MATCH(U65,'Calculation (power based)'!A$24:A$223,0))-INDEX('Calculation (power based)'!AG$24:AG$223,MATCH(U65,'Calculation (power based)'!A$24:A$223,0))),#N/A) ->  | M65: =IF(NOT(ISNA(V65)),INDEX('Calculation (power based)'!AH$24:AH$223,MATCH(U65,'Calculation (power based)'!A$24:A$223,0))+V65*(INDEX('Calculation (power based)'!AJ$24:AJ$223,MATCH(U65,'Calculation (power based)'!A$24:A$223,0))-INDEX('Calculation (power based)'!AH$24:AH$223,MATCH(U65,'Calculation (power based)'!A$24:A$223,0))),#N/A) ->  | U65: =INDEX('Calculation (power based)'!A$24:A$223,MATCH(B65,'Calculation (power based)'!AS$24:AS$223,0)) ->  | V65: =IF(AND(C65>=INDEX('Calculation (power based)'!AC$24:AC$223,MATCH('Curve verification'!U65,'Calculation (power based)'!A$24:A$223,0)),C65<=INDEX('Calculation (power based)'!AD$24:AD$223,MATCH('Curve verification'!U65,'Calculation (power based)'!A$24:A$223,0))),(C65-INDEX('Calculation (power based)'!AC$24:AC$223,MATCH('Curve verification'!U65,'Calculation (power based)'!A$24:A$223,0)))/(INDEX('Calculation (power based)'!AD$24:AD$223,MATCH('Curve verification'!U65,'Calculation (power based)'!A$24:A$223,0))-INDEX('Calculation (power based)'!AC$24:AC$223,MATCH('Curve verification'!U65,'Calculation (power based)'!A$24:A$223,0))),#N/A) ->  | W65: =IF(NOT(ISNA(V65)),INDEX('Pump database'!J$24:J$223,MATCH(U65,'Calculation (power based)'!A$24:A$223,0))+V65*(INDEX('Pump database'!O$24:O$223,MATCH(U65,'Calculation (power based)'!A$24:A$223,0))-INDEX('Pump database'!J$24:J$223,MATCH(U65,'Calculation (power based)'!A$24:A$223,0))),#N/A) ->  | AA65: =IF(NOT(ISNA(V65)),INDEX('Pump database'!L$24:L$223,MATCH(U65,'Calculation (power based)'!A$24:A$223,0))+V65*(INDEX('Pump database'!Q$24:Q$223,MATCH(U65,'Calculation (power based)'!A$24:A$223,0))-INDEX('Pump database'!L$24:L$223,MATCH(U65,'Calculation (power based)'!A$24:A$223,0))),#N/A) ->  | AE65: =INDEX(type_array,MATCH('Curve verification'!U65,'Calculation (power based)'!A$24:A$223,0)) -> 
I66: =IF(NOT(ISNA(V66)),INDEX('Calculation (power based)'!AG$24:AG$223,MATCH(U66,'Calculation (power based)'!A$24:A$223,0))+V66*(INDEX('Calculation (power based)'!AI$24:AI$223,MATCH(U66,'Calculation (power based)'!A$24:A$223,0))-INDEX('Calculation (power based)'!AG$24:AG$223,MATCH(U66,'Calculation (power based)'!A$24:A$223,0))),#N/A) ->  | M66: =IF(NOT(ISNA(V66)),INDEX('Calculation (power based)'!AH$24:AH$223,MATCH(U66,'Calculation (power based)'!A$24:A$223,0))+V66*(INDEX('Calculation (power based)'!AJ$24:AJ$223,MATCH(U66,'Calculation (power based)'!A$24:A$223,0))-INDEX('Calculation (power based)'!AH$24:AH$223,MATCH(U66,'Calculation (power based)'!A$24:A$223,0))),#N/A) ->  | U66: =INDEX('Calculation (power based)'!A$24:A$223,MATCH(B66,'Calculation (power based)'!AS$24:AS$223,0)) ->  | V66: =IF(AND(C66>=INDEX('Calculation (power based)'!AC$24:AC$223,MATCH('Curve verification'!U66,'Calculation (power based)'!A$24:A$223,0)),C66<=INDEX('Calculation (power based)'!AD$24:AD$223,MATCH('Curve verification'!U66,'Calculation (power based)'!A$24:A$223,0))),(C66-INDEX('Calculation (power based)'!AC$24:AC$223,MATCH('Curve verification'!U66,'Calculation (power based)'!A$24:A$223,0)))/(INDEX('Calculation (power based)'!AD$24:AD$223,MATCH('Curve verification'!U66,'Calculation (power based)'!A$24:A$223,0))-INDEX('Calculation (power based)'!AC$24:AC$223,MATCH('Curve verification'!U66,'Calculation (power based)'!A$24:A$223,0))),#N/A) ->  | W66: =IF(NOT(ISNA(V66)),INDEX('Pump database'!J$24:J$223,MATCH(U66,'Calculation (power based)'!A$24:A$223,0))+V66*(INDEX('Pump database'!O$24:O$223,MATCH(U66,'Calculation (power based)'!A$24:A$223,0))-INDEX('Pump database'!J$24:J$223,MATCH(U66,'Calculation (power based)'!A$24:A$223,0))),#N/A) ->  | AA66: =IF(NOT(ISNA(V66)),INDEX('Pump database'!L$24:L$223,MATCH(U66,'Calculation (power based)'!A$24:A$223,0))+V66*(INDEX('Pump database'!Q$24:Q$223,MATCH(U66,'Calculation (power based)'!A$24:A$223,0))-INDEX('Pump database'!L$24:L$223,MATCH(U66,'Calculation (power based)'!A$24:A$223,0))),#N/A) ->  | AE66: =INDEX(type_array,MATCH('Curve verification'!U66,'Calculation (power based)'!A$24:A$223,0)) -> 
I67: =IF(NOT(ISNA(V67)),INDEX('Calculation (power based)'!AG$24:AG$223,MATCH(U67,'Calculation (power based)'!A$24:A$223,0))+V67*(INDEX('Calculation (power based)'!AI$24:AI$223,MATCH(U67,'Calculation (power based)'!A$24:A$223,0))-INDEX('Calculation (power based)'!AG$24:AG$223,MATCH(U67,'Calculation (power based)'!A$24:A$223,0))),#N/A) ->  | M67: =IF(NOT(ISNA(V67)),INDEX('Calculation (power based)'!AH$24:AH$223,MATCH(U67,'Calculation (power based)'!A$24:A$223,0))+V67*(INDEX('Calculation (power based)'!AJ$24:AJ$223,MATCH(U67,'Calculation (power based)'!A$24:A$223,0))-INDEX('Calculation (power based)'!AH$24:AH$223,MATCH(U67,'Calculation (power based)'!A$24:A$223,0))),#N/A) ->  | U67: =INDEX('Calculation (power based)'!A$24:A$223,MATCH(B67,'Calculation (power based)'!AS$24:AS$223,0)) ->  | V67: =IF(AND(C67>=INDEX('Calculation (power based)'!AC$24:AC$223,MATCH('Curve verification'!U67,'Calculation (power based)'!A$24:A$223,0)),C67<=INDEX('Calculation (power based)'!AD$24:AD$223,MATCH('Curve verification'!U67,'Calculation (power based)'!A$24:A$223,0))),(C67-INDEX('Calculation (power based)'!AC$24:AC$223,MATCH('Curve verification'!U67,'Calculation (power based)'!A$24:A$223,0)))/(INDEX('Calculation (power based)'!AD$24:AD$223,MATCH('Curve verification'!U67,'Calculation (power based)'!A$24:A$223,0))-INDEX('Calculation (power based)'!AC$24:AC$223,MATCH('Curve verification'!U67,'Calculation (power based)'!A$24:A$223,0))),#N/A) ->  | W67: =IF(NOT(ISNA(V67)),INDEX('Pump database'!J$24:J$223,MATCH(U67,'Calculation (power based)'!A$24:A$223,0))+V67*(INDEX('Pump database'!O$24:O$223,MATCH(U67,'Calculation (power based)'!A$24:A$223,0))-INDEX('Pump database'!J$24:J$223,MATCH(U67,'Calculation (power based)'!A$24:A$223,0))),#N/A) ->  | AA67: =IF(NOT(ISNA(V67)),INDEX('Pump database'!L$24:L$223,MATCH(U67,'Calculation (power based)'!A$24:A$223,0))+V67*(INDEX('Pump database'!Q$24:Q$223,MATCH(U67,'Calculation (power based)'!A$24:A$223,0))-INDEX('Pump database'!L$24:L$223,MATCH(U67,'Calculation (power based)'!A$24:A$223,0))),#N/A) ->  | AE67: =INDEX(type_array,MATCH('Curve verification'!U67,'Calculation (power based)'!A$24:A$223,0)) -> 
I68: =IF(NOT(ISNA(V68)),INDEX('Calculation (power based)'!AG$24:AG$223,MATCH(U68,'Calculation (power based)'!A$24:A$223,0))+V68*(INDEX('Calculation (power based)'!AI$24:AI$223,MATCH(U68,'Calculation (power based)'!A$24:A$223,0))-INDEX('Calculation (power based)'!AG$24:AG$223,MATCH(U68,'Calculation (power based)'!A$24:A$223,0))),#N/A) ->  | M68: =IF(NOT(ISNA(V68)),INDEX('Calculation (power based)'!AH$24:AH$223,MATCH(U68,'Calculation (power based)'!A$24:A$223,0))+V68*(INDEX('Calculation (power based)'!AJ$24:AJ$223,MATCH(U68,'Calculation (power based)'!A$24:A$223,0))-INDEX('Calculation (power based)'!AH$24:AH$223,MATCH(U68,'Calculation (power based)'!A$24:A$223,0))),#N/A) ->  | U68: =INDEX('Calculation (power based)'!A$24:A$223,MATCH(B68,'Calculation (power based)'!AS$24:AS$223,0)) ->  | V68: =IF(AND(C68>=INDEX('Calculation (power based)'!AC$24:AC$223,MATCH('Curve verification'!U68,'Calculation (power based)'!A$24:A$223,0)),C68<=INDEX('Calculation (power based)'!AD$24:AD$223,MATCH('Curve verification'!U68,'Calculation (power based)'!A$24:A$223,0))),(C68-INDEX('Calculation (power based)'!AC$24:AC$223,MATCH('Curve verification'!U68,'Calculation (power based)'!A$24:A$223,0)))/(INDEX('Calculation (power based)'!AD$24:AD$223,MATCH('Curve verification'!U68,'Calculation (power based)'!A$24:A$223,0))-INDEX('Calculation (power based)'!AC$24:AC$223,MATCH('Curve verification'!U68,'Calculation (power based)'!A$24:A$223,0))),#N/A) ->  | W68: =IF(NOT(ISNA(V68)),INDEX('Pump database'!J$24:J$223,MATCH(U68,'Calculation (power based)'!A$24:A$223,0))+V68*(INDEX('Pump database'!O$24:O$223,MATCH(U68,'Calculation (power based)'!A$24:A$223,0))-INDEX('Pump database'!J$24:J$223,MATCH(U68,'Calculation (power based)'!A$24:A$223,0))),#N/A) ->  | AA68: =IF(NOT(ISNA(V68)),INDEX('Pump database'!L$24:L$223,MATCH(U68,'Calculation (power based)'!A$24:A$223,0))+V68*(INDEX('Pump database'!Q$24:Q$223,MATCH(U68,'Calculation (power based)'!A$24:A$223,0))-INDEX('Pump database'!L$24:L$223,MATCH(U68,'Calculation (power based)'!A$24:A$223,0))),#N/A) ->  | AE68: =INDEX(type_array,MATCH('Curve verification'!U68,'Calculation (power based)'!A$24:A$223,0)) -> 
I69: =IF(NOT(ISNA(V69)),INDEX('Calculation (power based)'!AG$24:AG$223,MATCH(U69,'Calculation (power based)'!A$24:A$223,0))+V69*(INDEX('Calculation (power based)'!AI$24:AI$223,MATCH(U69,'Calculation (power based)'!A$24:A$223,0))-INDEX('Calculation (power based)'!AG$24:AG$223,MATCH(U69,'Calculation (power based)'!A$24:A$223,0))),#N/A) ->  | M69: =IF(NOT(ISNA(V69)),INDEX('Calculation (power based)'!AH$24:AH$223,MATCH(U69,'Calculation (power based)'!A$24:A$223,0))+V69*(INDEX('Calculation (power based)'!AJ$24:AJ$223,MATCH(U69,'Calculation (power based)'!A$24:A$223,0))-INDEX('Calculation (power based)'!AH$24:AH$223,MATCH(U69,'Calculation (power based)'!A$24:A$223,0))),#N/A) ->  | U69: =INDEX('Calculation (power based)'!A$24:A$223,MATCH(B69,'Calculation (power based)'!AS$24:AS$223,0)) ->  | V69: =IF(AND(C69>=INDEX('Calculation (power based)'!AC$24:AC$223,MATCH('Curve verification'!U69,'Calculation (power based)'!A$24:A$223,0)),C69<=INDEX('Calculation (power based)'!AD$24:AD$223,MATCH('Curve verification'!U69,'Calculation (power based)'!A$24:A$223,0))),(C69-INDEX('Calculation (power based)'!AC$24:AC$223,MATCH('Curve verification'!U69,'Calculation (power based)'!A$24:A$223,0)))/(INDEX('Calculation (power based)'!AD$24:AD$223,MATCH('Curve verification'!U69,'Calculation (power based)'!A$24:A$223,0))-INDEX('Calculation (power based)'!AC$24:AC$223,MATCH('Curve verification'!U69,'Calculation (power based)'!A$24:A$223,0))),#N/A) ->  | W69: =IF(NOT(ISNA(V69)),INDEX('Pump database'!J$24:J$223,MATCH(U69,'Calculation (power based)'!A$24:A$223,0))+V69*(INDEX('Pump database'!O$24:O$223,MATCH(U69,'Calculation (power based)'!A$24:A$223,0))-INDEX('Pump database'!J$24:J$223,MATCH(U69,'Calculation (power based)'!A$24:A$223,0))),#N/A) ->  | AA69: =IF(NOT(ISNA(V69)),INDEX('Pump database'!L$24:L$223,MATCH(U69,'Calculation (power based)'!A$24:A$223,0))+V69*(INDEX('Pump database'!Q$24:Q$223,MATCH(U69,'Calculation (power based)'!A$24:A$223,0))-INDEX('Pump database'!L$24:L$223,MATCH(U69,'Calculation (power based)'!A$24:A$223,0))),#N/A) ->  | AE69: =INDEX(type_array,MATCH('Curve verification'!U69,'Calculation (power based)'!A$24:A$223,0)) -> 
I70: =IF(NOT(ISNA(V70)),INDEX('Calculation (power based)'!AG$24:AG$223,MATCH(U70,'Calculation (power based)'!A$24:A$223,0))+V70*(INDEX('Calculation (power based)'!AI$24:AI$223,MATCH(U70,'Calculation (power based)'!A$24:A$223,0))-INDEX('Calculation (power based)'!AG$24:AG$223,MATCH(U70,'Calculation (power based)'!A$24:A$223,0))),#N/A) ->  | M70: =IF(NOT(ISNA(V70)),INDEX('Calculation (power based)'!AH$24:AH$223,MATCH(U70,'Calculation (power based)'!A$24:A$223,0))+V70*(INDEX('Calculation (power based)'!AJ$24:AJ$223,MATCH(U70,'Calculation (power based)'!A$24:A$223,0))-INDEX('Calculation (power based)'!AH$24:AH$223,MATCH(U70,'Calculation (power based)'!A$24:A$223,0))),#N/A) ->  | U70: =INDEX('Calculation (power based)'!A$24:A$223,MATCH(B70,'Calculation (power based)'!AS$24:AS$223,0)) ->  | V70: =IF(AND(C70>=INDEX('Calculation (power based)'!AC$24:AC$223,MATCH('Curve verification'!U70,'Calculation (power based)'!A$24:A$223,0)),C70<=INDEX('Calculation (power based)'!AD$24:AD$223,MATCH('Curve verification'!U70,'Calculation (power based)'!A$24:A$223,0))),(C70-INDEX('Calculation (power based)'!AC$24:AC$223,MATCH('Curve verification'!U70,'Calculation (power based)'!A$24:A$223,0)))/(INDEX('Calculation (power based)'!AD$24:AD$223,MATCH('Curve verification'!U70,'Calculation (power based)'!A$24:A$223,0))-INDEX('Calculation (power based)'!AC$24:AC$223,MATCH('Curve verification'!U70,'Calculation (power based)'!A$24:A$223,0))),#N/A) ->  | W70: =IF(NOT(ISNA(V70)),INDEX('Pump database'!J$24:J$223,MATCH(U70,'Calculation (power based)'!A$24:A$223,0))+V70*(INDEX('Pump database'!O$24:O$223,MATCH(U70,'Calculation (power based)'!A$24:A$223,0))-INDEX('Pump database'!J$24:J$223,MATCH(U70,'Calculation (power based)'!A$24:A$223,0))),#N/A) ->  | AA70: =IF(NOT(ISNA(V70)),INDEX('Pump database'!L$24:L$223,MATCH(U70,'Calculation (power based)'!A$24:A$223,0))+V70*(INDEX('Pump database'!Q$24:Q$223,MATCH(U70,'Calculation (power based)'!A$24:A$223,0))-INDEX('Pump database'!L$24:L$223,MATCH(U70,'Calculation (power based)'!A$24:A$223,0))),#N/A) ->  | AE70: =INDEX(type_array,MATCH('Curve verification'!U70,'Calculation (power based)'!A$24:A$223,0)) -> 
I71: =IF(NOT(ISNA(V71)),INDEX('Calculation (power based)'!AG$24:AG$223,MATCH(U71,'Calculation (power based)'!A$24:A$223,0))+V71*(INDEX('Calculation (power based)'!AI$24:AI$223,MATCH(U71,'Calculation (power based)'!A$24:A$223,0))-INDEX('Calculation (power based)'!AG$24:AG$223,MATCH(U71,'Calculation (power based)'!A$24:A$223,0))),#N/A) ->  | M71: =IF(NOT(ISNA(V71)),INDEX('Calculation (power based)'!AH$24:AH$223,MATCH(U71,'Calculation (power based)'!A$24:A$223,0))+V71*(INDEX('Calculation (power based)'!AJ$24:AJ$223,MATCH(U71,'Calculation (power based)'!A$24:A$223,0))-INDEX('Calculation (power based)'!AH$24:AH$223,MATCH(U71,'Calculation (power based)'!A$24:A$223,0))),#N/A) ->  | U71: =INDEX('Calculation (power based)'!A$24:A$223,MATCH(B71,'Calculation (power based)'!AS$24:AS$223,0)) ->  | V71: =IF(AND(C71>=INDEX('Calculation (power based)'!AC$24:AC$223,MATCH('Curve verification'!U71,'Calculation (power based)'!A$24:A$223,0)),C71<=INDEX('Calculation (power based)'!AD$24:AD$223,MATCH('Curve verification'!U71,'Calculation (power based)'!A$24:A$223,0))),(C71-INDEX('Calculation (power based)'!AC$24:AC$223,MATCH('Curve verification'!U71,'Calculation (power based)'!A$24:A$223,0)))/(INDEX('Calculation (power based)'!AD$24:AD$223,MATCH('Curve verification'!U71,'Calculation (power based)'!A$24:A$223,0))-INDEX('Calculation (power based)'!AC$24:AC$223,MATCH('Curve verification'!U71,'Calculation (power based)'!A$24:A$223,0))),#N/A) ->  | W71: =IF(NOT(ISNA(V71)),INDEX('Pump database'!J$24:J$223,MATCH(U71,'Calculation (power based)'!A$24:A$223,0))+V71*(INDEX('Pump database'!O$24:O$223,MATCH(U71,'Calculation (power based)'!A$24:A$223,0))-INDEX('Pump database'!J$24:J$223,MATCH(U71,'Calculation (power based)'!A$24:A$223,0))),#N/A) ->  | AA71: =IF(NOT(ISNA(V71)),INDEX('Pump database'!L$24:L$223,MATCH(U71,'Calculation (power based)'!A$24:A$223,0))+V71*(INDEX('Pump database'!Q$24:Q$223,MATCH(U71,'Calculation (power based)'!A$24:A$223,0))-INDEX('Pump database'!L$24:L$223,MATCH(U71,'Calculation (power based)'!A$24:A$223,0))),#N/A) ->  | AE71: =INDEX(type_array,MATCH('Curve verification'!U71,'Calculation (power based)'!A$24:A$223,0)) -> 
I72: =IF(NOT(ISNA(V72)),INDEX('Calculation (power based)'!AG$24:AG$223,MATCH(U72,'Calculation (power based)'!A$24:A$223,0))+V72*(INDEX('Calculation (power based)'!AI$24:AI$223,MATCH(U72,'Calculation (power based)'!A$24:A$223,0))-INDEX('Calculation (power based)'!AG$24:AG$223,MATCH(U72,'Calculation (power based)'!A$24:A$223,0))),#N/A) ->  | M72: =IF(NOT(ISNA(V72)),INDEX('Calculation (power based)'!AH$24:AH$223,MATCH(U72,'Calculation (power based)'!A$24:A$223,0))+V72*(INDEX('Calculation (power based)'!AJ$24:AJ$223,MATCH(U72,'Calculation (power based)'!A$24:A$223,0))-INDEX('Calculation (power based)'!AH$24:AH$223,MATCH(U72,'Calculation (power based)'!A$24:A$223,0))),#N/A) ->  | U72: =INDEX('Calculation (power based)'!A$24:A$223,MATCH(B72,'Calculation (power based)'!AS$24:AS$223,0)) ->  | V72: =IF(AND(C72>=INDEX('Calculation (power based)'!AC$24:AC$223,MATCH('Curve verification'!U72,'Calculation (power based)'!A$24:A$223,0)),C72<=INDEX('Calculation (power based)'!AD$24:AD$223,MATCH('Curve verification'!U72,'Calculation (power based)'!A$24:A$223,0))),(C72-INDEX('Calculation (power based)'!AC$24:AC$223,MATCH('Curve verification'!U72,'Calculation (power based)'!A$24:A$223,0)))/(INDEX('Calculation (power based)'!AD$24:AD$223,MATCH('Curve verification'!U72,'Calculation (power based)'!A$24:A$223,0))-INDEX('Calculation (power based)'!AC$24:AC$223,MATCH('Curve verification'!U72,'Calculation (power based)'!A$24:A$223,0))),#N/A) ->  | W72: =IF(NOT(ISNA(V72)),INDEX('Pump database'!J$24:J$223,MATCH(U72,'Calculation (power based)'!A$24:A$223,0))+V72*(INDEX('Pump database'!O$24:O$223,MATCH(U72,'Calculation (power based)'!A$24:A$223,0))-INDEX('Pump database'!J$24:J$223,MATCH(U72,'Calculation (power based)'!A$24:A$223,0))),#N/A) ->  | X72: =IF(AND(NOT(ISNA($AE72)),NOT(ISNA($AB72))),IF($AE72=1, ( MIN($AA72,IF($M72*AG72<$I72,0,$M72*$AB72*3.6/$C72/g_constant*(AG72 - $AC72)/(AG72^$AD72) + $W72)) ), MIN($AA72,IF($M72*AG72<$I72,0,$AB72*$M72*AG72+$AC72)) ),#N/A) ->  | Y72: =IF(AND(NOT(ISNA($AE72)),NOT(ISNA($AB72))),IF($AE72=1, ( MIN($AA72,IF($M72*AH72<$I72,0,$M72*$AB72*3.6/$C72/g_constant*(AH72 - $AC72)/(AH72^$AD72) + $W72)) ), MIN($AA72,IF($M72*AH72<$I72,0,$AB72*$M72*AH72+$AC72)) ),#N/A) ->  | Z72: =IF(AND(NOT(ISNA($AE72)),NOT(ISNA($AB72))),IF($AE72=1, ( MIN($AA72,IF($M72*AI72<$I72,0,$M72*$AB72*3.6/$C72/g_constant*(AI72 - $AC72)/(AI72^$AD72) + $W72)) ), MIN($AA72,IF($M72*AI72<$I72,0,$AB72*$M72*AI72+$AC72)) ),#N/A) ->  | AA72: =IF(NOT(ISNA(V72)),INDEX('Pump database'!L$24:L$223,MATCH(U72,'Calculation (power based)'!A$24:A$223,0))+V72*(INDEX('Pump database'!Q$24:Q$223,MATCH(U72,'Calculation (power based)'!A$24:A$223,0))-INDEX('Pump database'!L$24:L$223,MATCH(U72,'Calculation (power based)'!A$24:A$223,0))),#N/A) ->  | AB72: =IF(NOT(OR(ISNA(U72),ISNA(V72),ISNA(I72),ISNA(M72))),IF(AE72=1,(C72*(AA72-W72)*g_constant/3.6/M72)/(1-I72/M72),(W72-AA72)/(I72-M72)),#N/A) ->  | AD72: =IF(NOT(OR(ISNA(U72),ISNA(V72),ISNA(I72),ISNA(M72))),IF(AE72=1,C_c_standard,0),#N/A) ->  | AE72: =INDEX(type_array,MATCH('Curve verification'!U72,'Calculation (power based)'!A$24:A$223,0)) -> 
I73: =IF(NOT(ISNA(V73)),INDEX('Calculation (power based)'!AG$24:AG$223,MATCH(U73,'Calculation (power based)'!A$24:A$223,0))+V73*(INDEX('Calculation (power based)'!AI$24:AI$223,MATCH(U73,'Calculation (power based)'!A$24:A$223,0))-INDEX('Calculation (power based)'!AG$24:AG$223,MATCH(U73,'Calculation (power based)'!A$24:A$223,0))),#N/A) ->  | J73: =IF(NOT(OR(ISNA(I73),ISNA(M73))),I73+0.25*(M73-I73),#N/A) ->  | K73: =IF(NOT(OR(ISNA(I73),ISNA(M73))),I73+0.5*(M73-I73),#N/A) ->  | L73: =IF(NOT(OR(ISNA(I73),ISNA(M73))),I73+0.75*(M73-I73),#N/A) ->  | M73: =IF(NOT(ISNA(V73)),INDEX('Calculation (power based)'!AH$24:AH$223,MATCH(U73,'Calculation (power based)'!A$24:A$223,0))+V73*(INDEX('Calculation (power based)'!AJ$24:AJ$223,MATCH(U73,'Calculation (power based)'!A$24:A$223,0))-INDEX('Calculation (power based)'!AH$24:AH$223,MATCH(U73,'Calculation (power based)'!A$24:A$223,0))),#N/A) ->  | N73: =IF(ISBLANK(D73),"",IF(D73<>0,(W73-D73)/D73,1)) ->  | O73: =IF(ISBLANK(E73),"",IF(E73<>0,(X73-E73)/E73,1)) ->  | P73: =IF(ISBLANK(F73),"",IF(F73<>0,(Y73-F73)/F73,1)) ->  | Q73: =IF(ISBLANK(G73),"",IF(G73<>0,(Z73-G73)/G73,1)) ->  | R73: =IF(ISBLANK(H73),"",IF(H73<>0,(AA73-H73)/H73,1)) ->  | S73: =IF(SUM(D73:H73)>0,(D73*N73+E73*O73+F73*P73+G73*Q73+H73*R73)/SUM(D73:H73),"") ->  | U73: =INDEX('Calculation (power based)'!A$24:A$223,MATCH(B73,'Calculation (power based)'!AS$24:AS$223,0)) ->  | V73: =IF(AND(C73>=INDEX('Calculation (power based)'!AC$24:AC$223,MATCH('Curve verification'!U73,'Calculation (power based)'!A$24:A$223,0)),C73<=INDEX('Calculation (power based)'!AD$24:AD$223,MATCH('Curve verification'!U73,'Calculation (power based)'!A$24:A$223,0))),(C73-INDEX('Calculation (power based)'!AC$24:AC$223,MATCH('Curve verification'!U73,'Calculation (power based)'!A$24:A$223,0)))/(INDEX('Calculation (power based)'!AD$24:AD$223,MATCH('Curve verification'!U73,'Calculation (power based)'!A$24:A$223,0))-INDEX('Calculation (power based)'!AC$24:AC$223,MATCH('Curve verification'!U73,'Calculation (power based)'!A$24:A$223,0))),#N/A) ->  | W73: =IF(NOT(ISNA(V73)),INDEX('Pump database'!J$24:J$223,MATCH(U73,'Calculation (power based)'!A$24:A$223,0))+V73*(INDEX('Pump database'!O$24:O$223,MATCH(U73,'Calculation (power based)'!A$24:A$223,0))-INDEX('Pump database'!J$24:J$223,MATCH(U73,'Calculation (power based)'!A$24:A$223,0))),#N/A) ->  | AA73: =IF(NOT(ISNA(V73)),INDEX('Pump database'!L$24:L$223,MATCH(U73,'Calculation (power based)'!A$24:A$223,0))+V73*(INDEX('Pump database'!Q$24:Q$223,MATCH(U73,'Calculation (power based)'!A$24:A$223,0))-INDEX('Pump database'!L$24:L$223,MATCH(U73,'Calculation (power based)'!A$24:A$223,0))),#N/A) ->  | AC73: =IF(NOT(OR(ISNA(U73),ISNA(V73),ISNA(I73),ISNA(M73))),IF(AE73=1,I73/M73,W73-AB73*I73),#N/A) ->  | AE73: =INDEX(type_array,MATCH('Curve verification'!U73,'Calculation (power based)'!A$24:A$223,0)) ->  | AF73: =I73/$M73 ->  | AG73: =J73/$M73 ->  | AH73: =K73/$M73 ->  | AI73: =L73/$M73 ->  | AJ73: =M73/$M73 ->  | AK73: =IF(NOT(ISNA(AE73)),IF(AE73=1,S73,""),"") ->  | AL73: =IF(NOT(ISNA(AE73)),IF(AE73=2,S73,""),"") -> 
I74: =IF(NOT(ISNA(V74)),INDEX('Calculation (power based)'!AG$24:AG$223,MATCH(U74,'Calculation (power based)'!A$24:A$223,0))+V74*(INDEX('Calculation (power based)'!AI$24:AI$223,MATCH(U74,'Calculation (power based)'!A$24:A$223,0))-INDEX('Calculation (power based)'!AG$24:AG$223,MATCH(U74,'Calculation (power based)'!A$24:A$223,0))),#N/A) ->  | M74: =IF(NOT(ISNA(V74)),INDEX('Calculation (power based)'!AH$24:AH$223,MATCH(U74,'Calculation (power based)'!A$24:A$223,0))+V74*(INDEX('Calculation (power based)'!AJ$24:AJ$223,MATCH(U74,'Calculation (power based)'!A$24:A$223,0))-INDEX('Calculation (power based)'!AH$24:AH$223,MATCH(U74,'Calculation (power based)'!A$24:A$223,0))),#N/A) ->  | U74: =INDEX('Calculation (power based)'!A$24:A$223,MATCH(B74,'Calculation (power based)'!AS$24:AS$223,0)) ->  | V74: =IF(AND(C74>=INDEX('Calculation (power based)'!AC$24:AC$223,MATCH('Curve verification'!U74,'Calculation (power based)'!A$24:A$223,0)),C74<=INDEX('Calculation (power based)'!AD$24:AD$223,MATCH('Curve verification'!U74,'Calculation (power based)'!A$24:A$223,0))),(C74-INDEX('Calculation (power based)'!AC$24:AC$223,MATCH('Curve verification'!U74,'Calculation (power based)'!A$24:A$223,0)))/(INDEX('Calculation (power based)'!AD$24:AD$223,MATCH('Curve verification'!U74,'Calculation (power based)'!A$24:A$223,0))-INDEX('Calculation (power based)'!AC$24:AC$223,MATCH('Curve verification'!U74,'Calculation (power based)'!A$24:A$223,0))),#N/A) ->  | W74: =IF(NOT(ISNA(V74)),INDEX('Pump database'!J$24:J$223,MATCH(U74,'Calculation (power based)'!A$24:A$223,0))+V74*(INDEX('Pump database'!O$24:O$223,MATCH(U74,'Calculation (power based)'!A$24:A$223,0))-INDEX('Pump database'!J$24:J$223,MATCH(U74,'Calculation (power based)'!A$24:A$223,0))),#N/A) ->  | AA74: =IF(NOT(ISNA(V74)),INDEX('Pump database'!L$24:L$223,MATCH(U74,'Calculation (power based)'!A$24:A$223,0))+V74*(INDEX('Pump database'!Q$24:Q$223,MATCH(U74,'Calculation (power based)'!A$24:A$223,0))-INDEX('Pump database'!L$24:L$223,MATCH(U74,'Calculation (power based)'!A$24:A$223,0))),#N/A) ->  | AE74: =INDEX(type_array,MATCH('Curve verification'!U74,'Calculation (power based)'!A$24:A$223,0)) -> 
I75: =IF(NOT(ISNA(V75)),INDEX('Calculation (power based)'!AG$24:AG$223,MATCH(U75,'Calculation (power based)'!A$24:A$223,0))+V75*(INDEX('Calculation (power based)'!AI$24:AI$223,MATCH(U75,'Calculation (power based)'!A$24:A$223,0))-INDEX('Calculation (power based)'!AG$24:AG$223,MATCH(U75,'Calculation (power based)'!A$24:A$223,0))),#N/A) ->  | M75: =IF(NOT(ISNA(V75)),INDEX('Calculation (power based)'!AH$24:AH$223,MATCH(U75,'Calculation (power based)'!A$24:A$223,0))+V75*(INDEX('Calculation (power based)'!AJ$24:AJ$223,MATCH(U75,'Calculation (power based)'!A$24:A$223,0))-INDEX('Calculation (power based)'!AH$24:AH$223,MATCH(U75,'Calculation (power based)'!A$24:A$223,0))),#N/A) ->  | U75: =INDEX('Calculation (power based)'!A$24:A$223,MATCH(B75,'Calculation (power based)'!AS$24:AS$223,0)) ->  | V75: =IF(AND(C75>=INDEX('Calculation (power based)'!AC$24:AC$223,MATCH('Curve verification'!U75,'Calculation (power based)'!A$24:A$223,0)),C75<=INDEX('Calculation (power based)'!AD$24:AD$223,MATCH('Curve verification'!U75,'Calculation (power based)'!A$24:A$223,0))),(C75-INDEX('Calculation (power based)'!AC$24:AC$223,MATCH('Curve verification'!U75,'Calculation (power based)'!A$24:A$223,0)))/(INDEX('Calculation (power based)'!AD$24:AD$223,MATCH('Curve verification'!U75,'Calculation (power based)'!A$24:A$223,0))-INDEX('Calculation (power based)'!AC$24:AC$223,MATCH('Curve verification'!U75,'Calculation (power based)'!A$24:A$223,0))),#N/A) ->  | W75: =IF(NOT(ISNA(V75)),INDEX('Pump database'!J$24:J$223,MATCH(U75,'Calculation (power based)'!A$24:A$223,0))+V75*(INDEX('Pump database'!O$24:O$223,MATCH(U75,'Calculation (power based)'!A$24:A$223,0))-INDEX('Pump database'!J$24:J$223,MATCH(U75,'Calculation (power based)'!A$24:A$223,0))),#N/A) ->  | AA75: =IF(NOT(ISNA(V75)),INDEX('Pump database'!L$24:L$223,MATCH(U75,'Calculation (power based)'!A$24:A$223,0))+V75*(INDEX('Pump database'!Q$24:Q$223,MATCH(U75,'Calculation (power based)'!A$24:A$223,0))-INDEX('Pump database'!L$24:L$223,MATCH(U75,'Calculation (power based)'!A$24:A$223,0))),#N/A) ->  | AE75: =INDEX(type_array,MATCH('Curve verification'!U75,'Calculation (power based)'!A$24:A$223,0)) -> 
I76: =IF(NOT(ISNA(V76)),INDEX('Calculation (power based)'!AG$24:AG$223,MATCH(U76,'Calculation (power based)'!A$24:A$223,0))+V76*(INDEX('Calculation (power based)'!AI$24:AI$223,MATCH(U76,'Calculation (power based)'!A$24:A$223,0))-INDEX('Calculation (power based)'!AG$24:AG$223,MATCH(U76,'Calculation (power based)'!A$24:A$223,0))),#N/A) ->  | M76: =IF(NOT(ISNA(V76)),INDEX('Calculation (power based)'!AH$24:AH$223,MATCH(U76,'Calculation (power based)'!A$24:A$223,0))+V76*(INDEX('Calculation (power based)'!AJ$24:AJ$223,MATCH(U76,'Calculation (power based)'!A$24:A$223,0))-INDEX('Calculation (power based)'!AH$24:AH$223,MATCH(U76,'Calculation (power based)'!A$24:A$223,0))),#N/A) ->  | U76: =INDEX('Calculation (power based)'!A$24:A$223,MATCH(B76,'Calculation (power based)'!AS$24:AS$223,0)) ->  | V76: =IF(AND(C76>=INDEX('Calculation (power based)'!AC$24:AC$223,MATCH('Curve verification'!U76,'Calculation (power based)'!A$24:A$223,0)),C76<=INDEX('Calculation (power based)'!AD$24:AD$223,MATCH('Curve verification'!U76,'Calculation (power based)'!A$24:A$223,0))),(C76-INDEX('Calculation (power based)'!AC$24:AC$223,MATCH('Curve verification'!U76,'Calculation (power based)'!A$24:A$223,0)))/(INDEX('Calculation (power based)'!AD$24:AD$223,MATCH('Curve verification'!U76,'Calculation (power based)'!A$24:A$223,0))-INDEX('Calculation (power based)'!AC$24:AC$223,MATCH('Curve verification'!U76,'Calculation (power based)'!A$24:A$223,0))),#N/A) ->  | W76: =IF(NOT(ISNA(V76)),INDEX('Pump database'!J$24:J$223,MATCH(U76,'Calculation (power based)'!A$24:A$223,0))+V76*(INDEX('Pump database'!O$24:O$223,MATCH(U76,'Calculation (power based)'!A$24:A$223,0))-INDEX('Pump database'!J$24:J$223,MATCH(U76,'Calculation (power based)'!A$24:A$223,0))),#N/A) ->  | AA76: =IF(NOT(ISNA(V76)),INDEX('Pump database'!L$24:L$223,MATCH(U76,'Calculation (power based)'!A$24:A$223,0))+V76*(INDEX('Pump database'!Q$24:Q$223,MATCH(U76,'Calculation (power based)'!A$24:A$223,0))-INDEX('Pump database'!L$24:L$223,MATCH(U76,'Calculation (power based)'!A$24:A$223,0))),#N/A) ->  | AE76: =INDEX(type_array,MATCH('Curve verification'!U76,'Calculation (power based)'!A$24:A$223,0)) -> 
I77: =IF(NOT(ISNA(V77)),INDEX('Calculation (power based)'!AG$24:AG$223,MATCH(U77,'Calculation (power based)'!A$24:A$223,0))+V77*(INDEX('Calculation (power based)'!AI$24:AI$223,MATCH(U77,'Calculation (power based)'!A$24:A$223,0))-INDEX('Calculation (power based)'!AG$24:AG$223,MATCH(U77,'Calculation (power based)'!A$24:A$223,0))),#N/A) ->  | M77: =IF(NOT(ISNA(V77)),INDEX('Calculation (power based)'!AH$24:AH$223,MATCH(U77,'Calculation (power based)'!A$24:A$223,0))+V77*(INDEX('Calculation (power based)'!AJ$24:AJ$223,MATCH(U77,'Calculation (power based)'!A$24:A$223,0))-INDEX('Calculation (power based)'!AH$24:AH$223,MATCH(U77,'Calculation (power based)'!A$24:A$223,0))),#N/A) ->  | U77: =INDEX('Calculation (power based)'!A$24:A$223,MATCH(B77,'Calculation (power based)'!AS$24:AS$223,0)) ->  | V77: =IF(AND(C77>=INDEX('Calculation (power based)'!AC$24:AC$223,MATCH('Curve verification'!U77,'Calculation (power based)'!A$24:A$223,0)),C77<=INDEX('Calculation (power based)'!AD$24:AD$223,MATCH('Curve verification'!U77,'Calculation (power based)'!A$24:A$223,0))),(C77-INDEX('Calculation (power based)'!AC$24:AC$223,MATCH('Curve verification'!U77,'Calculation (power based)'!A$24:A$223,0)))/(INDEX('Calculation (power based)'!AD$24:AD$223,MATCH('Curve verification'!U77,'Calculation (power based)'!A$24:A$223,0))-INDEX('Calculation (power based)'!AC$24:AC$223,MATCH('Curve verification'!U77,'Calculation (power based)'!A$24:A$223,0))),#N/A) ->  | W77: =IF(NOT(ISNA(V77)),INDEX('Pump database'!J$24:J$223,MATCH(U77,'Calculation (power based)'!A$24:A$223,0))+V77*(INDEX('Pump database'!O$24:O$223,MATCH(U77,'Calculation (power based)'!A$24:A$223,0))-INDEX('Pump database'!J$24:J$223,MATCH(U77,'Calculation (power based)'!A$24:A$223,0))),#N/A) ->  | AA77: =IF(NOT(ISNA(V77)),INDEX('Pump database'!L$24:L$223,MATCH(U77,'Calculation (power based)'!A$24:A$223,0))+V77*(INDEX('Pump database'!Q$24:Q$223,MATCH(U77,'Calculation (power based)'!A$24:A$223,0))-INDEX('Pump database'!L$24:L$223,MATCH(U77,'Calculation (power based)'!A$24:A$223,0))),#N/A) ->  | AE77: =INDEX(type_array,MATCH('Curve verification'!U77,'Calculation (power based)'!A$24:A$223,0)) -> 
I78: =IF(NOT(ISNA(V78)),INDEX('Calculation (power based)'!AG$24:AG$223,MATCH(U78,'Calculation (power based)'!A$24:A$223,0))+V78*(INDEX('Calculation (power based)'!AI$24:AI$223,MATCH(U78,'Calculation (power based)'!A$24:A$223,0))-INDEX('Calculation (power based)'!AG$24:AG$223,MATCH(U78,'Calculation (power based)'!A$24:A$223,0))),#N/A) ->  | M78: =IF(NOT(ISNA(V78)),INDEX('Calculation (power based)'!AH$24:AH$223,MATCH(U78,'Calculation (power based)'!A$24:A$223,0))+V78*(INDEX('Calculation (power based)'!AJ$24:AJ$223,MATCH(U78,'Calculation (power based)'!A$24:A$223,0))-INDEX('Calculation (power based)'!AH$24:AH$223,MATCH(U78,'Calculation (power based)'!A$24:A$223,0))),#N/A) ->  | U78: =INDEX('Calculation (power based)'!A$24:A$223,MATCH(B78,'Calculation (power based)'!AS$24:AS$223,0)) ->  | V78: =IF(AND(C78>=INDEX('Calculation (power based)'!AC$24:AC$223,MATCH('Curve verification'!U78,'Calculation (power based)'!A$24:A$223,0)),C78<=INDEX('Calculation (power based)'!AD$24:AD$223,MATCH('Curve verification'!U78,'Calculation (power based)'!A$24:A$223,0))),(C78-INDEX('Calculation (power based)'!AC$24:AC$223,MATCH('Curve verification'!U78,'Calculation (power based)'!A$24:A$223,0)))/(INDEX('Calculation (power based)'!AD$24:AD$223,MATCH('Curve verification'!U78,'Calculation (power based)'!A$24:A$223,0))-INDEX('Calculation (power based)'!AC$24:AC$223,MATCH('Curve verification'!U78,'Calculation (power based)'!A$24:A$223,0))),#N/A) ->  | W78: =IF(NOT(ISNA(V78)),INDEX('Pump database'!J$24:J$223,MATCH(U78,'Calculation (power based)'!A$24:A$223,0))+V78*(INDEX('Pump database'!O$24:O$223,MATCH(U78,'Calculation (power based)'!A$24:A$223,0))-INDEX('Pump database'!J$24:J$223,MATCH(U78,'Calculation (power based)'!A$24:A$223,0))),#N/A) ->  | AA78: =IF(NOT(ISNA(V78)),INDEX('Pump database'!L$24:L$223,MATCH(U78,'Calculation (power based)'!A$24:A$223,0))+V78*(INDEX('Pump database'!Q$24:Q$223,MATCH(U78,'Calculation (power based)'!A$24:A$223,0))-INDEX('Pump database'!L$24:L$223,MATCH(U78,'Calculation (power based)'!A$24:A$223,0))),#N/A) ->  | AE78: =INDEX(type_array,MATCH('Curve verification'!U78,'Calculation (power based)'!A$24:A$223,0)) -> 
I79: =IF(NOT(ISNA(V79)),INDEX('Calculation (power based)'!AG$24:AG$223,MATCH(U79,'Calculation (power based)'!A$24:A$223,0))+V79*(INDEX('Calculation (power based)'!AI$24:AI$223,MATCH(U79,'Calculation (power based)'!A$24:A$223,0))-INDEX('Calculation (power based)'!AG$24:AG$223,MATCH(U79,'Calculation (power based)'!A$24:A$223,0))),#N/A) ->  | M79: =IF(NOT(ISNA(V79)),INDEX('Calculation (power based)'!AH$24:AH$223,MATCH(U79,'Calculation (power based)'!A$24:A$223,0))+V79*(INDEX('Calculation (power based)'!AJ$24:AJ$223,MATCH(U79,'Calculation (power based)'!A$24:A$223,0))-INDEX('Calculation (power based)'!AH$24:AH$223,MATCH(U79,'Calculation (power based)'!A$24:A$223,0))),#N/A) ->  | U79: =INDEX('Calculation (power based)'!A$24:A$223,MATCH(B79,'Calculation (power based)'!AS$24:AS$223,0)) ->  | V79: =IF(AND(C79>=INDEX('Calculation (power based)'!AC$24:AC$223,MATCH('Curve verification'!U79,'Calculation (power based)'!A$24:A$223,0)),C79<=INDEX('Calculation (power based)'!AD$24:AD$223,MATCH('Curve verification'!U79,'Calculation (power based)'!A$24:A$223,0))),(C79-INDEX('Calculation (power based)'!AC$24:AC$223,MATCH('Curve verification'!U79,'Calculation (power based)'!A$24:A$223,0)))/(INDEX('Calculation (power based)'!AD$24:AD$223,MATCH('Curve verification'!U79,'Calculation (power based)'!A$24:A$223,0))-INDEX('Calculation (power based)'!AC$24:AC$223,MATCH('Curve verification'!U79,'Calculation (power based)'!A$24:A$223,0))),#N/A) ->  | W79: =IF(NOT(ISNA(V79)),INDEX('Pump database'!J$24:J$223,MATCH(U79,'Calculation (power based)'!A$24:A$223,0))+V79*(INDEX('Pump database'!O$24:O$223,MATCH(U79,'Calculation (power based)'!A$24:A$223,0))-INDEX('Pump database'!J$24:J$223,MATCH(U79,'Calculation (power based)'!A$24:A$223,0))),#N/A) ->  | AA79: =IF(NOT(ISNA(V79)),INDEX('Pump database'!L$24:L$223,MATCH(U79,'Calculation (power based)'!A$24:A$223,0))+V79*(INDEX('Pump database'!Q$24:Q$223,MATCH(U79,'Calculation (power based)'!A$24:A$223,0))-INDEX('Pump database'!L$24:L$223,MATCH(U79,'Calculation (power based)'!A$24:A$223,0))),#N/A) ->  | AE79: =INDEX(type_array,MATCH('Curve verification'!U79,'Calculation (power based)'!A$24:A$223,0)) -> 
I80: =IF(NOT(ISNA(V80)),INDEX('Calculation (power based)'!AG$24:AG$223,MATCH(U80,'Calculation (power based)'!A$24:A$223,0))+V80*(INDEX('Calculation (power based)'!AI$24:AI$223,MATCH(U80,'Calculation (power based)'!A$24:A$223,0))-INDEX('Calculation (power based)'!AG$24:AG$223,MATCH(U80,'Calculation (power based)'!A$24:A$223,0))),#N/A) ->  | M80: =IF(NOT(ISNA(V80)),INDEX('Calculation (power based)'!AH$24:AH$223,MATCH(U80,'Calculation (power based)'!A$24:A$223,0))+V80*(INDEX('Calculation (power based)'!AJ$24:AJ$223,MATCH(U80,'Calculation (power based)'!A$24:A$223,0))-INDEX('Calculation (power based)'!AH$24:AH$223,MATCH(U80,'Calculation (power based)'!A$24:A$223,0))),#N/A) ->  | U80: =INDEX('Calculation (power based)'!A$24:A$223,MATCH(B80,'Calculation (power based)'!AS$24:AS$223,0)) ->  | V80: =IF(AND(C80>=INDEX('Calculation (power based)'!AC$24:AC$223,MATCH('Curve verification'!U80,'Calculation (power based)'!A$24:A$223,0)),C80<=INDEX('Calculation (power based)'!AD$24:AD$223,MATCH('Curve verification'!U80,'Calculation (power based)'!A$24:A$223,0))),(C80-INDEX('Calculation (power based)'!AC$24:AC$223,MATCH('Curve verification'!U80,'Calculation (power based)'!A$24:A$223,0)))/(INDEX('Calculation (power based)'!AD$24:AD$223,MATCH('Curve verification'!U80,'Calculation (power based)'!A$24:A$223,0))-INDEX('Calculation (power based)'!AC$24:AC$223,MATCH('Curve verification'!U80,'Calculation (power based)'!A$24:A$223,0))),#N/A) ->  | W80: =IF(NOT(ISNA(V80)),INDEX('Pump database'!J$24:J$223,MATCH(U80,'Calculation (power based)'!A$24:A$223,0))+V80*(INDEX('Pump database'!O$24:O$223,MATCH(U80,'Calculation (power based)'!A$24:A$223,0))-INDEX('Pump database'!J$24:J$223,MATCH(U80,'Calculation (power based)'!A$24:A$223,0))),#N/A) ->  | AA80: =IF(NOT(ISNA(V80)),INDEX('Pump database'!L$24:L$223,MATCH(U80,'Calculation (power based)'!A$24:A$223,0))+V80*(INDEX('Pump database'!Q$24:Q$223,MATCH(U80,'Calculation (power based)'!A$24:A$223,0))-INDEX('Pump database'!L$24:L$223,MATCH(U80,'Calculation (power based)'!A$24:A$223,0))),#N/A) ->  | AE80: =INDEX(type_array,MATCH('Curve verification'!U80,'Calculation (power based)'!A$24:A$223,0)) -> 
I81: =IF(NOT(ISNA(V81)),INDEX('Calculation (power based)'!AG$24:AG$223,MATCH(U81,'Calculation (power based)'!A$24:A$223,0))+V81*(INDEX('Calculation (power based)'!AI$24:AI$223,MATCH(U81,'Calculation (power based)'!A$24:A$223,0))-INDEX('Calculation (power based)'!AG$24:AG$223,MATCH(U81,'Calculation (power based)'!A$24:A$223,0))),#N/A) ->  | M81: =IF(NOT(ISNA(V81)),INDEX('Calculation (power based)'!AH$24:AH$223,MATCH(U81,'Calculation (power based)'!A$24:A$223,0))+V81*(INDEX('Calculation (power based)'!AJ$24:AJ$223,MATCH(U81,'Calculation (power based)'!A$24:A$223,0))-INDEX('Calculation (power based)'!AH$24:AH$223,MATCH(U81,'Calculation (power based)'!A$24:A$223,0))),#N/A) ->  | U81: =INDEX('Calculation (power based)'!A$24:A$223,MATCH(B81,'Calculation (power based)'!AS$24:AS$223,0)) ->  | V81: =IF(AND(C81>=INDEX('Calculation (power based)'!AC$24:AC$223,MATCH('Curve verification'!U81,'Calculation (power based)'!A$24:A$223,0)),C81<=INDEX('Calculation (power based)'!AD$24:AD$223,MATCH('Curve verification'!U81,'Calculation (power based)'!A$24:A$223,0))),(C81-INDEX('Calculation (power based)'!AC$24:AC$223,MATCH('Curve verification'!U81,'Calculation (power based)'!A$24:A$223,0)))/(INDEX('Calculation (power based)'!AD$24:AD$223,MATCH('Curve verification'!U81,'Calculation (power based)'!A$24:A$223,0))-INDEX('Calculation (power based)'!AC$24:AC$223,MATCH('Curve verification'!U81,'Calculation (power based)'!A$24:A$223,0))),#N/A) ->  | W81: =IF(NOT(ISNA(V81)),INDEX('Pump database'!J$24:J$223,MATCH(U81,'Calculation (power based)'!A$24:A$223,0))+V81*(INDEX('Pump database'!O$24:O$223,MATCH(U81,'Calculation (power based)'!A$24:A$223,0))-INDEX('Pump database'!J$24:J$223,MATCH(U81,'Calculation (power based)'!A$24:A$223,0))),#N/A) ->  | AA81: =IF(NOT(ISNA(V81)),INDEX('Pump database'!L$24:L$223,MATCH(U81,'Calculation (power based)'!A$24:A$223,0))+V81*(INDEX('Pump database'!Q$24:Q$223,MATCH(U81,'Calculation (power based)'!A$24:A$223,0))-INDEX('Pump database'!L$24:L$223,MATCH(U81,'Calculation (power based)'!A$24:A$223,0))),#N/A) ->  | AE81: =INDEX(type_array,MATCH('Curve verification'!U81,'Calculation (power based)'!A$24:A$223,0)) -> 
I82: =IF(NOT(ISNA(V82)),INDEX('Calculation (power based)'!AG$24:AG$223,MATCH(U82,'Calculation (power based)'!A$24:A$223,0))+V82*(INDEX('Calculation (power based)'!AI$24:AI$223,MATCH(U82,'Calculation (power based)'!A$24:A$223,0))-INDEX('Calculation (power based)'!AG$24:AG$223,MATCH(U82,'Calculation (power based)'!A$24:A$223,0))),#N/A) ->  | M82: =IF(NOT(ISNA(V82)),INDEX('Calculation (power based)'!AH$24:AH$223,MATCH(U82,'Calculation (power based)'!A$24:A$223,0))+V82*(INDEX('Calculation (power based)'!AJ$24:AJ$223,MATCH(U82,'Calculation (power based)'!A$24:A$223,0))-INDEX('Calculation (power based)'!AH$24:AH$223,MATCH(U82,'Calculation (power based)'!A$24:A$223,0))),#N/A) ->  | U82: =INDEX('Calculation (power based)'!A$24:A$223,MATCH(B82,'Calculation (power based)'!AS$24:AS$223,0)) ->  | V82: =IF(AND(C82>=INDEX('Calculation (power based)'!AC$24:AC$223,MATCH('Curve verification'!U82,'Calculation (power based)'!A$24:A$223,0)),C82<=INDEX('Calculation (power based)'!AD$24:AD$223,MATCH('Curve verification'!U82,'Calculation (power based)'!A$24:A$223,0))),(C82-INDEX('Calculation (power based)'!AC$24:AC$223,MATCH('Curve verification'!U82,'Calculation (power based)'!A$24:A$223,0)))/(INDEX('Calculation (power based)'!AD$24:AD$223,MATCH('Curve verification'!U82,'Calculation (power based)'!A$24:A$223,0))-INDEX('Calculation (power based)'!AC$24:AC$223,MATCH('Curve verification'!U82,'Calculation (power based)'!A$24:A$223,0))),#N/A) ->  | W82: =IF(NOT(ISNA(V82)),INDEX('Pump database'!J$24:J$223,MATCH(U82,'Calculation (power based)'!A$24:A$223,0))+V82*(INDEX('Pump database'!O$24:O$223,MATCH(U82,'Calculation (power based)'!A$24:A$223,0))-INDEX('Pump database'!J$24:J$223,MATCH(U82,'Calculation (power based)'!A$24:A$223,0))),#N/A) ->  | AA82: =IF(NOT(ISNA(V82)),INDEX('Pump database'!L$24:L$223,MATCH(U82,'Calculation (power based)'!A$24:A$223,0))+V82*(INDEX('Pump database'!Q$24:Q$223,MATCH(U82,'Calculation (power based)'!A$24:A$223,0))-INDEX('Pump database'!L$24:L$223,MATCH(U82,'Calculation (power based)'!A$24:A$223,0))),#N/A) ->  | AE82: =INDEX(type_array,MATCH('Curve verification'!U82,'Calculation (power based)'!A$24:A$223,0)) -> 
I83: =IF(NOT(ISNA(V83)),INDEX('Calculation (power based)'!AG$24:AG$223,MATCH(U83,'Calculation (power based)'!A$24:A$223,0))+V83*(INDEX('Calculation (power based)'!AI$24:AI$223,MATCH(U83,'Calculation (power based)'!A$24:A$223,0))-INDEX('Calculation (power based)'!AG$24:AG$223,MATCH(U83,'Calculation (power based)'!A$24:A$223,0))),#N/A) ->  | M83: =IF(NOT(ISNA(V83)),INDEX('Calculation (power based)'!AH$24:AH$223,MATCH(U83,'Calculation (power based)'!A$24:A$223,0))+V83*(INDEX('Calculation (power based)'!AJ$24:AJ$223,MATCH(U83,'Calculation (power based)'!A$24:A$223,0))-INDEX('Calculation (power based)'!AH$24:AH$223,MATCH(U83,'Calculation (power based)'!A$24:A$223,0))),#N/A) ->  | U83: =INDEX('Calculation (power based)'!A$24:A$223,MATCH(B83,'Calculation (power based)'!AS$24:AS$223,0)) ->  | V83: =IF(AND(C83>=INDEX('Calculation (power based)'!AC$24:AC$223,MATCH('Curve verification'!U83,'Calculation (power based)'!A$24:A$223,0)),C83<=INDEX('Calculation (power based)'!AD$24:AD$223,MATCH('Curve verification'!U83,'Calculation (power based)'!A$24:A$223,0))),(C83-INDEX('Calculation (power based)'!AC$24:AC$223,MATCH('Curve verification'!U83,'Calculation (power based)'!A$24:A$223,0)))/(INDEX('Calculation (power based)'!AD$24:AD$223,MATCH('Curve verification'!U83,'Calculation (power based)'!A$24:A$223,0))-INDEX('Calculation (power based)'!AC$24:AC$223,MATCH('Curve verification'!U83,'Calculation (power based)'!A$24:A$223,0))),#N/A) ->  | W83: =IF(NOT(ISNA(V83)),INDEX('Pump database'!J$24:J$223,MATCH(U83,'Calculation (power based)'!A$24:A$223,0))+V83*(INDEX('Pump database'!O$24:O$223,MATCH(U83,'Calculation (power based)'!A$24:A$223,0))-INDEX('Pump database'!J$24:J$223,MATCH(U83,'Calculation (power based)'!A$24:A$223,0))),#N/A) ->  | AA83: =IF(NOT(ISNA(V83)),INDEX('Pump database'!L$24:L$223,MATCH(U83,'Calculation (power based)'!A$24:A$223,0))+V83*(INDEX('Pump database'!Q$24:Q$223,MATCH(U83,'Calculation (power based)'!A$24:A$223,0))-INDEX('Pump database'!L$24:L$223,MATCH(U83,'Calculation (power based)'!A$24:A$223,0))),#N/A) ->  | AE83: =INDEX(type_array,MATCH('Curve verification'!U83,'Calculation (power based)'!A$24:A$223,0)) -> 
I84: =IF(NOT(ISNA(V84)),INDEX('Calculation (power based)'!AG$24:AG$223,MATCH(U84,'Calculation (power based)'!A$24:A$223,0))+V84*(INDEX('Calculation (power based)'!AI$24:AI$223,MATCH(U84,'Calculation (power based)'!A$24:A$223,0))-INDEX('Calculation (power based)'!AG$24:AG$223,MATCH(U84,'Calculation (power based)'!A$24:A$223,0))),#N/A) ->  | M84: =IF(NOT(ISNA(V84)),INDEX('Calculation (power based)'!AH$24:AH$223,MATCH(U84,'Calculation (power based)'!A$24:A$223,0))+V84*(INDEX('Calculation (power based)'!AJ$24:AJ$223,MATCH(U84,'Calculation (power based)'!A$24:A$223,0))-INDEX('Calculation (power based)'!AH$24:AH$223,MATCH(U84,'Calculation (power based)'!A$24:A$223,0))),#N/A) ->  | U84: =INDEX('Calculation (power based)'!A$24:A$223,MATCH(B84,'Calculation (power based)'!AS$24:AS$223,0)) ->  | V84: =IF(AND(C84>=INDEX('Calculation (power based)'!AC$24:AC$223,MATCH('Curve verification'!U84,'Calculation (power based)'!A$24:A$223,0)),C84<=INDEX('Calculation (power based)'!AD$24:AD$223,MATCH('Curve verification'!U84,'Calculation (power based)'!A$24:A$223,0))),(C84-INDEX('Calculation (power based)'!AC$24:AC$223,MATCH('Curve verification'!U84,'Calculation (power based)'!A$24:A$223,0)))/(INDEX('Calculation (power based)'!AD$24:AD$223,MATCH('Curve verification'!U84,'Calculation (power based)'!A$24:A$223,0))-INDEX('Calculation (power based)'!AC$24:AC$223,MATCH('Curve verification'!U84,'Calculation (power based)'!A$24:A$223,0))),#N/A) ->  | W84: =IF(NOT(ISNA(V84)),INDEX('Pump database'!J$24:J$223,MATCH(U84,'Calculation (power based)'!A$24:A$223,0))+V84*(INDEX('Pump database'!O$24:O$223,MATCH(U84,'Calculation (power based)'!A$24:A$223,0))-INDEX('Pump database'!J$24:J$223,MATCH(U84,'Calculation (power based)'!A$24:A$223,0))),#N/A) ->  | AA84: =IF(NOT(ISNA(V84)),INDEX('Pump database'!L$24:L$223,MATCH(U84,'Calculation (power based)'!A$24:A$223,0))+V84*(INDEX('Pump database'!Q$24:Q$223,MATCH(U84,'Calculation (power based)'!A$24:A$223,0))-INDEX('Pump database'!L$24:L$223,MATCH(U84,'Calculation (power based)'!A$24:A$223,0))),#N/A) ->  | AE84: =INDEX(type_array,MATCH('Curve verification'!U84,'Calculation (power based)'!A$24:A$223,0)) -> 
I85: =IF(NOT(ISNA(V85)),INDEX('Calculation (power based)'!AG$24:AG$223,MATCH(U85,'Calculation (power based)'!A$24:A$223,0))+V85*(INDEX('Calculation (power based)'!AI$24:AI$223,MATCH(U85,'Calculation (power based)'!A$24:A$223,0))-INDEX('Calculation (power based)'!AG$24:AG$223,MATCH(U85,'Calculation (power based)'!A$24:A$223,0))),#N/A) ->  | M85: =IF(NOT(ISNA(V85)),INDEX('Calculation (power based)'!AH$24:AH$223,MATCH(U85,'Calculation (power based)'!A$24:A$223,0))+V85*(INDEX('Calculation (power based)'!AJ$24:AJ$223,MATCH(U85,'Calculation (power based)'!A$24:A$223,0))-INDEX('Calculation (power based)'!AH$24:AH$223,MATCH(U85,'Calculation (power based)'!A$24:A$223,0))),#N/A) ->  | U85: =INDEX('Calculation (power based)'!A$24:A$223,MATCH(B85,'Calculation (power based)'!AS$24:AS$223,0)) ->  | V85: =IF(AND(C85>=INDEX('Calculation (power based)'!AC$24:AC$223,MATCH('Curve verification'!U85,'Calculation (power based)'!A$24:A$223,0)),C85<=INDEX('Calculation (power based)'!AD$24:AD$223,MATCH('Curve verification'!U85,'Calculation (power based)'!A$24:A$223,0))),(C85-INDEX('Calculation (power based)'!AC$24:AC$223,MATCH('Curve verification'!U85,'Calculation (power based)'!A$24:A$223,0)))/(INDEX('Calculation (power based)'!AD$24:AD$223,MATCH('Curve verification'!U85,'Calculation (power based)'!A$24:A$223,0))-INDEX('Calculation (power based)'!AC$24:AC$223,MATCH('Curve verification'!U85,'Calculation (power based)'!A$24:A$223,0))),#N/A) ->  | W85: =IF(NOT(ISNA(V85)),INDEX('Pump database'!J$24:J$223,MATCH(U85,'Calculation (power based)'!A$24:A$223,0))+V85*(INDEX('Pump database'!O$24:O$223,MATCH(U85,'Calculation (power based)'!A$24:A$223,0))-INDEX('Pump database'!J$24:J$223,MATCH(U85,'Calculation (power based)'!A$24:A$223,0))),#N/A) ->  | AA85: =IF(NOT(ISNA(V85)),INDEX('Pump database'!L$24:L$223,MATCH(U85,'Calculation (power based)'!A$24:A$223,0))+V85*(INDEX('Pump database'!Q$24:Q$223,MATCH(U85,'Calculation (power based)'!A$24:A$223,0))-INDEX('Pump database'!L$24:L$223,MATCH(U85,'Calculation (power based)'!A$24:A$223,0))),#N/A) ->  | AE85: =INDEX(type_array,MATCH('Curve verification'!U85,'Calculation (power based)'!A$24:A$223,0)) -> 
I86: =IF(NOT(ISNA(V86)),INDEX('Calculation (power based)'!AG$24:AG$223,MATCH(U86,'Calculation (power based)'!A$24:A$223,0))+V86*(INDEX('Calculation (power based)'!AI$24:AI$223,MATCH(U86,'Calculation (power based)'!A$24:A$223,0))-INDEX('Calculation (power based)'!AG$24:AG$223,MATCH(U86,'Calculation (power based)'!A$24:A$223,0))),#N/A) ->  | M86: =IF(NOT(ISNA(V86)),INDEX('Calculation (power based)'!AH$24:AH$223,MATCH(U86,'Calculation (power based)'!A$24:A$223,0))+V86*(INDEX('Calculation (power based)'!AJ$24:AJ$223,MATCH(U86,'Calculation (power based)'!A$24:A$223,0))-INDEX('Calculation (power based)'!AH$24:AH$223,MATCH(U86,'Calculation (power based)'!A$24:A$223,0))),#N/A) ->  | U86: =INDEX('Calculation (power based)'!A$24:A$223,MATCH(B86,'Calculation (power based)'!AS$24:AS$223,0)) ->  | V86: =IF(AND(C86>=INDEX('Calculation (power based)'!AC$24:AC$223,MATCH('Curve verification'!U86,'Calculation (power based)'!A$24:A$223,0)),C86<=INDEX('Calculation (power based)'!AD$24:AD$223,MATCH('Curve verification'!U86,'Calculation (power based)'!A$24:A$223,0))),(C86-INDEX('Calculation (power based)'!AC$24:AC$223,MATCH('Curve verification'!U86,'Calculation (power based)'!A$24:A$223,0)))/(INDEX('Calculation (power based)'!AD$24:AD$223,MATCH('Curve verification'!U86,'Calculation (power based)'!A$24:A$223,0))-INDEX('Calculation (power based)'!AC$24:AC$223,MATCH('Curve verification'!U86,'Calculation (power based)'!A$24:A$223,0))),#N/A) ->  | W86: =IF(NOT(ISNA(V86)),INDEX('Pump database'!J$24:J$223,MATCH(U86,'Calculation (power based)'!A$24:A$223,0))+V86*(INDEX('Pump database'!O$24:O$223,MATCH(U86,'Calculation (power based)'!A$24:A$223,0))-INDEX('Pump database'!J$24:J$223,MATCH(U86,'Calculation (power based)'!A$24:A$223,0))),#N/A) ->  | AA86: =IF(NOT(ISNA(V86)),INDEX('Pump database'!L$24:L$223,MATCH(U86,'Calculation (power based)'!A$24:A$223,0))+V86*(INDEX('Pump database'!Q$24:Q$223,MATCH(U86,'Calculation (power based)'!A$24:A$223,0))-INDEX('Pump database'!L$24:L$223,MATCH(U86,'Calculation (power based)'!A$24:A$223,0))),#N/A) ->  | AE86: =INDEX(type_array,MATCH('Curve verification'!U86,'Calculation (power based)'!A$24:A$223,0)) -> 
I87: =IF(NOT(ISNA(V87)),INDEX('Calculation (power based)'!AG$24:AG$223,MATCH(U87,'Calculation (power based)'!A$24:A$223,0))+V87*(INDEX('Calculation (power based)'!AI$24:AI$223,MATCH(U87,'Calculation (power based)'!A$24:A$223,0))-INDEX('Calculation (power based)'!AG$24:AG$223,MATCH(U87,'Calculation (power based)'!A$24:A$223,0))),#N/A) ->  | M87: =IF(NOT(ISNA(V87)),INDEX('Calculation (power based)'!AH$24:AH$223,MATCH(U87,'Calculation (power based)'!A$24:A$223,0))+V87*(INDEX('Calculation (power based)'!AJ$24:AJ$223,MATCH(U87,'Calculation (power based)'!A$24:A$223,0))-INDEX('Calculation (power based)'!AH$24:AH$223,MATCH(U87,'Calculation (power based)'!A$24:A$223,0))),#N/A) ->  | U87: =INDEX('Calculation (power based)'!A$24:A$223,MATCH(B87,'Calculation (power based)'!AS$24:AS$223,0)) ->  | V87: =IF(AND(C87>=INDEX('Calculation (power based)'!AC$24:AC$223,MATCH('Curve verification'!U87,'Calculation (power based)'!A$24:A$223,0)),C87<=INDEX('Calculation (power based)'!AD$24:AD$223,MATCH('Curve verification'!U87,'Calculation (power based)'!A$24:A$223,0))),(C87-INDEX('Calculation (power based)'!AC$24:AC$223,MATCH('Curve verification'!U87,'Calculation (power based)'!A$24:A$223,0)))/(INDEX('Calculation (power based)'!AD$24:AD$223,MATCH('Curve verification'!U87,'Calculation (power based)'!A$24:A$223,0))-INDEX('Calculation (power based)'!AC$24:AC$223,MATCH('Curve verification'!U87,'Calculation (power based)'!A$24:A$223,0))),#N/A) ->  | W87: =IF(NOT(ISNA(V87)),INDEX('Pump database'!J$24:J$223,MATCH(U87,'Calculation (power based)'!A$24:A$223,0))+V87*(INDEX('Pump database'!O$24:O$223,MATCH(U87,'Calculation (power based)'!A$24:A$223,0))-INDEX('Pump database'!J$24:J$223,MATCH(U87,'Calculation (power based)'!A$24:A$223,0))),#N/A) ->  | AA87: =IF(NOT(ISNA(V87)),INDEX('Pump database'!L$24:L$223,MATCH(U87,'Calculation (power based)'!A$24:A$223,0))+V87*(INDEX('Pump database'!Q$24:Q$223,MATCH(U87,'Calculation (power based)'!A$24:A$223,0))-INDEX('Pump database'!L$24:L$223,MATCH(U87,'Calculation (power based)'!A$24:A$223,0))),#N/A) ->  | AE87: =INDEX(type_array,MATCH('Curve verification'!U87,'Calculation (power based)'!A$24:A$223,0)) -> 
I88: =IF(NOT(ISNA(V88)),INDEX('Calculation (power based)'!AG$24:AG$223,MATCH(U88,'Calculation (power based)'!A$24:A$223,0))+V88*(INDEX('Calculation (power based)'!AI$24:AI$223,MATCH(U88,'Calculation (power based)'!A$24:A$223,0))-INDEX('Calculation (power based)'!AG$24:AG$223,MATCH(U88,'Calculation (power based)'!A$24:A$223,0))),#N/A) ->  | M88: =IF(NOT(ISNA(V88)),INDEX('Calculation (power based)'!AH$24:AH$223,MATCH(U88,'Calculation (power based)'!A$24:A$223,0))+V88*(INDEX('Calculation (power based)'!AJ$24:AJ$223,MATCH(U88,'Calculation (power based)'!A$24:A$223,0))-INDEX('Calculation (power based)'!AH$24:AH$223,MATCH(U88,'Calculation (power based)'!A$24:A$223,0))),#N/A) ->  | U88: =INDEX('Calculation (power based)'!A$24:A$223,MATCH(B88,'Calculation (power based)'!AS$24:AS$223,0)) ->  | V88: =IF(AND(C88>=INDEX('Calculation (power based)'!AC$24:AC$223,MATCH('Curve verification'!U88,'Calculation (power based)'!A$24:A$223,0)),C88<=INDEX('Calculation (power based)'!AD$24:AD$223,MATCH('Curve verification'!U88,'Calculation (power based)'!A$24:A$223,0))),(C88-INDEX('Calculation (power based)'!AC$24:AC$223,MATCH('Curve verification'!U88,'Calculation (power based)'!A$24:A$223,0)))/(INDEX('Calculation (power based)'!AD$24:AD$223,MATCH('Curve verification'!U88,'Calculation (power based)'!A$24:A$223,0))-INDEX('Calculation (power based)'!AC$24:AC$223,MATCH('Curve verification'!U88,'Calculation (power based)'!A$24:A$223,0))),#N/A) ->  | W88: =IF(NOT(ISNA(V88)),INDEX('Pump database'!J$24:J$223,MATCH(U88,'Calculation (power based)'!A$24:A$223,0))+V88*(INDEX('Pump database'!O$24:O$223,MATCH(U88,'Calculation (power based)'!A$24:A$223,0))-INDEX('Pump database'!J$24:J$223,MATCH(U88,'Calculation (power based)'!A$24:A$223,0))),#N/A) ->  | AA88: =IF(NOT(ISNA(V88)),INDEX('Pump database'!L$24:L$223,MATCH(U88,'Calculation (power based)'!A$24:A$223,0))+V88*(INDEX('Pump database'!Q$24:Q$223,MATCH(U88,'Calculation (power based)'!A$24:A$223,0))-INDEX('Pump database'!L$24:L$223,MATCH(U88,'Calculation (power based)'!A$24:A$223,0))),#N/A) ->  | AE88: =INDEX(type_array,MATCH('Curve verification'!U88,'Calculation (power based)'!A$24:A$223,0)) -> 
I89: =IF(NOT(ISNA(V89)),INDEX('Calculation (power based)'!AG$24:AG$223,MATCH(U89,'Calculation (power based)'!A$24:A$223,0))+V89*(INDEX('Calculation (power based)'!AI$24:AI$223,MATCH(U89,'Calculation (power based)'!A$24:A$223,0))-INDEX('Calculation (power based)'!AG$24:AG$223,MATCH(U89,'Calculation (power based)'!A$24:A$223,0))),#N/A) ->  | M89: =IF(NOT(ISNA(V89)),INDEX('Calculation (power based)'!AH$24:AH$223,MATCH(U89,'Calculation (power based)'!A$24:A$223,0))+V89*(INDEX('Calculation (power based)'!AJ$24:AJ$223,MATCH(U89,'Calculation (power based)'!A$24:A$223,0))-INDEX('Calculation (power based)'!AH$24:AH$223,MATCH(U89,'Calculation (power based)'!A$24:A$223,0))),#N/A) ->  | U89: =INDEX('Calculation (power based)'!A$24:A$223,MATCH(B89,'Calculation (power based)'!AS$24:AS$223,0)) ->  | V89: =IF(AND(C89>=INDEX('Calculation (power based)'!AC$24:AC$223,MATCH('Curve verification'!U89,'Calculation (power based)'!A$24:A$223,0)),C89<=INDEX('Calculation (power based)'!AD$24:AD$223,MATCH('Curve verification'!U89,'Calculation (power based)'!A$24:A$223,0))),(C89-INDEX('Calculation (power based)'!AC$24:AC$223,MATCH('Curve verification'!U89,'Calculation (power based)'!A$24:A$223,0)))/(INDEX('Calculation (power based)'!AD$24:AD$223,MATCH('Curve verification'!U89,'Calculation (power based)'!A$24:A$223,0))-INDEX('Calculation (power based)'!AC$24:AC$223,MATCH('Curve verification'!U89,'Calculation (power based)'!A$24:A$223,0))),#N/A) ->  | W89: =IF(NOT(ISNA(V89)),INDEX('Pump database'!J$24:J$223,MATCH(U89,'Calculation (power based)'!A$24:A$223,0))+V89*(INDEX('Pump database'!O$24:O$223,MATCH(U89,'Calculation (power based)'!A$24:A$223,0))-INDEX('Pump database'!J$24:J$223,MATCH(U89,'Calculation (power based)'!A$24:A$223,0))),#N/A) ->  | AA89: =IF(NOT(ISNA(V89)),INDEX('Pump database'!L$24:L$223,MATCH(U89,'Calculation (power based)'!A$24:A$223,0))+V89*(INDEX('Pump database'!Q$24:Q$223,MATCH(U89,'Calculation (power based)'!A$24:A$223,0))-INDEX('Pump database'!L$24:L$223,MATCH(U89,'Calculation (power based)'!A$24:A$223,0))),#N/A) ->  | AE89: =INDEX(type_array,MATCH('Curve verification'!U89,'Calculation (power based)'!A$24:A$223,0)) -> 
I90: =IF(NOT(ISNA(V90)),INDEX('Calculation (power based)'!AG$24:AG$223,MATCH(U90,'Calculation (power based)'!A$24:A$223,0))+V90*(INDEX('Calculation (power based)'!AI$24:AI$223,MATCH(U90,'Calculation (power based)'!A$24:A$223,0))-INDEX('Calculation (power based)'!AG$24:AG$223,MATCH(U90,'Calculation (power based)'!A$24:A$223,0))),#N/A) ->  | M90: =IF(NOT(ISNA(V90)),INDEX('Calculation (power based)'!AH$24:AH$223,MATCH(U90,'Calculation (power based)'!A$24:A$223,0))+V90*(INDEX('Calculation (power based)'!AJ$24:AJ$223,MATCH(U90,'Calculation (power based)'!A$24:A$223,0))-INDEX('Calculation (power based)'!AH$24:AH$223,MATCH(U90,'Calculation (power based)'!A$24:A$223,0))),#N/A) ->  | U90: =INDEX('Calculation (power based)'!A$24:A$223,MATCH(B90,'Calculation (power based)'!AS$24:AS$223,0)) ->  | V90: =IF(AND(C90>=INDEX('Calculation (power based)'!AC$24:AC$223,MATCH('Curve verification'!U90,'Calculation (power based)'!A$24:A$223,0)),C90<=INDEX('Calculation (power based)'!AD$24:AD$223,MATCH('Curve verification'!U90,'Calculation (power based)'!A$24:A$223,0))),(C90-INDEX('Calculation (power based)'!AC$24:AC$223,MATCH('Curve verification'!U90,'Calculation (power based)'!A$24:A$223,0)))/(INDEX('Calculation (power based)'!AD$24:AD$223,MATCH('Curve verification'!U90,'Calculation (power based)'!A$24:A$223,0))-INDEX('Calculation (power based)'!AC$24:AC$223,MATCH('Curve verification'!U90,'Calculation (power based)'!A$24:A$223,0))),#N/A) ->  | W90: =IF(NOT(ISNA(V90)),INDEX('Pump database'!J$24:J$223,MATCH(U90,'Calculation (power based)'!A$24:A$223,0))+V90*(INDEX('Pump database'!O$24:O$223,MATCH(U90,'Calculation (power based)'!A$24:A$223,0))-INDEX('Pump database'!J$24:J$223,MATCH(U90,'Calculation (power based)'!A$24:A$223,0))),#N/A) ->  | AA90: =IF(NOT(ISNA(V90)),INDEX('Pump database'!L$24:L$223,MATCH(U90,'Calculation (power based)'!A$24:A$223,0))+V90*(INDEX('Pump database'!Q$24:Q$223,MATCH(U90,'Calculation (power based)'!A$24:A$223,0))-INDEX('Pump database'!L$24:L$223,MATCH(U90,'Calculation (power based)'!A$24:A$223,0))),#N/A) ->  | AE90: =INDEX(type_array,MATCH('Curve verification'!U90,'Calculation (power based)'!A$24:A$223,0)) -> 
I91: =IF(NOT(ISNA(V91)),INDEX('Calculation (power based)'!AG$24:AG$223,MATCH(U91,'Calculation (power based)'!A$24:A$223,0))+V91*(INDEX('Calculation (power based)'!AI$24:AI$223,MATCH(U91,'Calculation (power based)'!A$24:A$223,0))-INDEX('Calculation (power based)'!AG$24:AG$223,MATCH(U91,'Calculation (power based)'!A$24:A$223,0))),#N/A) ->  | M91: =IF(NOT(ISNA(V91)),INDEX('Calculation (power based)'!AH$24:AH$223,MATCH(U91,'Calculation (power based)'!A$24:A$223,0))+V91*(INDEX('Calculation (power based)'!AJ$24:AJ$223,MATCH(U91,'Calculation (power based)'!A$24:A$223,0))-INDEX('Calculation (power based)'!AH$24:AH$223,MATCH(U91,'Calculation (power based)'!A$24:A$223,0))),#N/A) ->  | U91: =INDEX('Calculation (power based)'!A$24:A$223,MATCH(B91,'Calculation (power based)'!AS$24:AS$223,0)) ->  | V91: =IF(AND(C91>=INDEX('Calculation (power based)'!AC$24:AC$223,MATCH('Curve verification'!U91,'Calculation (power based)'!A$24:A$223,0)),C91<=INDEX('Calculation (power based)'!AD$24:AD$223,MATCH('Curve verification'!U91,'Calculation (power based)'!A$24:A$223,0))),(C91-INDEX('Calculation (power based)'!AC$24:AC$223,MATCH('Curve verification'!U91,'Calculation (power based)'!A$24:A$223,0)))/(INDEX('Calculation (power based)'!AD$24:AD$223,MATCH('Curve verification'!U91,'Calculation (power based)'!A$24:A$223,0))-INDEX('Calculation (power based)'!AC$24:AC$223,MATCH('Curve verification'!U91,'Calculation (power based)'!A$24:A$223,0))),#N/A) ->  | W91: =IF(NOT(ISNA(V91)),INDEX('Pump database'!J$24:J$223,MATCH(U91,'Calculation (power based)'!A$24:A$223,0))+V91*(INDEX('Pump database'!O$24:O$223,MATCH(U91,'Calculation (power based)'!A$24:A$223,0))-INDEX('Pump database'!J$24:J$223,MATCH(U91,'Calculation (power based)'!A$24:A$223,0))),#N/A) ->  | AA91: =IF(NOT(ISNA(V91)),INDEX('Pump database'!L$24:L$223,MATCH(U91,'Calculation (power based)'!A$24:A$223,0))+V91*(INDEX('Pump database'!Q$24:Q$223,MATCH(U91,'Calculation (power based)'!A$24:A$223,0))-INDEX('Pump database'!L$24:L$223,MATCH(U91,'Calculation (power based)'!A$24:A$223,0))),#N/A) ->  | AE91: =INDEX(type_array,MATCH('Curve verification'!U91,'Calculation (power based)'!A$24:A$223,0)) -> 
I92: =IF(NOT(ISNA(V92)),INDEX('Calculation (power based)'!AG$24:AG$223,MATCH(U92,'Calculation (power based)'!A$24:A$223,0))+V92*(INDEX('Calculation (power based)'!AI$24:AI$223,MATCH(U92,'Calculation (power based)'!A$24:A$223,0))-INDEX('Calculation (power based)'!AG$24:AG$223,MATCH(U92,'Calculation (power based)'!A$24:A$223,0))),#N/A) ->  | M92: =IF(NOT(ISNA(V92)),INDEX('Calculation (power based)'!AH$24:AH$223,MATCH(U92,'Calculation (power based)'!A$24:A$223,0))+V92*(INDEX('Calculation (power based)'!AJ$24:AJ$223,MATCH(U92,'Calculation (power based)'!A$24:A$223,0))-INDEX('Calculation (power based)'!AH$24:AH$223,MATCH(U92,'Calculation (power based)'!A$24:A$223,0))),#N/A) ->  | U92: =INDEX('Calculation (power based)'!A$24:A$223,MATCH(B92,'Calculation (power based)'!AS$24:AS$223,0)) ->  | V92: =IF(AND(C92>=INDEX('Calculation (power based)'!AC$24:AC$223,MATCH('Curve verification'!U92,'Calculation (power based)'!A$24:A$223,0)),C92<=INDEX('Calculation (power based)'!AD$24:AD$223,MATCH('Curve verification'!U92,'Calculation (power based)'!A$24:A$223,0))),(C92-INDEX('Calculation (power based)'!AC$24:AC$223,MATCH('Curve verification'!U92,'Calculation (power based)'!A$24:A$223,0)))/(INDEX('Calculation (power based)'!AD$24:AD$223,MATCH('Curve verification'!U92,'Calculation (power based)'!A$24:A$223,0))-INDEX('Calculation (power based)'!AC$24:AC$223,MATCH('Curve verification'!U92,'Calculation (power based)'!A$24:A$223,0))),#N/A) ->  | W92: =IF(NOT(ISNA(V92)),INDEX('Pump database'!J$24:J$223,MATCH(U92,'Calculation (power based)'!A$24:A$223,0))+V92*(INDEX('Pump database'!O$24:O$223,MATCH(U92,'Calculation (power based)'!A$24:A$223,0))-INDEX('Pump database'!J$24:J$223,MATCH(U92,'Calculation (power based)'!A$24:A$223,0))),#N/A) ->  | AA92: =IF(NOT(ISNA(V92)),INDEX('Pump database'!L$24:L$223,MATCH(U92,'Calculation (power based)'!A$24:A$223,0))+V92*(INDEX('Pump database'!Q$24:Q$223,MATCH(U92,'Calculation (power based)'!A$24:A$223,0))-INDEX('Pump database'!L$24:L$223,MATCH(U92,'Calculation (power based)'!A$24:A$223,0))),#N/A) ->  | AE92: =INDEX(type_array,MATCH('Curve verification'!U92,'Calculation (power based)'!A$24:A$223,0)) -> 
I93: =IF(NOT(ISNA(V93)),INDEX('Calculation (power based)'!AG$24:AG$223,MATCH(U93,'Calculation (power based)'!A$24:A$223,0))+V93*(INDEX('Calculation (power based)'!AI$24:AI$223,MATCH(U93,'Calculation (power based)'!A$24:A$223,0))-INDEX('Calculation (power based)'!AG$24:AG$223,MATCH(U93,'Calculation (power based)'!A$24:A$223,0))),#N/A) ->  | M93: =IF(NOT(ISNA(V93)),INDEX('Calculation (power based)'!AH$24:AH$223,MATCH(U93,'Calculation (power based)'!A$24:A$223,0))+V93*(INDEX('Calculation (power based)'!AJ$24:AJ$223,MATCH(U93,'Calculation (power based)'!A$24:A$223,0))-INDEX('Calculation (power based)'!AH$24:AH$223,MATCH(U93,'Calculation (power based)'!A$24:A$223,0))),#N/A) ->  | U93: =INDEX('Calculation (power based)'!A$24:A$223,MATCH(B93,'Calculation (power based)'!AS$24:AS$223,0)) ->  | V93: =IF(AND(C93>=INDEX('Calculation (power based)'!AC$24:AC$223,MATCH('Curve verification'!U93,'Calculation (power based)'!A$24:A$223,0)),C93<=INDEX('Calculation (power based)'!AD$24:AD$223,MATCH('Curve verification'!U93,'Calculation (power based)'!A$24:A$223,0))),(C93-INDEX('Calculation (power based)'!AC$24:AC$223,MATCH('Curve verification'!U93,'Calculation (power based)'!A$24:A$223,0)))/(INDEX('Calculation (power based)'!AD$24:AD$223,MATCH('Curve verification'!U93,'Calculation (power based)'!A$24:A$223,0))-INDEX('Calculation (power based)'!AC$24:AC$223,MATCH('Curve verification'!U93,'Calculation (power based)'!A$24:A$223,0))),#N/A) ->  | W93: =IF(NOT(ISNA(V93)),INDEX('Pump database'!J$24:J$223,MATCH(U93,'Calculation (power based)'!A$24:A$223,0))+V93*(INDEX('Pump database'!O$24:O$223,MATCH(U93,'Calculation (power based)'!A$24:A$223,0))-INDEX('Pump database'!J$24:J$223,MATCH(U93,'Calculation (power based)'!A$24:A$223,0))),#N/A) ->  | AA93: =IF(NOT(ISNA(V93)),INDEX('Pump database'!L$24:L$223,MATCH(U93,'Calculation (power based)'!A$24:A$223,0))+V93*(INDEX('Pump database'!Q$24:Q$223,MATCH(U93,'Calculation (power based)'!A$24:A$223,0))-INDEX('Pump database'!L$24:L$223,MATCH(U93,'Calculation (power based)'!A$24:A$223,0))),#N/A) ->  | AE93: =INDEX(type_array,MATCH('Curve verification'!U93,'Calculation (power based)'!A$24:A$223,0)) -> 
I94: =IF(NOT(ISNA(V94)),INDEX('Calculation (power based)'!AG$24:AG$223,MATCH(U94,'Calculation (power based)'!A$24:A$223,0))+V94*(INDEX('Calculation (power based)'!AI$24:AI$223,MATCH(U94,'Calculation (power based)'!A$24:A$223,0))-INDEX('Calculation (power based)'!AG$24:AG$223,MATCH(U94,'Calculation (power based)'!A$24:A$223,0))),#N/A) ->  | M94: =IF(NOT(ISNA(V94)),INDEX('Calculation (power based)'!AH$24:AH$223,MATCH(U94,'Calculation (power based)'!A$24:A$223,0))+V94*(INDEX('Calculation (power based)'!AJ$24:AJ$223,MATCH(U94,'Calculation (power based)'!A$24:A$223,0))-INDEX('Calculation (power based)'!AH$24:AH$223,MATCH(U94,'Calculation (power based)'!A$24:A$223,0))),#N/A) ->  | U94: =INDEX('Calculation (power based)'!A$24:A$223,MATCH(B94,'Calculation (power based)'!AS$24:AS$223,0)) ->  | V94: =IF(AND(C94>=INDEX('Calculation (power based)'!AC$24:AC$223,MATCH('Curve verification'!U94,'Calculation (power based)'!A$24:A$223,0)),C94<=INDEX('Calculation (power based)'!AD$24:AD$223,MATCH('Curve verification'!U94,'Calculation (power based)'!A$24:A$223,0))),(C94-INDEX('Calculation (power based)'!AC$24:AC$223,MATCH('Curve verification'!U94,'Calculation (power based)'!A$24:A$223,0)))/(INDEX('Calculation (power based)'!AD$24:AD$223,MATCH('Curve verification'!U94,'Calculation (power based)'!A$24:A$223,0))-INDEX('Calculation (power based)'!AC$24:AC$223,MATCH('Curve verification'!U94,'Calculation (power based)'!A$24:A$223,0))),#N/A) ->  | W94: =IF(NOT(ISNA(V94)),INDEX('Pump database'!J$24:J$223,MATCH(U94,'Calculation (power based)'!A$24:A$223,0))+V94*(INDEX('Pump database'!O$24:O$223,MATCH(U94,'Calculation (power based)'!A$24:A$223,0))-INDEX('Pump database'!J$24:J$223,MATCH(U94,'Calculation (power based)'!A$24:A$223,0))),#N/A) ->  | AA94: =IF(NOT(ISNA(V94)),INDEX('Pump database'!L$24:L$223,MATCH(U94,'Calculation (power based)'!A$24:A$223,0))+V94*(INDEX('Pump database'!Q$24:Q$223,MATCH(U94,'Calculation (power based)'!A$24:A$223,0))-INDEX('Pump database'!L$24:L$223,MATCH(U94,'Calculation (power based)'!A$24:A$223,0))),#N/A) ->  | AE94: =INDEX(type_array,MATCH('Curve verification'!U94,'Calculation (power based)'!A$24:A$223,0)) -> 
I95: =IF(NOT(ISNA(V95)),INDEX('Calculation (power based)'!AG$24:AG$223,MATCH(U95,'Calculation (power based)'!A$24:A$223,0))+V95*(INDEX('Calculation (power based)'!AI$24:AI$223,MATCH(U95,'Calculation (power based)'!A$24:A$223,0))-INDEX('Calculation (power based)'!AG$24:AG$223,MATCH(U95,'Calculation (power based)'!A$24:A$223,0))),#N/A) ->  | M95: =IF(NOT(ISNA(V95)),INDEX('Calculation (power based)'!AH$24:AH$223,MATCH(U95,'Calculation (power based)'!A$24:A$223,0))+V95*(INDEX('Calculation (power based)'!AJ$24:AJ$223,MATCH(U95,'Calculation (power based)'!A$24:A$223,0))-INDEX('Calculation (power based)'!AH$24:AH$223,MATCH(U95,'Calculation (power based)'!A$24:A$223,0))),#N/A) ->  | U95: =INDEX('Calculation (power based)'!A$24:A$223,MATCH(B95,'Calculation (power based)'!AS$24:AS$223,0)) ->  | V95: =IF(AND(C95>=INDEX('Calculation (power based)'!AC$24:AC$223,MATCH('Curve verification'!U95,'Calculation (power based)'!A$24:A$223,0)),C95<=INDEX('Calculation (power based)'!AD$24:AD$223,MATCH('Curve verification'!U95,'Calculation (power based)'!A$24:A$223,0))),(C95-INDEX('Calculation (power based)'!AC$24:AC$223,MATCH('Curve verification'!U95,'Calculation (power based)'!A$24:A$223,0)))/(INDEX('Calculation (power based)'!AD$24:AD$223,MATCH('Curve verification'!U95,'Calculation (power based)'!A$24:A$223,0))-INDEX('Calculation (power based)'!AC$24:AC$223,MATCH('Curve verification'!U95,'Calculation (power based)'!A$24:A$223,0))),#N/A) ->  | W95: =IF(NOT(ISNA(V95)),INDEX('Pump database'!J$24:J$223,MATCH(U95,'Calculation (power based)'!A$24:A$223,0))+V95*(INDEX('Pump database'!O$24:O$223,MATCH(U95,'Calculation (power based)'!A$24:A$223,0))-INDEX('Pump database'!J$24:J$223,MATCH(U95,'Calculation (power based)'!A$24:A$223,0))),#N/A) ->  | AA95: =IF(NOT(ISNA(V95)),INDEX('Pump database'!L$24:L$223,MATCH(U95,'Calculation (power based)'!A$24:A$223,0))+V95*(INDEX('Pump database'!Q$24:Q$223,MATCH(U95,'Calculation (power based)'!A$24:A$223,0))-INDEX('Pump database'!L$24:L$223,MATCH(U95,'Calculation (power based)'!A$24:A$223,0))),#N/A) ->  | AE95: =INDEX(type_array,MATCH('Curve verification'!U95,'Calculation (power based)'!A$24:A$223,0)) -> 
I96: =IF(NOT(ISNA(V96)),INDEX('Calculation (power based)'!AG$24:AG$223,MATCH(U96,'Calculation (power based)'!A$24:A$223,0))+V96*(INDEX('Calculation (power based)'!AI$24:AI$223,MATCH(U96,'Calculation (power based)'!A$24:A$223,0))-INDEX('Calculation (power based)'!AG$24:AG$223,MATCH(U96,'Calculation (power based)'!A$24:A$223,0))),#N/A) ->  | M96: =IF(NOT(ISNA(V96)),INDEX('Calculation (power based)'!AH$24:AH$223,MATCH(U96,'Calculation (power based)'!A$24:A$223,0))+V96*(INDEX('Calculation (power based)'!AJ$24:AJ$223,MATCH(U96,'Calculation (power based)'!A$24:A$223,0))-INDEX('Calculation (power based)'!AH$24:AH$223,MATCH(U96,'Calculation (power based)'!A$24:A$223,0))),#N/A) ->  | U96: =INDEX('Calculation (power based)'!A$24:A$223,MATCH(B96,'Calculation (power based)'!AS$24:AS$223,0)) ->  | V96: =IF(AND(C96>=INDEX('Calculation (power based)'!AC$24:AC$223,MATCH('Curve verification'!U96,'Calculation (power based)'!A$24:A$223,0)),C96<=INDEX('Calculation (power based)'!AD$24:AD$223,MATCH('Curve verification'!U96,'Calculation (power based)'!A$24:A$223,0))),(C96-INDEX('Calculation (power based)'!AC$24:AC$223,MATCH('Curve verification'!U96,'Calculation (power based)'!A$24:A$223,0)))/(INDEX('Calculation (power based)'!AD$24:AD$223,MATCH('Curve verification'!U96,'Calculation (power based)'!A$24:A$223,0))-INDEX('Calculation (power based)'!AC$24:AC$223,MATCH('Curve verification'!U96,'Calculation (power based)'!A$24:A$223,0))),#N/A) ->  | W96: =IF(NOT(ISNA(V96)),INDEX('Pump database'!J$24:J$223,MATCH(U96,'Calculation (power based)'!A$24:A$223,0))+V96*(INDEX('Pump database'!O$24:O$223,MATCH(U96,'Calculation (power based)'!A$24:A$223,0))-INDEX('Pump database'!J$24:J$223,MATCH(U96,'Calculation (power based)'!A$24:A$223,0))),#N/A) ->  | AA96: =IF(NOT(ISNA(V96)),INDEX('Pump database'!L$24:L$223,MATCH(U96,'Calculation (power based)'!A$24:A$223,0))+V96*(INDEX('Pump database'!Q$24:Q$223,MATCH(U96,'Calculation (power based)'!A$24:A$223,0))-INDEX('Pump database'!L$24:L$223,MATCH(U96,'Calculation (power based)'!A$24:A$223,0))),#N/A) ->  | AE96: =INDEX(type_array,MATCH('Curve verification'!U96,'Calculation (power based)'!A$24:A$223,0)) -> 
I97: =IF(NOT(ISNA(V97)),INDEX('Calculation (power based)'!AG$24:AG$223,MATCH(U97,'Calculation (power based)'!A$24:A$223,0))+V97*(INDEX('Calculation (power based)'!AI$24:AI$223,MATCH(U97,'Calculation (power based)'!A$24:A$223,0))-INDEX('Calculation (power based)'!AG$24:AG$223,MATCH(U97,'Calculation (power based)'!A$24:A$223,0))),#N/A) ->  | M97: =IF(NOT(ISNA(V97)),INDEX('Calculation (power based)'!AH$24:AH$223,MATCH(U97,'Calculation (power based)'!A$24:A$223,0))+V97*(INDEX('Calculation (power based)'!AJ$24:AJ$223,MATCH(U97,'Calculation (power based)'!A$24:A$223,0))-INDEX('Calculation (power based)'!AH$24:AH$223,MATCH(U97,'Calculation (power based)'!A$24:A$223,0))),#N/A) ->  | U97: =INDEX('Calculation (power based)'!A$24:A$223,MATCH(B97,'Calculation (power based)'!AS$24:AS$223,0)) ->  | V97: =IF(AND(C97>=INDEX('Calculation (power based)'!AC$24:AC$223,MATCH('Curve verification'!U97,'Calculation (power based)'!A$24:A$223,0)),C97<=INDEX('Calculation (power based)'!AD$24:AD$223,MATCH('Curve verification'!U97,'Calculation (power based)'!A$24:A$223,0))),(C97-INDEX('Calculation (power based)'!AC$24:AC$223,MATCH('Curve verification'!U97,'Calculation (power based)'!A$24:A$223,0)))/(INDEX('Calculation (power based)'!AD$24:AD$223,MATCH('Curve verification'!U97,'Calculation (power based)'!A$24:A$223,0))-INDEX('Calculation (power based)'!AC$24:AC$223,MATCH('Curve verification'!U97,'Calculation (power based)'!A$24:A$223,0))),#N/A) ->  | W97: =IF(NOT(ISNA(V97)),INDEX('Pump database'!J$24:J$223,MATCH(U97,'Calculation (power based)'!A$24:A$223,0))+V97*(INDEX('Pump database'!O$24:O$223,MATCH(U97,'Calculation (power based)'!A$24:A$223,0))-INDEX('Pump database'!J$24:J$223,MATCH(U97,'Calculation (power based)'!A$24:A$223,0))),#N/A) ->  | AA97: =IF(NOT(ISNA(V97)),INDEX('Pump database'!L$24:L$223,MATCH(U97,'Calculation (power based)'!A$24:A$223,0))+V97*(INDEX('Pump database'!Q$24:Q$223,MATCH(U97,'Calculation (power based)'!A$24:A$223,0))-INDEX('Pump database'!L$24:L$223,MATCH(U97,'Calculation (power based)'!A$24:A$223,0))),#N/A) ->  | AE97: =INDEX(type_array,MATCH('Curve verification'!U97,'Calculation (power based)'!A$24:A$223,0)) -> 
I98: =IF(NOT(ISNA(V98)),INDEX('Calculation (power based)'!AG$24:AG$223,MATCH(U98,'Calculation (power based)'!A$24:A$223,0))+V98*(INDEX('Calculation (power based)'!AI$24:AI$223,MATCH(U98,'Calculation (power based)'!A$24:A$223,0))-INDEX('Calculation (power based)'!AG$24:AG$223,MATCH(U98,'Calculation (power based)'!A$24:A$223,0))),#N/A) ->  | M98: =IF(NOT(ISNA(V98)),INDEX('Calculation (power based)'!AH$24:AH$223,MATCH(U98,'Calculation (power based)'!A$24:A$223,0))+V98*(INDEX('Calculation (power based)'!AJ$24:AJ$223,MATCH(U98,'Calculation (power based)'!A$24:A$223,0))-INDEX('Calculation (power based)'!AH$24:AH$223,MATCH(U98,'Calculation (power based)'!A$24:A$223,0))),#N/A) ->  | U98: =INDEX('Calculation (power based)'!A$24:A$223,MATCH(B98,'Calculation (power based)'!AS$24:AS$223,0)) ->  | V98: =IF(AND(C98>=INDEX('Calculation (power based)'!AC$24:AC$223,MATCH('Curve verification'!U98,'Calculation (power based)'!A$24:A$223,0)),C98<=INDEX('Calculation (power based)'!AD$24:AD$223,MATCH('Curve verification'!U98,'Calculation (power based)'!A$24:A$223,0))),(C98-INDEX('Calculation (power based)'!AC$24:AC$223,MATCH('Curve verification'!U98,'Calculation (power based)'!A$24:A$223,0)))/(INDEX('Calculation (power based)'!AD$24:AD$223,MATCH('Curve verification'!U98,'Calculation (power based)'!A$24:A$223,0))-INDEX('Calculation (power based)'!AC$24:AC$223,MATCH('Curve verification'!U98,'Calculation (power based)'!A$24:A$223,0))),#N/A) ->  | W98: =IF(NOT(ISNA(V98)),INDEX('Pump database'!J$24:J$223,MATCH(U98,'Calculation (power based)'!A$24:A$223,0))+V98*(INDEX('Pump database'!O$24:O$223,MATCH(U98,'Calculation (power based)'!A$24:A$223,0))-INDEX('Pump database'!J$24:J$223,MATCH(U98,'Calculation (power based)'!A$24:A$223,0))),#N/A) ->  | AA98: =IF(NOT(ISNA(V98)),INDEX('Pump database'!L$24:L$223,MATCH(U98,'Calculation (power based)'!A$24:A$223,0))+V98*(INDEX('Pump database'!Q$24:Q$223,MATCH(U98,'Calculation (power based)'!A$24:A$223,0))-INDEX('Pump database'!L$24:L$223,MATCH(U98,'Calculation (power based)'!A$24:A$223,0))),#N/A) ->  | AE98: =INDEX(type_array,MATCH('Curve verification'!U98,'Calculation (power based)'!A$24:A$223,0)) -> 
I99: =IF(NOT(ISNA(V99)),INDEX('Calculation (power based)'!AG$24:AG$223,MATCH(U99,'Calculation (power based)'!A$24:A$223,0))+V99*(INDEX('Calculation (power based)'!AI$24:AI$223,MATCH(U99,'Calculation (power based)'!A$24:A$223,0))-INDEX('Calculation (power based)'!AG$24:AG$223,MATCH(U99,'Calculation (power based)'!A$24:A$223,0))),#N/A) ->  | M99: =IF(NOT(ISNA(V99)),INDEX('Calculation (power based)'!AH$24:AH$223,MATCH(U99,'Calculation (power based)'!A$24:A$223,0))+V99*(INDEX('Calculation (power based)'!AJ$24:AJ$223,MATCH(U99,'Calculation (power based)'!A$24:A$223,0))-INDEX('Calculation (power based)'!AH$24:AH$223,MATCH(U99,'Calculation (power based)'!A$24:A$223,0))),#N/A) ->  | U99: =INDEX('Calculation (power based)'!A$24:A$223,MATCH(B99,'Calculation (power based)'!AS$24:AS$223,0)) ->  | V99: =IF(AND(C99>=INDEX('Calculation (power based)'!AC$24:AC$223,MATCH('Curve verification'!U99,'Calculation (power based)'!A$24:A$223,0)),C99<=INDEX('Calculation (power based)'!AD$24:AD$223,MATCH('Curve verification'!U99,'Calculation (power based)'!A$24:A$223,0))),(C99-INDEX('Calculation (power based)'!AC$24:AC$223,MATCH('Curve verification'!U99,'Calculation (power based)'!A$24:A$223,0)))/(INDEX('Calculation (power based)'!AD$24:AD$223,MATCH('Curve verification'!U99,'Calculation (power based)'!A$24:A$223,0))-INDEX('Calculation (power based)'!AC$24:AC$223,MATCH('Curve verification'!U99,'Calculation (power based)'!A$24:A$223,0))),#N/A) ->  | W99: =IF(NOT(ISNA(V99)),INDEX('Pump database'!J$24:J$223,MATCH(U99,'Calculation (power based)'!A$24:A$223,0))+V99*(INDEX('Pump database'!O$24:O$223,MATCH(U99,'Calculation (power based)'!A$24:A$223,0))-INDEX('Pump database'!J$24:J$223,MATCH(U99,'Calculation (power based)'!A$24:A$223,0))),#N/A) ->  | AA99: =IF(NOT(ISNA(V99)),INDEX('Pump database'!L$24:L$223,MATCH(U99,'Calculation (power based)'!A$24:A$223,0))+V99*(INDEX('Pump database'!Q$24:Q$223,MATCH(U99,'Calculation (power based)'!A$24:A$223,0))-INDEX('Pump database'!L$24:L$223,MATCH(U99,'Calculation (power based)'!A$24:A$223,0))),#N/A) ->  | AE99: =INDEX(type_array,MATCH('Curve verification'!U99,'Calculation (power based)'!A$24:A$223,0)) -> 
I100: =IF(NOT(ISNA(V100)),INDEX('Calculation (power based)'!AG$24:AG$223,MATCH(U100,'Calculation (power based)'!A$24:A$223,0))+V100*(INDEX('Calculation (power based)'!AI$24:AI$223,MATCH(U100,'Calculation (power based)'!A$24:A$223,0))-INDEX('Calculation (power based)'!AG$24:AG$223,MATCH(U100,'Calculation (power based)'!A$24:A$223,0))),#N/A) ->  | M100: =IF(NOT(ISNA(V100)),INDEX('Calculation (power based)'!AH$24:AH$223,MATCH(U100,'Calculation (power based)'!A$24:A$223,0))+V100*(INDEX('Calculation (power based)'!AJ$24:AJ$223,MATCH(U100,'Calculation (power based)'!A$24:A$223,0))-INDEX('Calculation (power based)'!AH$24:AH$223,MATCH(U100,'Calculation (power based)'!A$24:A$223,0))),#N/A) ->  | U100: =INDEX('Calculation (power based)'!A$24:A$223,MATCH(B100,'Calculation (power based)'!AS$24:AS$223,0)) ->  | V100: =IF(AND(C100>=INDEX('Calculation (power based)'!AC$24:AC$223,MATCH('Curve verification'!U100,'Calculation (power based)'!A$24:A$223,0)),C100<=INDEX('Calculation (power based)'!AD$24:AD$223,MATCH('Curve verification'!U100,'Calculation (power based)'!A$24:A$223,0))),(C100-INDEX('Calculation (power based)'!AC$24:AC$223,MATCH('Curve verification'!U100,'Calculation (power based)'!A$24:A$223,0)))/(INDEX('Calculation (power based)'!AD$24:AD$223,MATCH('Curve verification'!U100,'Calculation (power based)'!A$24:A$223,0))-INDEX('Calculation (power based)'!AC$24:AC$223,MATCH('Curve verification'!U100,'Calculation (power based)'!A$24:A$223,0))),#N/A) ->  | W100: =IF(NOT(ISNA(V100)),INDEX('Pump database'!J$24:J$223,MATCH(U100,'Calculation (power based)'!A$24:A$223,0))+V100*(INDEX('Pump database'!O$24:O$223,MATCH(U100,'Calculation (power based)'!A$24:A$223,0))-INDEX('Pump database'!J$24:J$223,MATCH(U100,'Calculation (power based)'!A$24:A$223,0))),#N/A) ->  | AA100: =IF(NOT(ISNA(V100)),INDEX('Pump database'!L$24:L$223,MATCH(U100,'Calculation (power based)'!A$24:A$223,0))+V100*(INDEX('Pump database'!Q$24:Q$223,MATCH(U100,'Calculation (power based)'!A$24:A$223,0))-INDEX('Pump database'!L$24:L$223,MATCH(U100,'Calculation (power based)'!A$24:A$223,0))),#N/A) ->  | AE100: =INDEX(type_array,MATCH('Curve verification'!U100,'Calculation (power based)'!A$24:A$223,0)) -> 
I101: =IF(NOT(ISNA(V101)),INDEX('Calculation (power based)'!AG$24:AG$223,MATCH(U101,'Calculation (power based)'!A$24:A$223,0))+V101*(INDEX('Calculation (power based)'!AI$24:AI$223,MATCH(U101,'Calculation (power based)'!A$24:A$223,0))-INDEX('Calculation (power based)'!AG$24:AG$223,MATCH(U101,'Calculation (power based)'!A$24:A$223,0))),#N/A) ->  | M101: =IF(NOT(ISNA(V101)),INDEX('Calculation (power based)'!AH$24:AH$223,MATCH(U101,'Calculation (power based)'!A$24:A$223,0))+V101*(INDEX('Calculation (power based)'!AJ$24:AJ$223,MATCH(U101,'Calculation (power based)'!A$24:A$223,0))-INDEX('Calculation (power based)'!AH$24:AH$223,MATCH(U101,'Calculation (power based)'!A$24:A$223,0))),#N/A) ->  | U101: =INDEX('Calculation (power based)'!A$24:A$223,MATCH(B101,'Calculation (power based)'!AS$24:AS$223,0)) ->  | V101: =IF(AND(C101>=INDEX('Calculation (power based)'!AC$24:AC$223,MATCH('Curve verification'!U101,'Calculation (power based)'!A$24:A$223,0)),C101<=INDEX('Calculation (power based)'!AD$24:AD$223,MATCH('Curve verification'!U101,'Calculation (power based)'!A$24:A$223,0))),(C101-INDEX('Calculation (power based)'!AC$24:AC$223,MATCH('Curve verification'!U101,'Calculation (power based)'!A$24:A$223,0)))/(INDEX('Calculation (power based)'!AD$24:AD$223,MATCH('Curve verification'!U101,'Calculation (power based)'!A$24:A$223,0))-INDEX('Calculation (power based)'!AC$24:AC$223,MATCH('Curve verification'!U101,'Calculation (power based)'!A$24:A$223,0))),#N/A) ->  | W101: =IF(NOT(ISNA(V101)),INDEX('Pump database'!J$24:J$223,MATCH(U101,'Calculation (power based)'!A$24:A$223,0))+V101*(INDEX('Pump database'!O$24:O$223,MATCH(U101,'Calculation (power based)'!A$24:A$223,0))-INDEX('Pump database'!J$24:J$223,MATCH(U101,'Calculation (power based)'!A$24:A$223,0))),#N/A) ->  | AA101: =IF(NOT(ISNA(V101)),INDEX('Pump database'!L$24:L$223,MATCH(U101,'Calculation (power based)'!A$24:A$223,0))+V101*(INDEX('Pump database'!Q$24:Q$223,MATCH(U101,'Calculation (power based)'!A$24:A$223,0))-INDEX('Pump database'!L$24:L$223,MATCH(U101,'Calculation (power based)'!A$24:A$223,0))),#N/A) ->  | AE101: =INDEX(type_array,MATCH('Curve verification'!U101,'Calculation (power based)'!A$24:A$223,0)) -> 
I102: =IF(NOT(ISNA(V102)),INDEX('Calculation (power based)'!AG$24:AG$223,MATCH(U102,'Calculation (power based)'!A$24:A$223,0))+V102*(INDEX('Calculation (power based)'!AI$24:AI$223,MATCH(U102,'Calculation (power based)'!A$24:A$223,0))-INDEX('Calculation (power based)'!AG$24:AG$223,MATCH(U102,'Calculation (power based)'!A$24:A$223,0))),#N/A) ->  | M102: =IF(NOT(ISNA(V102)),INDEX('Calculation (power based)'!AH$24:AH$223,MATCH(U102,'Calculation (power based)'!A$24:A$223,0))+V102*(INDEX('Calculation (power based)'!AJ$24:AJ$223,MATCH(U102,'Calculation (power based)'!A$24:A$223,0))-INDEX('Calculation (power based)'!AH$24:AH$223,MATCH(U102,'Calculation (power based)'!A$24:A$223,0))),#N/A) ->  | U102: =INDEX('Calculation (power based)'!A$24:A$223,MATCH(B102,'Calculation (power based)'!AS$24:AS$223,0)) ->  | V102: =IF(AND(C102>=INDEX('Calculation (power based)'!AC$24:AC$223,MATCH('Curve verification'!U102,'Calculation (power based)'!A$24:A$223,0)),C102<=INDEX('Calculation (power based)'!AD$24:AD$223,MATCH('Curve verification'!U102,'Calculation (power based)'!A$24:A$223,0))),(C102-INDEX('Calculation (power based)'!AC$24:AC$223,MATCH('Curve verification'!U102,'Calculation (power based)'!A$24:A$223,0)))/(INDEX('Calculation (power based)'!AD$24:AD$223,MATCH('Curve verification'!U102,'Calculation (power based)'!A$24:A$223,0))-INDEX('Calculation (power based)'!AC$24:AC$223,MATCH('Curve verification'!U102,'Calculation (power based)'!A$24:A$223,0))),#N/A) ->  | W102: =IF(NOT(ISNA(V102)),INDEX('Pump database'!J$24:J$223,MATCH(U102,'Calculation (power based)'!A$24:A$223,0))+V102*(INDEX('Pump database'!O$24:O$223,MATCH(U102,'Calculation (power based)'!A$24:A$223,0))-INDEX('Pump database'!J$24:J$223,MATCH(U102,'Calculation (power based)'!A$24:A$223,0))),#N/A) ->  | AA102: =IF(NOT(ISNA(V102)),INDEX('Pump database'!L$24:L$223,MATCH(U102,'Calculation (power based)'!A$24:A$223,0))+V102*(INDEX('Pump database'!Q$24:Q$223,MATCH(U102,'Calculation (power based)'!A$24:A$223,0))-INDEX('Pump database'!L$24:L$223,MATCH(U102,'Calculation (power based)'!A$24:A$223,0))),#N/A) ->  | AE102: =INDEX(type_array,MATCH('Curve verification'!U102,'Calculation (power based)'!A$24:A$223,0)) -> 
I103: =IF(NOT(ISNA(V103)),INDEX('Calculation (power based)'!AG$24:AG$223,MATCH(U103,'Calculation (power based)'!A$24:A$223,0))+V103*(INDEX('Calculation (power based)'!AI$24:AI$223,MATCH(U103,'Calculation (power based)'!A$24:A$223,0))-INDEX('Calculation (power based)'!AG$24:AG$223,MATCH(U103,'Calculation (power based)'!A$24:A$223,0))),#N/A) ->  | M103: =IF(NOT(ISNA(V103)),INDEX('Calculation (power based)'!AH$24:AH$223,MATCH(U103,'Calculation (power based)'!A$24:A$223,0))+V103*(INDEX('Calculation (power based)'!AJ$24:AJ$223,MATCH(U103,'Calculation (power based)'!A$24:A$223,0))-INDEX('Calculation (power based)'!AH$24:AH$223,MATCH(U103,'Calculation (power based)'!A$24:A$223,0))),#N/A) ->  | U103: =INDEX('Calculation (power based)'!A$24:A$223,MATCH(B103,'Calculation (power based)'!AS$24:AS$223,0)) ->  | V103: =IF(AND(C103>=INDEX('Calculation (power based)'!AC$24:AC$223,MATCH('Curve verification'!U103,'Calculation (power based)'!A$24:A$223,0)),C103<=INDEX('Calculation (power based)'!AD$24:AD$223,MATCH('Curve verification'!U103,'Calculation (power based)'!A$24:A$223,0))),(C103-INDEX('Calculation (power based)'!AC$24:AC$223,MATCH('Curve verification'!U103,'Calculation (power based)'!A$24:A$223,0)))/(INDEX('Calculation (power based)'!AD$24:AD$223,MATCH('Curve verification'!U103,'Calculation (power based)'!A$24:A$223,0))-INDEX('Calculation (power based)'!AC$24:AC$223,MATCH('Curve verification'!U103,'Calculation (power based)'!A$24:A$223,0))),#N/A) ->  | W103: =IF(NOT(ISNA(V103)),INDEX('Pump database'!J$24:J$223,MATCH(U103,'Calculation (power based)'!A$24:A$223,0))+V103*(INDEX('Pump database'!O$24:O$223,MATCH(U103,'Calculation (power based)'!A$24:A$223,0))-INDEX('Pump database'!J$24:J$223,MATCH(U103,'Calculation (power based)'!A$24:A$223,0))),#N/A) ->  | AA103: =IF(NOT(ISNA(V103)),INDEX('Pump database'!L$24:L$223,MATCH(U103,'Calculation (power based)'!A$24:A$223,0))+V103*(INDEX('Pump database'!Q$24:Q$223,MATCH(U103,'Calculation (power based)'!A$24:A$223,0))-INDEX('Pump database'!L$24:L$223,MATCH(U103,'Calculation (power based)'!A$24:A$223,0))),#N/A) ->  | AE103: =INDEX(type_array,MATCH('Curve verification'!U103,'Calculation (power based)'!A$24:A$223,0)) -> 
I104: =IF(NOT(ISNA(V104)),INDEX('Calculation (power based)'!AG$24:AG$223,MATCH(U104,'Calculation (power based)'!A$24:A$223,0))+V104*(INDEX('Calculation (power based)'!AI$24:AI$223,MATCH(U104,'Calculation (power based)'!A$24:A$223,0))-INDEX('Calculation (power based)'!AG$24:AG$223,MATCH(U104,'Calculation (power based)'!A$24:A$223,0))),#N/A) ->  | M104: =IF(NOT(ISNA(V104)),INDEX('Calculation (power based)'!AH$24:AH$223,MATCH(U104,'Calculation (power based)'!A$24:A$223,0))+V104*(INDEX('Calculation (power based)'!AJ$24:AJ$223,MATCH(U104,'Calculation (power based)'!A$24:A$223,0))-INDEX('Calculation (power based)'!AH$24:AH$223,MATCH(U104,'Calculation (power based)'!A$24:A$223,0))),#N/A) ->  | U104: =INDEX('Calculation (power based)'!A$24:A$223,MATCH(B104,'Calculation (power based)'!AS$24:AS$223,0)) ->  | V104: =IF(AND(C104>=INDEX('Calculation (power based)'!AC$24:AC$223,MATCH('Curve verification'!U104,'Calculation (power based)'!A$24:A$223,0)),C104<=INDEX('Calculation (power based)'!AD$24:AD$223,MATCH('Curve verification'!U104,'Calculation (power based)'!A$24:A$223,0))),(C104-INDEX('Calculation (power based)'!AC$24:AC$223,MATCH('Curve verification'!U104,'Calculation (power based)'!A$24:A$223,0)))/(INDEX('Calculation (power based)'!AD$24:AD$223,MATCH('Curve verification'!U104,'Calculation (power based)'!A$24:A$223,0))-INDEX('Calculation (power based)'!AC$24:AC$223,MATCH('Curve verification'!U104,'Calculation (power based)'!A$24:A$223,0))),#N/A) ->  | W104: =IF(NOT(ISNA(V104)),INDEX('Pump database'!J$24:J$223,MATCH(U104,'Calculation (power based)'!A$24:A$223,0))+V104*(INDEX('Pump database'!O$24:O$223,MATCH(U104,'Calculation (power based)'!A$24:A$223,0))-INDEX('Pump database'!J$24:J$223,MATCH(U104,'Calculation (power based)'!A$24:A$223,0))),#N/A) ->  | AA104: =IF(NOT(ISNA(V104)),INDEX('Pump database'!L$24:L$223,MATCH(U104,'Calculation (power based)'!A$24:A$223,0))+V104*(INDEX('Pump database'!Q$24:Q$223,MATCH(U104,'Calculation (power based)'!A$24:A$223,0))-INDEX('Pump database'!L$24:L$223,MATCH(U104,'Calculation (power based)'!A$24:A$223,0))),#N/A) ->  | AB104: =IF(NOT(OR(ISNA(U104),ISNA(V104),ISNA(I104),ISNA(M104))),IF(AE104=1,(C104*(AA104-W104)*g_constant/3.6/M104)/(1-I104/M104),(W104-AA104)/(I104-M104)),#N/A) ->  | AD104: =IF(NOT(OR(ISNA(U104),ISNA(V104),ISNA(I104),ISNA(M104))),IF(AE104=1,C_c_standard,0),#N/A) ->  | AE104: =INDEX(type_array,MATCH('Curve verification'!U104,'Calculation (power based)'!A$24:A$223,0)) -> 
I105: =IF(NOT(ISNA(V105)),INDEX('Calculation (power based)'!AG$24:AG$223,MATCH(U105,'Calculation (power based)'!A$24:A$223,0))+V105*(INDEX('Calculation (power based)'!AI$24:AI$223,MATCH(U105,'Calculation (power based)'!A$24:A$223,0))-INDEX('Calculation (power based)'!AG$24:AG$223,MATCH(U105,'Calculation (power based)'!A$24:A$223,0))),#N/A) ->  | M105: =IF(NOT(ISNA(V105)),INDEX('Calculation (power based)'!AH$24:AH$223,MATCH(U105,'Calculation (power based)'!A$24:A$223,0))+V105*(INDEX('Calculation (power based)'!AJ$24:AJ$223,MATCH(U105,'Calculation (power based)'!A$24:A$223,0))-INDEX('Calculation (power based)'!AH$24:AH$223,MATCH(U105,'Calculation (power based)'!A$24:A$223,0))),#N/A) ->  | U105: =INDEX('Calculation (power based)'!A$24:A$223,MATCH(B105,'Calculation (power based)'!AS$24:AS$223,0)) ->  | V105: =IF(AND(C105>=INDEX('Calculation (power based)'!AC$24:AC$223,MATCH('Curve verification'!U105,'Calculation (power based)'!A$24:A$223,0)),C105<=INDEX('Calculation (power based)'!AD$24:AD$223,MATCH('Curve verification'!U105,'Calculation (power based)'!A$24:A$223,0))),(C105-INDEX('Calculation (power based)'!AC$24:AC$223,MATCH('Curve verification'!U105,'Calculation (power based)'!A$24:A$223,0)))/(INDEX('Calculation (power based)'!AD$24:AD$223,MATCH('Curve verification'!U105,'Calculation (power based)'!A$24:A$223,0))-INDEX('Calculation (power based)'!AC$24:AC$223,MATCH('Curve verification'!U105,'Calculation (power based)'!A$24:A$223,0))),#N/A) ->  | W105: =IF(NOT(ISNA(V105)),INDEX('Pump database'!J$24:J$223,MATCH(U105,'Calculation (power based)'!A$24:A$223,0))+V105*(INDEX('Pump database'!O$24:O$223,MATCH(U105,'Calculation (power based)'!A$24:A$223,0))-INDEX('Pump database'!J$24:J$223,MATCH(U105,'Calculation (power based)'!A$24:A$223,0))),#N/A) ->  | AA105: =IF(NOT(ISNA(V105)),INDEX('Pump database'!L$24:L$223,MATCH(U105,'Calculation (power based)'!A$24:A$223,0))+V105*(INDEX('Pump database'!Q$24:Q$223,MATCH(U105,'Calculation (power based)'!A$24:A$223,0))-INDEX('Pump database'!L$24:L$223,MATCH(U105,'Calculation (power based)'!A$24:A$223,0))),#N/A) ->  | AE105: =INDEX(type_array,MATCH('Curve verification'!U105,'Calculation (power based)'!A$24:A$223,0)) -> 
I106: =IF(NOT(ISNA(V106)),INDEX('Calculation (power based)'!AG$24:AG$223,MATCH(U106,'Calculation (power based)'!A$24:A$223,0))+V106*(INDEX('Calculation (power based)'!AI$24:AI$223,MATCH(U106,'Calculation (power based)'!A$24:A$223,0))-INDEX('Calculation (power based)'!AG$24:AG$223,MATCH(U106,'Calculation (power based)'!A$24:A$223,0))),#N/A) ->  | M106: =IF(NOT(ISNA(V106)),INDEX('Calculation (power based)'!AH$24:AH$223,MATCH(U106,'Calculation (power based)'!A$24:A$223,0))+V106*(INDEX('Calculation (power based)'!AJ$24:AJ$223,MATCH(U106,'Calculation (power based)'!A$24:A$223,0))-INDEX('Calculation (power based)'!AH$24:AH$223,MATCH(U106,'Calculation (power based)'!A$24:A$223,0))),#N/A) ->  | U106: =INDEX('Calculation (power based)'!A$24:A$223,MATCH(B106,'Calculation (power based)'!AS$24:AS$223,0)) ->  | V106: =IF(AND(C106>=INDEX('Calculation (power based)'!AC$24:AC$223,MATCH('Curve verification'!U106,'Calculation (power based)'!A$24:A$223,0)),C106<=INDEX('Calculation (power based)'!AD$24:AD$223,MATCH('Curve verification'!U106,'Calculation (power based)'!A$24:A$223,0))),(C106-INDEX('Calculation (power based)'!AC$24:AC$223,MATCH('Curve verification'!U106,'Calculation (power based)'!A$24:A$223,0)))/(INDEX('Calculation (power based)'!AD$24:AD$223,MATCH('Curve verification'!U106,'Calculation (power based)'!A$24:A$223,0))-INDEX('Calculation (power based)'!AC$24:AC$223,MATCH('Curve verification'!U106,'Calculation (power based)'!A$24:A$223,0))),#N/A) ->  | W106: =IF(NOT(ISNA(V106)),INDEX('Pump database'!J$24:J$223,MATCH(U106,'Calculation (power based)'!A$24:A$223,0))+V106*(INDEX('Pump database'!O$24:O$223,MATCH(U106,'Calculation (power based)'!A$24:A$223,0))-INDEX('Pump database'!J$24:J$223,MATCH(U106,'Calculation (power based)'!A$24:A$223,0))),#N/A) ->  | AA106: =IF(NOT(ISNA(V106)),INDEX('Pump database'!L$24:L$223,MATCH(U106,'Calculation (power based)'!A$24:A$223,0))+V106*(INDEX('Pump database'!Q$24:Q$223,MATCH(U106,'Calculation (power based)'!A$24:A$223,0))-INDEX('Pump database'!L$24:L$223,MATCH(U106,'Calculation (power based)'!A$24:A$223,0))),#N/A) ->  | AE106: =INDEX(type_array,MATCH('Curve verification'!U106,'Calculation (power based)'!A$24:A$223,0)) -> 
I107: =IF(NOT(ISNA(V107)),INDEX('Calculation (power based)'!AG$24:AG$223,MATCH(U107,'Calculation (power based)'!A$24:A$223,0))+V107*(INDEX('Calculation (power based)'!AI$24:AI$223,MATCH(U107,'Calculation (power based)'!A$24:A$223,0))-INDEX('Calculation (power based)'!AG$24:AG$223,MATCH(U107,'Calculation (power based)'!A$24:A$223,0))),#N/A) ->  | M107: =IF(NOT(ISNA(V107)),INDEX('Calculation (power based)'!AH$24:AH$223,MATCH(U107,'Calculation (power based)'!A$24:A$223,0))+V107*(INDEX('Calculation (power based)'!AJ$24:AJ$223,MATCH(U107,'Calculation (power based)'!A$24:A$223,0))-INDEX('Calculation (power based)'!AH$24:AH$223,MATCH(U107,'Calculation (power based)'!A$24:A$223,0))),#N/A) ->  | U107: =INDEX('Calculation (power based)'!A$24:A$223,MATCH(B107,'Calculation (power based)'!AS$24:AS$223,0)) ->  | V107: =IF(AND(C107>=INDEX('Calculation (power based)'!AC$24:AC$223,MATCH('Curve verification'!U107,'Calculation (power based)'!A$24:A$223,0)),C107<=INDEX('Calculation (power based)'!AD$24:AD$223,MATCH('Curve verification'!U107,'Calculation (power based)'!A$24:A$223,0))),(C107-INDEX('Calculation (power based)'!AC$24:AC$223,MATCH('Curve verification'!U107,'Calculation (power based)'!A$24:A$223,0)))/(INDEX('Calculation (power based)'!AD$24:AD$223,MATCH('Curve verification'!U107,'Calculation (power based)'!A$24:A$223,0))-INDEX('Calculation (power based)'!AC$24:AC$223,MATCH('Curve verification'!U107,'Calculation (power based)'!A$24:A$223,0))),#N/A) ->  | W107: =IF(NOT(ISNA(V107)),INDEX('Pump database'!J$24:J$223,MATCH(U107,'Calculation (power based)'!A$24:A$223,0))+V107*(INDEX('Pump database'!O$24:O$223,MATCH(U107,'Calculation (power based)'!A$24:A$223,0))-INDEX('Pump database'!J$24:J$223,MATCH(U107,'Calculation (power based)'!A$24:A$223,0))),#N/A) ->  | AA107: =IF(NOT(ISNA(V107)),INDEX('Pump database'!L$24:L$223,MATCH(U107,'Calculation (power based)'!A$24:A$223,0))+V107*(INDEX('Pump database'!Q$24:Q$223,MATCH(U107,'Calculation (power based)'!A$24:A$223,0))-INDEX('Pump database'!L$24:L$223,MATCH(U107,'Calculation (power based)'!A$24:A$223,0))),#N/A) ->  | AE107: =INDEX(type_array,MATCH('Curve verification'!U107,'Calculation (power based)'!A$24:A$223,0)) -> 

Sheet Data (hidden)
A1: System parameter | C1: Input parameter | G1: Ouptput parameter | I1: Calculation parameter | K1: Enumerations
A2: name | B2: value | C2: name | D2: min | E2: max | F2: standard | G2: name | H2: round_divider | I2: name | J2: value | K2: array_type | L2: pump_type | M2: boolean
A3: product_title | B3: PVPSXLS | C3: insolation | D3: 1 | E3: 7 | F3: =insolation_min+(insolation_max-insolation_min)/2 -> 4 | G3: array_size | H3: 50 | I3: g_constant | J3: 9.81 | K3: fixed | L3: centrifugal | M3: TRUE
A4: product_subtitle | B4: MS Excel based tool for Photovoltaic Pump Sizing | C4: array_type | F4: =OFFSET(array_type,0,0,1,1) -> fixed | I4: C_c_standard | J4: 0.8 | K4: single-axis tracked | L4: helical rotor | M4: FALSE
A5: log_offset | B5: =COUNTA(Log!A:A) - 1 -> 5 | C5: tdh | D5: 1 | E5: 1000 | F5: 50 | I5: min_eta_tot | J5: 0.25
A6: product_version | B6: =OFFSET(log_major,log_offset,0,1,1) & "." & OFFSET(log_minor,log_offset,0,1,1) & "." & OFFSET(log_revision,log_offset,0,1,1) & IF(OFFSET(log_suffix,log_offset,0,1,1) <>"", " " & OFFSET(log_suffix,log_offset,0,1,1),"") -> 2.1.1 | C6: water_requirement | D6: 1 | E6: 1000 | F6: 20
C7: solar_deration | D7: 0 | E7: 50 | F7: 25
C8: H | D8: 1 | E8: 1000
C9: P | D9: 1 | E9: 40000
C10: Q | D10: 0 | E10: 1000

Sheet Validation (hidden)
A1: Consolidated input | G1: Consolidated output
A2: name | B2: valid | C2: input_ok | D2: lower_ok | E2: upper_ok | F2: cons | G2: name | H2: valid
A3: insolation | B3: =AND(C3,D3,E3) -> TRUE | C3: =ISNUMBER(insolation_set) -> TRUE | D3: =insolation_set>=insolation_min -> TRUE | E3: =insolation_set<=insolation_max -> TRUE | F3: =IF(C3,IF(NOT(D3),insolation_min,IF(NOT(E3),insolation_max,insolation_set)),insolation_standard) -> 4 | G3: irradiation_chart | H3: =AND(insolation_valid,array_type_valid) -> TRUE
A4: array_type | B4: =AND(C4) -> TRUE | C4: =ISNUMBER(MATCH(array_type_set,array_type,0)) -> TRUE | F4: =IF(C4,MATCH(array_type_set,array_type,0),MATCH(array_type_standard,array_type,0)) -> 1 | G4: output_chart | H4: =IF('Photovoltaic pump sizing (calc)'!E14<>"",TRUE) -> TRUE
A5: tdh | B5: =AND(C5,D5,E5) -> TRUE | C5: =ISNUMBER(tdh_set) -> TRUE | D5: =tdh_set>=tdh_min -> TRUE | E5: =tdh_set<=tdh_max -> TRUE | F5: =IF(C5,IF(NOT(D5),tdh_min,IF(NOT(E5),tdh_max,tdh_set)),tdh_standard) -> 74.33062567
A6: water_requirement | B6: TRUE | C6: =ISNUMBER(water_requirement_set) -> TRUE | D6: =water_requirement_set>=water_requirement_min -> TRUE | E6: =water_requirement_set<=water_requirement_max -> TRUE | F6: =IF(C6,IF(NOT(D6),water_requirement_min,IF(NOT(E6),water_requirement_max,water_requirement_set)),water_requirement_standard) -> 25
A7: solar_deration | B7: TRUE | C7: =ISNUMBER(solar_deration_set) -> TRUE | D7: =solar_deration_set>=solar_deration_min -> TRUE | E7: =solar_deration_set<=solar_deration_max -> TRUE | F7: =IF(C7,IF(NOT(D7),solar_deration_min,IF(NOT(E7),solar_deration_max,solar_deration_set)),solar_deration_standard) -> 25

Sheet Calculation (time based) (hidden)
A1: Variables | C1: Data
C2: label | D2: values
A3: noon_irradiation_rel | B3: =J7 -> 0.1710261569 | C3: hours_24 | D3: 42043.25 | E3: 42043.29167 | F3: 42043.33333 | G3: 42043.375 | H3: 42043.41667 | I3: 42043.45833 | J3: 42043.5 | K3: 42043.54167 | L3: 42043.58333 | M3: 42043.625 | N3: 42043.66667 | O3: 42043.70833 | P3: 42043.75
A4: irradiation_rel_fixed_sum | B4: =SUM(D5:P5) -> 1 | C4: hours_12 | D4: 42043.25 | E4: 42043.29167 | F4: 42043.33333 | G4: 42043.375 | H4: 42043.41667 | I4: 42043.45833 | J4: 42043.5 | K4: 42043.54167 | L4: 42043.58333 | M4: 42043.625 | N4: 42043.66667 | O4: 42043.70833 | P4: 42043.75
A5: irradiation_rel_two_axis_tracked_sum | B5: =SUM(D6:P6) -> 1.250000045 | C5: irradiation_rel_fixed | D5: 0 | E5: 0.006036217304 | F5: 0.02615694165 | G5: 0.07847082495 | H5: 0.1368209256 | I5: 0.1670020121 | J5: 0.1710261569 | K5: 0.1670020121 | L5: 0.1368209256 | M5: 0.07847082495 | N5: 0.02615694165 | O5: 0.006036217304 | P5: 0
A6: pump_output_sum | B6: =SUM(D9:P9) -> 27.58633442 | C6: irradiation_rel_two_axis_tracked | D6: 0 | E6: 0.01296296296 | F6: 0.09314814815 | G6: 0.1304009259 | H6: 0.1527684626 | I6: 0.1564945227 | J6: 0.15845 | K6: =I6 -> 0.1564945227 | L6: =H6 -> 0.1527684626 | M6: =G6 -> 0.1304009259 | N6: =F6 -> 0.09314814815 | O6: =E6 -> 0.01296296296 | P6: =D6 -> 0
A7: irradiation_sum | B7: =SUM(D10:P10) -> 4 | C7: irradiation_rel | D7: =OFFSET(D5, array_type_cons - 1,0,1,1) -> 0 | E7: 0.006036217304 | F7: 0.02615694165 | G7: 0.07847082495 | H7: 0.1368209256 | I7: 0.1670020121 | J7: 0.1710261569 | K7: 0.1670020121 | L7: 0.1368209256 | M7: 0.07847082495 | N7: 0.02615694165 | O7: 0.006036217304 | P7: 0
A8: noon_irradiation | B8: =J10 -> 0.6841046278 | C8: noon_related_irradiation | D8: =D7/noon_irradiation_rel -> 0 | E8: 0.03529411765 | F8: 0.1529411765 | G8: 0.4588235294 | H8: 0.8 | I8: 0.9764705882 | J8: 1 | K8: 0.9764705882 | L8: 0.8 | M8: 0.4588235294 | N8: 0.1529411765 | O8: 0.03529411765 | P8: 0
C9: pump_output | D9: =IF(output_chart_valid, IF(INDEX(type_array,MATCH(1,rank_cons,0))=1, MIN( INDEX(Q_actual_max,MATCH(1,rank_cons,0)), IF(OFFSET('Calculation (power based)'!$AY$24,MATCH(1,rank_cons,0)-1,INDEX(requirement_index,MATCH(1,rank_cons,0))-1,1,1)*D8<INDEX(P_actual_start,MATCH(1,rank_cons,0)), 0, OFFSET('Calculation (power based)'!$AY$24,MATCH(1,rank_cons,0)-1,INDEX(requirement_index,MATCH(1,rank_cons,0))-1,1,1)*INDEX(A_actual,MATCH(1,rank_cons,0))*3.6/tdh_cons/g_constant* (D8 - INDEX(B_actual,MATCH(1,rank_cons,0)))/(D8^INDEX(C_actual,MATCH(1,rank_cons,0))) + INDEX(Q_actual_start,MATCH(1,rank_cons,0)) ) ), MIN( INDEX(Q_actual_max,MATCH(1,rank_cons,0)), IF(OFFSET('Calculation (power based)'!$AY$24,MATCH(1,rank_cons,0)-1,INDEX(requirement_index,MATCH(1,rank_cons,0))-1,1,1)*D8<INDEX(P_actual_start,MATCH(1,rank_cons,0)), 0, INDEX(A_actual,MATCH(1,rank_cons,0))*OFFSET('Calculation (power based)'!$AY$24,MATCH(1,rank_cons,0)-1,INDEX(requirement_index,MATCH(1,rank_cons,0))-1,1,1)*D8 + INDEX(B_actual,MATCH(1,rank_cons,0)) ) ) ),#N/A) -> 0 | E9: =IF(output_chart_valid, IF(INDEX(type_array,MATCH(1,rank_cons,0))=1, MIN( INDEX(Q_actual_max,MATCH(1,rank_cons,0)), IF(OFFSET('Calculation (power based)'!$AY$24,MATCH(1,rank_cons,0)-1,INDEX(requirement_index,MATCH(1,rank_cons,0))-1,1,1)*E8<INDEX(P_actual_start,MATCH(1,rank_cons,0)), 0, OFFSET('Calculation (power based)'!$AY$24,MATCH(1,rank_cons,0)-1,INDEX(requirement_index,MATCH(1,rank_cons,0))-1,1,1)*INDEX(A_actual,MATCH(1,rank_cons,0))*3.6/tdh_cons/g_constant* (E8 - INDEX(B_actual,MATCH(1,rank_cons,0)))/(E8^INDEX(C_actual,MATCH(1,rank_cons,0))) + INDEX(Q_actual_start,MATCH(1,rank_cons,0)) ) ), MIN( INDEX(Q_actual_max,MATCH(1,rank_cons,0)), IF(OFFSET('Calculation (power based)'!$AY$24,MATCH(1,rank_cons,0)-1,INDEX(requirement_index,MATCH(1,rank_cons,0))-1,1,1)*E8<INDEX(P_actual_start,MATCH(1,rank_cons,0)), 0, INDEX(A_actual,MATCH(1,rank_cons,0))*OFFSET('Calculation (power based)'!$AY$24,MATCH(1,rank_cons,0)-1,INDEX(requirement_index,MATCH(1,rank_cons,0))-1,1,1)*E8 + INDEX(B_actual,MATCH(1,rank_cons,0)) ) ) ),#N/A) -> 0 | F9: =IF(output_chart_valid, IF(INDEX(type_array,MATCH(1,rank_cons,0))=1, MIN( INDEX(Q_actual_max,MATCH(1,rank_cons,0)), IF(OFFSET('Calculation (power based)'!$AY$24,MATCH(1,rank_cons,0)-1,INDEX(requirement_index,MATCH(1,rank_cons,0))-1,1,1)*F8<INDEX(P_actual_start,MATCH(1,rank_cons,0)), 0, OFFSET('Calculation (power based)'!$AY$24,MATCH(1,rank_cons,0)-1,INDEX(requirement_index,MATCH(1,rank_cons,0))-1,1,1)*INDEX(A_actual,MATCH(1,rank_cons,0))*3.6/tdh_cons/g_constant* (F8 - INDEX(B_actual,MATCH(1,rank_cons,0)))/(F8^INDEX(C_actual,MATCH(1,rank_cons,0))) + INDEX(Q_actual_start,MATCH(1,rank_cons,0)) ) ), MIN( INDEX(Q_actual_max,MATCH(1,rank_cons,0)), IF(OFFSET('Calculation (power based)'!$AY$24,MATCH(1,rank_cons,0)-1,INDEX(requirement_index,MATCH(1,rank_cons,0))-1,1,1)*F8<INDEX(P_actual_start,MATCH(1,rank_cons,0)), 0, INDEX(A_actual,MATCH(1,rank_cons,0))*OFFSET('Calculation (power based)'!$AY$24,MATCH(1,rank_cons,0)-1,INDEX(requirement_index,MATCH(1,rank_cons,0))-1,1,1)*F8 + INDEX(B_actual,MATCH(1,rank_cons,0)) ) ) ),#N/A) -> 0 | G9: =IF(output_chart_valid, IF(INDEX(type_array,MATCH(1,rank_cons,0))=1, MIN( INDEX(Q_actual_max,MATCH(1,rank_cons,0)), IF(OFFSET('Calculation (power based)'!$AY$24,MATCH(1,rank_cons,0)-1,INDEX(requirement_index,MATCH(1,rank_cons,0))-1,1,1)*G8<INDEX(P_actual_start,MATCH(1,rank_cons,0)), 0, OFFSET('Calculation (power based)'!$AY$24,MATCH(1,rank_cons,0)-1,INDEX(requirement_index,MATCH(1,rank_cons,0))-1,1,1)*INDEX(A_actual,MATCH(1,rank_cons,0))*3.6/tdh_cons/g_constant* (G8 - INDEX(B_actual,MATCH(1,rank_cons,0)))/(G8^INDEX(C_actual,MATCH(1,rank_cons,0))) + INDEX(Q_actual_start,MATCH(1,rank_cons,0)) ) ), MIN( INDEX(Q_actual_max,MATCH(1,rank_cons,0)), IF(OFFSET('Calculation (power based)'!$AY$24,MATCH(1,rank_cons,0)-1,INDEX(requirement_index,MATCH(1,rank_cons,0))-1,1,1)*G8<INDEX(P_actual_start,MATCH(1,rank_cons,0)), 0, INDEX(A_actual,MATCH(1,rank_cons,0))*OFFSET('Calculation (power based)'!$AY$24,MATCH(1,rank_cons,0)-1,INDEX(requirement_index,MATCH(1,rank_cons,0))-1,1,1)*G8 + INDEX(B_actual,MATCH(1,rank_cons,0)) ) ) ),#N/A) -> 2.472061313 | H9: =IF(output_chart_valid, IF(INDEX(type_array,MATCH(1,rank_cons,0))=1, MIN( INDEX(Q_actual_max,MATCH(1,rank_cons,0)), IF(OFFSET('Calculation (power based)'!$AY$24,MATCH(1,rank_cons,0)-1,INDEX(requirement_index,MATCH(1,rank_cons,0))-1,1,1)*H8<INDEX(P_actual_start,MATCH(1,rank_cons,0)), 0, OFFSET('Calculation (power based)'!$AY$24,MATCH(1,rank_cons,0)-1,INDEX(requirement_index,MATCH(1,rank_cons,0))-1,1,1)*INDEX(A_actual,MATCH(1,rank_cons,0))*3.6/tdh_cons/g_constant* (H8 - INDEX(B_actual,MATCH(1,rank_cons,0)))/(H8^INDEX(C_actual,MATCH(1,rank_cons,0))) + INDEX(Q_actual_start,MATCH(1,rank_cons,0)) ) ), MIN( INDEX(Q_actual_max,MATCH(1,rank_cons,0)), IF(OFFSET('Calculation (power based)'!$AY$24,MATCH(1,rank_cons,0)-1,INDEX(requirement_index,MATCH(1,rank_cons,0))-1,1,1)*H8<INDEX(P_actual_start,MATCH(1,rank_cons,0)), 0, INDEX(A_actual,MATCH(1,rank_cons,0))*OFFSET('Calculation (power based)'!$AY$24,MATCH(1,rank_cons,0)-1,INDEX(requirement_index,MATCH(1,rank_cons,0))-1,1,1)*H8 + INDEX(B_actual,MATCH(1,rank_cons,0)) ) ) ),#N/A) -> 4.196223339 | I9: =IF(output_chart_valid, IF(INDEX(type_array,MATCH(1,rank_cons,0))=1, MIN( INDEX(Q_actual_max,MATCH(1,rank_cons,0)), IF(OFFSET('Calculation (power based)'!$AY$24,MATCH(1,rank_cons,0)-1,INDEX(requirement_index,MATCH(1,rank_cons,0))-1,1,1)*I8<INDEX(P_actual_start,MATCH(1,rank_cons,0)), 0, OFFSET('Calculation (power based)'!$AY$24,MATCH(1,rank_cons,0)-1,INDEX(requirement_index,MATCH(1,rank_cons,0))-1,1,1)*INDEX(A_actual,MATCH(1,rank_cons,0))*3.6/tdh_cons/g_constant* (I8 - INDEX(B_actual,MATCH(1,rank_cons,0)))/(I8^INDEX(C_actual,MATCH(1,rank_cons,0))) + INDEX(Q_actual_start,MATCH(1,rank_cons,0)) ) ), MIN( INDEX(Q_actual_max,MATCH(1,rank_cons,0)), IF(OFFSET('Calculation (power based)'!$AY$24,MATCH(1,rank_cons,0)-1,INDEX(requirement_index,MATCH(1,rank_cons,0))-1,1,1)*I8<INDEX(P_actual_start,MATCH(1,rank_cons,0)), 0, INDEX(A_actual,MATCH(1,rank_cons,0))*OFFSET('Calculation (power based)'!$AY$24,MATCH(1,rank_cons,0)-1,INDEX(requirement_index,MATCH(1,rank_cons,0))-1,1,1)*I8 + INDEX(B_actual,MATCH(1,rank_cons,0)) ) ) ),#N/A) -> 4.729444109 | J9: =IF(output_chart_valid, IF(INDEX(type_array,MATCH(1,rank_cons,0))=1, MIN( INDEX(Q_actual_max,MATCH(1,rank_cons,0)), IF(OFFSET('Calculation (power based)'!$AY$24,MATCH(1,rank_cons,0)-1,INDEX(requirement_index,MATCH(1,rank_cons,0))-1,1,1)*J8<INDEX(P_actual_start,MATCH(1,rank_cons,0)), 0, OFFSET('Calculation (power based)'!$AY$24,MATCH(1,rank_cons,0)-1,INDEX(requirement_index,MATCH(1,rank_cons,0))-1,1,1)*INDEX(A_actual,MATCH(1,rank_cons,0))*3.6/tdh_cons/g_constant* (J8 - INDEX(B_actual,MATCH(1,rank_cons,0)))/(J8^INDEX(C_actual,MATCH(1,rank_cons,0))) + INDEX(Q_actual_start,MATCH(1,rank_cons,0)) ) ), MIN( INDEX(Q_actual_max,MATCH(1,rank_cons,0)), IF(OFFSET('Calculation (power based)'!$AY$24,MATCH(1,rank_cons,0)-1,INDEX(requirement_index,MATCH(1,rank_cons,0))-1,1,1)*J8<INDEX(P_actual_start,MATCH(1,rank_cons,0)), 0, INDEX(A_actual,MATCH(1,rank_cons,0))*OFFSET('Calculation (power based)'!$AY$24,MATCH(1,rank_cons,0)-1,INDEX(requirement_index,MATCH(1,rank_cons,0))-1,1,1)*J8 + INDEX(B_actual,MATCH(1,rank_cons,0)) ) ) ),#N/A) -> 4.790876896 | K9: =IF(output_chart_valid, IF(INDEX(type_array,MATCH(1,rank_cons,0))=1, MIN( INDEX(Q_actual_max,MATCH(1,rank_cons,0)), IF(OFFSET('Calculation (power based)'!$AY$24,MATCH(1,rank_cons,0)-1,INDEX(requirement_index,MATCH(1,rank_cons,0))-1,1,1)*K8<INDEX(P_actual_start,MATCH(1,rank_cons,0)), 0, OFFSET('Calculation (power based)'!$AY$24,MATCH(1,rank_cons,0)-1,INDEX(requirement_index,MATCH(1,rank_cons,0))-1,1,1)*INDEX(A_actual,MATCH(1,rank_cons,0))*3.6/tdh_cons/g_constant* (K8 - INDEX(B_actual,MATCH(1,rank_cons,0)))/(K8^INDEX(C_actual,MATCH(1,rank_cons,0))) + INDEX(Q_actual_start,MATCH(1,rank_cons,0)) ) ), MIN( INDEX(Q_actual_max,MATCH(1,rank_cons,0)), IF(OFFSET('Calculation (power based)'!$AY$24,MATCH(1,rank_cons,0)-1,INDEX(requirement_index,MATCH(1,rank_cons,0))-1,1,1)*K8<INDEX(P_actual_start,MATCH(1,rank_cons,0)), 0, INDEX(A_actual,MATCH(1,rank_cons,0))*OFFSET('Calculation (power based)'!$AY$24,MATCH(1,rank_cons,0)-1,INDEX(requirement_index,MATCH(1,rank_cons,0))-1,1,1)*K8 + INDEX(B_actual,MATCH(1,rank_cons,0)) ) ) ),#N/A) -> 4.729444109 | L9: =IF(output_chart_valid, IF(INDEX(type_array,MATCH(1,rank_cons,0))=1, MIN( INDEX(Q_actual_max,MATCH(1,rank_cons,0)), IF(OFFSET('Calculation (power based)'!$AY$24,MATCH(1,rank_cons,0)-1,INDEX(requirement_index,MATCH(1,rank_cons,0))-1,1,1)*L8<INDEX(P_actual_start,MATCH(1,rank_cons,0)), 0, OFFSET('Calculation (power based)'!$AY$24,MATCH(1,rank_cons,0)-1,INDEX(requirement_index,MATCH(1,rank_cons,0))-1,1,1)*INDEX(A_actual,MATCH(1,rank_cons,0))*3.6/tdh_cons/g_constant* (L8 - INDEX(B_actual,MATCH(1,rank_cons,0)))/(L8^INDEX(C_actual,MATCH(1,rank_cons,0))) + INDEX(Q_actual_start,MATCH(1,rank_cons,0)) ) ), MIN( INDEX(Q_actual_max,MATCH(1,rank_cons,0)), IF(OFFSET('Calculation (power based)'!$AY$24,MATCH(1,rank_cons,0)-1,INDEX(requirement_index,MATCH(1,rank_cons,0))-1,1,1)*L8<INDEX(P_actual_start,MATCH(1,rank_cons,0)), 0, INDEX(A_actual,MATCH(1,rank_cons,0))*OFFSET('Calculation (power based)'!$AY$24,MATCH(1,rank_cons,0)-1,INDEX(requirement_index,MATCH(1,rank_cons,0))-1,1,1)*L8 + INDEX(B_actual,MATCH(1,rank_cons,0)) ) ) ),#N/A) -> 4.196223339 | M9: =IF(output_chart_valid, IF(INDEX(type_array,MATCH(1,rank_cons,0))=1, MIN( INDEX(Q_actual_max,MATCH(1,rank_cons,0)), IF(OFFSET('Calculation (power based)'!$AY$24,MATCH(1,rank_cons,0)-1,INDEX(requirement_index,MATCH(1,rank_cons,0))-1,1,1)*M8<INDEX(P_actual_start,MATCH(1,rank_cons,0)), 0, OFFSET('Calculation (power based)'!$AY$24,MATCH(1,rank_cons,0)-1,INDEX(requirement_index,MATCH(1,rank_cons,0))-1,1,1)*INDEX(A_actual,MATCH(1,rank_cons,0))*3.6/tdh_cons/g_constant* (M8 - INDEX(B_actual,MATCH(1,rank_cons,0)))/(M8^INDEX(C_actual,MATCH(1,rank_cons,0))) + INDEX(Q_actual_start,MATCH(1,rank_cons,0)) ) ), MIN( INDEX(Q_actual_max,MATCH(1,rank_cons,0)), IF(OFFSET('Calculation (power based)'!$AY$24,MATCH(1,rank_cons,0)-1,INDEX(requirement_index,MATCH(1,rank_cons,0))-1,1,1)*M8<INDEX(P_actual_start,MATCH(1,rank_cons,0)), 0, INDEX(A_actual,MATCH(1,rank_cons,0))*OFFSET('Calculation (power based)'!$AY$24,MATCH(1,rank_cons,0)-1,INDEX(requirement_index,MATCH(1,rank_cons,0))-1,1,1)*M8 + INDEX(B_actual,MATCH(1,rank_cons,0)) ) ) ),#N/A) -> 2.472061313 | N9: =IF(output_chart_valid, IF(INDEX(type_array,MATCH(1,rank_cons,0))=1, MIN( INDEX(Q_actual_max,MATCH(1,rank_cons,0)), IF(OFFSET('Calculation (power based)'!$AY$24,MATCH(1,rank_cons,0)-1,INDEX(requirement_index,MATCH(1,rank_cons,0))-1,1,1)*N8<INDEX(P_actual_start,MATCH(1,rank_cons,0)), 0, OFFSET('Calculation (power based)'!$AY$24,MATCH(1,rank_cons,0)-1,INDEX(requirement_index,MATCH(1,rank_cons,0))-1,1,1)*INDEX(A_actual,MATCH(1,rank_cons,0))*3.6/tdh_cons/g_constant* (N8 - INDEX(B_actual,MATCH(1,rank_cons,0)))/(N8^INDEX(C_actual,MATCH(1,rank_cons,0))) + INDEX(Q_actual_start,MATCH(1,rank_cons,0)) ) ), MIN( INDEX(Q_actual_max,MATCH(1,rank_cons,0)), IF(OFFSET('Calculation (power based)'!$AY$24,MATCH(1,rank_cons,0)-1,INDEX(requirement_index,MATCH(1,rank_cons,0))-1,1,1)*N8<INDEX(P_actual_start,MATCH(1,rank_cons,0)), 0, INDEX(A_actual,MATCH(1,rank_cons,0))*OFFSET('Calculation (power based)'!$AY$24,MATCH(1,rank_cons,0)-1,INDEX(requirement_index,MATCH(1,rank_cons,0))-1,1,1)*N8 + INDEX(B_actual,MATCH(1,rank_cons,0)) ) ) ),#N/A) -> 0 | O9: =IF(output_chart_valid, IF(INDEX(type_array,MATCH(1,rank_cons,0))=1, MIN( INDEX(Q_actual_max,MATCH(1,rank_cons,0)), IF(OFFSET('Calculation (power based)'!$AY$24,MATCH(1,rank_cons,0)-1,INDEX(requirement_index,MATCH(1,rank_cons,0))-1,1,1)*O8<INDEX(P_actual_start,MATCH(1,rank_cons,0)), 0, OFFSET('Calculation (power based)'!$AY$24,MATCH(1,rank_cons,0)-1,INDEX(requirement_index,MATCH(1,rank_cons,0))-1,1,1)*INDEX(A_actual,MATCH(1,rank_cons,0))*3.6/tdh_cons/g_constant* (O8 - INDEX(B_actual,MATCH(1,rank_cons,0)))/(O8^INDEX(C_actual,MATCH(1,rank_cons,0))) + INDEX(Q_actual_start,MATCH(1,rank_cons,0)) ) ), MIN( INDEX(Q_actual_max,MATCH(1,rank_cons,0)), IF(OFFSET('Calculation (power based)'!$AY$24,MATCH(1,rank_cons,0)-1,INDEX(requirement_index,MATCH(1,rank_cons,0))-1,1,1)*O8<INDEX(P_actual_start,MATCH(1,rank_cons,0)), 0, INDEX(A_actual,MATCH(1,rank_cons,0))*OFFSET('Calculation (power based)'!$AY$24,MATCH(1,rank_cons,0)-1,INDEX(requirement_index,MATCH(1,rank_cons,0))-1,1,1)*O8 + INDEX(B_actual,MATCH(1,rank_cons,0)) ) ) ),#N/A) -> 0 | P9: =IF(output_chart_valid, IF(INDEX(type_array,MATCH(1,rank_cons,0))=1, MIN( INDEX(Q_actual_max,MATCH(1,rank_cons,0)), IF(OFFSET('Calculation (power based)'!$AY$24,MATCH(1,rank_cons,0)-1,INDEX(requirement_index,MATCH(1,rank_cons,0))-1,1,1)*P8<INDEX(P_actual_start,MATCH(1,rank_cons,0)), 0, OFFSET('Calculation (power based)'!$AY$24,MATCH(1,rank_cons,0)-1,INDEX(requirement_index,MATCH(1,rank_cons,0))-1,1,1)*INDEX(A_actual,MATCH(1,rank_cons,0))*3.6/tdh_cons/g_constant* (P8 - INDEX(B_actual,MATCH(1,rank_cons,0)))/(P8^INDEX(C_actual,MATCH(1,rank_cons,0))) + INDEX(Q_actual_start,MATCH(1,rank_cons,0)) ) ), MIN( INDEX(Q_actual_max,MATCH(1,rank_cons,0)), IF(OFFSET('Calculation (power based)'!$AY$24,MATCH(1,rank_cons,0)-1,INDEX(requirement_index,MATCH(1,rank_cons,0))-1,1,1)*P8<INDEX(P_actual_start,MATCH(1,rank_cons,0)), 0, INDEX(A_actual,MATCH(1,rank_cons,0))*OFFSET('Calculation (power based)'!$AY$24,MATCH(1,rank_cons,0)-1,INDEX(requirement_index,MATCH(1,rank_cons,0))-1,1,1)*P8 + INDEX(B_actual,MATCH(1,rank_cons,0)) ) ) ),#N/A) -> 0
C10: irradiation_abs | D10: =IF(irradiation_chart_valid,D7*insolation_cons,#N/A) -> 0 | E10: 0.02414486922 | F10: 0.1046277666 | G10: 0.3138832998 | H10: 0.5472837022 | I10: 0.6680080483 | J10: 0.6841046278 | K10: 0.6680080483 | L10: 0.5472837022 | M10: 0.3138832998 | N10: 0.1046277666 | O10: 0.02414486922 | P10: 0
C11: irradiation_abs_watt | D11: =D10*1000 -> 0 | E11: =E10*1000 -> 24.14486922 | F11: 104.6277666 | G11: 313.8832998 | H11: 547.2837022 | I11: 668.0080483 | J11: 684.1046278 | K11: 668.0080483 | L11: 547.2837022 | M11: 313.8832998 | N11: 104.6277666 | O11: 24.14486922 | P11: 0

Sheet Calculation (power based) (hidden)
A4: ID | B4: =selected_index -> 
F7: 0 | G7: 0.01 | H7: 0.02 | I7: 0.03 | J7: 0.04 | K7: 0.05 | L7: 0.06 | M7: 0.07 | N7: 0.08 | O7: 0.09 | P7: 0.1 | Q7: 0.11 | R7: 0.12 | S7: 0.13 | T7: 0.14 | U7: 0.15 | V7: 0.16 | W7: 0.17 | X7: 0.18 | Y7: 0.19 | Z7: 0.2 | AA7: 0.21 | AB7: 0.22 | AC7: 0.23 | AD7: 0.24 | AE7: 0.25 | AF7: 0.26 | AG7: 0.27 | AH7: 0.28 | AI7: 0.29 | AJ7: 0.3 | AK7: 0.31 | AL7: 0.32 | AM7: 0.33 | AN7: 0.34 | AO7: 0.35 | AP7: 0.36 | AQ7: 0.37 | AR7: 0.38 | AS7: 0.39 | AT7: 0.4 | AU7: 0.41 | AV7: 0.42 | AW7: 0.43 | AX7: 0.44 | AY7: 0.45 | AZ7: 0.46 | BA7: 0.47 | BB7: 0.48 | BC7: 0.49 | BD7: 0.5 | BE7: 0.51 | BF7: 0.52 | BG7: 0.53 | BH7: 0.54 | BI7: 0.55 | BJ7: 0.56 | BK7: 0.57 | BL7: 0.58 | BM7: 0.59 | BN7: 0.6 | BO7: 0.61 | BP7: 0.62 | BQ7: 0.63 | BR7: 0.64 | BS7: 0.65 | BT7: 0.66 | BU7: 0.67 | BV7: 0.68 | BW7: 0.69 | BX7: 0.7 | BY7: 0.71 | BZ7: 0.72 | CA7: 0.73 | CB7: 0.74 | CC7: 0.75 | CD7: 0.76 | CE7: 0.77 | CF7: 0.78 | CG7: 0.79 | CH7: 0.8 | CI7: 0.81 | CJ7: 0.82 | CK7: 0.83 | CL7: 0.84 | CM7: 0.85 | CN7: 0.86 | CO7: 0.87 | CP7: 0.88 | CQ7: 0.89 | CR7: 0.9 | CS7: 0.91 | CT7: 0.92 | CU7: 0.93 | CV7: 0.94 | CW7: 0.95 | CX7: 0.96 | CY7: 0.97 | CZ7: 0.98 | DA7: 0.99 | DB7: 1
B8: valid | C8: min | D8: max | E8: label | F8: =F7*MAX(IF(ISNA($D9),0,$D9),IF(ISNA($D11),0,$D11)) -> 0 | G8: 0 | H8: 0 | I8: 0 | J8: 0 | K8: 0 | L8: 0 | M8: 0 | N8: 0 | O8: 0 | P8: 0 | Q8: 0 | R8: 0 | S8: 0 | T8: 0 | U8: 0 | V8: 0 | W8: 0 | X8: 0 | Y8: 0 | Z8: 0 | AA8: 0 | AB8: 0 | AC8: 0 | AD8: 0 | AE8: 0 | AF8: 0 | AG8: 0 | AH8: 0 | AI8: 0 | AJ8: 0 | AK8: 0 | AL8: =AL7*MAX(IF(ISNA($D9),0,$D9),IF(ISNA($D11),0,$D11)) -> 0 | AM8: 0 | AN8: 0 | AO8: 0 | AP8: 0 | AQ8: 0 | AR8: 0 | AS8: 0 | AT8: 0 | AU8: 0 | AV8: 0 | AW8: 0 | AX8: 0 | AY8: 0 | AZ8: 0 | BA8: 0 | BB8: 0 | BC8: 0 | BD8: 0 | BE8: 0 | BF8: 0 | BG8: 0 | BH8: 0 | BI8: 0 | BJ8: 0 | BK8: 0 | BL8: 0 | BM8: 0 | BN8: 0 | BO8: 0 | BP8: 0 | BQ8: 0 | BR8: =BR7*MAX(IF(ISNA($D9),0,$D9),IF(ISNA($D11),0,$D11)) -> 0 | BS8: 0 | BT8: 0 | BU8: 0 | BV8: 0 | BW8: 0 | BX8: 0 | BY8: 0 | BZ8: 0 | CA8: 0 | CB8: 0 | CC8: 0 | CD8: 0 | CE8: 0 | CF8: 0 | CG8: 0 | CH8: 0 | CI8: 0 | CJ8: 0 | CK8: 0 | CL8: 0 | CM8: 0 | CN8: 0 | CO8: 0 | CP8: 0 | CQ8: 0 | CR8: 0 | CS8: 0 | CT8: 0 | CU8: 0 | CV8: 0 | CW8: 0 | CX8: =CX7*MAX(IF(ISNA($D9),0,$D9),IF(ISNA($D11),0,$D11)) -> 0 | CY8: 0 | CZ8: 0 | DA8: 0 | DB8: 0
A9: low | B9: =IF(ISNUMBER(B4),IF(AND(NOT(VLOOKUP(B4,A24:DB223,2,FALSE)),VLOOKUP(B4,A24:DB223,5,FALSE),VLOOKUP(B4,A24:DB223,6,FALSE),VLOOKUP(B4,A24:DB223,7,FALSE),VLOOKUP(B4,A24:DB223,8,FALSE),VLOOKUP(B4,A24:DB223,9,FALSE)),TRUE),#N/A) ->  | C9: =IF(B9,VLOOKUP(B4,A24:DB223,33,FALSE),#N/A) ->  | D9: =IF(B9,VLOOKUP(B4,A24:DB223,34,FALSE),#N/A) ->  | E9: =IF(B9,VLOOKUP(B4,A24:DB223,29,FALSE) & " m",#N/A) ->  | F9: =IF($B9,IF(AND(F$8>=$C9,F$8<=$D9),IF(VLOOKUP($B$4,$A$24:$DB$223,32,FALSE)=1,(VLOOKUP($B$4,$A$24:$DB$223,16,FALSE)*(F$7-VLOOKUP($B$4,$A$24:$DB$223,17,FALSE))/(F$7^VLOOKUP($B$4,$A$24:$DB$223,18,FALSE)))*F$8*3.6/F$7/VLOOKUP($B$4,$A$24:$DB$223,29,FALSE)/g_constant + VLOOKUP($B$4,$A$24:$DB$223,48,FALSE),VLOOKUP($B$4,$A$24:$DB$223,16,FALSE)*F$8+VLOOKUP($B$4,$A$24:$DB$223,17,FALSE)),#N/A),#N/A) ->  | AL9: =IF($B9,IF(AND(AL$8>=$C9,AL$8<=$D9),IF(VLOOKUP($B$4,$A$24:$DB$223,32,FALSE)=1,(VLOOKUP($B$4,$A$24:$DB$223,16,FALSE)*(AL$7-VLOOKUP($B$4,$A$24:$DB$223,17,FALSE))/(AL$7^VLOOKUP($B$4,$A$24:$DB$223,18,FALSE)))*AL$8*3.6/AL$7/VLOOKUP($B$4,$A$24:$DB$223,29,FALSE)/g_constant + VLOOKUP($B$4,$A$24:$DB$223,48,FALSE),VLOOKUP($B$4,$A$24:$DB$223,16,FALSE)*AL$8+VLOOKUP($B$4,$A$24:$DB$223,17,FALSE)),#N/A),#N/A) ->  | BR9: =IF($B9,IF(AND(BR$8>=$C9,BR$8<=$D9),IF(VLOOKUP($B$4,$A$24:$DB$223,32,FALSE)=1,(VLOOKUP($B$4,$A$24:$DB$223,16,FALSE)*(BR$7-VLOOKUP($B$4,$A$24:$DB$223,17,FALSE))/(BR$7^VLOOKUP($B$4,$A$24:$DB$223,18,FALSE)))*BR$8*3.6/BR$7/VLOOKUP($B$4,$A$24:$DB$223,29,FALSE)/g_constant + VLOOKUP($B$4,$A$24:$DB$223,48,FALSE),VLOOKUP($B$4,$A$24:$DB$223,16,FALSE)*BR$8+VLOOKUP($B$4,$A$24:$DB$223,17,FALSE)),#N/A),#N/A) -> 
A10: mid | B10: =IF(AND(B11,B9),TRUE,IF(OR(NOT(ISNA(B11)),NOT(ISNA(B9))),FALSE,#N/A)) ->  | C10: =IF(B10,VLOOKUP(B4,A24:DB223,37,FALSE),#N/A) ->  | D10: =IF(B10,VLOOKUP(B4,A24:DB223,38,FALSE),#N/A) ->  | E10: =IF(B10,VLOOKUP(B4,A24:DB223,31,FALSE) & " m",#N/A) ->  | F10: =IF($B10,IF(AND(F$8>=$C10,F$8<=$D10),IF(VLOOKUP($B$4,$A$24:$DB$223,32,FALSE)=1,(VLOOKUP($B$4,$A$24:$DB$223,22,FALSE)*(F$7-VLOOKUP($B$4,$A$24:$DB$223,23,FALSE))/(F$7^VLOOKUP($B$4,$A$24:$DB$223,24,FALSE)))*F$8*3.6/F$7/VLOOKUP($B$4,$A$24:$DB$223,31,FALSE)/g_constant + VLOOKUP($B$4,$A$24:$DB$223,41,FALSE),VLOOKUP($B$4,$A$24:$DB$223,22,FALSE)*F$8+VLOOKUP($B$4,$A$24:$DB$223,23,FALSE)),#N/A),#N/A) ->  | AL10: =IF($B10,IF(AND(AL$8>=$C10,AL$8<=$D10),IF(VLOOKUP($B$4,$A$24:$DB$223,32,FALSE)=1,(VLOOKUP($B$4,$A$24:$DB$223,22,FALSE)*(AL$7-VLOOKUP($B$4,$A$24:$DB$223,23,FALSE))/(AL$7^VLOOKUP($B$4,$A$24:$DB$223,24,FALSE)))*AL$8*3.6/AL$7/VLOOKUP($B$4,$A$24:$DB$223,31,FALSE)/g_constant + VLOOKUP($B$4,$A$24:$DB$223,41,FALSE),VLOOKUP($B$4,$A$24:$DB$223,22,FALSE)*AL$8+VLOOKUP($B$4,$A$24:$DB$223,23,FALSE)),#N/A),#N/A) ->  | BR10: =IF($B10,IF(AND(BR$8>=$C10,BR$8<=$D10),IF(VLOOKUP($B$4,$A$24:$DB$223,32,FALSE)=1,(VLOOKUP($B$4,$A$24:$DB$223,22,FALSE)*(BR$7-VLOOKUP($B$4,$A$24:$DB$223,23,FALSE))/(BR$7^VLOOKUP($B$4,$A$24:$DB$223,24,FALSE)))*BR$8*3.6/BR$7/VLOOKUP($B$4,$A$24:$DB$223,31,FALSE)/g_constant + VLOOKUP($B$4,$A$24:$DB$223,41,FALSE),VLOOKUP($B$4,$A$24:$DB$223,22,FALSE)*BR$8+VLOOKUP($B$4,$A$24:$DB$223,23,FALSE)),#N/A),#N/A) -> 
A11: high | B11: =IF(ISNUMBER(B4),IF(AND(NOT(VLOOKUP(B4,A24:DB223,2,FALSE)),VLOOKUP(B4,A24:DB223,10,FALSE),VLOOKUP(B4,A24:DB223,11,FALSE),VLOOKUP(B4,A24:DB223,12,FALSE),VLOOKUP(B4,A24:DB223,13,FALSE),VLOOKUP(B4,A24:DB223,14,FALSE)),TRUE),#N/A) ->  | C11: =IF(B11,VLOOKUP(B4,A24:DB223,35,FALSE),#N/A) ->  | D11: =IF(B11,VLOOKUP(B4,A24:DB223,36,FALSE),#N/A) ->  | E11: =IF(B11,VLOOKUP(B4,A24:DB223,30,FALSE) & " m",#N/A) ->  | F11: =IF($B11,IF(AND(F$8>=$C11,F$8<=$D11),IF(VLOOKUP($B$4,$A$24:$DB$223,32,FALSE)=1,(VLOOKUP($B$4,$A$24:$DB$223,19,FALSE)*(F$7-VLOOKUP($B$4,$A$24:$DB$223,20,FALSE))/(F$7^VLOOKUP($B$4,$A$24:$DB$223,21,FALSE)))*F$8*3.6/F$7/VLOOKUP($B$4,$A$24:$DB$223,30,FALSE)/g_constant + VLOOKUP($B$4,$A$24:$DB$223,49,FALSE),VLOOKUP($B$4,$A$24:$DB$223,19,FALSE)*F$8+VLOOKUP($B$4,$A$24:$DB$223,20,FALSE)),#N/A),#N/A) ->  | AL11: =IF($B11,IF(AND(AL$8>=$C11,AL$8<=$D11),IF(VLOOKUP($B$4,$A$24:$DB$223,32,FALSE)=1,(VLOOKUP($B$4,$A$24:$DB$223,19,FALSE)*(AL$7-VLOOKUP($B$4,$A$24:$DB$223,20,FALSE))/(AL$7^VLOOKUP($B$4,$A$24:$DB$223,21,FALSE)))*AL$8*3.6/AL$7/VLOOKUP($B$4,$A$24:$DB$223,30,FALSE)/g_constant + VLOOKUP($B$4,$A$24:$DB$223,49,FALSE),VLOOKUP($B$4,$A$24:$DB$223,19,FALSE)*AL$8+VLOOKUP($B$4,$A$24:$DB$223,20,FALSE)),#N/A),#N/A) ->  | BR11: =IF($B11,IF(AND(BR$8>=$C11,BR$8<=$D11),IF(VLOOKUP($B$4,$A$24:$DB$223,32,FALSE)=1,(VLOOKUP($B$4,$A$24:$DB$223,19,FALSE)*(BR$7-VLOOKUP($B$4,$A$24:$DB$223,20,FALSE))/(BR$7^VLOOKUP($B$4,$A$24:$DB$223,21,FALSE)))*BR$8*3.6/BR$7/VLOOKUP($B$4,$A$24:$DB$223,30,FALSE)/g_constant + VLOOKUP($B$4,$A$24:$DB$223,49,FALSE),VLOOKUP($B$4,$A$24:$DB$223,19,FALSE)*BR$8+VLOOKUP($B$4,$A$24:$DB$223,20,FALSE)),#N/A),#N/A) -> 
